Workbook

Sheet Contents
A1: 80 | M1: ESC USE ONLY
D2: ESSENTIAL SERVICES COMMISSION
D3: Water Price Review
D4: Financial Model Template
B7: Table of Contents | F7: Water Business: | H7: =+N24 -> Coliban Water | I7: =+O24 -> CW
B8: Section & Sheet Titles | F8: Regulatory Period: | H8: 2018-19 to 2022-23 (Fourth) | N8: [Decision] | O8: [Month] | P8: [Year] | Q8: [Version]
F9: Model Name: | H9: =I7&"_Price Review Template_"&O9&P9&Q9 -> CW_Price Review Template_Dec2016 - v1 | N9: Draft | O9: Dec | P9: 2016 | Q9: - v1 | R9: << Select
B10: a. | C10: =+KeyAssumptionsPriceControl_FO!B1 -> Key Assumptions Price Control | F10: Decision type: | H10: =+N9&" Decision" -> Draft Decision | N10: Draft | O10: Jan | P10: 2016 | Q10: - v1
B11: b. | C11: Expenditure Detail - Removed as it contained confidential information | N11: Final | O11: Feb | P11: 2017 | Q11: - v1.2
B12: c. | C12: =Opex_FO!B1 -> Operating Expenditure - Forecast | F12: Model Key: | O12: Mar | P12: 2018 | Q12: - v3
B13: d. | C13: =Opex_Breakdown!B1 -> Operating Expenditure - Breakdown | O13: Apr | P13: 2019 | Q13: - v3.1
B14: e. | C14: =+'Capex_FO input'!B1 -> Capital Expenditure - Forecast Input | G14: BLUE | H14: =+I7&" - DATA INPUT CELL" -> CW - DATA INPUT CELL | O14: May | P14: 2020 | Q14: - v4
B15: f. | C15: =Capex_FO_AC!B1 -> Capital Expenditure - Asset Category Breakdown | O15: Jun | P15: 2021 | Q15: - v4.1
B16: g. | C16: =ExpSummary_FO!B1 -> Expenditure Summary | G16: YELLOW | H16: NOTES / INSTRUCTIONS | O16: Jul | Q16: - v5
B17: h. | C17: =RollForward_FO!B1 -> Rolled forward regulatory asset base (RAB) | O17: Aug | Q17: - v5.1
B18: i. | C18: =PrevPerAdj_FO!B1 -> Previous period adjustments | G18: GREY | H18: MODEL PARAMETERS / ASSUMPTIONS | O18: Sep | Q18: - v6
B19: j. | C19: =RevenuePriceCap_FO!C1 -> Revenue forecast (price caps) | O19: Oct | Q19: - v6.1
B20: k. | C20: Revenue forecast (tariff basket) | G20: WHITE | H20: FORMULA / HARDCODED VALUES | O20: Nov | Q20: - v7
B21: l. | C21: =NotPres_FO!B1 -> Non Prescribed Services | O21: Dec | Q21: - v7.1
B22: m. | C22: ='Finance&Tax_FO'!B1 -> Cash, debt and tax assumptions | G22: ORANGE | H22: FORMULA DIFFERENT TO ADJACENT CELL
B23: n. | C23: ='Rev&RAV_FO'!B1 -> Revenue requirement detail | N23: [Business]
B24: o. | C24: =Indicators_FO!B1 -> Financial indicators | G24: GREEN | H24: DATA FROM 2013 DECISION OR PERFORMANCE REPORT | N24: Coliban Water | O24: =+VLOOKUP(N24,N25:O42,2,FALSE) -> CW
B25: p. | C25: =Outcomes!B1 -> Outcomes | N25: Barwon Water | O25: BW
B26: q. | C26: =GSL!B1 -> Guaranteed Service Levels (GSL) | G26: RED | H26: ERROR CHECK | N26: Central Highlands Water | O26: CHW
N27: City West Water | O27: CWW
N28: Coliban Water | O28: CW
N29: East Gippsland Water | O29: EGW
N30: Gippsland Water | O30: CGW
N31: Goulburn Valley Water | O31: GVW
N32: GWM Water | O32: GWMW | P32: diff model
N33: Lower Murray Water - Urban | O33: LMW-U | P33: diff model
N34: Lower Murray Water - Rural | O34: LMW-R
N35: North East Water | O35: NEW
N36: South East Water | O36: SEW
N37: South Gippsland Water | O37: SGW
N38: Southern Rural Water | O38: SRW | P38: diff model
N39: Wannon Water | O39: WNW
N40: Western Water | O40: WW
N41: Westernport Water | O41: WPW
N42: Yarra Valley Water | O42: YVW

Sheet KeyAssumptionsPriceControl_FO
A1: 80 | B1: Key Assumptions Price Control
B2: =+Contents!H7 -> Coliban Water
B3: Go to Table of Contents
L4: FIRST REG PERIOD | P4: SECOND REG PERIOD | U4: THIRD REG PERIOD | Z4: FOURTH REG PERIOD | AC4: FIFTH REG PERIOD
F6: Straight Line | K6: 2006 | L6: 2007 | M6: 2008 | N6: 2009 | O6: 2010 | P6: 2011 | Q6: 2012 | R6: 2013 | S6: 2014 | T6: 2015 | U6: 2016 | V6: 2017 | W6: 2018 | X6: 2019 | Y6: 2020 | Z6: 2021 | AA6: 2022 | AB6: 2023 | AC6: 2024 | AD6: 2025 | AE6: 2026 | AF6: 2027 | AG6: 2028
F7: Declining Balance | I7: 2003-04 | J7: 2004-05 | K7: =+CONCATENATE(K6-1,"-",RIGHT(K6,2)) -> 2005-06 | L7: =+CONCATENATE(L6-1,"-",RIGHT(L6,2)) -> 2006-07 | M7: 2007-08 | N7: 2008-09 | O7: 2009-10 | P7: 2010-11 | Q7: 2011-12 | R7: 2012-13 | S7: 2013-14 | T7: 2014-15 | U7: 2015-16 | V7: 2016-17 | W7: 2017-18 | X7: 2018-19 | Y7: 2019-20 | Z7: 2020-21 | AA7: 2021-22 | AB7: 2022-23 | AC7: 2023-24 | AD7: 2024-25 | AE7: 2025-26 | AF7: 2026-27 | AG7: 2027-28
E11: Inflation assumptions
W12: Estimate
F13: March quarter annual CPI | I13: 141.3 | J13: 144.1 | K13: 147.5 | L13: 151.9 | M13: 155.6 | N13: 162.2 | O13: 166.2 | P13: 171 | Q13: 176.7 | R13: 99.9 | S13: 102.4 | T13: 105.4 | U13: 106.8 | V13: 108.2 | W13: 110.5
F14: Inflation | J14: =+J13/I13-1 -> 0.01981599434 | K14: 0.02359472588 | L14: 0.02983050847 | M14: 0.02435813035 | N14: 0.04241645244 | O14: 0.02466091245 | P14: 0.02888086643 | Q14: 0.03333333333 | R14: 0.01584606678 | S14: =+IF(S13=0,$X$44,S13/R13-1) -> 0.02502502503 | T14: 0.029296875 | U14: 0.01328273245 | V14: 0.01310861423 | W14: 0.02125693161 | X14: 0.023 | Y14: 0.023 | Z14: 0.023 | AA14: 0.023 | AB14: 0.023 | AC14: 0.023 | AD14: 0.023 | AE14: 0.023 | AF14: 0.023 | AG14: 0.023
F15: Inflation factor | I15: 0.7871866295 | J15: 0.8027855153 | K15: 0.8217270195 | L15: 0.8462395543 | M15: 0.8668523677 | N15: 0.9036211699 | O15: 0.9259052925 | P15: 0.9526462396 | Q15: 0.9844011142 | R15: =+R13/$W$13 -> 0.9040723982 | S15: 0.9266968326 | T15: 0.9538461538 | U15: 0.9665158371 | V15: =+V13/$W$13 -> 0.9791855204 | W15: =+W13/$W$13 -> 1 | X15: =+W15*(1+X14) -> 1.023 | Y15: =+X15*(1+Y14) -> 1.046529 | Z15: 1.070599167 | AA15: 1.095222948 | AB15: 1.120413076 | AC15: 1.146182576 | AD15: 1.172544776 | AE15: 1.199513305 | AF15: 1.227102112 | AG15: 1.25532546
I16: CPI index re-referenced in 2012-13, shaded values have been hardcoded to lock in RAB value.
E21: Cost of debt - 10 year trailing average (Nominal)
V22: Estimate | W22: Estimate
E23: Cost of debt | L23: 0.06981666667 | M23: 0.07414 | N23: 0.0691525788 | O23: 0.07361870984 | P23: 0.07046784142 | Q23: 0.06308887941 | R23: 0.0526945046 | S23: 0.070525 | T23: 0.05360833333 | U23: 0.05270138413 | V23: 0.04908333333 | W23: 0.04908333333
E24: Re-financing weightings - average 10 yrs | L24: =1/10 -> 0.1 | M24: =1/10 -> 0.1 | N24: =1/10 -> 0.1 | O24: =1/10 -> 0.1 | P24: =1/10 -> 0.1 | Q24: 0.1 | R24: 0.1 | S24: 0.1 | T24: 0.1 | U24: 0.1 | V24: 0.1 | W24: 0.1 | X24: 0.1 | Y24: 0.1 | Z24: 0.1 | AA24: 0.1 | AB24: 0.1 | AC24: 0.1 | AD24: 0.1 | AE24: 0.1 | AF24: 0.1 | AG24: 0.1
E26: Cost of debt - 10 year trailing average | V26: =IF(U23<>"",SUMPRODUCT(L23:U23,L24:U24),"") -> 0.06498138982 | W26: =IF(V23<>"",SUMPRODUCT(M23:V23,M24:V24),"") -> 0.06290805649 | X26: =IF(W23<>"",SUMPRODUCT(N23:W23,N24:W24),"") -> 0.06040238982 | Y26: =IF(X23<>"",SUMPRODUCT(O23:X23,O24:X24),"") ->  | Z26: =IF(Y23<>"",SUMPRODUCT(P23:Y23,P24:Y24),"") -> 
E30: WACC assumptions (retained for historical purposes only) | U30: Regulatory Rate of Return (RRR) - Nominal
K32: 1st period | M32: 2nd period | O32: 3rd period | U32: Cost of Debt | X32: =+X26 -> 0.06040238982 | Y32: =+$X$32 -> 0.06040238982 | Z32: 0.06040238982 | AA32: 0.06040238982 | AB32: 0.06040238982 | AC32: 0.06040238982 | AD32: 0.06040238982 | AE32: 0.06040238982 | AF32: 0.06040238982 | AG32: 0.06040238982 | AI32: << Linked to Benchmark tax liability calculation (Rev&RAV_FO)
E33: Parameters
F34: Risk Free Rate (Real) | K34: =+HLOOKUP(Contents!$I$7&1,Determination_Lookup!$C$54:$BD$61,2,FALSE) -> 0.0267 | M34: =+HLOOKUP(Contents!$I$7&2,Determination_Lookup!$C$54:$BD$61,2,FALSE) -> 0.0323 | O34: =+HLOOKUP(Contents!$I$7&3,Determination_Lookup!$C$54:$BD$61,2,FALSE) -> 0.005959
F35: Debt Premium | K35: =+HLOOKUP(Contents!$I$7&1,Determination_Lookup!$C$54:$BD$61,3,FALSE) -> 0.0116 | M35: =+HLOOKUP(Contents!$I$7&2,Determination_Lookup!$C$54:$BD$61,3,FALSE) -> 0.0175 | O35: =+HLOOKUP(Contents!$I$7&3,Determination_Lookup!$C$54:$BD$61,3,FALSE) -> 0.0399
F36: Equity Premium | K36: =+HLOOKUP(Contents!$I$7&1,Determination_Lookup!$C$54:$BD$61,4,FALSE) -> 0.06 | M36: =+HLOOKUP(Contents!$I$7&2,Determination_Lookup!$C$54:$BD$61,4,FALSE) -> 0.06 | O36: =+HLOOKUP(Contents!$I$7&3,Determination_Lookup!$C$54:$BD$61,4,FALSE) -> 0.06 | U36: Regulatory Rate of Return (RRR) - Real
F37: Equity Beta | K37: =+HLOOKUP(Contents!$I$7&1,Determination_Lookup!$C$54:$BD$61,5,FALSE) -> 0.75 | M37: =+HLOOKUP(Contents!$I$7&2,Determination_Lookup!$C$54:$BD$61,5,FALSE) -> 0.65 | O37: =+HLOOKUP(Contents!$I$7&3,Determination_Lookup!$C$54:$BD$61,5,FALSE) -> 0.65
F38: Gearing (Debt/Assets) | K38: =+HLOOKUP(Contents!$I$7&1,Determination_Lookup!$C$54:$BD$61,6,FALSE) -> 0.6 | M38: =+HLOOKUP(Contents!$I$7&2,Determination_Lookup!$C$54:$BD$61,6,FALSE) -> 0.6 | O38: =+HLOOKUP(Contents!$I$7&3,Determination_Lookup!$C$54:$BD$61,6,FALSE) -> 0.6 | U38: Cost of Debt | X38: =(1+X32)/(1+X44)-1 -> 0.03656147587 | Y38: =+$X$38 -> 0.03656147587 | Z38: =+$X$38 -> 0.03656147587 | AA38: 0.03656147587 | AB38: 0.03656147587 | AC38: 0.03656147587 | AD38: 0.03656147587 | AE38: 0.03656147587 | AF38: 0.03656147587 | AG38: 0.03656147587
F39: Forecast Inflation | K39: =+HLOOKUP(Contents!$I$7&1,Determination_Lookup!$C$54:$BD$61,7,FALSE) -> 0.0255 | M39: =+HLOOKUP(Contents!$I$7&2,Determination_Lookup!$C$54:$BD$61,7,FALSE) -> 0.025 | O39: =+HLOOKUP(Contents!$I$7&3,Determination_Lookup!$C$54:$BD$61,7,FALSE) -> 0.0275
F40: Franking credit value | K40: =+HLOOKUP(Contents!$I$7&1,Determination_Lookup!$C$54:$BD$61,8,FALSE) -> 0.5 | M40: =+HLOOKUP(Contents!$I$7&2,Determination_Lookup!$C$54:$BD$61,8,FALSE) -> 0.5 | O40: =+HLOOKUP(Contents!$I$7&3,Determination_Lookup!$C$54:$BD$61,8,FALSE) -> 0.5 | U40: Return on Equity | X40: =IF(AG65<>0,(AG65/100),IF(AG63<>0,(AG63/100),(AG61/100))) -> 0.049 | Y40: =+$X$40 -> 0.049 | Z40: 0.049 | AA40: 0.049 | AB40: 0.049 | AC40: 0.049 | AD40: 0.049 | AE40: 0.049 | AF40: 0.049 | AG40: 0.049 | AI40: << Source: PREMO Assessment Matrix
E42: 'Vanilla' After Tax WACC (Real) | K42: =ROUND(((K34+K36*K37)*(1-K38))+((K34+K35)*K38),3) -> 0.052 | M42: =ROUND(((M34+M36*M37)*(1-M38))+((M34+M35)*M38),3) -> 0.058 | O42: =ROUND(((O34+O36*O37)*(1-O38))+((O34+O35)*O38),3) -> 0.045 | U42: RRR (real) | X42: =ROUND((X40*(1-X43)+X38*X43),3) -> 0.042 | Y42: 0.042 | Z42: 0.042 | AA42: 0.042 | AB42: 0.042 | AC42: 0.042 | AD42: 0.042 | AE42: 0.042 | AF42: 0.042 | AG42: 0.042
U43: Gearing | X43: 0.6 | Y43: =+X43 -> 0.6 | Z43: =+Y43 -> 0.6 | AA43: 0.6 | AB43: 0.6 | AC43: 0.6 | AD43: 0.6 | AE43: 0.6 | AF43: 0.6 | AG43: 0.6
U44: Forecast Inflation | X44: 0.023 | Y44: =+X44 -> 0.023 | Z44: 0.023 | AA44: 0.023 | AB44: 0.023 | AC44: 0.023 | AD44: 0.023 | AE44: 0.023 | AF44: 0.023 | AG44: 0.023
E46: Form of price control selected
E48: Price caps | I48: 2
U49: PREMO Graded Scoring System (for reference only) | AB49: PREMO Assessment Matrix (linked to Regulatory Rate of Return calculation above)
E50: Revenue cap / Hybrid Tariff Basket
V52: Water business | X52: ESC assessment | Z52: Difference | AD52: Water business self-assessment
V53: self-assessment | X53: of submission
AD54: Leading | AE54: Advanced | AF54: Standard | AG54: Basic
U55: Risk | V55: 3.75 | Z55: =IFERROR(IF(X55=0,"",X55-V55),"") ->  | AB55: ESC assessment of submission | AC55: Leading | AD55: 5.3
U56: Engagement | V56: 3.5 | Z56: =IFERROR(IF(X56=0,"",X56-V56),"") ->  | AC56: Advanced | AD56: 4.7 | AE56: 4.9
U57: Management | V57: 3.5 | Z57: =IFERROR(IF(X57=0,"",X57-V57),"") ->  | AC57: Standard | AD57: 4.1 | AE57: 4.3 | AF57: 4.5
U58: Outcomes | V58: 3.25 | Z58: =IFERROR(IF(X58=0,"",X58-V58),"") ->  | AC58: Basic | AF58: 3.9 | AG58: 4.1
U60: Total Score | V60: =SUM(V55:V58) -> 14 | X60: =SUM(X55:X58) -> 0 | Z60: =IFERROR(IF(X60=0,"",X60-V60),"") -> 
AB61: Water business self-assessment (Maximum allowable ROE) | AF61: Advanced | AG61: =+VLOOKUP(AF61,$AF$72:$AG$76,2,FALSE) -> 4.9
AB63: ROE Override (Must be less than Maximum allowable ROE) | AG63: =+IF(AF63<=AG61,AF63,"CHECK") -> 0
U64: Rating | V64: =IF(V60<4,"",IF(AND(V60>=4,V60<=7.25),"Basic",IF(AND(V60>=7.5,V60<=11.25),"Standard",IF(AND(V60>=11.5,V60<=15.25),"Advanced",IF(AND(V60>=15.5,V60<=16),"Leading"))))) -> Advanced | X64: =IF(X60<4,"",IF(AND(X60>=4,X60<=7.25),"Basic",IF(AND(X60>=7.5,X60<=11.25),"Standard",IF(AND(X60>=11.5,X60<=15.25),"Advanced",IF(AND(X60>=15.5,X60<=16),"Leading"))))) -> 
AB65: ESC assessment of submission | AG65: =IFERROR(IF(AF65=AF61,AG61,VLOOKUP(AF61&AF65,AF79:AG83,2,FALSE)),0) -> 0
AF67: Difference | AG67: =IFERROR(IF(AG65=0,"",AG65-AG61),"") -> 
U70: ESC USE ONLY
W71: [Select] | Y71: Rating | Z71: Aggregate score for overall PREMO rating | AF71: Business self assessment
W72: 1 | Y72: Leading | Z72: 15.5 to 16.0 | AF72: [Select]
W73: 1.25 | Y73: Advanced | Z73: 11.5 to 15.25 | AF73: Leading | AG73: =+AD55 -> 5.3
W74: 1.5 | Y74: Standard | Z74: 7.5 to 11.25 | AF74: Advanced | AG74: =+AE56 -> 4.9
W75: 1.75 | Y75: Basic | Z75: 4.0 to 7.25 | AF75: Standard | AG75: =+AF57 -> 4.5
W76: 2 | AF76: Basic | AG76: =+AG58 -> 4.1
W77: 2.25
W78: 2.5 | AF78: downgrading
W79: 2.75 | AF79: =AF54&AC58 -> StandardBasic | AG79: =+AF58 -> 3.9
W80: 3 | AF80: =+AE54&AC57 -> AdvancedStandard | AG80: =+AE57 -> 4.3
W81: 3.25 | AF81: =+AD54&AC56 -> LeadingAdvanced | AG81: =+AD56 -> 4.7
W82: 3.5 | AF82: =+AD54&AC57 -> LeadingStandard | AG82: =+AD57 -> 4.1
W83: 3.75 | AF83: =+AF61&"Basic" -> AdvancedBasic | AG83: CHECK
W84: 4

Sheet Opex_FO
B1: Operating Expenditure - Forecast
B2: =+Model_Name -> Coliban Water
B3: Go to Table of Contents
L4: FIRST REG PERIOD | P4: SECOND REG PERIOD | S4: THIRD REG PERIOD | X4: FOURTH REG PERIOD | AC4: FIFTH REG PERIOD
K5: 2006 | L5: 2007 | M5: 2008 | N5: 2009 | O5: 2010 | P5: 2011 | Q5: 2012 | R5: 2013 | S5: 2014 | T5: 2015 | U5: 2016 | V5: 2017 | W5: 2018 | X5: 2019 | Y5: 2020 | Z5: 2021 | AA5: 2022 | AB5: 2023 | AC5: 2024 | AD5: 2025 | AE5: 2026 | AF5: 2027 | AG5: 2028
B6: $m, 01/01/18 | K6: =+CONCATENATE(K5-1,"-",RIGHT(K5,2)) -> 2005-06 | L6: =+CONCATENATE(L5-1,"-",RIGHT(L5,2)) -> 2006-07 | M6: 2007-08 | N6: 2008-09 | O6: 2009-10 | P6: 2010-11 | Q6: 2011-12 | R6: 2012-13 | S6: 2013-14 | T6: 2014-15 | U6: 2015-16 | V6: 2016-17 | W6: 2017-18 | X6: 2018-19 | Y6: 2019-20 | Z6: 2020-21 | AA6: 2021-22 | AB6: 2022-23 | AC6: 2023-24 | AD6: 2024-25 | AE6: 2025-26 | AF6: 2026-27 | AG6: 2027-28
C9: Parameters | F9: 3rd period | H9: 4th period
D11: Cost efficiency improvement rate (% per annum) | F11: 0.01 | H11: =+SUM(X11:AB11)/5 -> 0.015 | X11: 0.015 | Y11: 0.015 | Z11: 0.015 | AA11: 0.015 | AB11: 0.015 | AC11: 0.015 | AD11: 0.015 | AE11: 0.015 | AF11: 0.015 | AG11: 0.015
D13: Customer growth forecast (% per annum) | F13: =AVERAGE(T13:W13) -> 0.01530477555 | H13: =+SUM(X13:AB13)/5 -> 0.01720448428 | T13: =IF(T15="","",T15/S15-1) -> 0.01726545639 | U13: =IF(U15="","",U15/T15-1) -> 0.01540552158 | V13: 0.01261812421 | W13: 0.01593 | X13: 0.017 | Y13: 0.01802242138 | Z13: 0.017 | AA13: 0.017 | AB13: 0.017 | AC13: 0.017 | AD13: 0.017 | AE13: 0.017 | AF13: 0.017 | AG13: 0.017
E14: Net baseline opex growth | F14: =IFERROR(F13-F11,"-") -> 0.005304775547 | H14: =IFERROR(H13-H11,"-") -> 0.002204484275
D15: Water customers (No.) - Residential & Non-Residential - [BED 1] | S15: =+Determination_Lookup!BF3 -> 70893 | T15: =+Determination_Lookup!BG3 -> 72117 | U15: =+Determination_Lookup!BH3 -> 73228 | V15: 74152 | W15: =+V$15*(1+W$13) -> 75333.24136 | X15: =+W$15*(1+X$13) -> 76613.90646 | Y15: =+X$15*(1+Y$13) -> 77994.67457 | Z15: 79320.58404 | AA15: 80669.03396 | AB15: 82040.40754 | AC15: 83435.09447 | AD15: 84853.49108 | AE15: 86296.00042 | AF15: 87763.03243 | AG15: 89255.00398 | AI15: << Used as normalising metric for dashboard graphs
D17: Sewer customers (No.) - Residential & Non-Residential - [BED 2] | S17: =+Determination_Lookup!BJ3 -> 63743 | T17: =+Determination_Lookup!BK3 -> 65038 | U17: =+Determination_Lookup!BL3 -> 66088 | V17: 67054 | W17: =+V$17*(1+W$13) -> 68122.17022 | X17: =+W$17*(1+X$13) -> 69280.24711 | Y17: =+X$17*(1+Y$13) -> 70528.84492 | Z17: 71727.83528 | AA17: 72947.20848 | AB17: 74187.31103 | AC17: 75448.49532 | AD17: 76731.11974 | AE17: 78035.54877 | AF17: 79362.1531 | AG17: 80711.3097 | AI17: << Used as normalising metric for dashboard graphs
D19: Total metered volume of water delivered to customers (ML) - [BED 10] | S19: =+Determination_Lookup!BB3 -> 18631.24 | T19: =+Determination_Lookup!BC3 -> 19246 | U19: =+Determination_Lookup!BD3 -> 21568 | V19: 21840.1477 | W19: 22188.06126 | X19: 22565.2583 | Y19: 22948.86769 | Z19: 23338.99844 | AA19: 23735.76141 | AB19: 24139.26936 | AC19: 24549.63694 | AD19: 24966.98076 | AE19: 25391.41944 | AF19: 25823.07357 | AG19: 26262.06582 | AI19: << Used as normalising metric for dashboard graphs
D20: Residential, Non-Residential & Recycled (Residential & Non-Residential)
C24: Baseline Forecast
D26: Baseline year - total prescribed operating expenditure in 2016-17: | V26: =+Opex_Breakdown!V37 -> 62.76531085
D28: Less non-controllable expenditure items incurred in 2016-17:
E29: External bulk water charges (excl. temporary purchases) | V29: =+Opex_Breakdown!V29 -> 2.04106088
E30: External temporary water purchases | V30: =+Opex_Breakdown!V30 -> 0.02589279869 | X30: Comparison with approved 2016-17 total controllable opex
E31: Licence fees | V31: =+Opex_Breakdown!V31 -> 0.2524947672 | X31: per 2013 determination model
E32: Environment Contribution | V32: =+Opex_Breakdown!V32 -> 3.34155268
E33: Other non-controllable | V33: =+Opex_Breakdown!V33 -> 0
V34: =SUM(V29:V33) -> 5.661001126 | Y34: 2016-17 | Z34: Difference | AA34: %
D36: Baseline year - total controllable operating expenditure in 2016-17: | V36: =+V26-V34 -> 57.10430972 | Y36: =+Determination_Lookup!AX3 -> 63.39113165 | Z36: =+V52-Y36 -> -5.575064074 | AA36: =+Z36/Y36 -> -0.08794706655
D38: Adjustments for non-recurring expenditure items incurred in 2016-17 and any efficiency savings to be realised from 2016-17: | X38: ($, 2017-18)
D40: 1 | E40: Removal of negative contractor payments | V40: -0.4207578558
D41: 2 | E41: Pumping not done | V41: -0.291
D42: 3 | E42: 0 | V42: 0
D43: 4 | E43: 0 | V43: 0
D44: 5 | E44: 0 | V44: 0
D45: 6 | E45: 0 | V45: 0
D46: 7 | E46: 0 | V46: 0
D47: 8 | E47: 0 | V47: 0
D48: 9 | E48: 0 | V48: 0
D49: 10 | E49: 0 | V49: 0
V50: =SUM(V40:V49) -> -0.7117578558
D52: Baseline controllable operating expenditure (2016-17) | V52: =+V36-V50 -> 57.81606758
D54: Adjusted Baseline controllable operating expenditure (Forecast) | W54: =+V52*(1+$W$13-$F$11) -> 58.15891686 | X54: =+$W$54*(1+X$13-X$11) -> 58.27523469 | Y54: =+X$54*(1+Y$13-Y$11) -> 58.45136701 | Z54: 58.56826974 | AA54: 58.68540628 | AB54: 58.80277709 | AC54: 58.92038265 | AD54: 59.03822341 | AE54: 59.15629986 | AF54: 59.27461246 | AG54: 59.39316168
C58: Operating expenditure - reconciliation
D61: Adjusted Baseline controllable operating expenditure (Forecast) | X61: =+X54 -> 58.27523469 | Y61: 58.45136701 | Z61: 58.56826974 | AA61: 58.68540628 | AB61: 58.80277709 | AC61: 58.92038265 | AD61: 59.03822341 | AE61: 59.15629986 | AF61: 59.27461246 | AG61: 59.39316168
H62: Controllable
D63: Forecast variations to baseline operating expenditure (above or below baseline) | H63: only
D65: 1 | E65: Trade Waste monitoring | H65: Sewerage | X65: 0.0681971389 | Y65: 0.06808377918 | Z65: 0.06797883474 | AA65: 0.0678773044 | AB65: 0.06778118701 | AC65: 0.06768848139 | AD65: 0.06760118635 | AE65: 0.06751930072 | AF65: 0.06744082332 | AG65: 0.06736575297
D66: 2 | E66: Land Development | H66: Water | X66: 0.06512010038 | Y66: 0.06589325658 | Z66: 0.06185565709 | AA66: 0.06208629841 | AB66: 0.06315917701 | AC66: 0.06277428936 | AD66: 0.06211363194 | AE66: 0.0611872012 | AF66: 0.0550529936 | AG66: 0.05374700559
D67: 3 | E67: Data connections | H67: Water | X67: 0.04903092967 | Y67: 0.04903092967 | Z67: 0.04903092967 | AA67: 0.04903092967 | AB67: 0.04903092967 | AC67: 0.04903092967 | AD67: 0.04903092967 | AE67: 0.04903092967 | AF67: 0.04903092967 | AG67: 0.04903092967
D68: 4 | E68: Hardship | H68: Water | X68: 0.02962510157 | Y68: 0.05894022177 | Z68: 0.08683777621 | AA68: 0.1133657638 | AB68: 0.1385711833 | AC68: 0.1625010337 | AD68: 0.1852003137 | AE68: 0.2067100224 | AF68: 0.2270731584 | AG68: 0.2463307207
D69: 5 | E69: 0 | H69: [Service] | X69: 0 | Y69: 0 | Z69: 0 | AA69: 0 | AB69: 0 | AC69: 0 | AD69: 0 | AE69: 0 | AF69: 0 | AG69: 0
D70: 6 | E70: Lockington desludging | H70: Sewerage | X70: 0.058651 | Y70: 0 | Z70: 0 | AA70: 0.054783 | AB70: 0 | AC70: 0 | AD70: 0.051171 | AE70: 0 | AF70: 0 | AG70: 0.047796
D71: 7 | E71: Consequentials | H71: Water | X71: 0.01363865671 | Y71: 0.05747779588 | Z71: 0.1292628459 | AA71: 0.138969985 | AB71: 0.1984581242 | AC71: 0.1984581242 | AD71: 0.1984581242 | AE71: 0.1984581242 | AF71: 0.1984581242 | AG71: 0.1984581242
D72: 8 | E72: Variation due to electricity | H72: Water | X72: 1.706086323 | Y72: 1.231781841 | Z72: 0.891907292 | AA72: 0.8269494839 | AB72: 0.8539860304 | AC72: 0.8918732087 | AD72: 0.9427904987 | AE72: 1.004884636 | AF72: 1.073400376 | AG72: 1.148753927
D73: 9 | E73: Other adjustments | H73: Water | X73: 0.1702744494 | Y73: -0.004715817482 | Z73: 0.4450449967 | AA73: 0.3285512218 | AB73: 0.1208165369 | AC73: 0.1271937557 | AD73: 0.1133395934 | AE73: 0.4055953743 | AF73: 0.9084708591 | AG73: 0.8810299474
D74: 10 | E74: 0 | H74: [Service] | X74: 0 | Y74: 0 | Z74: 0 | AA74: 0 | AB74: 0 | AC74: 0 | AD74: 0 | AE74: 0 | AF74: 0 | AG74: 0
D75: 11 | E75: 0 | H75: [Service] | X75: 0 | Y75: 0 | Z75: 0 | AA75: 0 | AB75: 0 | AC75: 0 | AD75: 0 | AE75: 0 | AF75: 0 | AG75: 0
D76: 12 | E76: 0 | H76: [Service] | X76: 0 | Y76: 0 | Z76: 0 | AA76: 0 | AB76: 0 | AC76: 0 | AD76: 0 | AE76: 0 | AF76: 0 | AG76: 0
D77: 13 | E77: 0 | H77: [Service] | X77: 0 | Y77: 0 | Z77: 0 | AA77: 0 | AB77: 0 | AC77: 0 | AD77: 0 | AE77: 0 | AF77: 0 | AG77: 0
D78: 14 | E78: 0 | H78: [Service] | X78: 0 | Y78: 0 | Z78: 0 | AA78: 0 | AB78: 0 | AC78: 0 | AD78: 0 | AE78: 0 | AF78: 0 | AG78: 0
D79: 15 | E79: 0 | H79: [Service] | X79: 0 | Y79: 0 | Z79: 0 | AA79: 0 | AB79: 0 | AC79: 0 | AD79: 0 | AE79: 0 | AF79: 0 | AG79: 0
D81: Total changes required to baseline operating expenditure | X81: =SUM(X65:X80) -> 2.1606237 | Y81: 1.526492006 | Z81: 1.731918332 | AA81: 1.641613987 | AB81: 1.491803168 | AC81: 1.559519823 | AD81: 1.669705278 | AE81: 1.993385589 | AF81: 2.578927264 | AG81: 2.692512407
W82: % Change in baseline opex per annum | X82: =IFERROR(X81/X61,"-") -> 0.03707619045 | Y82: =IFERROR(Y81/Y61,"-") -> 0.02611559121 | Z82: 0.02957093218 | AA82: 0.02797312128 | AB82: 0.02536960399 | AC82: 0.02646825687 | AD82: 0.02828176699 | AE82: 0.0336969282 | AF82: 0.04350812527 | AG82: 0.04533371067
W83: % Change in baseline opex per reg period | AB83: =IFERROR(AVERAGE(X82:AB82),"-") -> 0.02922108782 | AG83: =IFERROR(AVERAGE(AC82:AG82),"-") -> 0.0354577576
D84: Total controllable operating expenditure | X84: =+X81+X61 -> 60.43585839 | Y84: 59.97785901 | Z84: 60.30018807 | AA84: 60.32702027 | AB84: 60.29458026 | AC84: 60.47990247 | AD84: 60.70792869 | AE84: 61.14968545 | AF84: 61.85353972 | AG84: 62.08567409
W85: Controllable Opex growth from baseline to 5th year | AB85: =IFERROR(AB84-V52,"-") -> 2.478512684 | AC85: =IFERROR(AB84/V52-1,"-") -> 0.04286892533
D86: Non-controllable operating expenditure
D87: External bulk water charges (excl. temporary purchases) | X87: =+Opex_Breakdown!X29 -> 2.326639681 | Y87: =+Opex_Breakdown!Y29 -> 2.326639681 | Z87: =+Opex_Breakdown!Z29 -> 2.326639681 | AA87: =+Opex_Breakdown!AA29 -> 2.326639681 | AB87: =+Opex_Breakdown!AB29 -> 2.326639681 | AC87: =+Opex_Breakdown!AC29 -> 2.326639681 | AD87: =+Opex_Breakdown!AD29 -> 2.326639681 | AE87: =+Opex_Breakdown!AE29 -> 2.326639681 | AF87: =+Opex_Breakdown!AF29 -> 2.326639681 | AG87: =+Opex_Breakdown!AG29 -> 2.326639681
D88: External temporary water purchases | X88: =+Opex_Breakdown!X30 -> 0 | Y88: =+Opex_Breakdown!Y30 -> 0 | Z88: =+Opex_Breakdown!Z30 -> 0 | AA88: =+Opex_Breakdown!AA30 -> 0 | AB88: =+Opex_Breakdown!AB30 -> 0 | AC88: =+Opex_Breakdown!AC30 -> 0 | AD88: =+Opex_Breakdown!AD30 -> 0 | AE88: =+Opex_Breakdown!AE30 -> 0 | AF88: =+Opex_Breakdown!AF30 -> 0 | AG88: =+Opex_Breakdown!AG30 -> 0
D89: Licence fees | X89: =+Opex_Breakdown!X31 -> 0.2815249267 | Y89: =+Opex_Breakdown!Y31 -> 0.2426593052 | Z89: =+Opex_Breakdown!Z31 -> 0.2439512453 | AA89: =+Opex_Breakdown!AA31 -> 0.2648780512 | AB89: =+Opex_Breakdown!AB31 -> 0.2687790571 | AC89: =+Opex_Breakdown!AC31 -> 0.2877558487 | AD89: =+Opex_Breakdown!AD31 -> 0.2478706281 | AE89: =+Opex_Breakdown!AE31 -> 0.2485638706 | AF89: =+Opex_Breakdown!AF31 -> 0.2691105955 | AG89: =+Opex_Breakdown!AG31 -> 0.2724902273
D90: Environment Contribution | X90: =+Opex_Breakdown!X32 -> 5.000977517 | Y90: =+Opex_Breakdown!Y32 -> 4.888541072 | Z90: =+Opex_Breakdown!Z32 -> 4.778632524 | AA90: =+Opex_Breakdown!AA32 -> 4.671195038 | AB90: =+Opex_Breakdown!AB32 -> 4.566173058 | AC90: =+Opex_Breakdown!AC32 -> 4.463512276 | AD90: =+Opex_Breakdown!AD32 -> 4.363159605 | AE90: =+Opex_Breakdown!AE32 -> 4.265063152 | AF90: =+Opex_Breakdown!AF32 -> 4.169172192 | AG90: =+Opex_Breakdown!AG32 -> 4.075437138
D91: Other non-controllable | X91: =+Opex_Breakdown!X33 -> 0 | Y91: =+Opex_Breakdown!Y33 -> 0 | Z91: =+Opex_Breakdown!Z33 -> 0 | AA91: =+Opex_Breakdown!AA33 -> 0 | AB91: =+Opex_Breakdown!AB33 -> 0 | AC91: =+Opex_Breakdown!AC33 -> 0 | AD91: =+Opex_Breakdown!AD33 -> 0 | AE91: =+Opex_Breakdown!AE33 -> 0 | AF91: =+Opex_Breakdown!AF33 -> 0 | AG91: =+Opex_Breakdown!AG33 -> 0
D92: Total non-controllable operating expenditure | X92: =SUM(X87:X91) -> 7.609142125 | Y92: 7.457840059 | Z92: 7.349223451 | AA92: 7.262712771 | AB92: 7.161591796 | AC92: 7.077907806 | AD92: 6.937669914 | AE92: 6.840266704 | AF92: 6.764922469 | AG92: 6.674567046
W93: Non-controllable Opex growth from baseline to 5th year | AB93: =IFERROR(AB92-V34,"-") -> 1.50059067 | AC93: =IFERROR(AB92/V34-1,"-") -> 0.2650751407
D95: Total prescribed operating expenditure | X95: =+X92+X84 -> 68.04500052 | Y95: 67.43569907 | Z95: 67.64941152 | AA95: 67.58973304 | AB95: 67.45617206 | AC95: 67.55781028 | AD95: 67.6455986 | AE95: 67.98995215 | AF95: 68.61846219 | AG95: =+AG92+AG84 -> 68.76024114
W96: Prescribed Opex growth from baseline to 5th year | AB96: =IFERROR(AB95-(V52+V34),"-") -> 3.979103354 | AC96: =IFERROR((AB95/(V52+V34))-1,"-") -> 0.06268568217
W98: To reconcile to 'Opex_Breakdown' tab row 37 >> | X98: =+Opex_Breakdown!X37 -> 68.0449897 | Y98: =+Opex_Breakdown!Y37 -> 67.4357016 | Z98: =+Opex_Breakdown!Z37 -> 67.64940996 | AA98: =+Opex_Breakdown!AA37 -> 67.58972111 | AB98: =+Opex_Breakdown!AB37 -> 67.45618068 | AC98: =+Opex_Breakdown!AC37 -> 67.55742481 | AD98: =+Opex_Breakdown!AD37 -> 67.64558599 | AE98: =+Opex_Breakdown!AE37 -> 67.98996138 | AF98: =+Opex_Breakdown!AF37 -> 68.62413985 | AG98: =+Opex_Breakdown!AG37 -> 68.76023111
W99: Difference | X99: =+X98-X95 -> -1.08164062e-05 | Y99: 2.526726192e-06 | Z99: -1.561268476e-06 | AA99: -1.192638724e-05 | AB99: 8.625743249e-06 | AC99: -0.0003854643707 | AD99: -1.261883349e-05 | AE99: 9.227919989e-06 | AF99: 0.005677662421 | AG99: -1.002334653e-05
W100: Test | X100: =+X98=X95 -> FALSE | Y100: FALSE | Z100: FALSE | AA100: FALSE | AB100: FALSE | AC100: FALSE | AD100: FALSE | AE100: FALSE | AF100: FALSE | AG100: FALSE
X139: =+X$160 -> 2018-19 | Y139: 2019-20 | Z139: 2020-21 | AA139: 2021-22 | AB139: 2022-23 | AC139: 2023-24 | AD139: 2024-25 | AE139: 2025-26 | AF139: 2026-27 | AG139: 2027-28
W140: Total controllable opex | X140: =+X84 -> 60.43585839 | Y140: 59.97785901 | Z140: 60.30018807 | AA140: 60.32702027 | AB140: 60.29458026 | AC140: 60.47990247 | AD140: 60.70792869 | AE140: 61.14968545 | AF140: 61.85353972 | AG140: 62.08567409
W141: Change - $ | Y141: =+Y140-X140 -> -0.4579993785 | Z141: 0.3223290599 | AA141: 0.02683219414 | AB141: -0.03244000592 | AC141: 0.1853222084 | AD141: 0.2280262206 | AE141: 0.4417567575 | AF141: 0.703854275 | AG141: 0.2321343682
W142: Change - % | Y142: =IFERROR(Y141/X140,"") -> -0.007578272084 | Z142: 0.005374134142 | AA142: 0.0004449769561 | AB142: -0.0005377359229 | AC142: 0.003073613044 | AD142: 0.003770280891 | AE142: 0.007276755558 | AF142: 0.01151034989 | AG142: 0.003752968209
X144: =+X$160 -> 2018-19 | Y144: 2019-20 | Z144: 2020-21 | AA144: 2021-22 | AB144: 2022-23 | AC144: 2023-24 | AD144: 2024-25 | AE144: 2025-26 | AF144: 2026-27 | AG144: 2027-28
W145: Total non-controllable opex | X145: =+X92 -> 7.609142125 | Y145: 7.457840059 | Z145: 7.349223451 | AA145: 7.262712771 | AB145: 7.161591796 | AC145: 7.077907806 | AD145: 6.937669914 | AE145: 6.840266704 | AF145: 6.764922469 | AG145: 6.674567046
W146: Change - $ | Y146: =+Y145-X145 -> -0.1513020662 | Z146: -0.108616608 | AA146: -0.08651068003 | AB146: -0.1011209744 | AC146: -0.08368399074 | AD146: -0.1402378915 | AE146: -0.09740321003 | AF146: -0.07534423545 | AG146: -0.09035542236
W147: Change - % | Y147: =IFERROR(Y146/X145,"") -> -0.01988424762 | Z147: -0.01456408385 | AA147: -0.01177140423 | AB147: -0.01392330629 | AC147: -0.01168511039 | AD147: -0.01981346682 | AE147: -0.01403975848 | AF147: -0.01101480961 | AG147: -0.01335646089
X149: =+X$160 -> 2018-19 | Y149: 2019-20 | Z149: 2020-21 | AA149: 2021-22 | AB149: 2022-23 | AC149: 2023-24 | AD149: 2024-25 | AE149: 2025-26 | AF149: 2026-27 | AG149: 2027-28
W150: Total prescribed opex | X150: =+X140+X145 -> 68.04500052 | Y150: 67.43569907 | Z150: 67.64941152 | AA150: 67.58973304 | AB150: 67.45617206 | AC150: 67.55781028 | AD150: 67.6455986 | AE150: 67.98995215 | AF150: 68.61846219 | AG150: 68.76024114
W151: Change - $ | Y151: =+Y150-X150 -> -0.6093014447 | Z151: 0.2137124519 | AA151: -0.05967848589 | AB151: -0.1335609803 | AC151: 0.1016382177 | AD151: 0.08778832909 | AE151: 0.3443535475 | AF151: 0.6285100396 | AG151: 0.1417789458
W152: Change - % | Y152: =IFERROR(Y151/X150,"") -> -0.008954389596 | Z152: 0.003169129332 | AA152: -0.0008821730232 | AB152: -0.001976054266 | AC152: 0.001506729697 | AD152: 0.001299454922 | AE152: 0.005090553629 | AF152: 0.00924416064 | AG152: 0.002066192411
W155: Controllable vs. Non-controllable opex - % | X155: =+X$160 -> 2018-19 | Y155: 2019-20 | Z155: 2020-21 | AA155: 2021-22 | AB155: 2022-23 | AC155: 2023-24 | AD155: 2024-25 | AE155: 2025-26 | AF155: 2026-27 | AG155: 2027-28
W156: Controllable opex - % | X156: =+X84/X95 -> 0.8881748539 | Y156: 0.8894081301 | Z156: 0.8913630838 | AA156: 0.8925471008 | AB156: 0.8938334095 | AC156: 0.8952318351 | AD156: 0.8974409266 | AE156: 0.8993929766 | AF156: 0.9014125025 | AG156: 0.9029298482
W157: Non-controllable opex - % | X157: =+X92/X95 -> 0.1118251461 | Y157: 0.1105918699 | Z157: 0.1086369162 | AA157: 0.1074528992 | AB157: 0.1061665905 | AC157: 0.1047681649 | AD157: 0.1025590734 | AE157: 0.1006070234 | AF157: 0.09858749748 | AG157: 0.09707015182
X158: =SUM(X156:X157) -> 1 | Y158: 1 | Z158: 1 | AA158: 1 | AB158: 1 | AC158: 1 | AD158: 1 | AE158: 1 | AF158: 1 | AG158: 1
V160: =+V6 -> 2016-17 | W160: 2017-18 | X160: 2018-19 | Y160: 2019-20 | Z160: 2020-21 | AA160: 2021-22 | AB160: 2022-23 | AC160: 2023-24 | AD160: 2024-25 | AE160: 2025-26 | AF160: 2026-27 | AG160: 2027-28
U161: Third Reg period Opex | V161: =+V169-SUM(V162:V168) -> 57.10430972 | W161: =+W169-SUM(W162:W168) -> 60.23663431
U162: Adjusted baseline opex | X162: =+X61 -> 58.27523469 | Y162: 58.45136701 | Z162: 58.56826974 | AA162: 58.68540628 | AB162: 58.80277709 | AC162: 58.92038265 | AD162: 59.03822341 | AE162: 59.15629986 | AF162: 59.27461246 | AG162: 59.39316168
U163: Forecast variations to baseline operating expenditure | X163: =+X81 -> 2.1606237 | Y163: 1.526492006 | Z163: 1.731918332 | AA163: 1.641613987 | AB163: 1.491803168 | AC163: 1.559519823 | AD163: 1.669705278 | AE163: 1.993385589 | AF163: 2.578927264 | AG163: 2.692512407
U164: Licence fees | V164: =+V193 -> 0.2524947672 | W164: =+W193 -> 0.25801 | X164: =+X89 -> 0.2815249267 | Y164: 0.2426593052 | Z164: 0.2439512453 | AA164: 0.2648780512 | AB164: 0.2687790571 | AC164: 0.2877558487 | AD164: 0.2478706281 | AE164: 0.2485638706 | AF164: 0.2691105955 | AG164: 0.2724902273
U165: Environment Contribution | V165: =+V194 -> 3.34155268 | W165: =+W194 -> 3.272 | X165: =+X90 -> 5.000977517 | Y165: 4.888541072 | Z165: 4.778632524 | AA165: 4.671195038 | AB165: 4.566173058 | AC165: 4.463512276 | AD165: 4.363159605 | AE165: 4.265063152 | AF165: 4.169172192 | AG165: 4.075437138
U166: External bulk water charges | V166: =+V191 -> 2.04106088 | W166: =+W191 -> 1.985639681 | X166: =+X87 -> 2.326639681 | Y166: 2.326639681 | Z166: 2.326639681 | AA166: 2.326639681 | AB166: 2.326639681 | AC166: 2.326639681 | AD166: 2.326639681 | AE166: 2.326639681 | AF166: 2.326639681 | AG166: 2.326639681
U167: External temporary water purchases | V167: =+V192 -> 0.02589279869 | W167: =+W192 -> 0.04 | X167: =+X88 -> 0 | Y167: 0 | Z167: 0 | AA167: 0 | AB167: 0 | AC167: 0 | AD167: 0 | AE167: 0 | AF167: 0 | AG167: 0
U168: Other non-controllable | V168: =+V195 -> 0 | W168: =+W195 -> 0 | X168: =+X91 -> 0 | Y168: 0 | Z168: 0 | AA168: 0 | AB168: 0 | AC168: 0 | AD168: 0 | AE168: 0 | AF168: 0 | AG168: 0
U169: Total prescribed opex | V169: =+Opex_Breakdown!V37 -> 62.76531085 | W169: =+Opex_Breakdown!W37 -> 65.79228399 | X169: =SUM(X162:X168) -> 68.04500052 | Y169: 67.43569907 | Z169: 67.64941152 | AA169: 67.58973304 | AB169: 67.45617206 | AC169: 67.55781028 | AD169: 67.6455986 | AE169: 67.98995215 | AF169: 68.61846219 | AG169: 68.76024114
X171: =+X$160 -> 2018-19 | Y171: 2019-20 | Z171: 2020-21 | AA171: 2021-22 | AB171: 2022-23 | AC171: 2023-24 | AD171: 2024-25 | AE171: 2025-26 | AF171: 2026-27 | AG171: 2027-28
W172: Adjusted baseline opex | X172: =+X162/X$169 -> 0.8564219891 | Y172: 0.8667718703 | Z172: 0.8657617032 | AA172: 0.8682591814 | AB172: 0.8717182624 | AC172: 0.8721476082 | AD172: 0.872757794 | AE172: 0.8700741505 | AF172: 0.8638289254 | AG172: 0.8637718644
W173: Forecast variations to baseline operating expenditure | X173: =+X163/X$169 -> 0.03175286477 | Y173: 0.02263625984 | Z173: 0.02560138061 | AA173: 0.02428791938 | AB173: 0.02211514711 | AC173: 0.02308422692 | AD173: 0.02468313257 | AE173: 0.02931882617 | AF173: 0.0375835771 | AG173: 0.03915798378
W174: Licence fees | X174: =+X164/X$169 -> 0.004137334478 | Y174: 0.00359838051 | Z174: 0.003606110383 | AA174: 0.003918909563 | AB174: 0.003984499103 | AC174: 0.004259401652 | AD174: 0.003664253598 | AE174: 0.003655891241 | AF174: 0.003921839501 | AG174: 0.003962903894
W175: Environment Contribution | X175: =+X165/X$169 -> 0.07349514996 | Y175: 0.07249188693 | Z175: 0.07063819798 | AA175: 0.06911101477 | AB175: 0.0676909602 | AC175: 0.06606952264 | AD175: 0.06450027341 | AE175: 0.0627307862 | AF175: 0.06075875295 | AG175: 0.05927025662
W176: External bulk water charges (excl. temporary purchases) | X176: =+X166/X$169 -> 0.03419266167 | Y176: 0.03450160246 | Z176: 0.03439260784 | AA176: 0.03442297486 | AB176: 0.03449113121 | AC176: 0.03443924058 | AD176: 0.03439454642 | AE176: 0.03422034591 | AF176: 0.03390690503 | AG176: 0.0338369913
W177: External temporary water purchases | X177: =+X167/X$169 -> 0 | Y177: 0 | Z177: 0 | AA177: 0 | AB177: 0 | AC177: 0 | AD177: 0 | AE177: 0 | AF177: 0 | AG177: 0
W178: Other non-controllable | X178: =+X168/X$169 -> 0 | Y178: 0 | Z178: 0 | AA178: 0 | AB178: 0 | AC178: 0 | AD178: 0 | AE178: 0 | AF178: 0 | AG178: 0
W179: Total prescribed opex | X179: =+X169/X$169 -> 1 | Y179: 1 | Z179: 1 | AA179: 1 | AB179: 1 | AC179: 1 | AD179: 1 | AE179: 1 | AF179: 1 | AG179: 1
X181: =+X$160 -> 2018-19 | Y181: 2019-20 | Z181: 2020-21 | AA181: 2021-22 | AB181: 2022-23 | AC181: 2023-24 | AD181: 2024-25 | AE181: 2025-26 | AF181: 2026-27 | AG181: 2027-28
W182: Water | X182: =+SUMIF($H$65:$H$80,$W182,X$65:X$80) -> 2.033775561 | Y182: 1.458408227 | Z182: 1.663939498 | AA182: 1.518953683 | AB182: 1.424021981 | AC182: 1.491831341 | AD182: 1.550933092 | AE182: 1.925866288 | AF182: 2.511486441 | AG182: 2.577350654
W183: Sewerage | X183: 0.1268481389 | Y183: 0.06808377918 | Z183: 0.06797883474 | AA183: 0.1226603044 | AB183: 0.06778118701 | AC183: 0.06768848139 | AD183: 0.1187721864 | AE183: 0.06751930072 | AF183: 0.06744082332 | AG183: 0.115161753
W184: Recycled Water | X184: 0 | Y184: 0 | Z184: 0 | AA184: 0 | AB184: 0 | AC184: 0 | AD184: 0 | AE184: 0 | AF184: 0 | AG184: 0
W185: Rural water | X185: 0 | Y185: 0 | Z185: 0 | AA185: 0 | AB185: 0 | AC185: 0 | AD185: 0 | AE185: 0 | AF185: 0 | AG185: 0
W186: Bulk Water | X186: 0 | Y186: 0 | Z186: 0 | AA186: 0 | AB186: 0 | AC186: 0 | AD186: 0 | AE186: 0 | AF186: 0 | AG186: 0
W187: Forecast variations to baseline operating expenditure | X187: =SUM(X182:X186) -> 2.1606237 | Y187: 1.526492006 | Z187: 1.731918332 | AA187: 1.641613987 | AB187: 1.491803168 | AC187: 1.559519823 | AD187: 1.669705278 | AE187: 1.993385589 | AF187: 2.578927264 | AG187: 2.692512407
V190: =+V6 -> 2016-17 | W190: 2017-18 | X190: 2018-19 | Y190: 2019-20 | Z190: 2020-21 | AA190: 2021-22 | AB190: 2022-23 | AC190: 2023-24 | AD190: 2024-25 | AE190: 2025-26 | AF190: 2026-27 | AG190: 2027-28
U191: External bulk water charges (excl. temporary purchases) | V191: =+Opex_Breakdown!V29 -> 2.04106088 | W191: =+Opex_Breakdown!W29 -> 1.985639681 | X191: =+X87 -> 2.326639681 | Y191: 2.326639681 | Z191: 2.326639681 | AA191: 2.326639681 | AB191: 2.326639681 | AC191: 2.326639681 | AD191: 2.326639681 | AE191: 2.326639681 | AF191: 2.326639681 | AG191: 2.326639681
U192: External temporary water purchases | V192: =+Opex_Breakdown!V30 -> 0.02589279869 | W192: =+Opex_Breakdown!W30 -> 0.04 | X192: =+X88 -> 0 | Y192: 0 | Z192: 0 | AA192: 0 | AB192: 0 | AC192: 0 | AD192: 0 | AE192: 0 | AF192: 0 | AG192: 0
U193: Licence fees | V193: =+Opex_Breakdown!V31 -> 0.2524947672 | W193: =+Opex_Breakdown!W31 -> 0.25801 | X193: =+X89 -> 0.2815249267 | Y193: 0.2426593052 | Z193: 0.2439512453 | AA193: 0.2648780512 | AB193: 0.2687790571 | AC193: 0.2877558487 | AD193: 0.2478706281 | AE193: 0.2485638706 | AF193: 0.2691105955 | AG193: 0.2724902273
U194: Environment Contribution | V194: =+Opex_Breakdown!V32 -> 3.34155268 | W194: =+Opex_Breakdown!W32 -> 3.272 | X194: =+X90 -> 5.000977517 | Y194: 4.888541072 | Z194: 4.778632524 | AA194: 4.671195038 | AB194: 4.566173058 | AC194: 4.463512276 | AD194: 4.363159605 | AE194: 4.265063152 | AF194: 4.169172192 | AG194: 4.075437138
U195: Other non-controllable | V195: =+Opex_Breakdown!V33 -> 0 | W195: =+Opex_Breakdown!W33 -> 0 | X195: =+X91 -> 0 | Y195: 0 | Z195: 0 | AA195: 0 | AB195: 0 | AC195: 0 | AD195: 0 | AE195: 0 | AF195: 0 | AG195: 0
U196: Total Non-controllable operating expenditure | V196: =+Opex_Breakdown!V34 -> 5.661001126 | W196: =+Opex_Breakdown!W34 -> 5.555649681 | X196: =SUM(X191:X195) -> 7.609142125 | Y196: 7.457840059 | Z196: 7.349223451 | AA196: 7.262712771 | AB196: 7.161591796 | AC196: 7.077907806 | AD196: 6.937669914 | AE196: 6.840266704 | AF196: 6.764922469 | AG196: 6.674567046
V198: ERROR CHECK | X198: =+X169=X95 -> TRUE | Y198: TRUE | Z198: TRUE | AA198: TRUE | AB198: TRUE | AC198: TRUE | AD198: TRUE | AE198: TRUE | AF198: TRUE | AG198: TRUE
X199: =+X187=X163 -> TRUE | Y199: TRUE | Z199: TRUE | AA199: TRUE | AB199: TRUE | AC199: TRUE | AD199: TRUE | AE199: TRUE | AF199: TRUE | AG199: FALSE
X200: =+X150=X169 -> TRUE | Y200: TRUE | Z200: TRUE | AA200: TRUE | AB200: TRUE | AC200: TRUE | AD200: TRUE | AE200: TRUE | AF200: TRUE | AG200: TRUE
X201: =+X196=X145 -> TRUE | Y201: TRUE | Z201: TRUE | AA201: TRUE | AB201: TRUE | AC201: TRUE | AD201: TRUE | AE201: TRUE | AF201: TRUE | AG201: TRUE

Sheet Opex_Breakdown
A1: 80 | B1: Operating Expenditure - Breakdown
B2: =+Contents!H7 -> Coliban Water
B3: Go to Table of Contents
L4: FIRST REG PERIOD | P4: SECOND REG PERIOD | U4: THIRD REG PERIOD | Z4: FOURTH REG PERIOD | AC4: FIFTH REG PERIOD
K6: 2006 | L6: 2007 | M6: 2008 | N6: 2009 | O6: 2010 | P6: 2011 | Q6: 2012 | R6: 2013 | S6: 2014 | T6: 2015 | U6: 2016 | V6: 2017 | W6: 2018 | X6: 2019 | Y6: 2020 | Z6: 2021 | AA6: 2022 | AB6: 2023 | AC6: 2024 | AD6: 2025 | AE6: 2026 | AF6: 2027 | AG6: 2028
B7: $m, 01/01/18 | K7: =+CONCATENATE(K6-1,"-",RIGHT(K6,2)) -> 2005-06 | L7: =+CONCATENATE(L6-1,"-",RIGHT(L6,2)) -> 2006-07 | M7: 2007-08 | N7: 2008-09 | O7: 2009-10 | P7: 2010-11 | Q7: 2011-12 | R7: 2012-13 | S7: 2013-14 | T7: 2014-15 | U7: 2015-16 | V7: 2016-17 | W7: 2017-18 | X7: =+CONCATENATE(X6-1,"-",RIGHT(X6,2)) -> 2018-19 | Y7: =+CONCATENATE(Y6-1,"-",RIGHT(Y6,2)) -> 2019-20 | Z7: =+CONCATENATE(Z6-1,"-",RIGHT(Z6,2)) -> 2020-21 | AA7: =+CONCATENATE(AA6-1,"-",RIGHT(AA6,2)) -> 2021-22 | AB7: =+CONCATENATE(AB6-1,"-",RIGHT(AB6,2)) -> 2022-23 | AC7: =+CONCATENATE(AC6-1,"-",RIGHT(AC6,2)) -> 2023-24 | AD7: 2024-25 | AE7: 2025-26 | AF7: 2026-27 | AG7: 2027-28
D10: Operating Expenditure Summary
E12: =C48 -> Water | K12: =+K57-K50-K54 -> 0 | L12: =+L57-L50-L54 -> 0 | M12: 0 | N12: 0 | O12: 0 | P12: 0 | Q12: =+Q57-Q50-Q54 -> 0 | R12: 35.2389791 | S12: 27.90755762 | T12: 27.63316197 | U12: 28.69197193 | V12: 28.78655585 | W12: 29.3084296 | X12: 29.69309661 | Y12: 29.75073833 | Z12: 30.27561851 | AA12: 30.14529111 | AB12: 30.64530881 | AC12: =+AC57-AC50-AC54 -> 30.44651182 | AD12: 30.92744815 | AE12: 31.20485469 | AF12: 31.56465917 | AG12: 31.85536224
E13: =C59 -> Sewerage | K13: =K68-K61-K65 -> 0 | L13: =L68-L61-L65 -> 0 | M13: 0 | N13: 0 | O13: 0 | P13: 0 | Q13: 0 | R13: 29.89135973 | S13: 24.93434248 | T13: 23.44186979 | U13: 25.84317827 | V13: 24.47659124 | W13: 26.92977428 | X13: 26.30955324 | Y13: 26.03834835 | Z13: 25.87632051 | AA13: 26.04977659 | AB13: 25.52881995 | AC13: =AC68-AC61-AC65 -> 25.64724187 | AD13: 25.59087473 | AE13: 25.71477522 | AF13: 26.08446119 | AG13: 26.01286496
E14: =C70 -> Recycled Water | K14: =K79-K72-K76 -> 0 | L14: =L79-L72-L76 -> 0 | M14: 0 | N14: 0 | O14: 0 | P14: 0 | Q14: 0 | R14: 0.9614409781 | S14: 0.8739476562 | T14: 1.078149615 | U14: 1.196699134 | V14: 1.048430269 | W14: 1.164644837 | X14: 1.383455004 | Y14: 1.236659477 | Z14: 1.215637328 | AA14: 1.205221741 | AB14: 1.195727618 | AC14: =AC79-AC72-AC76 -> 1.353560251 | AD14: 1.212126469 | AE14: 1.225805275 | AF14: 1.226267628 | AG14: 1.232274835
E15: =C81 -> Rural Water | K15: =K90-K83-K87 -> 0 | L15: =L90-L83-L87 -> 0 | M15: 0 | N15: 0 | O15: 0 | P15: 0 | Q15: 0 | R15: 1.947893905 | S15: 2.379294336 | T15: 2.468047439 | U15: 2.636949471 | V15: 2.792732357 | W15: 2.833785594 | X15: 3.049742726 | Y15: 2.952115387 | Z15: 2.932610159 | AA15: 2.926718905 | AB15: 2.924732514 | AC15: =AC90-AC83-AC87 -> 3.032203066 | AD15: 2.977466727 | AE15: 3.004259496 | AF15: 2.983829404 | AG15: 2.98516204
E16: Bulk Water | K16: =K100-K97 -> 0 | L16: =L100-L97 -> 0 | M16: 0 | N16: 0 | O16: 0 | P16: 0 | Q16: 0 | R16: 0 | S16: 0 | T16: 0 | U16: 0 | V16: 0 | W16: 0 | X16: 0 | Y16: 0 | Z16: 0 | AA16: 0 | AB16: 0 | AC16: =AC100-AC97 -> 0 | AD16: 0 | AE16: 0 | AF16: 0 | AG16: 0
E17: Total controllable operating expenditure | K17: =SUM(K12:K16) -> 0 | L17: 0 | M17: 0 | N17: 0 | O17: 0 | P17: 0 | Q17: 0 | R17: 68.03967371 | S17: 56.09514209 | T17: 54.62122881 | U17: 58.36879881 | V17: 57.10430972 | W17: 60.23663431 | X17: 60.43584758 | Y17: 59.97786154 | Z17: 60.30018651 | AA17: 60.32700834 | AB17: 60.29458889 | AC17: 60.47951701 | AD17: 60.70791607 | AE17: 61.14969468 | AF17: 61.85921739 | AG17: 62.08566407
V18: Controllable Opex for 3rd Reg Period | W18: =SUM(S17:W17) -> 286.4261137 | AA18: Controllable Opex for 4th Reg Period | AB18: =SUM(X17:AB17) -> 301.3354929
AA19: Controllable Opex growth from 3rd to 4th Reg Period | AB19: =IFERROR(AB18-W18,"-") -> 14.90937912 | AC19: =IFERROR(AB18/W18-1,"-") -> 0.05205314181
E20: Operations & Maintenance | K20: =K49+K60+K71+K82+K93 -> 0 | L20: 0 | M20: 0 | N20: 0 | O20: 0 | P20: 0 | Q20: 0 | R20: 31.10272726 | S20: 17.11131348 | T20: 16.33736676 | U20: 19.8352539 | V20: 18.12399495 | W20: 21.25809117 | X20: 19.39958893 | Y20: 18.34814585 | Z20: 18.87819777 | AA20: 19.45867017 | AB20: 18.86132366 | AC20: 19.25142584 | AD20: 19.28755498 | AE20: 18.56972872 | AF20: 19.59439893 | AG20: 19.66876014
E21: Treatment | K21: =K51+K62+K73+K84+K94 -> 0 | L21: 0 | M21: 0 | N21: 0 | O21: 0 | P21: 0 | Q21: 0 | R21: 25.42580611 | S21: 27.18148926 | T21: 25.138243 | U21: 24.26635996 | V21: 24.44525295 | W21: 24.86122137 | X21: 26.25132006 | Y21: 26.95284441 | Z21: 26.72144577 | AA21: 26.28186527 | AB21: 26.93267706 | AC21: 26.63781503 | AD21: 26.72477918 | AE21: 27.67052704 | AF21: 27.27656444 | AG21: 27.2628965
E22: Customer Service and billing | K22: =K52+K63+K74+K85+K95 -> 0 | L22: 0 | M22: 0 | N22: 0 | O22: 0 | P22: 0 | Q22: 0 | R22: 4.067687861 | S22: 5.53902832 | T22: 2.276650182 | U22: 2.634922256 | V22: 3.789554362 | W22: 4.25323104 | X22: 3.980343675 | Y22: 4.081126276 | Z22: 3.97260495 | AA22: 4.032870247 | AB22: 4.055304199 | AC22: 4.118105132 | AD22: 4.144644171 | AE22: 4.16002952 | AF22: 4.157397565 | AG22: 4.202522021
E23: GSL Payments | K23: =K53+K64+K75+K86+K96 -> 0 | L23: 0 | M23: 0 | N23: 0 | O23: 0 | P23: 0 | Q23: 0 | R23: 0 | S23: 0 | T23: 0.001100806452 | U23: 0.001034644195 | V23: 0.001021256932 | W23: 0 | X23: 0 | Y23: 0 | Z23: 0 | AA23: 0 | AB23: 0 | AC23: 0 | AD23: 0 | AE23: 0 | AF23: 0 | AG23: 0
E24: Corporate | K24: =K55+K66+K77+K88+K98 -> 0 | L24: 0 | M24: 0 | N24: 0 | O24: 0 | P24: 0 | Q24: 0 | R24: 7.31645248 | S24: 6.136311035 | T24: 10.83947006 | U24: 11.50422805 | V24: 10.61475145 | W24: 9.86409073 | X24: 10.80459492 | Y24: 10.595745 | Z24: 10.72793802 | AA24: 10.55360265 | AB24: 10.44528396 | AC24: 10.472171 | AD24: 10.55093774 | AE24: 10.7494094 | AF24: 10.83085645 | AG24: 10.95148541
E25: Other operating expenditure | K25: =K56+K67+K78+K89+K99 -> 0 | L25: 0 | M25: 0 | N25: 0 | O25: 0 | P25: 0 | Q25: 0 | R25: 0.127 | S25: 0.127 | T25: 0.028398 | U25: 0.127 | V25: 0.1297347616 | W25: 0 | X25: 0 | Y25: 0 | Z25: 0 | AA25: 0 | AB25: 0 | AC25: 0 | AD25: 0 | AE25: 0 | AF25: 0 | AG25: 0
E26: Total controllable operating expenditure | K26: =SUM(K20:K25) -> 0 | L26: =SUM(L20:L25) -> 0 | M26: 0 | N26: 0 | O26: 0 | P26: 0 | Q26: 0 | R26: 68.03967371 | S26: 56.09514209 | T26: 54.62122881 | U26: 58.36879881 | V26: 57.10430972 | W26: 60.23663431 | X26: 60.43584758 | Y26: 59.97786154 | Z26: 60.30018651 | AA26: 60.32700834 | AB26: 60.29458889 | AC26: 60.47951701 | AD26: 60.70791607 | AE26: 61.14969468 | AF26: 61.85921739 | AG26: 62.08566407
E29: External bulk water charges (excl. temporary purchases) | K29: =K50+K61+K72+K83 -> 0 | L29: 0 | M29: 0 | N29: 0 | O29: 0 | P29: 0 | Q29: 0 | R29: 1.944444641 | S29: 1.716850586 | T29: 1.903249065 | U29: 1.992724719 | V29: 2.04106088 | W29: 1.985639681 | X29: =X50+X61+X72+X83 -> 2.326639681 | Y29: =Y50+Y61+Y72+Y83 -> 2.326639681 | Z29: 2.326639681 | AA29: 2.326639681 | AB29: 2.326639681 | AC29: 2.326639681 | AD29: 2.326639681 | AE29: 2.326639681 | AF29: 2.326639681 | AG29: 2.326639681
E30: External temporary water purchases | K30: =+K102 -> 0 | L30: 0 | M30: 0 | N30: 0 | O30: 0 | P30: 0 | Q30: 0 | R30: 0 | S30: 0 | T30: 0 | U30: 0 | V30: 0.02589279869 | W30: 0.04 | X30: 0 | Y30: 0 | Z30: 0 | AA30: 0 | AB30: 0 | AC30: 0 | AD30: 0 | AE30: 0 | AF30: 0 | AG30: 0
E31: Licence fees | K31: =+K109 -> 0 | L31: 0 | M31: 0 | N31: 0 | O31: 0 | P31: 0 | Q31: 0 | R31: 0.2747965766 | S31: 0.2870410156 | T31: 0.2099991798 | U31: 0.2368542048 | V31: 0.2524947672 | W31: 0.25801 | X31: 0.2815249267 | Y31: 0.2426593052 | Z31: 0.2439512453 | AA31: 0.2648780512 | AB31: 0.2687790571 | AC31: 0.2877558487 | AD31: 0.2478706281 | AE31: 0.2485638706 | AF31: 0.2691105955 | AG31: 0.2724902273
E32: Environment Contribution | K32: =K111 -> 0 | L32: 0 | M32: 0 | N32: 0 | O32: 0 | P32: 0 | Q32: 0 | R32: 2.246501502 | S32: 3.530820312 | T32: 3.430322581 | U32: 3.385355805 | V32: 3.34155268 | W32: 3.272 | X32: 5.000977517 | Y32: 4.888541072 | Z32: 4.778632524 | AA32: 4.671195038 | AB32: 4.566173058 | AC32: 4.463512276 | AD32: 4.363159605 | AE32: 4.265063152 | AF32: 4.169172192 | AG32: 4.075437138
E33: Other non-controllable | K33: =+K124 -> 0 | L33: 0 | M33: 0 | N33: 0 | O33: 0 | P33: 0 | Q33: 0 | R33: 0 | S33: 0 | T33: 0 | U33: 0 | V33: 0 | W33: 0 | X33: 0 | Y33: 0 | Z33: 0 | AA33: 0 | AB33: 0 | AC33: 0 | AD33: 0 | AE33: 0 | AF33: 0 | AG33: =+AG124 -> 0
E34: Total non-controllable operating expenditure | K34: =SUM(K29:K33) -> 0 | L34: =SUM(L29:L33) -> 0 | M34: 0 | N34: 0 | O34: 0 | P34: 0 | Q34: 0 | R34: 4.465742719 | S34: 5.534711914 | T34: 5.543570825 | U34: 5.614934729 | V34: 5.661001126 | W34: 5.555649681 | X34: 7.609142125 | Y34: 7.457840059 | Z34: 7.349223451 | AA34: 7.262712771 | AB34: 7.161591796 | AC34: 7.077907806 | AD34: 6.937669914 | AE34: 6.840266704 | AF34: 6.764922469 | AG34: 6.674567046
V35: Non-controllable Opex for 3rd Reg Period | W35: =SUM(S34:W34) -> 27.90986828 | AA35: Non-controllable Opex for 4th Reg Period | AB35: =SUM(X34:AB34) -> 36.8405102
AA36: Non-controllable Opex growth from 3rd to 4th Reg Period | AB36: =IFERROR(AB35-W35,"-") -> 8.930641926 | AC36: =IFERROR(AB35/W35-1,"-") -> 0.3199815147
E37: Total prescribed operating expenditure | K37: =+K34+K17 -> 0 | L37: 0 | M37: 0 | N37: 0 | O37: 0 | P37: 0 | Q37: 0 | R37: 72.50541643 | S37: 61.629854 | T37: 60.16479964 | U37: 63.98373353 | V37: 62.76531085 | W37: 65.79228399 | X37: 68.0449897 | Y37: 67.4357016 | Z37: 67.64940996 | AA37: 67.58972111 | AB37: 67.45618068 | AC37: 67.55742481 | AD37: 67.64558599 | AE37: 67.98996138 | AF37: 68.62413985 | AG37: 68.76023111
V38: Prescribed Opex for 3rd Reg Period | W38: =SUM(S37:W37) -> 314.335982 | AA38: Prescribed Opex for 4th Reg Period | AB38: =SUM(X37:AB37) -> 338.1760031
AA39: Prescribed Opex growth from 3rd to 4th Reg Period | AB39: =IFERROR(AB38-W38,"-") -> 23.84002104 | AC39: =IFERROR(AB38/W38-1,"-") -> 0.07584248195
W40: To reconcile to 'Opex_FO' tab row 123>> | X40: =+Opex_FO!X95 -> 68.04500052 | Y40: =+Opex_FO!Y95 -> 67.43569907 | Z40: =+Opex_FO!Z95 -> 67.64941152 | AA40: =+Opex_FO!AA95 -> 67.58973304 | AB40: =+Opex_FO!AB95 -> 67.45617206 | AC40: =+Opex_FO!AC95 -> 67.55781028 | AD40: =+Opex_FO!AD95 -> 67.6455986 | AE40: =+Opex_FO!AE95 -> 67.98995215 | AF40: =+Opex_FO!AF95 -> 68.61846219 | AG40: =+Opex_FO!AG95 -> 68.76024114
W41: Difference | X41: =+X40-X37 -> 1.08164062e-05 | Y41: -2.526726192e-06 | Z41: 1.561268476e-06 | AA41: 1.192638724e-05 | AB41: -8.625743249e-06 | AC41: 0.0003854643707 | AD41: 1.261883349e-05 | AE41: -9.227919989e-06 | AF41: -0.005677662421 | AG41: 1.002334653e-05
W42: Test | X42: =+X40=X37 -> FALSE | Y42: FALSE | Z42: FALSE | AA42: FALSE | AB42: FALSE | AC42: FALSE | AD42: FALSE | AE42: FALSE | AF42: FALSE | AG42: FALSE
B46: Total operating expenditure
C48: Water
D49: Operations & Maintenance | R49: 17.58218006 | S49: 9.228476562 | T49: 9.920858187 | U49: 10.00500936 | V49: 10.08507014 | W49: 10.49084506 | X49: 9.929724674 | Y49: 9.892215796 | Z49: 10.25684163 | AA49: 10.10752668 | AB49: 10.55385751 | AC49: 10.05208366 | AD49: 10.29160587 | AE49: 10.25103228 | AF49: 10.49719915 | AG49: 10.60947755
D50: External bulk charges (excl. temporary purchases) | R50: =+R131 -> 1.944444641 | S50: =+S131 -> 1.716850586 | T50: =+T131 -> 1.903249065 | U50: 1.992724719 | V50: 2.04106088 | W50: 1.985639681 | X50: 2.326639681 | Y50: 2.326639681 | Z50: 2.326639681 | AA50: 2.326639681 | AB50: 2.326639681 | AC50: 2.326639681 | AD50: 2.326639681 | AE50: 2.326639681 | AF50: 2.326639681 | AG50: 2.326639681 | AH50: see reconciliation below
D51: Treatment | R51: 11.90757886 | S51: 12.7765625 | T51: 11.10020334 | U51: 11.55920277 | V51: 11.44004006 | W51: 11.75892365 | X51: 12.37090264 | Y51: 12.5200869 | Z51: 12.66850539 | AA51: 12.74452798 | AB51: 12.84115722 | AC51: 13.09929009 | AD51: 13.28805132 | AE51: 13.49910295 | AF51: 13.57333301 | AG51: 13.66888097
D52: Customer Service and billing | R52: 2.033843931 | S52: 2.770053711 | T52: 1.138325091 | U52: 1.317461128 | V52: 1.894777181 | W52: 2.12661552 | X52: 1.990171838 | Y52: 2.040563138 | Z52: 1.986302475 | AA52: 2.016435123 | AB52: 2.027652099 | AC52: 2.059052566 | AD52: 2.072322086 | AE52: 2.08001476 | AF52: 2.078698782 | AG52: 2.101261011
D53: GSL Payments | R53: 0 | S53: 0 | T53: 0 | U53: 0.001034644195 | V53: 0.0009191312384 | W53: 0 | X53: 0 | Y53: 0 | Z53: 0 | AA53: 0 | AB53: 0 | AC53: 0 | AD53: 0 | AE53: 0 | AF53: 0 | AG53: 0
D54: Licence Fees | R54: 0.07822161161 | S54: 0.09280273438 | T54: 0.06842141129 | U54: 0.06145941713 | V54: 0.06679638193 | W54: 0.071781 | X54: 0.08113391984 | Y54: 0.06110676341 | Z54: 0.06122646273 | AA54: 0.07122865728 | AB54: 0.07278055458 | AC54: 0.08193055097 | AD54: 0.06170698681 | AE54: 0.06182785523 | AF54: 0.07192807279 | AG54: 0.07349564948
D55: Corporate | R55: 3.65822624 | S55: 3.068964844 | T55: 5.409775354 | U55: 5.752114023 | V55: 5.307375724 | W55: 4.932045365 | X55: 5.402297458 | Y55: 5.2978725 | Z55: 5.363969011 | AA55: 5.276801327 | AB55: 5.222641981 | AC55: 5.236085501 | AD55: 5.275468872 | AE55: 5.374704699 | AF55: 5.415428225 | AG55: 5.475742705
D56: Other operating expenditure | R56: 0.05715 | S56: 0.0635 | T56: 0.064 | U56: 0.05715 | V56: 0.05837361645 | W56: 0 | X56: 0 | Y56: 0 | Z56: 0 | AA56: 0 | AB56: 0 | AC56: 0 | AD56: 0 | AE56: 0 | AF56: 0 | AG56: 0
C57: =+CONCATENATE("Total ",C48) -> Total Water | K57: =+SUM(K49:K56) -> 0 | L57: =+SUM(L49:L56) -> 0 | M57: 0 | N57: 0 | O57: 0 | P57: 0 | Q57: 0 | R57: 37.26164535 | S57: 29.71721094 | T57: 29.60483244 | U57: 30.74615607 | V57: 30.89441311 | W57: 31.36585028 | X57: 32.10087021 | Y57: 32.13848478 | Z57: 32.66348466 | AA57: 32.54315944 | AB57: 33.04472904 | AC57: =+SUM(AC49:AC56) -> 32.85508205 | AD57: 33.31579482 | AE57: 33.59332222 | AF57: 33.96322692 | AG57: 34.25549757
C59: Sewerage
D60: =+D49 -> Operations & Maintenance | R60: 11.93779963 | S60: 6.102319336 | T60: 4.48723896 | U60: 7.689961606 | V60: 5.924461962 | W60: 8.473791373 | X60: 6.810798522 | Y60: 6.038863454 | Z60: 6.254703906 | AA60: 6.98480823 | AB60: 5.937777134 | AC60: 6.58639231 | AD60: 6.593336784 | AE60: 5.904148409 | AF60: 6.698659716 | AG60: 6.661492395
D61: =+D50 -> External bulk charges (excl. temporary purchases) | R61: =+R132 -> 0 | S61: =+S132 -> 0 | T61: =+T132 -> 0 | U61: 0 | V61: 0 | W61: 0 | X61: 0 | Y61: 0 | Z61: 0 | AA61: 0 | AB61: 0 | AC61: 0 | AD61: 0 | AE61: 0 | AF61: 0 | AG61: 0 | AH61: see reconciliation below
D62: Treatment | R62: 13.34275396 | S62: 14.10601562 | T62: 13.74671618 | U62: 12.44040654 | V62: 12.73193122 | W62: 12.8090542 | X62: 13.58477928 | Y62: 14.12873638 | Z62: 13.74139942 | AA62: 13.2303792 | AB62: 13.79080755 | AC62: 13.2247391 | AD62: 13.11930518 | AE62: 13.84685124 | AF62: 13.39049987 | AG62: 13.28976959
D63: Customer Service and billing | R63: 1.627075145 | S63: 2.214316406 | T63: 0.9106600729 | U63: 1.053968902 | V63: 1.515821745 | W63: 1.701292416 | X63: 1.59213747 | Y63: 1.63245051 | Z63: 1.58904198 | AA63: 1.613148099 | AB63: 1.62212168 | AC63: 1.647242053 | AD63: 1.657857669 | AE63: 1.664011808 | AF63: 1.662959026 | AG63: 1.681008809
D64: GSL Payments | R64: 0 | S64: 0 | T64: 0.001100806452 | U64: 0 | V64: 0.0001021256932 | W64: 0 | X64: 0 | Y64: 0 | Z64: 0 | AA64: 0 | AB64: 0 | AC64: 0 | AD64: 0 | AE64: 0 | AF64: 0 | AG64: 0
D65: Licence Fees | R65: 0.1882309429 | S65: 0.1834472656 | T65: 0.1350556476 | U65: 0.1703478967 | V65: 0.1790027184 | W65: 0.179229 | X65: 0.1915933529 | Y65: 0.1767748433 | Z65: 0.1779377435 | AA65: 0.1868764788 | AB65: 0.1889298087 | AC65: 0.1969413082 | AD65: 0.1813390571 | AE65: 0.1819019989 | AF65: 0.1903431424 | AG65: 0.191856515
D66: Corporate | R66: 2.926580992 | S66: 2.460891113 | T66: 4.343755767 | U66: 4.601691218 | V66: 4.245900579 | W66: 3.945636292 | X66: 4.321837967 | Y66: 4.238298 | Z66: 4.291175209 | AA66: 4.221441062 | AB66: 4.178113585 | AC66: 4.188868401 | AD66: 4.220375098 | AE66: 4.29976376 | AF66: 4.33234258 | AG66: 4.380594164
D67: Other operating expenditure | R67: 0.05715 | S67: 0.0508 | T67: -0.047602 | U67: 0.05715 | V67: 0.05837361645 | W67: 0 | X67: 0 | Y67: 0 | Z67: 0 | AA67: 0 | AB67: 0 | AC67: 0 | AD67: 0 | AE67: 0 | AF67: 0 | AG67: 0
C68: =+CONCATENATE("Total ",C59) -> Total Sewerage | K68: =+SUM(K60:K67) -> 0 | L68: 0 | M68: 0 | N68: 0 | O68: 0 | P68: 0 | Q68: 0 | R68: 30.07959067 | S68: 25.11778975 | T68: 23.57692544 | U68: 26.01352617 | V68: 24.65559396 | W68: 27.10900328 | X68: 26.50114659 | Y68: 26.21512319 | Z68: 26.05425826 | AA68: 26.23665307 | AB68: 25.71774976 | AC68: =+SUM(AC60:AC67) -> 25.84418317 | AD68: 25.77221378 | AE68: 25.89667722 | AF68: 26.27480433 | AG68: 26.20472147
C70: Recycled Water
D71: =+D60 -> Operations & Maintenance | R71: 0.365712326 | S71: 0.2309277344 | T71: 0.3603893711 | U71: 0.4330690281 | V71: 0.2701665432 | W71: 0.4034582699 | X71: 0.5884358484 | Y71: 0.4454622332 | Z71: 0.421837883 | AA71: 0.4179903577 | AB71: 0.4139687437 | AC71: 0.5648506494 | AD71: 0.4174654871 | AE71: 0.4191025612 | AF71: 0.4178580209 | AG71: 0.417178373
D72: =+D61 -> External bulk charges (excl. temporary purchases) | R72: =+R133 -> 0 | S72: =+S133 -> 0 | T72: =+T133 -> 0 | U72: 0 | V72: 0 | W72: 0 | X72: 0 | Y72: 0 | Z72: 0 | AA72: 0 | AB72: 0 | AC72: 0 | AD72: 0 | AE72: 0 | AF72: 0 | AG72: 0 | AH72: see reconciliation below
D73: Treatment | R73: 0.02017163501 | S73: 0.05611328125 | T73: 0.05495826422 | U73: 0.05032259057 | V73: 0.05155467128 | W73: 0.05532047875 | X73: 0.05577222567 | Y73: 0.05735367955 | Z73: 0.0587722968 | AA73: 0.05790773776 | AB73: 0.05672946671 | AC73: 0.05919579492 | AD73: 0.05988188614 | AE73: 0.06123076759 | AF73: 0.0589969065 | AG73: 0.05739609042
D74: Customer Service and billing | R74: 0.2033843931 | S74: 0.2773291016 | T74: 0.1138325091 | U74: 0.1317461128 | V74: 0.1894777181 | W74: 0.212661552 | X74: 0.1990171838 | Y74: 0.2040563138 | Z74: 0.1986302475 | AA74: 0.2016435123 | AB74: 0.2027652099 | AC74: 0.2059052566 | AD74: 0.2072322086 | AE74: 0.208001476 | AF74: 0.2078698782 | AG74: 0.2101261011
D75: GSL Payments | R75: 0 | S75: 0 | T75: 0 | U75: 0 | V75: 0 | W75: 0 | X75: 0 | Y75: 0 | Z75: 0 | AA75: 0 | AB75: 0 | AC75: 0 | AD75: 0 | AE75: 0 | AF75: 0 | AG75: 0
D76: Licence Fees | R76: 0.004172011011 | S76: 0.005395507813 | T76: 0.003261060484 | U76: 0.002523445459 | V76: 0.00334783341 | W76: 0.0035 | X76: 0.004398826979 | Y76: 0.002388849234 | Z76: 0.002393519516 | AA76: 0.003386457531 | AB76: 0.003534346917 | AC76: 0.004441994761 | AD76: 0.002412292101 | AE76: 0.002417008204 | AF76: 0.003419690147 | AG76: 0.003569031413
D77: Corporate | R77: 0.365822624 | S77: 0.3032275391 | T77: 0.5429694709 | U77: 0.5752114023 | V77: 0.5307375724 | W77: 0.4932045365 | X77: 0.5402297458 | Y77: 0.52978725 | Z77: 0.5363969011 | AA77: 0.5276801327 | AB77: 0.5222641981 | AC77: 0.5236085501 | AD77: 0.5275468872 | AE77: 0.5374704699 | AF77: 0.5415428225 | AG77: 0.5475742705
D78: Other operating expenditure | R78: 0.00635 | S78: 0.00635 | T78: 0.006 | U78: 0.00635 | V78: 0.006493764325 | W78: 0 | X78: 0 | Y78: 0 | Z78: 0 | AA78: 0 | AB78: 0 | AC78: 0 | AD78: 0 | AE78: 0 | AF78: 0 | AG78: 0
C79: =+CONCATENATE("Total ",C70) -> Total Recycled Water | K79: =+SUM(K71:K78) -> 0 | L79: =+SUM(L71:L78) -> 0 | M79: =+SUM(M71:M78) -> 0 | N79: =+SUM(N71:N78) -> 0 | O79: 0 | P79: 0 | Q79: 0 | R79: 0.9656129891 | S79: 0.8793431641 | T79: 1.081410676 | U79: 1.199222579 | V79: 1.051778103 | W79: 1.168144837 | X79: =+SUM(X71:X78) -> 1.387853831 | Y79: =+SUM(Y71:Y78) -> 1.239048326 | Z79: =+SUM(Z71:Z78) -> 1.218030848 | AA79: =+SUM(AA71:AA78) -> 1.208608198 | AB79: =+SUM(AB71:AB78) -> 1.199261965 | AC79: =+SUM(AC71:AC78) -> 1.358002246 | AD79: 1.214538761 | AE79: 1.228222283 | AF79: 1.229687318 | AG79: 1.235843866
C81: Rural Water
D82: =+D60 -> Operations & Maintenance | R82: 1.217035239 | S82: 1.549589844 | T82: 1.568880241 | U82: 1.707213904 | V82: 1.844296301 | W82: 1.889996471 | X82: 2.070629882 | Y82: 1.971604372 | Z82: 1.944814352 | AA82: 1.948344908 | AB82: 1.955720277 | AC82: 2.048099215 | AD82: 1.985146836 | AE82: 1.995445469 | AF82: 1.98068204 | AG82: 1.980611816
D83: =+D61 -> External bulk charges (excl. temporary purchases) | R83: =+R134 -> 0 | S83: =+S134 -> 0 | T83: =+T134 -> 0 | U83: 0 | V83: 0 | W83: 0 | X83: 0 | Y83: 0 | Z83: 0 | AA83: 0 | AB83: 0 | AC83: 0 | AD83: 0 | AE83: 0 | AF83: 0 | AG83: 0 | AH83: see reconciliation below
D84: Treatment | R84: 0.1553016484 | S84: 0.2427978516 | T84: 0.2363652176 | U84: 0.2164280521 | V84: 0.2217270009 | W84: 0.2379230346 | X84: 0.2398659137 | Y84: 0.2466674511 | Z84: 0.2527686586 | AA84: 0.2490503518 | AB84: 0.2439828284 | AC84: 0.2545900448 | AD84: 0.2575407949 | AE84: 0.2633420817 | AF84: 0.2537346629 | AG84: 0.2468498523
D85: Customer Service and billing | R85: 0.2033843931 | S85: 0.2773291016 | T85: 0.1138325091 | U85: 0.1317461128 | V85: 0.1894777181 | W85: 0.212661552 | X85: 0.1990171838 | Y85: 0.2040563138 | Z85: 0.1986302475 | AA85: 0.2016435123 | AB85: 0.2027652099 | AC85: 0.2059052566 | AD85: 0.2072322086 | AE85: 0.208001476 | AF85: 0.2078698782 | AG85: 0.2101261011
D86: GSL Payments | R86: 0 | S86: 0 | T86: 0 | U86: 0 | V86: 0 | W86: 0 | X86: 0 | Y86: 0 | Z86: 0 | AA86: 0 | AB86: 0 | AC86: 0 | AD86: 0 | AE86: 0 | AF86: 0 | AG86: 0
D87: Licence Fees | R87: 0.004172011011 | S87: 0.005395507813 | T87: 0.003261060484 | U87: 0.002523445459 | V87: 0.00334783341 | W87: 0.0035 | X87: 0.004398826979 | Y87: 0.002388849234 | Z87: 0.002393519516 | AA87: 0.003386457531 | AB87: 0.003534346917 | AC87: 0.004441994761 | AD87: 0.002412292101 | AE87: 0.002417008204 | AF87: 0.003419690147 | AG87: 0.003569031413
D88: Corporate | R88: 0.365822624 | S88: 0.3032275391 | T88: 0.5429694709 | U88: 0.5752114023 | V88: 0.5307375724 | W88: 0.4932045365 | X88: 0.5402297458 | Y88: 0.52978725 | Z88: 0.5363969011 | AA88: 0.5276801327 | AB88: 0.5222641981 | AC88: 0.5236085501 | AD88: 0.5275468872 | AE88: 0.5374704699 | AF88: 0.5415428225 | AG88: 0.5475742705
D89: Other operating expenditure | R89: 0.00635 | S89: 0.00635 | T89: 0.006 | U89: 0.00635 | V89: 0.006493764325 | W89: 0 | X89: 0 | Y89: 0 | Z89: 0 | AA89: 0 | AB89: 0 | AC89: 0 | AD89: 0 | AE89: 0 | AF89: 0 | AG89: 0
C90: =+CONCATENATE("Total ",C81) -> Total Rural Water | K90: =+SUM(K82:K89) -> 0 | L90: 0 | M90: 0 | N90: 0 | O90: 0 | P90: 0 | Q90: 0 | R90: 1.952065916 | S90: 2.384689844 | T90: 2.471308499 | U90: 2.639472917 | V90: 2.79608019 | W90: 2.837285594 | X90: =+SUM(X82:X89) -> 3.054141553 | Y90: =+SUM(Y82:Y89) -> 2.954504236 | Z90: =+SUM(Z82:Z89) -> 2.935003679 | AA90: =+SUM(AA82:AA89) -> 2.930105363 | AB90: =+SUM(AB82:AB89) -> 2.928266861 | AC90: =+SUM(AC82:AC89) -> 3.036645061 | AD90: 2.979879019 | AE90: 3.006676504 | AF90: 2.987249094 | AG90: 2.988731071
C92: Bulk Water
D93: Operations & Maintenance | R93: 0 | S93: 0 | T93: 0 | U93: 0 | V93: 0 | W93: 0 | X93: 0 | Y93: 0 | Z93: 0 | AA93: 0 | AB93: 0 | AC93: 0 | AD93: 0 | AE93: 0 | AF93: 0 | AG93: 0
D94: Treatment | R94: 0 | S94: 0 | T94: 0 | U94: 0 | V94: 0 | W94: 0 | X94: 0 | Y94: 0 | Z94: 0 | AA94: 0 | AB94: 0 | AC94: 0 | AD94: 0 | AE94: 0 | AF94: 0 | AG94: 0
D95: Customer Service and billing | R95: 0 | S95: 0 | T95: 0 | U95: 0 | V95: 0 | W95: 0 | X95: 0 | Y95: 0 | Z95: 0 | AA95: 0 | AB95: 0 | AC95: 0 | AD95: 0 | AE95: 0 | AF95: 0 | AG95: 0
D96: GSL Payments | R96: 0 | S96: 0 | T96: 0 | U96: 0 | V96: 0 | W96: 0 | X96: 0 | Y96: 0 | Z96: 0 | AA96: 0 | AB96: 0 | AC96: 0 | AD96: 0 | AE96: 0 | AF96: 0 | AG96: 0
D97: Licence Fees | R97: 0 | S97: 0 | T97: 0 | U97: 0 | V97: 0 | W97: 0 | X97: 0 | Y97: 0 | Z97: 0 | AA97: 0 | AB97: 0 | AC97: 0 | AD97: 0 | AE97: 0 | AF97: 0 | AG97: 0
D98: Corporate | R98: 0 | S98: 0 | T98: 0 | U98: 0 | V98: 0 | W98: 0 | X98: 0 | Y98: 0 | Z98: 0 | AA98: 0 | AB98: 0 | AC98: 0 | AD98: 0 | AE98: 0 | AF98: 0 | AG98: 0
D99: Other operating expenditure | R99: 0 | S99: 0 | T99: 0 | U99: 0 | V99: 0 | W99: 0 | X99: 0 | Y99: 0 | Z99: 0 | AA99: 0 | AB99: 0 | AC99: 0 | AD99: 0 | AE99: 0 | AF99: 0 | AG99: 0
C100: Total Bulk water | K100: =+SUM(K93:K99) -> 0 | L100: 0 | M100: 0 | N100: 0 | O100: 0 | P100: 0 | Q100: 0 | R100: 0 | S100: 0 | T100: 0 | U100: 0 | V100: 0 | W100: 0 | X100: 0 | Y100: 0 | Z100: 0 | AA100: 0 | AB100: 0 | AC100: =+SUM(AC93:AC99) -> 0 | AD100: 0 | AE100: 0 | AF100: 0 | AG100: 0
C102: External temporary water purchases | R102: 0 | S102: 0 | T102: 0 | U102: 0 | V102: 0.02589279869 | W102: 0.04 | X102: 0 | Y102: 0 | Z102: 0 | AA102: 0 | AB102: 0 | AC102: 0 | AD102: 0 | AE102: 0 | AF102: 0 | AG102: 0
C105: Licence fees
D106: Essential Services Commission | R106: 0.08344022022 | S106: 0.1122265625 | T106: 0.06522120968 | U106: 0.05046890918 | V106: 0.06695666821 | W106: 0.07 | X106: 0.08797653959 | Y106: 0.04777698468 | Z106: 0.04787039032 | AA106: 0.06772915062 | AB106: 0.07068693835 | AC106: 0.08883989523 | AD106: 0.04824584201 | AE106: 0.04834016408 | AF106: 0.06839380294 | AG106: 0.07138062825
D107: Department of Human Services | R107: 0.0365015015 | S107: 0.03668945313 | T107: 0.03581080645 | U107: 0.03622496255 | V107: 0.03331804783 | W107: 0.036781 | X107: 0.03714565005 | Y107: 0.03721827107 | Z107: 0.03729126757 | AA107: 0.03736408197 | AB107: 0.0374370854 | AC107: 0.03751060336 | AD107: 0.0375840658 | AE107: 0.03765777319 | AF107: 0.03773117132 | AG107: 0.03780533536
D108: Environment Protection Authority | R108: 0.1548548549 | S108: 0.138125 | T108: 0.1089671637 | U108: 0.1501603331 | V108: 0.1522200512 | W108: 0.151229 | X108: 0.156402737 | Y108: 0.1576640494 | Z108: 0.1587895874 | AA108: 0.1597848186 | AB108: 0.1606550333 | AC108: 0.1614053501 | AD108: 0.1620407203 | AE108: 0.1625659333 | AF108: 0.1629856213 | AG108: 0.1633042637
C109: =+CONCATENATE("Total ",C105) -> Total Licence fees | K109: =+SUM(K106:K108) -> 0 | L109: =+SUM(L106:L108) -> 0 | M109: 0 | N109: 0 | O109: 0 | P109: 0 | Q109: 0 | R109: 0.2747965766 | S109: 0.2870410156 | T109: 0.2099991798 | U109: 0.2368542048 | V109: 0.2524947672 | W109: 0.25801 | X109: =+SUM(X106:X108) -> 0.2815249267 | Y109: =+SUM(Y106:Y108) -> 0.2426593052 | Z109: =+SUM(Z106:Z108) -> 0.2439512453 | AA109: =+SUM(AA106:AA108) -> 0.2648780512 | AB109: =+SUM(AB106:AB108) -> 0.2687790571 | AC109: =+SUM(AC106:AC108) -> 0.2877558487 | AD109: 0.2478706281 | AE109: 0.2485638706 | AF109: 0.2691105955 | AG109: 0.2724902273
C111: Environment Contribution | R111: 2.246501502 | S111: 3.530820312 | T111: 3.430322581 | U111: 3.385355805 | V111: 3.34155268 | W111: 3.272 | X111: 5.000977517 | Y111: 4.888541072 | Z111: 4.778632524 | AA111: 4.671195038 | AB111: 4.566173058 | AC111: 4.463512276 | AD111: 4.363159605 | AE111: 4.265063152 | AF111: 4.169172192 | AG111: 4.075437138
C113: Other non-controllable
D114: [Non-controllable 1] | R114: 0 | S114: 0 | T114: 0 | U114: 0 | V114: 0 | W114: 0 | X114: 0 | Y114: 0 | Z114: 0 | AA114: 0 | AB114: 0 | AC114: 0 | AD114: 0 | AE114: 0 | AF114: 0 | AG114: 0
D115: [Non-controllable 2] | R115: 0 | S115: 0 | T115: 0 | U115: 0 | V115: 0 | W115: 0 | X115: 0 | Y115: 0 | Z115: 0 | AA115: 0 | AB115: 0 | AC115: 0 | AD115: 0 | AE115: 0 | AF115: 0 | AG115: 0
D116: [Non-controllable 3] | R116: 0 | S116: 0 | T116: 0 | U116: 0 | V116: 0 | W116: 0 | X116: 0 | Y116: 0 | Z116: 0 | AA116: 0 | AB116: 0 | AC116: 0 | AD116: 0 | AE116: 0 | AF116: 0 | AG116: 0
D117: [Non-controllable 4] | R117: 0 | S117: 0 | T117: 0 | U117: 0 | V117: 0 | W117: 0 | X117: 0 | Y117: 0 | Z117: 0 | AA117: 0 | AB117: 0 | AC117: 0 | AD117: 0 | AE117: 0 | AF117: 0 | AG117: 0
D118: [Non-controllable 5] | R118: 0 | S118: 0 | T118: 0 | U118: 0 | V118: 0 | W118: 0 | X118: 0 | Y118: 0 | Z118: 0 | AA118: 0 | AB118: 0 | AC118: 0 | AD118: 0 | AE118: 0 | AF118: 0 | AG118: 0
D119: [Non-controllable 6] | R119: 0 | S119: 0 | T119: 0 | U119: 0 | V119: 0 | W119: 0 | X119: 0 | Y119: 0 | Z119: 0 | AA119: 0 | AB119: 0 | AC119: 0 | AD119: 0 | AE119: 0 | AF119: 0 | AG119: 0
D120: [Non-controllable 7] | R120: 0 | S120: 0 | T120: 0 | U120: 0 | V120: 0 | W120: 0 | X120: 0 | Y120: 0 | Z120: 0 | AA120: 0 | AB120: 0 | AC120: 0 | AD120: 0 | AE120: 0 | AF120: 0 | AG120: 0
D121: [Non-controllable 8] | R121: 0 | S121: 0 | T121: 0 | U121: 0 | V121: 0 | W121: 0 | X121: 0 | Y121: 0 | Z121: 0 | AA121: 0 | AB121: 0 | AC121: 0 | AD121: 0 | AE121: 0 | AF121: 0 | AG121: 0
D122: [Non-controllable 9] | R122: 0 | S122: 0 | T122: 0 | U122: 0 | V122: 0 | W122: 0 | X122: 0 | Y122: 0 | Z122: 0 | AA122: 0 | AB122: 0 | AC122: 0 | AD122: 0 | AE122: 0 | AF122: 0 | AG122: 0
D123: [Non-controllable 10] | R123: 0 | S123: 0 | T123: 0 | U123: 0 | V123: 0 | W123: 0 | X123: 0 | Y123: 0 | Z123: 0 | AA123: 0 | AB123: 0 | AC123: 0 | AD123: 0 | AE123: 0 | AF123: 0 | AG123: 0
K124: =SUM(K114:K123) -> 0 | L124: 0 | M124: 0 | N124: 0 | O124: 0 | P124: 0 | Q124: 0 | R124: 0 | S124: 0 | T124: 0 | U124: 0 | V124: 0 | W124: 0 | X124: 0 | Y124: 0 | Z124: 0 | AA124: 0 | AB124: 0 | AC124: 0 | AD124: 0 | AE124: 0 | AF124: 0 | AG124: 0
C127: External bulk charges (excl. temporary purchases)
C128: Reconciliation
C130: Service | R130: =+R7 -> 2012-13 | S130: 2013-14 | T130: 2014-15 | U130: 2015-16 | V130: 2016-17 | W130: 2017-18 | X130: 2018-19 | Y130: 2019-20 | Z130: 2020-21 | AA130: 2021-22 | AB130: 2022-23 | AC130: 2023-24 | AD130: 2024-25 | AE130: 2025-26 | AF130: 2026-27 | AG130: 2027-28
D131: Water | R131: =+SUMIF($I$138:$I$179,$D$131,R$138:R$179) -> 1.944444641 | S131: 1.716850586 | T131: 1.903249065 | U131: 1.992724719 | V131: 2.04106088 | W131: 1.985639681 | X131: 2.326639681 | Y131: 2.326639681 | Z131: 2.326639681 | AA131: 2.326639681 | AB131: 2.326639681 | AC131: 2.326639681 | AD131: 2.326639681 | AE131: 2.326639681 | AF131: 2.326639681 | AG131: 2.326639681
D132: Sewerage | R132: =+SUMIF($I$138:$I$179,$D$132,R$138:R$179) -> 0 | S132: 0 | T132: 0 | U132: 0 | V132: 0 | W132: 0 | X132: 0 | Y132: 0 | Z132: 0 | AA132: 0 | AB132: 0 | AC132: 0 | AD132: 0 | AE132: 0 | AF132: 0 | AG132: 0
D133: Recycled Water | R133: =+SUMIF($I$138:$I$179,$D$133,R$138:R$179) -> 0 | S133: 0 | T133: 0 | U133: 0 | V133: 0 | W133: 0 | X133: 0 | Y133: 0 | Z133: 0 | AA133: 0 | AB133: 0 | AC133: 0 | AD133: 0 | AE133: 0 | AF133: 0 | AG133: 0
D134: Rural Water | R134: =+SUMIF($I$138:$I$179,$D$134,R$138:R$179) -> 0 | S134: 0 | T134: 0 | U134: 0 | V134: 0 | W134: 0 | X134: 0 | Y134: 0 | Z134: 0 | AA134: 0 | AB134: 0 | AC134: 0 | AD134: 0 | AE134: 0 | AF134: 0 | AG134: 0
C135: Total External Bulk Charges | R135: =SUM(R131:R134) -> 1.944444641 | S135: =SUM(S131:S134) -> 1.716850586 | T135: =SUM(T131:T134) -> 1.903249065 | U135: 1.992724719 | V135: 2.04106088 | W135: 1.985639681 | X135: 2.326639681 | Y135: 2.326639681 | Z135: 2.326639681 | AA135: 2.326639681 | AB135: 2.326639681 | AC135: 2.326639681 | AD135: 2.326639681 | AE135: 2.326639681 | AF135: 2.326639681 | AG135: 2.326639681
C137: Description | H137: Source | I137: Service | J137: Price
B138: 1 | C138: Campaspe | D138: 0 | E138: 0 | F138: 0 | G138: 0 | H138: Goulburn-Murray Water | I138: Water | J138: Fixed | R138: 0 | S138: 0 | T138: 0 | U138: 0 | V138: 0.09058932108 | W138: 0.08871882325 | X138: 0.08871882325 | Y138: 0.08871882325 | Z138: 0.08871882325 | AA138: 0.08871882325 | AB138: 0.08871882325 | AC138: 0.08871882325 | AD138: 0.08871882325 | AE138: 0.08871882325 | AF138: 0.08871882325 | AG138: 0.08871882325 | AJ138: ESC USE ONLY
B139: 2 | C139: Coliban Capacity Share | D139: 0 | E139: 0 | F139: 0 | G139: 0 | H139: Goulburn-Murray Water | I139: Water | J139: Fixed | R139: 0 | S139: 0 | T139: 0 | U139: 0 | V139: 0.5106456229 | W139: 0.44517716 | X139: 0.44517716 | Y139: 0.44517716 | Z139: 0.44517716 | AA139: 0.44517716 | AB139: 0.44517716 | AC139: 0.44517716 | AD139: 0.44517716 | AE139: 0.44517716 | AF139: 0.44517716 | AG139: 0.44517716
B140: 3 | C140: Goulburn | D140: 0 | E140: 0 | F140: 0 | G140: 0 | H140: Goulburn-Murray Water | I140: Water | J140: Fixed | R140: 0 | S140: 0 | T140: 0 | U140: 0 | V140: 0.701210316 | W140: 0.7418931145 | X140: 0.7418931145 | Y140: 0.7418931145 | Z140: 0.7418931145 | AA140: 0.7418931145 | AB140: 0.7418931145 | AC140: 0.7418931145 | AD140: 0.7418931145 | AE140: 0.7418931145 | AF140: 0.7418931145 | AG140: 0.7418931145 | AJ140: [Service]
B141: 4 | C141: Groundwater | D141: 0 | E141: 0 | F141: 0 | G141: 0 | H141: Goulburn-Murray Water | I141: Water | J141: Fixed | R141: 0 | S141: 0 | T141: 0 | U141: 0 | V141: 0.00832585841 | W141: 0.0075922 | X141: 0.0075922 | Y141: 0.0075922 | Z141: 0.0075922 | AA141: 0.0075922 | AB141: 0.0075922 | AC141: 0.0075922 | AD141: 0.0075922 | AE141: 0.0075922 | AF141: 0.0075922 | AG141: 0.0075922 | AJ141: Water
B142: 5 | C142: GWM Water | D142: 0 | E142: 0 | F142: 0 | G142: 0 | H142: Other Sources | I142: Water | J142: Fixed | R142: 0 | S142: 0 | T142: 0 | U142: 0 | V142: 0.2746976895 | W142: 0.26898 | X142: 0.29898 | Y142: 0.29898 | Z142: 0.29898 | AA142: 0.29898 | AB142: 0.29898 | AC142: 0.29898 | AD142: 0.29898 | AE142: 0.29898 | AF142: 0.29898 | AG142: 0.29898 | AJ142: Sewerage
B143: 6 | C143: Loddon | D143: 0 | E143: 0 | F143: 0 | G143: 0 | H143: Goulburn-Murray Water | I143: Water | J143: Fixed | R143: 0 | S143: 0 | T143: 0 | U143: 0 | V143: 0.04416609427 | W143: 0.0432468 | X143: 0.0432468 | Y143: 0.0432468 | Z143: 0.0432468 | AA143: 0.0432468 | AB143: 0.0432468 | AC143: 0.0432468 | AD143: 0.0432468 | AE143: 0.0432468 | AF143: 0.0432468 | AG143: 0.0432468 | AJ143: Recycled Water
B144: 7 | C144: Murray | D144: 0 | E144: 0 | F144: 0 | G144: 0 | H144: Goulburn-Murray Water | I144: Water | J144: Fixed | R144: 0 | S144: 0 | T144: 0 | U144: 0 | V144: 0.1690658048 | W144: 0.156921339 | X144: 0.156921339 | Y144: 0.156921339 | Z144: 0.156921339 | AA144: 0.156921339 | AB144: 0.156921339 | AC144: 0.156921339 | AD144: 0.156921339 | AE144: 0.156921339 | AF144: 0.156921339 | AG144: 0.156921339 | AJ144: Rural Water
B145: 8 | C145: Goulburn | D145: 0 | E145: 0 | F145: 0 | G145: 0 | H145: Goulburn-Murray Water | I145: Water | J145: Variable | R145: 0 | S145: 0 | T145: 0 | U145: 0 | V145: 0.02086116067 | W145: 0.017223395 | X145: 0.017223395 | Y145: 0.017223395 | Z145: 0.017223395 | AA145: 0.017223395 | AB145: 0.017223395 | AC145: 0.017223395 | AD145: 0.017223395 | AE145: 0.017223395 | AF145: 0.017223395 | AG145: 0.017223395
B146: 9 | C146: GWM Water | D146: 0 | E146: 0 | F146: 0 | G146: 0 | H146: Other Sources | I146: Water | J146: Variable | R146: 0 | S146: 0 | T146: 0 | U146: 0 | V146: 0.2149755588 | W146: 0.2105009544 | X146: 0.5215009544 | Y146: 0.5215009544 | Z146: 0.5215009544 | AA146: 0.5215009544 | AB146: 0.5215009544 | AC146: 0.5215009544 | AD146: 0.5215009544 | AE146: 0.5215009544 | AF146: 0.5215009544 | AG146: 0.5215009544 | AJ146: [Source]
B147: 10 | C147: Murray | D147: 0 | E147: 0 | F147: 0 | G147: 0 | H147: Goulburn-Murray Water | I147: Water | J147: Variable | R147: 0 | S147: 0 | T147: 0 | U147: 0 | V147: 0.006523453766 | W147: 0.005385895 | X147: 0.005385895 | Y147: 0.005385895 | Z147: 0.005385895 | AA147: 0.005385895 | AB147: 0.005385895 | AC147: 0.005385895 | AD147: 0.005385895 | AE147: 0.005385895 | AF147: 0.005385895 | AG147: 0.005385895 | AJ147: Melbourne Water
B148: 11 | C148: Historical Bulk Water Expenditure | D148: 0 | E148: 0 | F148: 0 | G148: 0 | H148: Goulburn-Murray Water | I148: Water | J148: Fixed | R148: 1.944444641 | S148: 1.716850586 | T148: 1.903249065 | U148: 1.992724719 | V148: 0 | W148: 0 | X148: 0 | Y148: 0 | Z148: 0 | AA148: 0 | AB148: 0 | AC148: 0 | AD148: 0 | AE148: 0 | AF148: 0 | AG148: 0 | AJ148: Goulburn-Murray Water
B149: 12 | H149: [Source] | I149: [Service] | J149: [Price] | R149: 0 | S149: 0 | T149: 0 | U149: 0 | V149: 0 | W149: 0 | X149: 0 | Y149: 0 | Z149: 0 | AA149: 0 | AB149: 0 | AC149: 0 | AD149: 0 | AE149: 0 | AF149: 0 | AG149: 0 | AJ149: Other Sources
B150: 13 | H150: [Source] | I150: [Service] | J150: [Price] | R150: 0 | S150: 0 | T150: 0 | U150: 0 | V150: 0 | W150: 0 | X150: 0 | Y150: 0 | Z150: 0 | AA150: 0 | AB150: 0 | AC150: 0 | AD150: 0 | AE150: 0 | AF150: 0 | AG150: 0
B151: 14 | H151: [Source] | I151: [Service] | J151: [Price] | R151: 0 | S151: 0 | T151: 0 | U151: 0 | V151: 0 | W151: 0 | X151: 0 | Y151: 0 | Z151: 0 | AA151: 0 | AB151: 0 | AC151: 0 | AD151: 0 | AE151: 0 | AF151: 0 | AG151: 0
B152: 15 | H152: [Source] | I152: [Service] | J152: [Price] | R152: 0 | S152: 0 | T152: 0 | U152: 0 | V152: 0 | W152: 0 | X152: 0 | Y152: 0 | Z152: 0 | AA152: 0 | AB152: 0 | AC152: 0 | AD152: 0 | AE152: 0 | AF152: 0 | AG152: 0
B153: 16 | H153: [Source] | I153: [Service] | J153: [Price] | R153: 0 | S153: 0 | T153: 0 | U153: 0 | V153: 0 | W153: 0 | X153: 0 | Y153: 0 | Z153: 0 | AA153: 0 | AB153: 0 | AC153: 0 | AD153: 0 | AE153: 0 | AF153: 0 | AG153: 0
B154: 17 | H154: [Source] | I154: [Service] | J154: [Price] | R154: 0 | S154: 0 | T154: 0 | U154: 0 | V154: 0 | W154: 0 | X154: 0 | Y154: 0 | Z154: 0 | AA154: 0 | AB154: 0 | AC154: 0 | AD154: 0 | AE154: 0 | AF154: 0 | AG154: 0
B155: 18 | H155: [Source] | I155: [Service] | J155: [Price] | R155: 0 | S155: 0 | T155: 0 | U155: 0 | V155: 0 | W155: 0 | X155: 0 | Y155: 0 | Z155: 0 | AA155: 0 | AB155: 0 | AC155: 0 | AD155: 0 | AE155: 0 | AF155: 0 | AG155: 0
B156: 19 | H156: [Source] | I156: [Service] | J156: [Price] | R156: 0 | S156: 0 | T156: 0 | U156: 0 | V156: 0 | W156: 0 | X156: 0 | Y156: 0 | Z156: 0 | AA156: 0 | AB156: 0 | AC156: 0 | AD156: 0 | AE156: 0 | AF156: 0 | AG156: 0
B157: 20 | H157: [Source] | I157: [Service] | J157: [Price] | R157: 0 | S157: 0 | T157: 0 | U157: 0 | V157: 0 | W157: 0 | X157: 0 | Y157: 0 | Z157: 0 | AA157: 0 | AB157: 0 | AC157: 0 | AD157: 0 | AE157: 0 | AF157: 0 | AG157: 0
B158: 21 | H158: [Source] | I158: [Service] | J158: [Price] | R158: 0 | S158: 0 | T158: 0 | U158: 0 | V158: 0 | W158: 0 | X158: 0 | Y158: 0 | Z158: 0 | AA158: 0 | AB158: 0 | AC158: 0 | AD158: 0 | AE158: 0 | AF158: 0 | AG158: 0
B159: 22 | H159: [Source] | I159: [Service] | J159: [Price] | R159: 0 | S159: 0 | T159: 0 | U159: 0 | V159: 0 | W159: 0 | X159: 0 | Y159: 0 | Z159: 0 | AA159: 0 | AB159: 0 | AC159: 0 | AD159: 0 | AE159: 0 | AF159: 0 | AG159: 0
B160: 23 | H160: [Source] | I160: [Service] | J160: [Price] | R160: 0 | S160: 0 | T160: 0 | U160: 0 | V160: 0 | W160: 0 | X160: 0 | Y160: 0 | Z160: 0 | AA160: 0 | AB160: 0 | AC160: 0 | AD160: 0 | AE160: 0 | AF160: 0 | AG160: 0
B161: 24 | H161: [Source] | I161: [Service] | J161: [Price] | R161: 0 | S161: 0 | T161: 0 | U161: 0 | V161: 0 | W161: 0 | X161: 0 | Y161: 0 | Z161: 0 | AA161: 0 | AB161: 0 | AC161: 0 | AD161: 0 | AE161: 0 | AF161: 0 | AG161: 0
B162: 25 | H162: [Source] | I162: [Service] | J162: [Price] | R162: 0 | S162: 0 | T162: 0 | U162: 0 | V162: 0 | W162: 0 | X162: 0 | Y162: 0 | Z162: 0 | AA162: 0 | AB162: 0 | AC162: 0 | AD162: 0 | AE162: 0 | AF162: 0 | AG162: 0
B163: 26 | H163: [Source] | I163: [Service] | J163: [Price] | R163: 0 | S163: 0 | T163: 0 | U163: 0 | V163: 0 | W163: 0 | X163: 0 | Y163: 0 | Z163: 0 | AA163: 0 | AB163: 0 | AC163: 0 | AD163: 0 | AE163: 0 | AF163: 0 | AG163: 0
B164: 27 | H164: [Source] | I164: [Service] | J164: [Price] | R164: 0 | S164: 0 | T164: 0 | U164: 0 | V164: 0 | W164: 0 | X164: 0 | Y164: 0 | Z164: 0 | AA164: 0 | AB164: 0 | AC164: 0 | AD164: 0 | AE164: 0 | AF164: 0 | AG164: 0
B165: 28 | H165: [Source] | I165: [Service] | J165: [Price] | R165: 0 | S165: 0 | T165: 0 | U165: 0 | V165: 0 | W165: 0 | X165: 0 | Y165: 0 | Z165: 0 | AA165: 0 | AB165: 0 | AC165: 0 | AD165: 0 | AE165: 0 | AF165: 0 | AG165: 0
B166: 29 | H166: [Source] | I166: [Service] | J166: [Price] | R166: 0 | S166: 0 | T166: 0 | U166: 0 | V166: 0 | W166: 0 | X166: 0 | Y166: 0 | Z166: 0 | AA166: 0 | AB166: 0 | AC166: 0 | AD166: 0 | AE166: 0 | AF166: 0 | AG166: 0
B167: 30 | H167: [Source] | I167: [Service] | J167: [Price] | R167: 0 | S167: 0 | T167: 0 | U167: 0 | V167: 0 | W167: 0 | X167: 0 | Y167: 0 | Z167: 0 | AA167: 0 | AB167: 0 | AC167: 0 | AD167: 0 | AE167: 0 | AF167: 0 | AG167: 0
B168: 31 | H168: [Source] | I168: [Service] | J168: [Price] | R168: 0 | S168: 0 | T168: 0 | U168: 0 | V168: 0 | W168: 0 | X168: 0 | Y168: 0 | Z168: 0 | AA168: 0 | AB168: 0 | AC168: 0 | AD168: 0 | AE168: 0 | AF168: 0 | AG168: 0
B169: 32 | H169: [Source] | I169: [Service] | J169: [Price] | R169: 0 | S169: 0 | T169: 0 | U169: 0 | V169: 0 | W169: 0 | X169: 0 | Y169: 0 | Z169: 0 | AA169: 0 | AB169: 0 | AC169: 0 | AD169: 0 | AE169: 0 | AF169: 0 | AG169: 0
B170: 33 | H170: [Source] | I170: [Service] | J170: [Price] | R170: 0 | S170: 0 | T170: 0 | U170: 0 | V170: 0 | W170: 0 | X170: 0 | Y170: 0 | Z170: 0 | AA170: 0 | AB170: 0 | AC170: 0 | AD170: 0 | AE170: 0 | AF170: 0 | AG170: 0
B171: 34 | H171: [Source] | I171: [Service] | J171: [Price] | R171: 0 | S171: 0 | T171: 0 | U171: 0 | V171: 0 | W171: 0 | X171: 0 | Y171: 0 | Z171: 0 | AA171: 0 | AB171: 0 | AC171: 0 | AD171: 0 | AE171: 0 | AF171: 0 | AG171: 0
B172: 35 | H172: [Source] | I172: [Service] | J172: [Price] | R172: 0 | S172: 0 | T172: 0 | U172: 0 | V172: 0 | W172: 0 | X172: 0 | Y172: 0 | Z172: 0 | AA172: 0 | AB172: 0 | AC172: 0 | AD172: 0 | AE172: 0 | AF172: 0 | AG172: 0
B173: 36 | H173: [Source] | I173: [Service] | J173: [Price] | R173: 0 | S173: 0 | T173: 0 | U173: 0 | V173: 0 | W173: 0 | X173: 0 | Y173: 0 | Z173: 0 | AA173: 0 | AB173: 0 | AC173: 0 | AD173: 0 | AE173: 0 | AF173: 0 | AG173: 0
B174: 37 | H174: [Source] | I174: [Service] | J174: [Price] | R174: 0 | S174: 0 | T174: 0 | U174: 0 | V174: 0 | W174: 0 | X174: 0 | Y174: 0 | Z174: 0 | AA174: 0 | AB174: 0 | AC174: 0 | AD174: 0 | AE174: 0 | AF174: 0 | AG174: 0
B175: 38 | H175: [Source] | I175: [Service] | J175: [Price] | R175: 0 | S175: 0 | T175: 0 | U175: 0 | V175: 0 | W175: 0 | X175: 0 | Y175: 0 | Z175: 0 | AA175: 0 | AB175: 0 | AC175: 0 | AD175: 0 | AE175: 0 | AF175: 0 | AG175: 0
B176: 39 | H176: [Source] | I176: [Service] | J176: [Price] | R176: 0 | S176: 0 | T176: 0 | U176: 0 | V176: 0 | W176: 0 | X176: 0 | Y176: 0 | Z176: 0 | AA176: 0 | AB176: 0 | AC176: 0 | AD176: 0 | AE176: 0 | AF176: 0 | AG176: 0
B177: 40 | H177: [Source] | I177: [Service] | J177: [Price] | R177: 0 | S177: 0 | T177: 0 | U177: 0 | V177: 0 | W177: 0 | X177: 0 | Y177: 0 | Z177: 0 | AA177: 0 | AB177: 0 | AC177: 0 | AD177: 0 | AE177: 0 | AF177: 0 | AG177: 0

Sheet Capex_FO input
B1: Capital Expenditure - Forecast Input
B2: =+Contents!H7 -> Coliban Water
B3: Go to Table of Contents
C7: Input Summary | F7: FOURTH REG PERIOD | K7: FIFTH REG PERIOD
D9: =+O39 -> 2018-19 | E9: 2019-20 | F9: 2020-21 | G9: 2021-22 | H9: 2022-23 | I9: 2023-24 | J9: 2024-25 | K9: 2025-26 | L9: 2026-27 | M9: 2027-28 | P9: 4th Reg Period | S9: 5th Reg Period
C10: By Cost Driver | P10: Total | Q10: % of Total | S10: Total | T10: % of Total
C11: Net capital expenditure - Renewals | D11: =+SUMIF($F$42:$F$1019,"Renewals",AV$42:AV$1019) -> 13.12514107 | E11: 13.41692084 | F11: 12.33849092 | G11: 11.07946683 | H11: 11.0716165 | I11: 16.29549584 | J11: 17.14191628 | K11: 15.18636071 | L11: 12.95516974 | M11: 12.72539926 | P11: =SUM(D11:H11) -> 61.03163617 | Q11: =IFERROR(P11/$P$16,"-") -> 0.3096757108 | S11: =SUM(I11:M11) -> 74.30434183 | T11: =IFERROR(S11/$S$16,"-") -> 0.3437050948
C12: Net capital expenditure - Growth | D12: =+SUMIF($F$42:$F$1019,"Growth",AV$42:AV$1019) -> 8.7222646 | E12: 12.4072736 | F12: 12.4867076 | G12: 9.823790578 | H12: 12.45989651 | I12: 11.03645835 | J12: 15.80270891 | K12: 14.79640292 | L12: 9.82550283 | M12: 12.02804923 | P12: =SUM(D12:H12) -> 55.89993289 | Q12: =IFERROR(P12/$P$16,"-") -> 0.2836373484 | S12: =SUM(I12:M12) -> 63.48912224 | T12: =IFERROR(S12/$S$16,"-") -> 0.2936777884
C13: Net capital expenditure - Improvements / Compliance | D13: =+SUMIF($F$42:$F$1019,"Improvements / Compliance",AV$42:AV$1019) -> 11.3410561 | E13: 7.474485691 | F13: 9.976609031 | G13: 17.82171243 | H13: 14.72354592 | I13: 11.22216807 | J13: 5.725059701 | K13: 9.620973872 | L13: 16.59900428 | M13: 14.82757993 | P13: 61.33740918 | Q13: 0.311227209 | S13: 57.99478585 | T13: 0.2682629693
C14: Government Contributions | D14: =+Z41 -> 0 | E14: =+AA41 -> 0 | F14: 0 | G14: 0 | H14: 0 | I14: 0 | J14: 0 | K14: 0 | L14: 0 | M14: 0 | P14: 0 | Q14: 0 | S14: 0 | T14: 0
C15: Customer Contributions | D15: =+AK41 -> 3.588734894 | E15: =+AL41 -> 3.851492335 | F15: 3.72286778 | G15: 3.790544013 | H15: 3.859795228 | I15: 3.930702388 | J15: 4.003316828 | K15: 4.077728245 | L15: 4.154032095 | M15: 4.232296993 | P15: 18.81343425 | Q15: 0.09545973186 | S15: 20.39807655 | T15: 0.09435414756
C16: Total prescribed capex | D16: =SUM(D11:D15) -> 36.77719666 | E16: 37.15017247 | F16: 38.52467533 | G16: 42.51551385 | H16: 42.11485416 | I16: 42.48482464 | J16: 42.67300172 | K16: 43.68146575 | L16: 43.53370894 | M16: 43.81332541 | P16: 197.0824125 | Q16: 1 | S16: 216.1863265 | T16: 1
C18: By Capital Type
C19: Top 10 Major Projects | D19: =+SUMIF($H$42:$H$1019,$C$19,O$42:O$1019) -> 8.727605512 | E19: 12.15081826 | F19: 14.19652541 | G19: 15.05752541 | H19: 14.55352541 | I19: 0 | J19: 0 | K19: 0 | L19: 0 | M19: 0 | P19: =SUM(D19:H19) -> 64.686 | Q19: =IFERROR(P19/$P$23,"-") -> 0.3282180241 | S19: =SUM(I19:M19) -> 0 | T19: =IFERROR(S19/$S$23,"-") -> 0
C20: Significant projects | D20: =+SUMIF($H$42:$H$1019,$C$20,O$42:O$1019) -> 12.69397618 | E20: 12.45286198 | F20: 12.21716873 | G20: 11.98677454 | H20: 11.76156028 | I20: 9.571773491 | J20: 9.356572327 | K20: 9.146209508 | L20: 8.940576255 | M20: 8.739566231 | P20: =SUM(D20:H20) -> 61.1123417 | Q20: =IFERROR(P20/$P$23,"-") -> 0.3100852122 | S20: =SUM(I20:M20) -> 45.75469781 | T20: =IFERROR(S20/$S$23,"-") -> 0.2116447352
C21: Capital Programs / Allocation | D21: =+SUMIF($H$42:$H$1019,$C$21,O$42:O$1019) -> 17.20606191 | E21: 13.95502776 | F21: 14.08384705 | G21: 18.34742888 | H21: 18.00119166 | I21: 32.544 | J21: 33.097248 | K21: 33.65990122 | L21: 34.23211954 | M21: 34.81406557 | P21: 81.59355726 | Q21: 0.414007299 | S21: 168.3473343 | T21: 0.7787140707
C22: Other Capital expenditure | D22: =+SUMIF($H$42:$H$1019,$C$22,O$42:O$1019) -> -1.850446939 | E22: -1.408535534 | F22: -1.972865847 | G22: -2.876214973 | H22: -2.201423191 | I22: 0.3690511518 | J22: 0.2191813953 | K22: 0.8753550254 | L22: 0.3610131511 | M22: 0.2596936096 | P22: -10.30948648 | Q22: -0.05231053524 | S22: 2.084294333 | T22: 0.009641194091
C23: Total prescribed capex | D23: =SUM(D19:D22) -> 36.77719666 | E23: =SUM(E19:E22) -> 37.15017247 | F23: 38.52467533 | G23: 42.51551385 | H23: 42.11485416 | I23: 42.48482464 | J23: 42.67300172 | K23: 43.68146575 | L23: 43.53370894 | M23: 43.81332541 | P23: 197.0824125 | Q23: 1 | S23: 216.1863265 | T23: 1
C25: Difference | D25: =+D23-D16 -> 0 | E25: =+E23-E16 -> 0 | F25: 0 | G25: 0 | H25: 0 | I25: 0 | J25: 0 | K25: 0 | L25: 0 | M25: 0
C26: Test | D26: =+D23=D16 -> TRUE | E26: TRUE | F26: TRUE | G26: TRUE | H26: TRUE | I26: TRUE | J26: FALSE | K26: TRUE | L26: TRUE | M26: TRUE
C29: Total prescribed capex | D29: =+D23 -> 36.77719666 | E29: =+E23 -> 37.15017247 | F29: 38.52467533 | G29: 42.51551385 | H29: 42.11485416 | I29: 42.48482464 | J29: 42.67300172 | K29: 43.68146575 | L29: 43.53370894 | M29: 43.81332541
C32: Regulatory Depreciation | D32: =+BG41 -> 0.5373741535 | E32: =+BH41 -> 1.593201087 | F32: 2.605656077 | G32: 3.66904491 | H32: 4.979573283 | I32: 6.48620663 | J32: 8.022075774 | K32: 9.439894026 | L32: 10.71209841 | M32: 11.95981391
B35: $m, 01/01/18
O36: Gross capital expenditure | Z36: Government contributions | AK36: Customer contributions | AV36: Net capital expenditure | BG36: Regulatory Depreciation | BR36: Accumulated capex | CC36: Gross capital expenditure | CN36: Tax Depreciation
O37: $m, 01/01/18 | Z37: $m, 01/01/18 | AK37: $m, 01/01/18 | AV37: $m, 01/01/18 | BG37: $m, 01/01/18 | BR37: $m, 01/01/18 | CC37: Nominal,$ | CN37: Nominal,$
O39: 2018-19 | P39: 2019-20 | Q39: 2020-21 | R39: 2021-22 | S39: 2022-23 | T39: 2023-24 | U39: 2024-25 | V39: 2025-26 | W39: 2026-27 | X39: 2027-28 | Z39: 2018-19 | AA39: 2019-20 | AB39: 2020-21 | AC39: 2021-22 | AD39: 2022-23 | AE39: 2023-24 | AF39: 2024-25 | AG39: 2025-26 | AH39: 2026-27 | AI39: 2027-28 | AK39: 2018-19 | AL39: 2019-20 | AM39: 2020-21 | AN39: 2021-22 | AO39: 2022-23 | AP39: 2023-24 | AQ39: 2024-25 | AR39: 2025-26 | AS39: 2026-27 | AT39: 2027-28 | AV39: 2018-19 | AW39: 2019-20 | AX39: 2020-21 | AY39: 2021-22 | AZ39: 2022-23 | BA39: 2023-24 | BB39: 2024-25 | BC39: 2025-26 | BD39: 2026-27 | BE39: 2027-28 | BG39: 2018-19 | BH39: 2019-20 | BI39: 2020-21 | BJ39: 2021-22 | BK39: 2022-23 | BL39: 2023-24 | BM39: 2024-25 | BN39: 2025-26 | BO39: 2026-27 | BP39: 2027-28 | BR39: 2018-19 | BS39: 2019-20 | BT39: 2020-21 | BU39: 2021-22 | BV39: 2022-23 | BW39: 2023-24 | BX39: 2024-25 | BY39: 2025-26 | BZ39: 2026-27 | CA39: 2027-28 | CC39: 2018-19 | CD39: 2019-20 | CE39: 2020-21 | CF39: 2021-22 | CG39: 2022-23 | CH39: 2023-24 | CI39: 2024-25 | CJ39: 2025-26 | CK39: 2026-27 | CL39: 2027-28 | CN39: 2018-19 | CO39: 2019-20 | CP39: 2020-21 | CQ39: 2021-22 | CR39: 2022-23 | CS39: 2023-24 | CT39: 2024-25 | CU39: 2025-26 | CV39: 2026-27 | CW39: 2027-28
BG40: 1 | BH40: 2 | BI40: 3 | BJ40: 4 | BK40: 5 | BL40: 6 | BM40: 7 | BN40: 8 | BO40: 9 | BP40: 10 | CN40: 1 | CO40: 2 | CP40: 3 | CQ40: 4 | CR40: 5 | CS40: 6 | CT40: 7 | CU40: 8 | CV40: 9 | CW40: 10
C41: Project/program Name | E41: Service | F41: Major cost driver | G41: Asset category | H41: Capital type | J41: Depreciation Method | K41: Year asset operational | L41: Asset life (Regulatory) | M41: Asset life (Tax) | O41: =SUM(O42:O1019) -> 36.77719666 | P41: 37.15017247 | Q41: 38.52467533 | R41: 42.51551385 | S41: 42.11485416 | T41: 42.48482464 | U41: 42.67300172 | V41: 43.68146575 | W41: 43.53370894 | X41: 43.81332541 | Z41: =SUM(Z42:Z1019) -> 0 | AA41: 0 | AB41: 0 | AC41: 0 | AD41: 0 | AE41: 0 | AF41: 0 | AG41: 0 | AH41: 0 | AI41: 0 | AK41: =SUM(AK42:AK1019) -> 3.588734894 | AL41: 3.851492335 | AM41: 3.72286778 | AN41: 3.790544013 | AO41: 3.859795228 | AP41: 3.930702388 | AQ41: 4.003316828 | AR41: 4.077728245 | AS41: 4.154032095 | AT41: 4.232296993 | AV41: =SUM(AV42:AV1019) -> 33.18846177 | AW41: 33.29868013 | AX41: 34.80180756 | AY41: 38.72496984 | AZ41: 38.25505894 | BA41: 38.55412225 | BB41: 38.66968489 | BC41: 39.60373751 | BD41: 39.37967685 | BE41: 39.58102842 | BG41: =SUM(BG42:BG1019) -> 0.5373741535 | BH41: 1.593201087 | BI41: 2.605656077 | BJ41: 3.66904491 | BK41: 4.979573283 | BL41: 6.48620663 | BM41: 8.022075774 | BN41: 9.439894026 | BO41: 10.71209841 | BP41: 11.95981391 | BR41: =SUM(BR42:BR1019) -> 25.43846177 | BS41: 22.19868013 | BT41: 21.59580756 | BU41: 31.45796984 | BV41: 55.39805894 | BW41: 49.63412225 | BX41: 49.76968489 | BY41: 39.60373751 | BZ41: 39.37967685 | CA41: 39.58102842 | CC41: =SUM(CC42:CC1019) -> 37.62307218 | CD41: 38.87873284 | CE41: 41.24448532 | CF41: 46.56396641 | CG41: 47.18603328 | CH41: 48.69536577 | CI41: 50.03600523 | CJ41: 52.39649937 | CK41: 53.42030616 | CL41: 54.99998288 | CN41: =SUM(CN42:CN1019) -> 0.5027259925 | CO41: 1.524824562 | CP41: 2.596555061 | CQ41: 3.774988773 | CR41: 5.034846269 | CS41: 6.277320048 | CT41: 7.511462186 | CU41: 8.791868493 | CV41: 10.11457856 | CW41: 11.46983218
C42: Western Bendigo water network growth and pressure | E42: Water | F42: Growth | G42: Pipelines/network | H42: Top 10 Major Projects | I42: 0 | J42: Straight line | K42: 2022-23 | L42: 80 | M42: 40 | O42: 4 | P42: 5.34 | Q42: 3.1 | R42: 0.9 | S42: 0 | T42: 0 | U42: 0 | V42: 0 | W42: 0 | X42: 0 | Z42: 0 | AA42: 0 | AB42: 0 | AC42: 0 | AD42: 0 | AE42: 0 | AF42: 0 | AG42: 0 | AH42: 0 | AI42: 0 | AK42: 0 | AL42: 0 | AM42: 0 | AN42: 0 | AO42: 0 | AP42: 0 | AQ42: 0 | AR42: 0 | AS42: 0 | AT42: 0 | AV42: =+O42-Z42-AK42 -> 4 | AW42: =+P42-AA42-AL42 -> 5.34 | AX42: 3.1 | AY42: 0.9 | AZ42: 0 | BA42: 0 | BB42: 0 | BC42: 0 | BD42: 0 | BE42: 0 | BG42: =IF($L42=0,0, IF($L42<=0.5,BR42, IF($J42="straight line", IF((LEFT(BG$39,4)*1)-INT($L42)<LEFT($BG$39,4)*1,0,((OFFSET(BR42,0,-INT($L42+0.5),1,1))/$L42)*(IF($L42-INT($L42)>0.5,$L42-0.5-INT($L42),IF($L42-INT($L42)<=0.5,$L42-0.5-INT($L42)+1,0)))) +BR42/$L42*0.5, IF($J42="Declining Balance",-$BG$38,0)))) -> 0 | BH42: =IF($L42=0,0, IF($L42<=0.5,BS42, IF(AND($J42="straight line",$L42<1.51),(BR42-((BR42/$L42)*0.5))+BS42/$L42*0.5, IF($J42="straight line", IF((LEFT(BH$39,4)*1)-INT($L42)<LEFT($BG$39,4)*1,0,((OFFSET(BS42,0,-INT($L42+0.5),1,1))/$L42)*(IF($L42-INT($L42)>0.5,$L42-0.5-INT($L42),IF($L42-INT($L42)<=0.5,$L42-0.5-INT($L42)+1,0)))) +BS42/$L42*0.5 +SUM(OFFSET(BS42,0,MAX(-INT($L42+(0.5-(10^-12))),-BH$40)+1,1,MIN(INT($L42+(0.5-(10^-12))),BH$40)-1))*1/$L42, IF($J42="Declining Balance",-$BG$38,0))))) -> 0 | BI42: =IF($L42=0,0, IF($L42<=0.5,BT42, IF(AND($J42="straight line",$L42<1.51),(BS42-((BS42/$L42)*0.5))+BT42/$L42*0.5, IF($J42="straight line", IF((LEFT(BI$39,4)*1)-INT($L42)<LEFT($BG$39,4)*1,0,((OFFSET(BT42,0,-INT($L42+0.5),1,1))/$L42)*(IF($L42-INT($L42)>0.5,$L42-0.5-INT($L42),IF($L42-INT($L42)<=0.5,$L42-0.5-INT($L42)+1,0)))) +BT42/$L42*0.5 +SUM(OFFSET(BT42,0,MAX(-INT($L42+(0.5-(10^-12))),-BI$40)+1,1,MIN(INT($L42+(0.5-(10^-12))),BI$40)-1))*1/$L42, IF($J42="Declining Balance",-$BG$38,0))))) -> 0 | BJ42: 0 | BK42: 0.083375 | BL42: 0.16675 | BM42: 0.16675 | BN42: 0.16675 | BO42: 0.16675 | BP42: 0.16675 | BR42: =+IF($K42="Ongoing",AV42,IF(RIGHT($K42,2)=RIGHT(BR$39,2),SUM($AV42:AV42),0)+IF(RIGHT(BR$39,2)>RIGHT($K42,2),AV42,0)) -> 0 | BS42: =+IF($K42="Ongoing",AW42,IF(RIGHT($K42,2)=RIGHT(BS$39,2),SUM($AV42:AW42),0)+IF(RIGHT(BS$39,2)>RIGHT($K42,2),AW42,0)) -> 0 | BT42: =+IF($K42="Ongoing",AX42,IF(RIGHT($K42,2)=RIGHT(BT$39,2),SUM($AV42:AX42),0)+IF(RIGHT(BT$39,2)>RIGHT($K42,2),AX42,0)) -> 0 | BU42: =+IF($K42="Ongoing",AY42,IF(RIGHT($K42,2)=RIGHT(BU$39,2),SUM($AV42:AY42),0)+IF(RIGHT(BU$39,2)>RIGHT($K42,2),AY42,0)) -> 0 | BV42: =+IF($K42="Ongoing",AZ42,IF(RIGHT($K42,2)=RIGHT(BV$39,2),SUM($AV42:AZ42),0)+IF(RIGHT(BV$39,2)>RIGHT($K42,2),AZ42,0)) -> 13.34 | BW42: =+IF($K42="Ongoing",BA42,IF(RIGHT($K42,2)=RIGHT(BW$39,2),SUM($AV42:BA42),0)+IF(RIGHT(BW$39,2)>RIGHT($K42,2),BA42,0)) -> 0 | BX42: =+IF($K42="Ongoing",BB42,IF(RIGHT($K42,2)=RIGHT(BX$39,2),SUM($AV42:BB42),0)+IF(RIGHT(BX$39,2)>RIGHT($K42,2),BB42,0)) -> 0 | BY42: =+IF($K42="Ongoing",BC42,IF(RIGHT($K42,2)=RIGHT(BY$39,2),SUM($AV42:BC42),0)+IF(RIGHT(BY$39,2)>RIGHT($K42,2),BC42,0)) -> 0 | BZ42: =+IF($K42="Ongoing",BD42,IF(RIGHT($K42,2)=RIGHT(BZ$39,2),SUM($AV42:BD42),0)+IF(RIGHT(BZ$39,2)>RIGHT($K42,2),BD42,0)) -> 0 | CA42: =+IF($K42="Ongoing",BE42,IF(RIGHT($K42,2)=RIGHT(CA$39,2),SUM($AV42:BE42),0)+IF(RIGHT(CA$39,2)>RIGHT($K42,2),BE42,0)) -> 0 | CC42: =+O42*KeyAssumptionsPriceControl_FO!X$15 -> 4.092 | CD42: =+P42*KeyAssumptionsPriceControl_FO!Y$15 -> 5.58846486 | CE42: =+Q42*KeyAssumptionsPriceControl_FO!Z$15 -> 3.318857418 | CF42: =+R42*KeyAssumptionsPriceControl_FO!AA$15 -> 0.9857006531 | CG42: =+S42*KeyAssumptionsPriceControl_FO!AB$15 -> 0 | CH42: =+T42*KeyAssumptionsPriceControl_FO!AC$15 -> 0 | CI42: =+U42*KeyAssumptionsPriceControl_FO!AD$15 -> 0 | CJ42: =+V42*KeyAssumptionsPriceControl_FO!AE$15 -> 0 | CK42: =+W42*KeyAssumptionsPriceControl_FO!AF$15 -> 0 | CL42: =+X42*KeyAssumptionsPriceControl_FO!AG$15 -> 0 | CN42: =IF($M42=0,0, IF($M42<=0.5,CC42, IF($J42="straight line", IF((LEFT(CN$39,4)*1)-INT($M42)<LEFT($CN$39,4)*1,0,((OFFSET(CC42,0,-INT($M42+0.5),1,1))/$M42)*(IF($M42-INT($M42)>0.5,$M42-0.5-INT($M42),IF($M42-INT($M42)<=0.5,$M42-0.5-INT($M42)+1,0)))) +CC42/$M42*0.5, IF($J42="Declining Balance",-$CN$38,0)))) -> 0.05115 | CO42: =IF($M42=0,0, IF($M42<=0.5,CD42, IF(AND($J42="straight line",$M42<1.51),(CC42-((CC42/$M42)*0.5))+CD42/$M42*0.5, IF($J42="straight line", IF((LEFT(CO$39,4)*1)-INT($M42)<LEFT($CN$39,4)*1,0,((OFFSET(CD42,0,-INT($M42+0.5),1,1))/$M42)*(IF($M42-INT($M42)>0.5,$M42-0.5-INT($M42),IF($M42-INT($M42)<=0.5,$M42-0.5-INT($M42)+1,0)))) +CD42/$M42*0.5 +SUM(OFFSET(CD42,0,MAX(-INT($M42+(0.5-(10^-12))),-CO$40)+1,1,MIN(INT($M42+(0.5-(10^-12))),CO$40)-1))*1/$M42, IF($J42="Declining Balance",-$CN$38,0))))) -> 0.1721558107 | CP42: =IF($M42=0,0, IF($M42<=0.5,CE42, IF(AND($J42="straight line",$M42<1.51),(CD42-((CD42/$M42)*0.5))+CE42/$M42*0.5, IF($J42="straight line", IF((LEFT(CP$39,4)*1)-INT($M42)<LEFT($CN$39,4)*1,0,((OFFSET(CE42,0,-INT($M42+0.5),1,1))/$M42)*(IF($M42-INT($M42)>0.5,$M42-0.5-INT($M42),IF($M42-INT($M42)<=0.5,$M42-0.5-INT($M42)+1,0)))) +CE42/$M42*0.5 +SUM(OFFSET(CE42,0,MAX(-INT($M42+(0.5-(10^-12))),-CP$40)+1,1,MIN(INT($M42+(0.5-(10^-12))),CP$40)-1))*1/$M42, IF($J42="Declining Balance",-$CN$38,0))))) -> 0.2834973392 | CQ42: 0.3373043151 | CR42: 0.3496255733 | CS42: 0.3496255733 | CT42: 0.3496255733 | CU42: 0.3496255733 | CV42: 0.3496255733 | CW42: 0.3496255733
C43: Bendigo WRP sludge processing upgrades | E43: Sewerage | F43: Improvements / Compliance | G43: Treatment | H43: Top 10 Major Projects | I43: 0 | J43: Straight line | K43: 2024-25 | L43: 35 | M43: 40 | O43: 0 | P43: 0 | Q43: 0.5 | R43: 5.605 | S43: 4.995 | T43: 0 | U43: 0 | V43: 0 | W43: 0 | X43: 0 | Z43: 0 | AA43: 0 | AB43: 0 | AC43: 0 | AD43: 0 | AE43: 0 | AF43: 0 | AG43: 0 | AH43: 0 | AI43: 0 | AK43: 0 | AL43: 0 | AM43: 0 | AN43: 0 | AO43: 0 | AP43: 0 | AQ43: 0 | AR43: 0 | AS43: 0 | AT43: 0 | AV43: =+O43-Z43-AK43 -> 0 | AW43: 0 | AX43: 0.5 | AY43: 5.605 | AZ43: 4.995 | BA43: 0 | BB43: 0 | BC43: 0 | BD43: 0 | BE43: 0 | BG43: =IF($L43=0,0, IF($L43<=0.5,BR43, IF($J43="straight line", IF((LEFT(BG$39,4)*1)-INT($L43)<LEFT($BG$39,4)*1,0,((OFFSET(BR43,0,-INT($L43+0.5),1,1))/$L43)*(IF($L43-INT($L43)>0.5,$L43-0.5-INT($L43),IF($L43-INT($L43)<=0.5,$L43-0.5-INT($L43)+1,0)))) +BR43/$L43*0.5, IF($J43="Declining Balance",-$BG$38,0)))) -> 0 | BH43: =IF($L43=0,0, IF($L43<=0.5,BS43, IF(AND($J43="straight line",$L43<1.51),(BR43-((BR43/$L43)*0.5))+BS43/$L43*0.5, IF($J43="straight line", IF((LEFT(BH$39,4)*1)-INT($L43)<LEFT($BG$39,4)*1,0,((OFFSET(BS43,0,-INT($L43+0.5),1,1))/$L43)*(IF($L43-INT($L43)>0.5,$L43-0.5-INT($L43),IF($L43-INT($L43)<=0.5,$L43-0.5-INT($L43)+1,0)))) +BS43/$L43*0.5 +SUM(OFFSET(BS43,0,MAX(-INT($L43+(0.5-(10^-12))),-BH$40)+1,1,MIN(INT($L43+(0.5-(10^-12))),BH$40)-1))*1/$L43, IF($J43="Declining Balance",-$BG$38,0))))) -> 0 | BI43: 0 | BJ43: 0 | BK43: 0 | BL43: 0 | BM43: 0.1585714286 | BN43: 0.3171428571 | BO43: 0.3171428571 | BP43: 0.3171428571 | BR43: =+IF($K43="Ongoing",AV43,IF(RIGHT($K43,2)=RIGHT(BR$39,2),SUM($AV43:AV43),0)+IF(RIGHT(BR$39,2)>RIGHT($K43,2),AV43,0)) -> 0 | BS43: =+IF($K43="Ongoing",AW43,IF(RIGHT($K43,2)=RIGHT(BS$39,2),SUM($AV43:AW43),0)+IF(RIGHT(BS$39,2)>RIGHT($K43,2),AW43,0)) -> 0 | BT43: =+IF($K43="Ongoing",AX43,IF(RIGHT($K43,2)=RIGHT(BT$39,2),SUM($AV43:AX43),0)+IF(RIGHT(BT$39,2)>RIGHT($K43,2),AX43,0)) -> 0 | BU43: =+IF($K43="Ongoing",AY43,IF(RIGHT($K43,2)=RIGHT(BU$39,2),SUM($AV43:AY43),0)+IF(RIGHT(BU$39,2)>RIGHT($K43,2),AY43,0)) -> 0 | BV43: =+IF($K43="Ongoing",AZ43,IF(RIGHT($K43,2)=RIGHT(BV$39,2),SUM($AV43:AZ43),0)+IF(RIGHT(BV$39,2)>RIGHT($K43,2),AZ43,0)) -> 0 | BW43: =+IF($K43="Ongoing",BA43,IF(RIGHT($K43,2)=RIGHT(BW$39,2),SUM($AV43:BA43),0)+IF(RIGHT(BW$39,2)>RIGHT($K43,2),BA43,0)) -> 0 | BX43: =+IF($K43="Ongoing",BB43,IF(RIGHT($K43,2)=RIGHT(BX$39,2),SUM($AV43:BB43),0)+IF(RIGHT(BX$39,2)>RIGHT($K43,2),BB43,0)) -> 11.1 | BY43: =+IF($K43="Ongoing",BC43,IF(RIGHT($K43,2)=RIGHT(BY$39,2),SUM($AV43:BC43),0)+IF(RIGHT(BY$39,2)>RIGHT($K43,2),BC43,0)) -> 0 | BZ43: =+IF($K43="Ongoing",BD43,IF(RIGHT($K43,2)=RIGHT(BZ$39,2),SUM($AV43:BD43),0)+IF(RIGHT(BZ$39,2)>RIGHT($K43,2),BD43,0)) -> 0 | CA43: =+IF($K43="Ongoing",BE43,IF(RIGHT($K43,2)=RIGHT(CA$39,2),SUM($AV43:BE43),0)+IF(RIGHT(CA$39,2)>RIGHT($K43,2),BE43,0)) -> 0 | CC43: =+O43*KeyAssumptionsPriceControl_FO!X$15 -> 0 | CD43: =+P43*KeyAssumptionsPriceControl_FO!Y$15 -> 0 | CE43: =+Q43*KeyAssumptionsPriceControl_FO!Z$15 -> 0.5352995835 | CF43: =+R43*KeyAssumptionsPriceControl_FO!AA$15 -> 6.138724623 | CG43: =+S43*KeyAssumptionsPriceControl_FO!AB$15 -> 5.596463313 | CH43: =+T43*KeyAssumptionsPriceControl_FO!AC$15 -> 0 | CI43: =+U43*KeyAssumptionsPriceControl_FO!AD$15 -> 0 | CJ43: =+V43*KeyAssumptionsPriceControl_FO!AE$15 -> 0 | CK43: =+W43*KeyAssumptionsPriceControl_FO!AF$15 -> 0 | CL43: =+X43*KeyAssumptionsPriceControl_FO!AG$15 -> 0 | CN43: =IF($M43=0,0, IF($M43<=0.5,CC43, IF($J43="straight line", IF((LEFT(CN$39,4)*1)-INT($M43)<LEFT($CN$39,4)*1,0,((OFFSET(CC43,0,-INT($M43+0.5),1,1))/$M43)*(IF($M43-INT($M43)>0.5,$M43-0.5-INT($M43),IF($M43-INT($M43)<=0.5,$M43-0.5-INT($M43)+1,0)))) +CC43/$M43*0.5, IF($J43="Declining Balance",-$CN$38,0)))) -> 0 | CO43: =IF($M43=0,0, IF($M43<=0.5,CD43, IF(AND($J43="straight line",$M43<1.51),(CC43-((CC43/$M43)*0.5))+CD43/$M43*0.5, IF($J43="straight line", IF((LEFT(CO$39,4)*1)-INT($M43)<LEFT($CN$39,4)*1,0,((OFFSET(CD43,0,-INT($M43+0.5),1,1))/$M43)*(IF($M43-INT($M43)>0.5,$M43-0.5-INT($M43),IF($M43-INT($M43)<=0.5,$M43-0.5-INT($M43)+1,0)))) +CD43/$M43*0.5 +SUM(OFFSET(CD43,0,MAX(-INT($M43+(0.5-(10^-12))),-CO$40)+1,1,MIN(INT($M43+(0.5-(10^-12))),CO$40)-1))*1/$M43, IF($J43="Declining Balance",-$CN$38,0))))) -> 0 | CP43: 0.006691244794 | CQ43: 0.09011654737 | CR43: 0.2368063966 | CS43: 0.306762188 | CT43: 0.306762188 | CU43: 0.306762188 | CV43: 0.306762188 | CW43: 0.306762188
C44: Strathfieldsaye water network augmentation | E44: Water | F44: Growth | G44: Pipelines/network | H44: Top 10 Major Projects | I44: 0 | J44: Straight line | K44: 2022-23 | L44: 80 | M44: 40 | O44: 0.1 | P44: 5 | Q44: 3.56 | R44: 0.45 | S44: 0 | T44: 0 | U44: 0 | V44: 0 | W44: 0 | X44: 0 | Z44: 0 | AA44: 0 | AB44: 0 | AC44: 0 | AD44: 0 | AE44: 0 | AF44: 0 | AG44: 0 | AH44: 0 | AI44: 0 | AK44: 0 | AL44: 0 | AM44: 0 | AN44: 0 | AO44: 0 | AP44: 0 | AQ44: 0 | AR44: 0 | AS44: 0 | AT44: 0 | AV44: 0.1 | AW44: 5 | AX44: 3.56 | AY44: 0.45 | AZ44: 0 | BA44: 0 | BB44: 0 | BC44: 0 | BD44: 0 | BE44: 0 | BG44: 0 | BH44: 0 | BI44: 0 | BJ44: 0 | BK44: 0.0569375 | BL44: 0.113875 | BM44: 0.113875 | BN44: 0.113875 | BO44: 0.113875 | BP44: 0.113875 | BR44: =+IF($K44="Ongoing",AV44,IF(RIGHT($K44,2)=RIGHT(BR$39,2),SUM($AV44:AV44),0)+IF(RIGHT(BR$39,2)>RIGHT($K44,2),AV44,0)) -> 0 | BS44: =+IF($K44="Ongoing",AW44,IF(RIGHT($K44,2)=RIGHT(BS$39,2),SUM($AV44:AW44),0)+IF(RIGHT(BS$39,2)>RIGHT($K44,2),AW44,0)) -> 0 | BT44: =+IF($K44="Ongoing",AX44,IF(RIGHT($K44,2)=RIGHT(BT$39,2),SUM($AV44:AX44),0)+IF(RIGHT(BT$39,2)>RIGHT($K44,2),AX44,0)) -> 0 | BU44: =+IF($K44="Ongoing",AY44,IF(RIGHT($K44,2)=RIGHT(BU$39,2),SUM($AV44:AY44),0)+IF(RIGHT(BU$39,2)>RIGHT($K44,2),AY44,0)) -> 0 | BV44: =+IF($K44="Ongoing",AZ44,IF(RIGHT($K44,2)=RIGHT(BV$39,2),SUM($AV44:AZ44),0)+IF(RIGHT(BV$39,2)>RIGHT($K44,2),AZ44,0)) -> 9.11 | BW44: =+IF($K44="Ongoing",BA44,IF(RIGHT($K44,2)=RIGHT(BW$39,2),SUM($AV44:BA44),0)+IF(RIGHT(BW$39,2)>RIGHT($K44,2),BA44,0)) -> 0 | BX44: =+IF($K44="Ongoing",BB44,IF(RIGHT($K44,2)=RIGHT(BX$39,2),SUM($AV44:BB44),0)+IF(RIGHT(BX$39,2)>RIGHT($K44,2),BB44,0)) -> 0 | BY44: =+IF($K44="Ongoing",BC44,IF(RIGHT($K44,2)=RIGHT(BY$39,2),SUM($AV44:BC44),0)+IF(RIGHT(BY$39,2)>RIGHT($K44,2),BC44,0)) -> 0 | BZ44: =+IF($K44="Ongoing",BD44,IF(RIGHT($K44,2)=RIGHT(BZ$39,2),SUM($AV44:BD44),0)+IF(RIGHT(BZ$39,2)>RIGHT($K44,2),BD44,0)) -> 0 | CA44: =+IF($K44="Ongoing",BE44,IF(RIGHT($K44,2)=RIGHT(CA$39,2),SUM($AV44:BE44),0)+IF(RIGHT(CA$39,2)>RIGHT($K44,2),BE44,0)) -> 0 | CC44: =+O44*KeyAssumptionsPriceControl_FO!X$15 -> 0.1023 | CD44: =+P44*KeyAssumptionsPriceControl_FO!Y$15 -> 5.232645 | CE44: =+Q44*KeyAssumptionsPriceControl_FO!Z$15 -> 3.811333035 | CF44: =+R44*KeyAssumptionsPriceControl_FO!AA$15 -> 0.4928503265 | CG44: =+S44*KeyAssumptionsPriceControl_FO!AB$15 -> 0 | CH44: =+T44*KeyAssumptionsPriceControl_FO!AC$15 -> 0 | CI44: =+U44*KeyAssumptionsPriceControl_FO!AD$15 -> 0 | CJ44: =+V44*KeyAssumptionsPriceControl_FO!AE$15 -> 0 | CK44: =+W44*KeyAssumptionsPriceControl_FO!AF$15 -> 0 | CL44: =+X44*KeyAssumptionsPriceControl_FO!AG$15 -> 0 | CN44: 0.00127875 | CO44: 0.0679655625 | CP44: 0.1810152879 | CQ44: 0.2348175799 | CR44: 0.240978209 | CS44: 0.240978209 | CT44: 0.240978209 | CU44: 0.240978209 | CV44: 0.240978209 | CW44: 0.240978209
C45: Kyneton WRP lagoon compliance works | E45: Sewerage | F45: Improvements / Compliance | G45: Treatment | H45: Top 10 Major Projects | I45: 0 | J45: Straight line | K45: 2021-22 | L45: 70 | M45: 40 | O45: 2 | P45: 0.1 | Q45: 3.2 | R45: 1.5 | S45: 0 | T45: 0 | U45: 0 | V45: 0 | W45: 0 | X45: 0 | Z45: 0 | AA45: 0 | AB45: 0 | AC45: 0 | AD45: 0 | AE45: 0 | AF45: 0 | AG45: 0 | AH45: 0 | AI45: 0 | AK45: 0 | AL45: 0 | AM45: 0 | AN45: 0 | AO45: 0 | AP45: 0 | AQ45: 0 | AR45: 0 | AS45: 0 | AT45: 0 | AV45: 2 | AW45: 0.1 | AX45: 3.2 | AY45: 1.5 | AZ45: 0 | BA45: 0 | BB45: 0 | BC45: 0 | BD45: 0 | BE45: 0 | BG45: 0 | BH45: 0 | BI45: 0 | BJ45: 0.04857142857 | BK45: 0.09714285714 | BL45: 0.09714285714 | BM45: 0.09714285714 | BN45: 0.09714285714 | BO45: 0.09714285714 | BP45: 0.09714285714 | BR45: =+IF($K45="Ongoing",AV45,IF(RIGHT($K45,2)=RIGHT(BR$39,2),SUM($AV45:AV45),0)+IF(RIGHT(BR$39,2)>RIGHT($K45,2),AV45,0)) -> 0 | BS45: =+IF($K45="Ongoing",AW45,IF(RIGHT($K45,2)=RIGHT(BS$39,2),SUM($AV45:AW45),0)+IF(RIGHT(BS$39,2)>RIGHT($K45,2),AW45,0)) -> 0 | BT45: =+IF($K45="Ongoing",AX45,IF(RIGHT($K45,2)=RIGHT(BT$39,2),SUM($AV45:AX45),0)+IF(RIGHT(BT$39,2)>RIGHT($K45,2),AX45,0)) -> 0 | BU45: =+IF($K45="Ongoing",AY45,IF(RIGHT($K45,2)=RIGHT(BU$39,2),SUM($AV45:AY45),0)+IF(RIGHT(BU$39,2)>RIGHT($K45,2),AY45,0)) -> 6.8 | BV45: =+IF($K45="Ongoing",AZ45,IF(RIGHT($K45,2)=RIGHT(BV$39,2),SUM($AV45:AZ45),0)+IF(RIGHT(BV$39,2)>RIGHT($K45,2),AZ45,0)) -> 0 | BW45: =+IF($K45="Ongoing",BA45,IF(RIGHT($K45,2)=RIGHT(BW$39,2),SUM($AV45:BA45),0)+IF(RIGHT(BW$39,2)>RIGHT($K45,2),BA45,0)) -> 0 | BX45: =+IF($K45="Ongoing",BB45,IF(RIGHT($K45,2)=RIGHT(BX$39,2),SUM($AV45:BB45),0)+IF(RIGHT(BX$39,2)>RIGHT($K45,2),BB45,0)) -> 0 | BY45: =+IF($K45="Ongoing",BC45,IF(RIGHT($K45,2)=RIGHT(BY$39,2),SUM($AV45:BC45),0)+IF(RIGHT(BY$39,2)>RIGHT($K45,2),BC45,0)) -> 0 | BZ45: =+IF($K45="Ongoing",BD45,IF(RIGHT($K45,2)=RIGHT(BZ$39,2),SUM($AV45:BD45),0)+IF(RIGHT(BZ$39,2)>RIGHT($K45,2),BD45,0)) -> 0 | CA45: =+IF($K45="Ongoing",BE45,IF(RIGHT($K45,2)=RIGHT(CA$39,2),SUM($AV45:BE45),0)+IF(RIGHT(CA$39,2)>RIGHT($K45,2),BE45,0)) -> 0 | CC45: =+O45*KeyAssumptionsPriceControl_FO!X$15 -> 2.046 | CD45: =+P45*KeyAssumptionsPriceControl_FO!Y$15 -> 0.1046529 | CE45: =+Q45*KeyAssumptionsPriceControl_FO!Z$15 -> 3.425917334 | CF45: =+R45*KeyAssumptionsPriceControl_FO!AA$15 -> 1.642834422 | CG45: =+S45*KeyAssumptionsPriceControl_FO!AB$15 -> 0 | CH45: =+T45*KeyAssumptionsPriceControl_FO!AC$15 -> 0 | CI45: =+U45*KeyAssumptionsPriceControl_FO!AD$15 -> 0 | CJ45: =+V45*KeyAssumptionsPriceControl_FO!AE$15 -> 0 | CK45: =+W45*KeyAssumptionsPriceControl_FO!AF$15 -> 0 | CL45: =+X45*KeyAssumptionsPriceControl_FO!AG$15 -> 0 | CN45: 0.025575 | CO45: 0.05245816125 | CP45: 0.09659028918 | CQ45: 0.1599496861 | CR45: 0.1804851164 | CS45: 0.1804851164 | CT45: 0.1804851164 | CU45: 0.1804851164 | CV45: 0.1804851164 | CW45: 0.1804851164
C46: Castlemaine WRP sludge handling upgrades | E46: Sewerage | F46: Improvements / Compliance | G46: Treatment | H46: Top 10 Major Projects | I46: 0 | J46: Straight line | K46: 2023-24 | L46: 25 | M46: 40 | O46: 0 | P46: 0 | Q46: 0.1 | R46: 1.7 | S46: 3.8 | T46: 0 | U46: 0 | V46: 0 | W46: 0 | X46: 0 | Z46: 0 | AA46: 0 | AB46: 0 | AC46: 0 | AD46: 0 | AE46: 0 | AF46: 0 | AG46: 0 | AH46: 0 | AI46: 0 | AK46: 0 | AL46: 0 | AM46: 0 | AN46: 0 | AO46: 0 | AP46: 0 | AQ46: 0 | AR46: 0 | AS46: 0 | AT46: 0 | AV46: 0 | AW46: 0 | AX46: 0.1 | AY46: 1.7 | AZ46: 3.8 | BA46: 0 | BB46: 0 | BC46: 0 | BD46: 0 | BE46: 0 | BG46: 0 | BH46: 0 | BI46: 0 | BJ46: 0 | BK46: 0 | BL46: 0.112 | BM46: 0.224 | BN46: 0.224 | BO46: 0.224 | BP46: 0.224 | BR46: =+IF($K46="Ongoing",AV46,IF(RIGHT($K46,2)=RIGHT(BR$39,2),SUM($AV46:AV46),0)+IF(RIGHT(BR$39,2)>RIGHT($K46,2),AV46,0)) -> 0 | BS46: =+IF($K46="Ongoing",AW46,IF(RIGHT($K46,2)=RIGHT(BS$39,2),SUM($AV46:AW46),0)+IF(RIGHT(BS$39,2)>RIGHT($K46,2),AW46,0)) -> 0 | BT46: =+IF($K46="Ongoing",AX46,IF(RIGHT($K46,2)=RIGHT(BT$39,2),SUM($AV46:AX46),0)+IF(RIGHT(BT$39,2)>RIGHT($K46,2),AX46,0)) -> 0 | BU46: =+IF($K46="Ongoing",AY46,IF(RIGHT($K46,2)=RIGHT(BU$39,2),SUM($AV46:AY46),0)+IF(RIGHT(BU$39,2)>RIGHT($K46,2),AY46,0)) -> 0 | BV46: =+IF($K46="Ongoing",AZ46,IF(RIGHT($K46,2)=RIGHT(BV$39,2),SUM($AV46:AZ46),0)+IF(RIGHT(BV$39,2)>RIGHT($K46,2),AZ46,0)) -> 0 | BW46: =+IF($K46="Ongoing",BA46,IF(RIGHT($K46,2)=RIGHT(BW$39,2),SUM($AV46:BA46),0)+IF(RIGHT(BW$39,2)>RIGHT($K46,2),BA46,0)) -> 5.6 | BX46: =+IF($K46="Ongoing",BB46,IF(RIGHT($K46,2)=RIGHT(BX$39,2),SUM($AV46:BB46),0)+IF(RIGHT(BX$39,2)>RIGHT($K46,2),BB46,0)) -> 0 | BY46: =+IF($K46="Ongoing",BC46,IF(RIGHT($K46,2)=RIGHT(BY$39,2),SUM($AV46:BC46),0)+IF(RIGHT(BY$39,2)>RIGHT($K46,2),BC46,0)) -> 0 | BZ46: =+IF($K46="Ongoing",BD46,IF(RIGHT($K46,2)=RIGHT(BZ$39,2),SUM($AV46:BD46),0)+IF(RIGHT(BZ$39,2)>RIGHT($K46,2),BD46,0)) -> 0 | CA46: =+IF($K46="Ongoing",BE46,IF(RIGHT($K46,2)=RIGHT(CA$39,2),SUM($AV46:BE46),0)+IF(RIGHT(CA$39,2)>RIGHT($K46,2),BE46,0)) -> 0 | CC46: =+O46*KeyAssumptionsPriceControl_FO!X$15 -> 0 | CD46: =+P46*KeyAssumptionsPriceControl_FO!Y$15 -> 0 | CE46: =+Q46*KeyAssumptionsPriceControl_FO!Z$15 -> 0.1070599167 | CF46: =+R46*KeyAssumptionsPriceControl_FO!AA$15 -> 1.861879011 | CG46: =+S46*KeyAssumptionsPriceControl_FO!AB$15 -> 4.257569687 | CH46: =+T46*KeyAssumptionsPriceControl_FO!AC$15 -> 0 | CI46: =+U46*KeyAssumptionsPriceControl_FO!AD$15 -> 0 | CJ46: =+V46*KeyAssumptionsPriceControl_FO!AE$15 -> 0 | CK46: =+W46*KeyAssumptionsPriceControl_FO!AF$15 -> 0 | CL46: =+X46*KeyAssumptionsPriceControl_FO!AG$15 -> 0 | CN46: 0 | CO46: 0 | CP46: 0.001338248959 | CQ46: 0.02594998556 | CR46: 0.1024430943 | CS46: 0.1556627154 | CT46: 0.1556627154 | CU46: 0.1556627154 | CV46: 0.1556627154 | CW46: 0.1556627154
C47: Digital customer metering | E47: Water | F47: Improvements / Compliance | G47: Pipelines/network | H47: Top 10 Major Projects | I47: 0 | J47: Straight line | K47: Ongoing | L47: 10 | M47: 40 | O47: 0.9776055125 | P47: 1.05081826 | Q47: 0.9905254091 | R47: 0.9905254091 | S47: 0.9905254091 | T47: 0 | U47: 0 | V47: 0 | W47: 0 | X47: 0 | Z47: 0 | AA47: 0 | AB47: 0 | AC47: 0 | AD47: 0 | AE47: 0 | AF47: 0 | AG47: 0 | AH47: 0 | AI47: 0 | AK47: 0 | AL47: 0 | AM47: 0 | AN47: 0 | AO47: 0 | AP47: 0 | AQ47: 0 | AR47: 0 | AS47: 0 | AT47: 0 | AV47: 0.9776055125 | AW47: 1.05081826 | AX47: 0.9905254091 | AY47: 0.9905254091 | AZ47: 0.9905254091 | BA47: 0 | BB47: 0 | BC47: 0 | BD47: 0 | BE47: 0 | BG47: 0.04888027562 | BH47: 0.1503014643 | BI47: 0.2523686477 | BJ47: 0.3514211886 | BK47: 0.4504737295 | BL47: 0.5 | BM47: 0.5 | BN47: 0.5 | BO47: 0.5 | BP47: 0.5 | BR47: =+IF($K47="Ongoing",AV47,IF(RIGHT($K47,2)=RIGHT(BR$39,2),SUM($AV47:AV47),0)+IF(RIGHT(BR$39,2)>RIGHT($K47,2),AV47,0)) -> 0.9776055125 | BS47: =+IF($K47="Ongoing",AW47,IF(RIGHT($K47,2)=RIGHT(BS$39,2),SUM($AV47:AW47),0)+IF(RIGHT(BS$39,2)>RIGHT($K47,2),AW47,0)) -> 1.05081826 | BT47: =+IF($K47="Ongoing",AX47,IF(RIGHT($K47,2)=RIGHT(BT$39,2),SUM($AV47:AX47),0)+IF(RIGHT(BT$39,2)>RIGHT($K47,2),AX47,0)) -> 0.9905254091 | BU47: =+IF($K47="Ongoing",AY47,IF(RIGHT($K47,2)=RIGHT(BU$39,2),SUM($AV47:AY47),0)+IF(RIGHT(BU$39,2)>RIGHT($K47,2),AY47,0)) -> 0.9905254091 | BV47: =+IF($K47="Ongoing",AZ47,IF(RIGHT($K47,2)=RIGHT(BV$39,2),SUM($AV47:AZ47),0)+IF(RIGHT(BV$39,2)>RIGHT($K47,2),AZ47,0)) -> 0.9905254091 | BW47: =+IF($K47="Ongoing",BA47,IF(RIGHT($K47,2)=RIGHT(BW$39,2),SUM($AV47:BA47),0)+IF(RIGHT(BW$39,2)>RIGHT($K47,2),BA47,0)) -> 0 | BX47: =+IF($K47="Ongoing",BB47,IF(RIGHT($K47,2)=RIGHT(BX$39,2),SUM($AV47:BB47),0)+IF(RIGHT(BX$39,2)>RIGHT($K47,2),BB47,0)) -> 0 | BY47: =+IF($K47="Ongoing",BC47,IF(RIGHT($K47,2)=RIGHT(BY$39,2),SUM($AV47:BC47),0)+IF(RIGHT(BY$39,2)>RIGHT($K47,2),BC47,0)) -> 0 | BZ47: =+IF($K47="Ongoing",BD47,IF(RIGHT($K47,2)=RIGHT(BZ$39,2),SUM($AV47:BD47),0)+IF(RIGHT(BZ$39,2)>RIGHT($K47,2),BD47,0)) -> 0 | CA47: =+IF($K47="Ongoing",BE47,IF(RIGHT($K47,2)=RIGHT(CA$39,2),SUM($AV47:BE47),0)+IF(RIGHT(CA$39,2)>RIGHT($K47,2),BE47,0)) -> 0 | CC47: =+O47*KeyAssumptionsPriceControl_FO!X$15 -> 1.000090439 | CD47: =+P47*KeyAssumptionsPriceControl_FO!Y$15 -> 1.099711783 | CE47: =+Q47*KeyAssumptionsPriceControl_FO!Z$15 -> 1.060455678 | CF47: =+R47*KeyAssumptionsPriceControl_FO!AA$15 -> 1.084846158 | CG47: =+S47*KeyAssumptionsPriceControl_FO!AB$15 -> 1.10979762 | CH47: =+T47*KeyAssumptionsPriceControl_FO!AC$15 -> 0 | CI47: =+U47*KeyAssumptionsPriceControl_FO!AD$15 -> 0 | CJ47: =+V47*KeyAssumptionsPriceControl_FO!AE$15 -> 0 | CK47: =+W47*KeyAssumptionsPriceControl_FO!AF$15 -> 0 | CL47: =+X47*KeyAssumptionsPriceControl_FO!AG$15 -> 0 | CN47: 0.01250113049 | CO47: 0.03874865827 | CP47: 0.06575075153 | CQ47: 0.09256702448 | CR47: 0.1200000717 | CS47: 0.133872542 | CT47: 0.133872542 | CU47: 0.133872542 | CV47: 0.133872542 | CW47: 0.133872542
C48: Echuca West tank | E48: Water | F48: Growth | G48: Pipelines/network | H48: Top 10 Major Projects | I48: 0 | J48: Straight line | K48: 2022-23 | L48: 70 | M48: 40 | O48: 0 | P48: 0.07 | Q48: 2.646 | R48: 1.5 | S48: 0 | T48: 0 | U48: 0 | V48: 0 | W48: 0 | X48: 0 | Z48: 0 | AA48: 0 | AB48: 0 | AC48: 0 | AD48: 0 | AE48: 0 | AF48: 0 | AG48: 0 | AH48: 0 | AI48: 0 | AK48: 0 | AL48: 0 | AM48: 0 | AN48: 0 | AO48: 0 | AP48: 0 | AQ48: 0 | AR48: 0 | AS48: 0 | AT48: 0 | AV48: 0 | AW48: 0.07 | AX48: 2.646 | AY48: 1.5 | AZ48: 0 | BA48: 0 | BB48: 0 | BC48: 0 | BD48: 0 | BE48: 0 | BG48: 0 | BH48: 0 | BI48: 0 | BJ48: 0 | BK48: 0.03011428571 | BL48: 0.06022857143 | BM48: 0.06022857143 | BN48: 0.06022857143 | BO48: 0.06022857143 | BP48: 0.06022857143 | BR48: =+IF($K48="Ongoing",AV48,IF(RIGHT($K48,2)=RIGHT(BR$39,2),SUM($AV48:AV48),0)+IF(RIGHT(BR$39,2)>RIGHT($K48,2),AV48,0)) -> 0 | BS48: =+IF($K48="Ongoing",AW48,IF(RIGHT($K48,2)=RIGHT(BS$39,2),SUM($AV48:AW48),0)+IF(RIGHT(BS$39,2)>RIGHT($K48,2),AW48,0)) -> 0 | BT48: =+IF($K48="Ongoing",AX48,IF(RIGHT($K48,2)=RIGHT(BT$39,2),SUM($AV48:AX48),0)+IF(RIGHT(BT$39,2)>RIGHT($K48,2),AX48,0)) -> 0 | BU48: =+IF($K48="Ongoing",AY48,IF(RIGHT($K48,2)=RIGHT(BU$39,2),SUM($AV48:AY48),0)+IF(RIGHT(BU$39,2)>RIGHT($K48,2),AY48,0)) -> 0 | BV48: =+IF($K48="Ongoing",AZ48,IF(RIGHT($K48,2)=RIGHT(BV$39,2),SUM($AV48:AZ48),0)+IF(RIGHT(BV$39,2)>RIGHT($K48,2),AZ48,0)) -> 4.216 | BW48: =+IF($K48="Ongoing",BA48,IF(RIGHT($K48,2)=RIGHT(BW$39,2),SUM($AV48:BA48),0)+IF(RIGHT(BW$39,2)>RIGHT($K48,2),BA48,0)) -> 0 | BX48: =+IF($K48="Ongoing",BB48,IF(RIGHT($K48,2)=RIGHT(BX$39,2),SUM($AV48:BB48),0)+IF(RIGHT(BX$39,2)>RIGHT($K48,2),BB48,0)) -> 0 | BY48: =+IF($K48="Ongoing",BC48,IF(RIGHT($K48,2)=RIGHT(BY$39,2),SUM($AV48:BC48),0)+IF(RIGHT(BY$39,2)>RIGHT($K48,2),BC48,0)) -> 0 | BZ48: =+IF($K48="Ongoing",BD48,IF(RIGHT($K48,2)=RIGHT(BZ$39,2),SUM($AV48:BD48),0)+IF(RIGHT(BZ$39,2)>RIGHT($K48,2),BD48,0)) -> 0 | CA48: =+IF($K48="Ongoing",BE48,IF(RIGHT($K48,2)=RIGHT(CA$39,2),SUM($AV48:BE48),0)+IF(RIGHT(CA$39,2)>RIGHT($K48,2),BE48,0)) -> 0 | CC48: =+O48*KeyAssumptionsPriceControl_FO!X$15 -> 0 | CD48: =+P48*KeyAssumptionsPriceControl_FO!Y$15 -> 0.07325703 | CE48: =+Q48*KeyAssumptionsPriceControl_FO!Z$15 -> 2.832805396 | CF48: =+R48*KeyAssumptionsPriceControl_FO!AA$15 -> 1.642834422 | CG48: =+S48*KeyAssumptionsPriceControl_FO!AB$15 -> 0 | CH48: =+T48*KeyAssumptionsPriceControl_FO!AC$15 -> 0 | CI48: =+U48*KeyAssumptionsPriceControl_FO!AD$15 -> 0 | CJ48: =+V48*KeyAssumptionsPriceControl_FO!AE$15 -> 0 | CK48: =+W48*KeyAssumptionsPriceControl_FO!AF$15 -> 0 | CL48: =+X48*KeyAssumptionsPriceControl_FO!AG$15 -> 0 | CN48: 0 | CO48: 0.000915712875 | CP48: 0.0372414932 | CQ48: 0.09318699092 | CR48: 0.1137224212 | CS48: 0.1137224212 | CT48: 0.1137224212 | CU48: 0.1137224212 | CV48: 0.1137224212 | CW48: 0.1137224212
C49: Heathcote WRP compliance | E49: Recycled Water | F49: Improvements / Compliance | G49: Treatment | H49: Top 10 Major Projects | I49: 0 | J49: Straight line | K49: 2022-23 | L49: 70 | M49: 40 | O49: 1.6 | P49: 0.59 | Q49: 0 | R49: 1.85 | S49: 0 | T49: 0 | U49: 0 | V49: 0 | W49: 0 | X49: 0 | Z49: 0 | AA49: 0 | AB49: 0 | AC49: 0 | AD49: 0 | AE49: 0 | AF49: 0 | AG49: 0 | AH49: 0 | AI49: 0 | AK49: 0 | AL49: 0 | AM49: 0 | AN49: 0 | AO49: 0 | AP49: 0 | AQ49: 0 | AR49: 0 | AS49: 0 | AT49: 0 | AV49: 1.6 | AW49: 0.59 | AX49: 0 | AY49: 1.85 | AZ49: 0 | BA49: 0 | BB49: 0 | BC49: 0 | BD49: 0 | BE49: 0 | BG49: 0 | BH49: 0 | BI49: 0 | BJ49: 0 | BK49: 0.02885714286 | BL49: 0.05771428571 | BM49: 0.05771428571 | BN49: 0.05771428571 | BO49: 0.05771428571 | BP49: 0.05771428571 | BR49: =+IF($K49="Ongoing",AV49,IF(RIGHT($K49,2)=RIGHT(BR$39,2),SUM($AV49:AV49),0)+IF(RIGHT(BR$39,2)>RIGHT($K49,2),AV49,0)) -> 0 | BS49: =+IF($K49="Ongoing",AW49,IF(RIGHT($K49,2)=RIGHT(BS$39,2),SUM($AV49:AW49),0)+IF(RIGHT(BS$39,2)>RIGHT($K49,2),AW49,0)) -> 0 | BT49: =+IF($K49="Ongoing",AX49,IF(RIGHT($K49,2)=RIGHT(BT$39,2),SUM($AV49:AX49),0)+IF(RIGHT(BT$39,2)>RIGHT($K49,2),AX49,0)) -> 0 | BU49: =+IF($K49="Ongoing",AY49,IF(RIGHT($K49,2)=RIGHT(BU$39,2),SUM($AV49:AY49),0)+IF(RIGHT(BU$39,2)>RIGHT($K49,2),AY49,0)) -> 0 | BV49: =+IF($K49="Ongoing",AZ49,IF(RIGHT($K49,2)=RIGHT(BV$39,2),SUM($AV49:AZ49),0)+IF(RIGHT(BV$39,2)>RIGHT($K49,2),AZ49,0)) -> 4.04 | BW49: =+IF($K49="Ongoing",BA49,IF(RIGHT($K49,2)=RIGHT(BW$39,2),SUM($AV49:BA49),0)+IF(RIGHT(BW$39,2)>RIGHT($K49,2),BA49,0)) -> 0 | BX49: =+IF($K49="Ongoing",BB49,IF(RIGHT($K49,2)=RIGHT(BX$39,2),SUM($AV49:BB49),0)+IF(RIGHT(BX$39,2)>RIGHT($K49,2),BB49,0)) -> 0 | BY49: =+IF($K49="Ongoing",BC49,IF(RIGHT($K49,2)=RIGHT(BY$39,2),SUM($AV49:BC49),0)+IF(RIGHT(BY$39,2)>RIGHT($K49,2),BC49,0)) -> 0 | BZ49: =+IF($K49="Ongoing",BD49,IF(RIGHT($K49,2)=RIGHT(BZ$39,2),SUM($AV49:BD49),0)+IF(RIGHT(BZ$39,2)>RIGHT($K49,2),BD49,0)) -> 0 | CA49: =+IF($K49="Ongoing",BE49,IF(RIGHT($K49,2)=RIGHT(CA$39,2),SUM($AV49:BE49),0)+IF(RIGHT(CA$39,2)>RIGHT($K49,2),BE49,0)) -> 0 | CC49: =+O49*KeyAssumptionsPriceControl_FO!X$15 -> 1.6368 | CD49: =+P49*KeyAssumptionsPriceControl_FO!Y$15 -> 0.61745211 | CE49: =+Q49*KeyAssumptionsPriceControl_FO!Z$15 -> 0 | CF49: =+R49*KeyAssumptionsPriceControl_FO!AA$15 -> 2.026162454 | CG49: =+S49*KeyAssumptionsPriceControl_FO!AB$15 -> 0 | CH49: =+T49*KeyAssumptionsPriceControl_FO!AC$15 -> 0 | CI49: =+U49*KeyAssumptionsPriceControl_FO!AD$15 -> 0 | CJ49: =+V49*KeyAssumptionsPriceControl_FO!AE$15 -> 0 | CK49: =+W49*KeyAssumptionsPriceControl_FO!AF$15 -> 0 | CL49: =+X49*KeyAssumptionsPriceControl_FO!AG$15 -> 0 | CN49: 0.02046 | CO49: 0.04863815137 | CP49: 0.05635630275 | CQ49: 0.08168333342 | CR49: 0.1070103641 | CS49: 0.1070103641 | CT49: 0.1070103641 | CU49: 0.1070103641 | CV49: 0.1070103641 | CW49: 0.1070103641
C50: Echuca WTP security of supply | E50: Water | F50: Growth | G50: Pipelines/network | H50: Top 10 Major Projects | I50: 0 | J50: Straight line | K50: 2023-24 | L50: 70 | M50: 40 | O50: 0.05 | P50: 0 | Q50: 0 | R50: 0.562 | S50: 2.248 | T50: 0 | U50: 0 | V50: 0 | W50: 0 | X50: 0 | Z50: 0 | AA50: 0 | AB50: 0 | AC50: 0 | AD50: 0 | AE50: 0 | AF50: 0 | AG50: 0 | AH50: 0 | AI50: 0 | AK50: 0 | AL50: 0 | AM50: 0 | AN50: 0 | AO50: 0 | AP50: 0 | AQ50: 0 | AR50: 0 | AS50: 0 | AT50: 0 | AV50: 0.05 | AW50: 0 | AX50: 0 | AY50: 0.562 | AZ50: 2.248 | BA50: 0 | BB50: 0 | BC50: 0 | BD50: 0 | BE50: 0 | BG50: 0 | BH50: 0 | BI50: 0 | BJ50: 0 | BK50: 0 | BL50: 0.02042857143 | BM50: 0.04085714286 | BN50: 0.04085714286 | BO50: 0.04085714286 | BP50: 0.04085714286 | BR50: =+IF($K50="Ongoing",AV50,IF(RIGHT($K50,2)=RIGHT(BR$39,2),SUM($AV50:AV50),0)+IF(RIGHT(BR$39,2)>RIGHT($K50,2),AV50,0)) -> 0 | BS50: =+IF($K50="Ongoing",AW50,IF(RIGHT($K50,2)=RIGHT(BS$39,2),SUM($AV50:AW50),0)+IF(RIGHT(BS$39,2)>RIGHT($K50,2),AW50,0)) -> 0 | BT50: =+IF($K50="Ongoing",AX50,IF(RIGHT($K50,2)=RIGHT(BT$39,2),SUM($AV50:AX50),0)+IF(RIGHT(BT$39,2)>RIGHT($K50,2),AX50,0)) -> 0 | BU50: =+IF($K50="Ongoing",AY50,IF(RIGHT($K50,2)=RIGHT(BU$39,2),SUM($AV50:AY50),0)+IF(RIGHT(BU$39,2)>RIGHT($K50,2),AY50,0)) -> 0 | BV50: =+IF($K50="Ongoing",AZ50,IF(RIGHT($K50,2)=RIGHT(BV$39,2),SUM($AV50:AZ50),0)+IF(RIGHT(BV$39,2)>RIGHT($K50,2),AZ50,0)) -> 0 | BW50: =+IF($K50="Ongoing",BA50,IF(RIGHT($K50,2)=RIGHT(BW$39,2),SUM($AV50:BA50),0)+IF(RIGHT(BW$39,2)>RIGHT($K50,2),BA50,0)) -> 2.86 | BX50: =+IF($K50="Ongoing",BB50,IF(RIGHT($K50,2)=RIGHT(BX$39,2),SUM($AV50:BB50),0)+IF(RIGHT(BX$39,2)>RIGHT($K50,2),BB50,0)) -> 0 | BY50: =+IF($K50="Ongoing",BC50,IF(RIGHT($K50,2)=RIGHT(BY$39,2),SUM($AV50:BC50),0)+IF(RIGHT(BY$39,2)>RIGHT($K50,2),BC50,0)) -> 0 | BZ50: =+IF($K50="Ongoing",BD50,IF(RIGHT($K50,2)=RIGHT(BZ$39,2),SUM($AV50:BD50),0)+IF(RIGHT(BZ$39,2)>RIGHT($K50,2),BD50,0)) -> 0 | CA50: =+IF($K50="Ongoing",BE50,IF(RIGHT($K50,2)=RIGHT(CA$39,2),SUM($AV50:BE50),0)+IF(RIGHT(CA$39,2)>RIGHT($K50,2),BE50,0)) -> 0 | CC50: =+O50*KeyAssumptionsPriceControl_FO!X$15 -> 0.05115 | CD50: =+P50*KeyAssumptionsPriceControl_FO!Y$15 -> 0 | CE50: =+Q50*KeyAssumptionsPriceControl_FO!Z$15 -> 0 | CF50: =+R50*KeyAssumptionsPriceControl_FO!AA$15 -> 0.6155152967 | CG50: =+S50*KeyAssumptionsPriceControl_FO!AB$15 -> 2.518688594 | CH50: =+T50*KeyAssumptionsPriceControl_FO!AC$15 -> 0 | CI50: =+U50*KeyAssumptionsPriceControl_FO!AD$15 -> 0 | CJ50: =+V50*KeyAssumptionsPriceControl_FO!AE$15 -> 0 | CK50: =+W50*KeyAssumptionsPriceControl_FO!AF$15 -> 0 | CL50: =+X50*KeyAssumptionsPriceControl_FO!AG$15 -> 0 | CN50: 0.000639375 | CO50: 0.00127875 | CP50: 0.00127875 | CQ50: 0.008972691209 | CR50: 0.04815023984 | CS50: 0.07963384727 | CT50: 0.07963384727 | CU50: 0.07963384727 | CV50: 0.07963384727 | CW50: 0.07963384727
C51: Epsom Huntly water main augmentation | E51: Water | F51: Growth | G51: Pipelines/network | H51: Top 10 Major Projects | I51: 0 | J51: Straight line | K51: 2023-24 | L51: 80 | M51: 40 | O51: 0 | P51: 0 | Q51: 0.1 | R51: 0 | S51: 2.52 | T51: 0 | U51: 0 | V51: 0 | W51: 0 | X51: 0 | Z51: 0 | AA51: 0 | AB51: 0 | AC51: 0 | AD51: 0 | AE51: 0 | AF51: 0 | AG51: 0 | AH51: 0 | AI51: 0 | AK51: 0 | AL51: 0 | AM51: 0 | AN51: 0 | AO51: 0 | AP51: 0 | AQ51: 0 | AR51: 0 | AS51: 0 | AT51: 0 | AV51: 0 | AW51: 0 | AX51: 0.1 | AY51: 0 | AZ51: 2.52 | BA51: 0 | BB51: 0 | BC51: 0 | BD51: 0 | BE51: 0 | BG51: 0 | BH51: 0 | BI51: 0 | BJ51: 0 | BK51: 0 | BL51: 0.016375 | BM51: 0.03275 | BN51: 0.03275 | BO51: 0.03275 | BP51: 0.03275 | BR51: =+IF($K51="Ongoing",AV51,IF(RIGHT($K51,2)=RIGHT(BR$39,2),SUM($AV51:AV51),0)+IF(RIGHT(BR$39,2)>RIGHT($K51,2),AV51,0)) -> 0 | BS51: =+IF($K51="Ongoing",AW51,IF(RIGHT($K51,2)=RIGHT(BS$39,2),SUM($AV51:AW51),0)+IF(RIGHT(BS$39,2)>RIGHT($K51,2),AW51,0)) -> 0 | BT51: =+IF($K51="Ongoing",AX51,IF(RIGHT($K51,2)=RIGHT(BT$39,2),SUM($AV51:AX51),0)+IF(RIGHT(BT$39,2)>RIGHT($K51,2),AX51,0)) -> 0 | BU51: =+IF($K51="Ongoing",AY51,IF(RIGHT($K51,2)=RIGHT(BU$39,2),SUM($AV51:AY51),0)+IF(RIGHT(BU$39,2)>RIGHT($K51,2),AY51,0)) -> 0 | BV51: =+IF($K51="Ongoing",AZ51,IF(RIGHT($K51,2)=RIGHT(BV$39,2),SUM($AV51:AZ51),0)+IF(RIGHT(BV$39,2)>RIGHT($K51,2),AZ51,0)) -> 0 | BW51: =+IF($K51="Ongoing",BA51,IF(RIGHT($K51,2)=RIGHT(BW$39,2),SUM($AV51:BA51),0)+IF(RIGHT(BW$39,2)>RIGHT($K51,2),BA51,0)) -> 2.62 | BX51: =+IF($K51="Ongoing",BB51,IF(RIGHT($K51,2)=RIGHT(BX$39,2),SUM($AV51:BB51),0)+IF(RIGHT(BX$39,2)>RIGHT($K51,2),BB51,0)) -> 0 | BY51: =+IF($K51="Ongoing",BC51,IF(RIGHT($K51,2)=RIGHT(BY$39,2),SUM($AV51:BC51),0)+IF(RIGHT(BY$39,2)>RIGHT($K51,2),BC51,0)) -> 0 | BZ51: =+IF($K51="Ongoing",BD51,IF(RIGHT($K51,2)=RIGHT(BZ$39,2),SUM($AV51:BD51),0)+IF(RIGHT(BZ$39,2)>RIGHT($K51,2),BD51,0)) -> 0 | CA51: =+IF($K51="Ongoing",BE51,IF(RIGHT($K51,2)=RIGHT(CA$39,2),SUM($AV51:BE51),0)+IF(RIGHT(CA$39,2)>RIGHT($K51,2),BE51,0)) -> 0 | CC51: =+O51*KeyAssumptionsPriceControl_FO!X$15 -> 0 | CD51: =+P51*KeyAssumptionsPriceControl_FO!Y$15 -> 0 | CE51: =+Q51*KeyAssumptionsPriceControl_FO!Z$15 -> 0.1070599167 | CF51: =+R51*KeyAssumptionsPriceControl_FO!AA$15 -> 0 | CG51: =+S51*KeyAssumptionsPriceControl_FO!AB$15 -> 2.823440951 | CH51: =+T51*KeyAssumptionsPriceControl_FO!AC$15 -> 0 | CI51: =+U51*KeyAssumptionsPriceControl_FO!AD$15 -> 0 | CJ51: =+V51*KeyAssumptionsPriceControl_FO!AE$15 -> 0 | CK51: =+W51*KeyAssumptionsPriceControl_FO!AF$15 -> 0 | CL51: =+X51*KeyAssumptionsPriceControl_FO!AG$15 -> 0 | CN51: 0 | CO51: 0 | CP51: 0.001338248959 | CQ51: 0.002676497917 | CR51: 0.0379695098 | CS51: 0.07326252168 | CT51: 0.07326252168 | CU51: 0.07326252168 | CV51: 0.07326252168 | CW51: 0.07326252168
C53: Gifted Assets compliance | E53: Water | F53: Improvements / Compliance | G53: Pipelines/network | H53: Capital Programs / Allocation | I53: 0 | J53: Straight line | K53: Ongoing | L53: 40 | M53: 40 | O53: 0.223008 | P53: 0.228583 | Q53: 0.234298 | R53: 0.2401555 | S53: 0.2461595 | T53: 0 | U53: 0 | V53: 0 | W53: 0 | X53: 0 | Z53: 0 | AA53: 0 | AB53: 0 | AC53: 0 | AD53: 0 | AE53: 0 | AF53: 0 | AG53: 0 | AH53: 0 | AI53: 0 | AK53: 0 | AL53: 0 | AM53: 0 | AN53: 0 | AO53: 0 | AP53: 0 | AQ53: 0 | AR53: 0 | AS53: 0 | AT53: 0 | AV53: 0.223008 | AW53: 0.228583 | AX53: 0.234298 | AY53: 0.2401555 | AZ53: 0.2461595 | BA53: 0 | BB53: 0 | BC53: 0 | BD53: 0 | BE53: 0 | BG53: 0.0027876 | BH53: 0.0084324875 | BI53: 0.0142185 | BJ53: 0.02014916875 | BK53: 0.02622810625 | BL53: 0.0293051 | BM53: 0.0293051 | BN53: 0.0293051 | BO53: 0.0293051 | BP53: 0.0293051 | BR53: =+IF($K53="Ongoing",AV53,IF(RIGHT($K53,2)=RIGHT(BR$39,2),SUM($AV53:AV53),0)+IF(RIGHT(BR$39,2)>RIGHT($K53,2),AV53,0)) -> 0.223008 | BS53: =+IF($K53="Ongoing",AW53,IF(RIGHT($K53,2)=RIGHT(BS$39,2),SUM($AV53:AW53),0)+IF(RIGHT(BS$39,2)>RIGHT($K53,2),AW53,0)) -> 0.228583 | BT53: =+IF($K53="Ongoing",AX53,IF(RIGHT($K53,2)=RIGHT(BT$39,2),SUM($AV53:AX53),0)+IF(RIGHT(BT$39,2)>RIGHT($K53,2),AX53,0)) -> 0.234298 | BU53: =+IF($K53="Ongoing",AY53,IF(RIGHT($K53,2)=RIGHT(BU$39,2),SUM($AV53:AY53),0)+IF(RIGHT(BU$39,2)>RIGHT($K53,2),AY53,0)) -> 0.2401555 | BV53: =+IF($K53="Ongoing",AZ53,IF(RIGHT($K53,2)=RIGHT(BV$39,2),SUM($AV53:AZ53),0)+IF(RIGHT(BV$39,2)>RIGHT($K53,2),AZ53,0)) -> 0.2461595 | BW53: =+IF($K53="Ongoing",BA53,IF(RIGHT($K53,2)=RIGHT(BW$39,2),SUM($AV53:BA53),0)+IF(RIGHT(BW$39,2)>RIGHT($K53,2),BA53,0)) -> 0 | BX53: =+IF($K53="Ongoing",BB53,IF(RIGHT($K53,2)=RIGHT(BX$39,2),SUM($AV53:BB53),0)+IF(RIGHT(BX$39,2)>RIGHT($K53,2),BB53,0)) -> 0 | BY53: =+IF($K53="Ongoing",BC53,IF(RIGHT($K53,2)=RIGHT(BY$39,2),SUM($AV53:BC53),0)+IF(RIGHT(BY$39,2)>RIGHT($K53,2),BC53,0)) -> 0 | BZ53: =+IF($K53="Ongoing",BD53,IF(RIGHT($K53,2)=RIGHT(BZ$39,2),SUM($AV53:BD53),0)+IF(RIGHT(BZ$39,2)>RIGHT($K53,2),BD53,0)) -> 0 | CA53: =+IF($K53="Ongoing",BE53,IF(RIGHT($K53,2)=RIGHT(CA$39,2),SUM($AV53:BE53),0)+IF(RIGHT(CA$39,2)>RIGHT($K53,2),BE53,0)) -> 0 | CC53: =+O53*KeyAssumptionsPriceControl_FO!X$15 -> 0.228137184 | CD53: =+P53*KeyAssumptionsPriceControl_FO!Y$15 -> 0.2392187384 | CE53: =+Q53*KeyAssumptionsPriceControl_FO!Z$15 -> 0.2508392436 | CF53: =+R53*KeyAssumptionsPriceControl_FO!AA$15 -> 0.2630238147 | CG53: =+S53*KeyAssumptionsPriceControl_FO!AB$15 -> 0.2758003225 | CH53: =+T53*KeyAssumptionsPriceControl_FO!AC$15 -> 0 | CI53: =+U53*KeyAssumptionsPriceControl_FO!AD$15 -> 0 | CJ53: =+V53*KeyAssumptionsPriceControl_FO!AE$15 -> 0 | CK53: =+W53*KeyAssumptionsPriceControl_FO!AF$15 -> 0 | CL53: =+X53*KeyAssumptionsPriceControl_FO!AG$15 -> 0 | CN53: 0.0028517148 | CO53: 0.00869366383 | CP53: 0.01481938861 | CQ53: 0.02124267683 | CR53: 0.02797797855 | CS53: 0.03142548258 | CT53: 0.03142548258 | CU53: 0.03142548258 | CV53: 0.03142548258 | CW53: 0.03142548258
C54: Gifted Assets compliance | E54: Sewerage | F54: Improvements / Compliance | G54: Pipelines/network | H54: Capital Programs / Allocation | I54: 0 | J54: Straight line | K54: Ongoing | L54: 40 | M54: 40 | O54: 0.223008 | P54: 0.228583 | Q54: 0.234298 | R54: 0.2401555 | S54: 0.2461595 | T54: 0 | U54: 0 | V54: 0 | W54: 0 | X54: 0 | Z54: 0 | AA54: 0 | AB54: 0 | AC54: 0 | AD54: 0 | AE54: 0 | AF54: 0 | AG54: 0 | AH54: 0 | AI54: 0 | AK54: 0 | AL54: 0 | AM54: 0 | AN54: 0 | AO54: 0 | AP54: 0 | AQ54: 0 | AR54: 0 | AS54: 0 | AT54: 0 | AV54: 0.223008 | AW54: 0.228583 | AX54: 0.234298 | AY54: 0.2401555 | AZ54: 0.2461595 | BA54: 0 | BB54: 0 | BC54: 0 | BD54: 0 | BE54: 0 | BG54: 0.0027876 | BH54: 0.0084324875 | BI54: 0.0142185 | BJ54: 0.02014916875 | BK54: 0.02622810625 | BL54: 0.0293051 | BM54: 0.0293051 | BN54: 0.0293051 | BO54: 0.0293051 | BP54: 0.0293051 | BR54: =+IF($K54="Ongoing",AV54,IF(RIGHT($K54,2)=RIGHT(BR$39,2),SUM($AV54:AV54),0)+IF(RIGHT(BR$39,2)>RIGHT($K54,2),AV54,0)) -> 0.223008 | BS54: =+IF($K54="Ongoing",AW54,IF(RIGHT($K54,2)=RIGHT(BS$39,2),SUM($AV54:AW54),0)+IF(RIGHT(BS$39,2)>RIGHT($K54,2),AW54,0)) -> 0.228583 | BT54: =+IF($K54="Ongoing",AX54,IF(RIGHT($K54,2)=RIGHT(BT$39,2),SUM($AV54:AX54),0)+IF(RIGHT(BT$39,2)>RIGHT($K54,2),AX54,0)) -> 0.234298 | BU54: =+IF($K54="Ongoing",AY54,IF(RIGHT($K54,2)=RIGHT(BU$39,2),SUM($AV54:AY54),0)+IF(RIGHT(BU$39,2)>RIGHT($K54,2),AY54,0)) -> 0.2401555 | BV54: =+IF($K54="Ongoing",AZ54,IF(RIGHT($K54,2)=RIGHT(BV$39,2),SUM($AV54:AZ54),0)+IF(RIGHT(BV$39,2)>RIGHT($K54,2),AZ54,0)) -> 0.2461595 | BW54: =+IF($K54="Ongoing",BA54,IF(RIGHT($K54,2)=RIGHT(BW$39,2),SUM($AV54:BA54),0)+IF(RIGHT(BW$39,2)>RIGHT($K54,2),BA54,0)) -> 0 | BX54: =+IF($K54="Ongoing",BB54,IF(RIGHT($K54,2)=RIGHT(BX$39,2),SUM($AV54:BB54),0)+IF(RIGHT(BX$39,2)>RIGHT($K54,2),BB54,0)) -> 0 | BY54: =+IF($K54="Ongoing",BC54,IF(RIGHT($K54,2)=RIGHT(BY$39,2),SUM($AV54:BC54),0)+IF(RIGHT(BY$39,2)>RIGHT($K54,2),BC54,0)) -> 0 | BZ54: =+IF($K54="Ongoing",BD54,IF(RIGHT($K54,2)=RIGHT(BZ$39,2),SUM($AV54:BD54),0)+IF(RIGHT(BZ$39,2)>RIGHT($K54,2),BD54,0)) -> 0 | CA54: =+IF($K54="Ongoing",BE54,IF(RIGHT($K54,2)=RIGHT(CA$39,2),SUM($AV54:BE54),0)+IF(RIGHT(CA$39,2)>RIGHT($K54,2),BE54,0)) -> 0 | CC54: =+O54*KeyAssumptionsPriceControl_FO!X$15 -> 0.228137184 | CD54: =+P54*KeyAssumptionsPriceControl_FO!Y$15 -> 0.2392187384 | CE54: =+Q54*KeyAssumptionsPriceControl_FO!Z$15 -> 0.2508392436 | CF54: =+R54*KeyAssumptionsPriceControl_FO!AA$15 -> 0.2630238147 | CG54: =+S54*KeyAssumptionsPriceControl_FO!AB$15 -> 0.2758003225 | CH54: =+T54*KeyAssumptionsPriceControl_FO!AC$15 -> 0 | CI54: =+U54*KeyAssumptionsPriceControl_FO!AD$15 -> 0 | CJ54: =+V54*KeyAssumptionsPriceControl_FO!AE$15 -> 0 | CK54: =+W54*KeyAssumptionsPriceControl_FO!AF$15 -> 0 | CL54: =+X54*KeyAssumptionsPriceControl_FO!AG$15 -> 0 | CN54: 0.0028517148 | CO54: 0.00869366383 | CP54: 0.01481938861 | CQ54: 0.02124267683 | CR54: 0.02797797855 | CS54: 0.03142548258 | CT54: 0.03142548258 | CU54: 0.03142548258 | CV54: 0.03142548258 | CW54: 0.03142548258
C55: Headworks management | E55: Water | F55: Renewals | G55: Headworks | H55: Capital Programs / Allocation | I55: 0 | J55: Straight line | K55: Ongoing | L55: 40 | M55: 40 | O55: 0.0858 | P55: 0.1211625 | Q55: 0.1526385 | R55: 0.151429 | S55: 0.119451 | T55: 0 | U55: 0 | V55: 0 | W55: 0 | X55: 0 | Z55: 0 | AA55: 0 | AB55: 0 | AC55: 0 | AD55: 0 | AE55: 0 | AF55: 0 | AG55: 0 | AH55: 0 | AI55: 0 | AK55: 0 | AL55: 0 | AM55: 0 | AN55: 0 | AO55: 0 | AP55: 0 | AQ55: 0 | AR55: 0 | AS55: 0 | AT55: 0 | AV55: 0.0858 | AW55: 0.1211625 | AX55: 0.1526385 | AY55: 0.151429 | AZ55: 0.119451 | BA55: 0 | BB55: 0 | BC55: 0 | BD55: 0 | BE55: 0 | BG55: 0.0010725 | BH55: 0.00365953125 | BI55: 0.00708204375 | BJ55: 0.0108828875 | BK55: 0.0142688875 | BL55: 0.015762025 | BM55: 0.015762025 | BN55: 0.015762025 | BO55: 0.015762025 | BP55: 0.015762025 | BR55: =+IF($K55="Ongoing",AV55,IF(RIGHT($K55,2)=RIGHT(BR$39,2),SUM($AV55:AV55),0)+IF(RIGHT(BR$39,2)>RIGHT($K55,2),AV55,0)) -> 0.0858 | BS55: =+IF($K55="Ongoing",AW55,IF(RIGHT($K55,2)=RIGHT(BS$39,2),SUM($AV55:AW55),0)+IF(RIGHT(BS$39,2)>RIGHT($K55,2),AW55,0)) -> 0.1211625 | BT55: =+IF($K55="Ongoing",AX55,IF(RIGHT($K55,2)=RIGHT(BT$39,2),SUM($AV55:AX55),0)+IF(RIGHT(BT$39,2)>RIGHT($K55,2),AX55,0)) -> 0.1526385 | BU55: =+IF($K55="Ongoing",AY55,IF(RIGHT($K55,2)=RIGHT(BU$39,2),SUM($AV55:AY55),0)+IF(RIGHT(BU$39,2)>RIGHT($K55,2),AY55,0)) -> 0.151429 | BV55: =+IF($K55="Ongoing",AZ55,IF(RIGHT($K55,2)=RIGHT(BV$39,2),SUM($AV55:AZ55),0)+IF(RIGHT(BV$39,2)>RIGHT($K55,2),AZ55,0)) -> 0.119451 | BW55: =+IF($K55="Ongoing",BA55,IF(RIGHT($K55,2)=RIGHT(BW$39,2),SUM($AV55:BA55),0)+IF(RIGHT(BW$39,2)>RIGHT($K55,2),BA55,0)) -> 0 | BX55: =+IF($K55="Ongoing",BB55,IF(RIGHT($K55,2)=RIGHT(BX$39,2),SUM($AV55:BB55),0)+IF(RIGHT(BX$39,2)>RIGHT($K55,2),BB55,0)) -> 0 | BY55: =+IF($K55="Ongoing",BC55,IF(RIGHT($K55,2)=RIGHT(BY$39,2),SUM($AV55:BC55),0)+IF(RIGHT(BY$39,2)>RIGHT($K55,2),BC55,0)) -> 0 | BZ55: =+IF($K55="Ongoing",BD55,IF(RIGHT($K55,2)=RIGHT(BZ$39,2),SUM($AV55:BD55),0)+IF(RIGHT(BZ$39,2)>RIGHT($K55,2),BD55,0)) -> 0 | CA55: =+IF($K55="Ongoing",BE55,IF(RIGHT($K55,2)=RIGHT(CA$39,2),SUM($AV55:BE55),0)+IF(RIGHT(CA$39,2)>RIGHT($K55,2),BE55,0)) -> 0 | CC55: =+O55*KeyAssumptionsPriceControl_FO!X$15 -> 0.0877734 | CD55: =+P55*KeyAssumptionsPriceControl_FO!Y$15 -> 0.12680007 | CE55: =+Q55*KeyAssumptionsPriceControl_FO!Z$15 -> 0.163414651 | CF55: =+R55*KeyAssumptionsPriceControl_FO!AA$15 -> 0.1658485158 | CG55: =+S55*KeyAssumptionsPriceControl_FO!AB$15 -> 0.1338344623 | CH55: =+T55*KeyAssumptionsPriceControl_FO!AC$15 -> 0 | CI55: =+U55*KeyAssumptionsPriceControl_FO!AD$15 -> 0 | CJ55: =+V55*KeyAssumptionsPriceControl_FO!AE$15 -> 0 | CK55: =+W55*KeyAssumptionsPriceControl_FO!AF$15 -> 0 | CL55: =+X55*KeyAssumptionsPriceControl_FO!AG$15 -> 0 | CN55: 0.0010971675 | CO55: 0.003779335875 | CP55: 0.007407019886 | CQ55: 0.01152280947 | CR55: 0.0152688467 | CS55: 0.01694177747 | CT55: 0.01694177747 | CU55: 0.01694177747 | CV55: 0.01694177747 | CW55: 0.01694177747
C56: Headworks management | E56: Rural Water | F56: Renewals | G56: Headworks | H56: Capital Programs / Allocation | I56: 0 | J56: Straight line | K56: Ongoing | L56: 40 | M56: 40 | O56: 0.0858 | P56: 0.1211625 | Q56: 0.1526385 | R56: 0.151429 | S56: 0.119451 | T56: 0 | U56: 0 | V56: 0 | W56: 0 | X56: 0 | Z56: 0 | AA56: 0 | AB56: 0 | AC56: 0 | AD56: 0 | AE56: 0 | AF56: 0 | AG56: 0 | AH56: 0 | AI56: 0 | AK56: 0 | AL56: 0 | AM56: 0 | AN56: 0 | AO56: 0 | AP56: 0 | AQ56: 0 | AR56: 0 | AS56: 0 | AT56: 0 | AV56: 0.0858 | AW56: 0.1211625 | AX56: 0.1526385 | AY56: 0.151429 | AZ56: 0.119451 | BA56: 0 | BB56: 0 | BC56: 0 | BD56: 0 | BE56: 0 | BG56: 0.0010725 | BH56: 0.00365953125 | BI56: 0.00708204375 | BJ56: 0.0108828875 | BK56: 0.0142688875 | BL56: 0.015762025 | BM56: 0.015762025 | BN56: 0.015762025 | BO56: 0.015762025 | BP56: 0.015762025 | BR56: =+IF($K56="Ongoing",AV56,IF(RIGHT($K56,2)=RIGHT(BR$39,2),SUM($AV56:AV56),0)+IF(RIGHT(BR$39,2)>RIGHT($K56,2),AV56,0)) -> 0.0858 | BS56: =+IF($K56="Ongoing",AW56,IF(RIGHT($K56,2)=RIGHT(BS$39,2),SUM($AV56:AW56),0)+IF(RIGHT(BS$39,2)>RIGHT($K56,2),AW56,0)) -> 0.1211625 | BT56: =+IF($K56="Ongoing",AX56,IF(RIGHT($K56,2)=RIGHT(BT$39,2),SUM($AV56:AX56),0)+IF(RIGHT(BT$39,2)>RIGHT($K56,2),AX56,0)) -> 0.1526385 | BU56: =+IF($K56="Ongoing",AY56,IF(RIGHT($K56,2)=RIGHT(BU$39,2),SUM($AV56:AY56),0)+IF(RIGHT(BU$39,2)>RIGHT($K56,2),AY56,0)) -> 0.151429 | BV56: =+IF($K56="Ongoing",AZ56,IF(RIGHT($K56,2)=RIGHT(BV$39,2),SUM($AV56:AZ56),0)+IF(RIGHT(BV$39,2)>RIGHT($K56,2),AZ56,0)) -> 0.119451 | BW56: =+IF($K56="Ongoing",BA56,IF(RIGHT($K56,2)=RIGHT(BW$39,2),SUM($AV56:BA56),0)+IF(RIGHT(BW$39,2)>RIGHT($K56,2),BA56,0)) -> 0 | BX56: =+IF($K56="Ongoing",BB56,IF(RIGHT($K56,2)=RIGHT(BX$39,2),SUM($AV56:BB56),0)+IF(RIGHT(BX$39,2)>RIGHT($K56,2),BB56,0)) -> 0 | BY56: =+IF($K56="Ongoing",BC56,IF(RIGHT($K56,2)=RIGHT(BY$39,2),SUM($AV56:BC56),0)+IF(RIGHT(BY$39,2)>RIGHT($K56,2),BC56,0)) -> 0 | BZ56: =+IF($K56="Ongoing",BD56,IF(RIGHT($K56,2)=RIGHT(BZ$39,2),SUM($AV56:BD56),0)+IF(RIGHT(BZ$39,2)>RIGHT($K56,2),BD56,0)) -> 0 | CA56: =+IF($K56="Ongoing",BE56,IF(RIGHT($K56,2)=RIGHT(CA$39,2),SUM($AV56:BE56),0)+IF(RIGHT(CA$39,2)>RIGHT($K56,2),BE56,0)) -> 0 | CC56: =+O56*KeyAssumptionsPriceControl_FO!X$15 -> 0.0877734 | CD56: =+P56*KeyAssumptionsPriceControl_FO!Y$15 -> 0.12680007 | CE56: =+Q56*KeyAssumptionsPriceControl_FO!Z$15 -> 0.163414651 | CF56: =+R56*KeyAssumptionsPriceControl_FO!AA$15 -> 0.1658485158 | CG56: =+S56*KeyAssumptionsPriceControl_FO!AB$15 -> 0.1338344623 | CH56: =+T56*KeyAssumptionsPriceControl_FO!AC$15 -> 0 | CI56: =+U56*KeyAssumptionsPriceControl_FO!AD$15 -> 0 | CJ56: =+V56*KeyAssumptionsPriceControl_FO!AE$15 -> 0 | CK56: =+W56*KeyAssumptionsPriceControl_FO!AF$15 -> 0 | CL56: =+X56*KeyAssumptionsPriceControl_FO!AG$15 -> 0 | CN56: 0.0010971675 | CO56: 0.003779335875 | CP56: 0.007407019886 | CQ56: 0.01152280947 | CR56: 0.0152688467 | CS56: 0.01694177747 | CT56: 0.01694177747 | CU56: 0.01694177747 | CV56: 0.01694177747 | CW56: 0.01694177747
C57: Intelligent Business | E57: Water | F57: Improvements / Compliance | G57: Corporate | H57: Capital Programs / Allocation | I57: 0 | J57: Straight line | K57: Ongoing | L57: 40 | M57: 40 | O57: 0.4923076923 | P57: 0.4519230769 | Q57: 0.4519230769 | R57: 0.4519230769 | S57: 0.4519230769 | T57: 0 | U57: 0 | V57: 0 | W57: 0 | X57: 0 | Z57: 0 | AA57: 0 | AB57: 0 | AC57: 0 | AD57: 0 | AE57: 0 | AF57: 0 | AG57: 0 | AH57: 0 | AI57: 0 | AK57: 0 | AL57: 0 | AM57: 0 | AN57: 0 | AO57: 0 | AP57: 0 | AQ57: 0 | AR57: 0 | AS57: 0 | AT57: 0 | AV57: 0.4923076923 | AW57: 0.4519230769 | AX57: 0.4519230769 | AY57: 0.4519230769 | AZ57: 0.4519230769 | BA57: 0 | BB57: 0 | BC57: 0 | BD57: 0 | BE57: 0 | BG57: 0.006153846154 | BH57: 0.01795673077 | BI57: 0.02925480769 | BJ57: 0.04055288462 | BK57: 0.05185096154 | BL57: 0.0575 | BM57: 0.0575 | BN57: 0.0575 | BO57: 0.0575 | BP57: 0.0575 | BR57: =+IF($K57="Ongoing",AV57,IF(RIGHT($K57,2)=RIGHT(BR$39,2),SUM($AV57:AV57),0)+IF(RIGHT(BR$39,2)>RIGHT($K57,2),AV57,0)) -> 0.4923076923 | BS57: =+IF($K57="Ongoing",AW57,IF(RIGHT($K57,2)=RIGHT(BS$39,2),SUM($AV57:AW57),0)+IF(RIGHT(BS$39,2)>RIGHT($K57,2),AW57,0)) -> 0.4519230769 | BT57: =+IF($K57="Ongoing",AX57,IF(RIGHT($K57,2)=RIGHT(BT$39,2),SUM($AV57:AX57),0)+IF(RIGHT(BT$39,2)>RIGHT($K57,2),AX57,0)) -> 0.4519230769 | BU57: =+IF($K57="Ongoing",AY57,IF(RIGHT($K57,2)=RIGHT(BU$39,2),SUM($AV57:AY57),0)+IF(RIGHT(BU$39,2)>RIGHT($K57,2),AY57,0)) -> 0.4519230769 | BV57: =+IF($K57="Ongoing",AZ57,IF(RIGHT($K57,2)=RIGHT(BV$39,2),SUM($AV57:AZ57),0)+IF(RIGHT(BV$39,2)>RIGHT($K57,2),AZ57,0)) -> 0.4519230769 | BW57: =+IF($K57="Ongoing",BA57,IF(RIGHT($K57,2)=RIGHT(BW$39,2),SUM($AV57:BA57),0)+IF(RIGHT(BW$39,2)>RIGHT($K57,2),BA57,0)) -> 0 | BX57: =+IF($K57="Ongoing",BB57,IF(RIGHT($K57,2)=RIGHT(BX$39,2),SUM($AV57:BB57),0)+IF(RIGHT(BX$39,2)>RIGHT($K57,2),BB57,0)) -> 0 | BY57: =+IF($K57="Ongoing",BC57,IF(RIGHT($K57,2)=RIGHT(BY$39,2),SUM($AV57:BC57),0)+IF(RIGHT(BY$39,2)>RIGHT($K57,2),BC57,0)) -> 0 | BZ57: =+IF($K57="Ongoing",BD57,IF(RIGHT($K57,2)=RIGHT(BZ$39,2),SUM($AV57:BD57),0)+IF(RIGHT(BZ$39,2)>RIGHT($K57,2),BD57,0)) -> 0 | CA57: =+IF($K57="Ongoing",BE57,IF(RIGHT($K57,2)=RIGHT(CA$39,2),SUM($AV57:BE57),0)+IF(RIGHT(CA$39,2)>RIGHT($K57,2),BE57,0)) -> 0 | CC57: =+O57*KeyAssumptionsPriceControl_FO!X$15 -> 0.5036307692 | CD57: =+P57*KeyAssumptionsPriceControl_FO!Y$15 -> 0.4729506058 | CE57: =+Q57*KeyAssumptionsPriceControl_FO!Z$15 -> 0.4838284697 | CF57: =+R57*KeyAssumptionsPriceControl_FO!AA$15 -> 0.4949565245 | CG57: =+S57*KeyAssumptionsPriceControl_FO!AB$15 -> 0.5063405246 | CH57: =+T57*KeyAssumptionsPriceControl_FO!AC$15 -> 0 | CI57: =+U57*KeyAssumptionsPriceControl_FO!AD$15 -> 0 | CJ57: =+V57*KeyAssumptionsPriceControl_FO!AE$15 -> 0 | CK57: =+W57*KeyAssumptionsPriceControl_FO!AF$15 -> 0 | CL57: =+X57*KeyAssumptionsPriceControl_FO!AG$15 -> 0 | CN57: 0.006295384615 | CO57: 0.0185026518 | CP57: 0.03046239025 | CQ57: 0.04269720267 | CR57: 0.05521341579 | CS57: 0.06154267234 | CT57: 0.06154267234 | CU57: 0.06154267234 | CV57: 0.06154267234 | CW57: 0.06154267234
C58: Intelligent Business | E58: Sewerage | F58: Improvements / Compliance | G58: Corporate | H58: Capital Programs / Allocation | I58: 0 | J58: Straight line | K58: Ongoing | L58: 40 | M58: 40 | O58: 0.4923076923 | P58: 0.4519230769 | Q58: 0.4519230769 | R58: 0.4519230769 | S58: 0.4519230769 | T58: 0 | U58: 0 | V58: 0 | W58: 0 | X58: 0 | Z58: 0 | AA58: 0 | AB58: 0 | AC58: 0 | AD58: 0 | AE58: 0 | AF58: 0 | AG58: 0 | AH58: 0 | AI58: 0 | AK58: 0 | AL58: 0 | AM58: 0 | AN58: 0 | AO58: 0 | AP58: 0 | AQ58: 0 | AR58: 0 | AS58: 0 | AT58: 0 | AV58: 0.4923076923 | AW58: 0.4519230769 | AX58: 0.4519230769 | AY58: 0.4519230769 | AZ58: 0.4519230769 | BA58: 0 | BB58: 0 | BC58: 0 | BD58: 0 | BE58: 0 | BG58: 0.006153846154 | BH58: 0.01795673077 | BI58: 0.02925480769 | BJ58: 0.04055288462 | BK58: 0.05185096154 | BL58: 0.0575 | BM58: 0.0575 | BN58: 0.0575 | BO58: 0.0575 | BP58: 0.0575 | BR58: =+IF($K58="Ongoing",AV58,IF(RIGHT($K58,2)=RIGHT(BR$39,2),SUM($AV58:AV58),0)+IF(RIGHT(BR$39,2)>RIGHT($K58,2),AV58,0)) -> 0.4923076923 | BS58: =+IF($K58="Ongoing",AW58,IF(RIGHT($K58,2)=RIGHT(BS$39,2),SUM($AV58:AW58),0)+IF(RIGHT(BS$39,2)>RIGHT($K58,2),AW58,0)) -> 0.4519230769 | BT58: =+IF($K58="Ongoing",AX58,IF(RIGHT($K58,2)=RIGHT(BT$39,2),SUM($AV58:AX58),0)+IF(RIGHT(BT$39,2)>RIGHT($K58,2),AX58,0)) -> 0.4519230769 | BU58: =+IF($K58="Ongoing",AY58,IF(RIGHT($K58,2)=RIGHT(BU$39,2),SUM($AV58:AY58),0)+IF(RIGHT(BU$39,2)>RIGHT($K58,2),AY58,0)) -> 0.4519230769 | BV58: =+IF($K58="Ongoing",AZ58,IF(RIGHT($K58,2)=RIGHT(BV$39,2),SUM($AV58:AZ58),0)+IF(RIGHT(BV$39,2)>RIGHT($K58,2),AZ58,0)) -> 0.4519230769 | BW58: =+IF($K58="Ongoing",BA58,IF(RIGHT($K58,2)=RIGHT(BW$39,2),SUM($AV58:BA58),0)+IF(RIGHT(BW$39,2)>RIGHT($K58,2),BA58,0)) -> 0 | BX58: =+IF($K58="Ongoing",BB58,IF(RIGHT($K58,2)=RIGHT(BX$39,2),SUM($AV58:BB58),0)+IF(RIGHT(BX$39,2)>RIGHT($K58,2),BB58,0)) -> 0 | BY58: =+IF($K58="Ongoing",BC58,IF(RIGHT($K58,2)=RIGHT(BY$39,2),SUM($AV58:BC58),0)+IF(RIGHT(BY$39,2)>RIGHT($K58,2),BC58,0)) -> 0 | BZ58: =+IF($K58="Ongoing",BD58,IF(RIGHT($K58,2)=RIGHT(BZ$39,2),SUM($AV58:BD58),0)+IF(RIGHT(BZ$39,2)>RIGHT($K58,2),BD58,0)) -> 0 | CA58: =+IF($K58="Ongoing",BE58,IF(RIGHT($K58,2)=RIGHT(CA$39,2),SUM($AV58:BE58),0)+IF(RIGHT(CA$39,2)>RIGHT($K58,2),BE58,0)) -> 0 | CC58: =+O58*KeyAssumptionsPriceControl_FO!X$15 -> 0.5036307692 | CD58: =+P58*KeyAssumptionsPriceControl_FO!Y$15 -> 0.4729506058 | CE58: =+Q58*KeyAssumptionsPriceControl_FO!Z$15 -> 0.4838284697 | CF58: =+R58*KeyAssumptionsPriceControl_FO!AA$15 -> 0.4949565245 | CG58: =+S58*KeyAssumptionsPriceControl_FO!AB$15 -> 0.5063405246 | CH58: =+T58*KeyAssumptionsPriceControl_FO!AC$15 -> 0 | CI58: =+U58*KeyAssumptionsPriceControl_FO!AD$15 -> 0 | CJ58: =+V58*KeyAssumptionsPriceControl_FO!AE$15 -> 0 | CK58: =+W58*KeyAssumptionsPriceControl_FO!AF$15 -> 0 | CL58: =+X58*KeyAssumptionsPriceControl_FO!AG$15 -> 0 | CN58: 0.006295384615 | CO58: 0.0185026518 | CP58: 0.03046239025 | CQ58: 0.04269720267 | CR58: 0.05521341579 | CS58: 0.06154267234 | CT58: 0.06154267234 | CU58: 0.06154267234 | CV58: 0.06154267234 | CW58: 0.06154267234
C59: IT infrastructure | E59: Water | F59: Renewals | G59: Corporate | H59: Capital Programs / Allocation | I59: 0 | J59: Straight line | K59: Ongoing | L59: 40 | M59: 40 | O59: 0.1505775 | P59: 0.0934525 | Q59: 0.088837 | R59: 0.070041235 | S59: 0.067135 | T59: 0 | U59: 0 | V59: 0 | W59: 0 | X59: 0 | Z59: 0 | AA59: 0 | AB59: 0 | AC59: 0 | AD59: 0 | AE59: 0 | AF59: 0 | AG59: 0 | AH59: 0 | AI59: 0 | AK59: 0 | AL59: 0 | AM59: 0 | AN59: 0 | AO59: 0 | AP59: 0 | AQ59: 0 | AR59: 0 | AS59: 0 | AT59: 0 | AV59: 0.1505775 | AW59: 0.0934525 | AX59: 0.088837 | AY59: 0.070041235 | AZ59: 0.067135 | BA59: 0 | BB59: 0 | BC59: 0 | BD59: 0 | BE59: 0 | BG59: 0.00188221875 | BH59: 0.00493259375 | BI59: 0.0072112125 | BJ59: 0.009197190437 | BK59: 0.01091189337 | BL59: 0.01175108087 | BM59: 0.01175108087 | BN59: 0.01175108087 | BO59: 0.01175108087 | BP59: 0.01175108087 | BR59: =+IF($K59="Ongoing",AV59,IF(RIGHT($K59,2)=RIGHT(BR$39,2),SUM($AV59:AV59),0)+IF(RIGHT(BR$39,2)>RIGHT($K59,2),AV59,0)) -> 0.1505775 | BS59: =+IF($K59="Ongoing",AW59,IF(RIGHT($K59,2)=RIGHT(BS$39,2),SUM($AV59:AW59),0)+IF(RIGHT(BS$39,2)>RIGHT($K59,2),AW59,0)) -> 0.0934525 | BT59: =+IF($K59="Ongoing",AX59,IF(RIGHT($K59,2)=RIGHT(BT$39,2),SUM($AV59:AX59),0)+IF(RIGHT(BT$39,2)>RIGHT($K59,2),AX59,0)) -> 0.088837 | BU59: =+IF($K59="Ongoing",AY59,IF(RIGHT($K59,2)=RIGHT(BU$39,2),SUM($AV59:AY59),0)+IF(RIGHT(BU$39,2)>RIGHT($K59,2),AY59,0)) -> 0.070041235 | BV59: =+IF($K59="Ongoing",AZ59,IF(RIGHT($K59,2)=RIGHT(BV$39,2),SUM($AV59:AZ59),0)+IF(RIGHT(BV$39,2)>RIGHT($K59,2),AZ59,0)) -> 0.067135 | BW59: =+IF($K59="Ongoing",BA59,IF(RIGHT($K59,2)=RIGHT(BW$39,2),SUM($AV59:BA59),0)+IF(RIGHT(BW$39,2)>RIGHT($K59,2),BA59,0)) -> 0 | BX59: =+IF($K59="Ongoing",BB59,IF(RIGHT($K59,2)=RIGHT(BX$39,2),SUM($AV59:BB59),0)+IF(RIGHT(BX$39,2)>RIGHT($K59,2),BB59,0)) -> 0 | BY59: =+IF($K59="Ongoing",BC59,IF(RIGHT($K59,2)=RIGHT(BY$39,2),SUM($AV59:BC59),0)+IF(RIGHT(BY$39,2)>RIGHT($K59,2),BC59,0)) -> 0 | BZ59: =+IF($K59="Ongoing",BD59,IF(RIGHT($K59,2)=RIGHT(BZ$39,2),SUM($AV59:BD59),0)+IF(RIGHT(BZ$39,2)>RIGHT($K59,2),BD59,0)) -> 0 | CA59: =+IF($K59="Ongoing",BE59,IF(RIGHT($K59,2)=RIGHT(CA$39,2),SUM($AV59:BE59),0)+IF(RIGHT(CA$39,2)>RIGHT($K59,2),BE59,0)) -> 0 | CC59: =+O59*KeyAssumptionsPriceControl_FO!X$15 -> 0.1540407825 | CD59: =+P59*KeyAssumptionsPriceControl_FO!Y$15 -> 0.09780075137 | CE59: =+Q59*KeyAssumptionsPriceControl_FO!Z$15 -> 0.0951088182 | CF59: =+R59*KeyAssumptionsPriceControl_FO!AA$15 -> 0.07671076787 | CG59: =+S59*KeyAssumptionsPriceControl_FO!AB$15 -> 0.07521893183 | CH59: =+T59*KeyAssumptionsPriceControl_FO!AC$15 -> 0 | CI59: =+U59*KeyAssumptionsPriceControl_FO!AD$15 -> 0 | CJ59: =+V59*KeyAssumptionsPriceControl_FO!AE$15 -> 0 | CK59: =+W59*KeyAssumptionsPriceControl_FO!AF$15 -> 0 | CL59: =+X59*KeyAssumptionsPriceControl_FO!AG$15 -> 0 | CN59: 0.001925509781 | CO59: 0.005073528955 | CP59: 0.007484898574 | CQ59: 0.0096326434 | CR59: 0.01153176465 | CS59: 0.01247200129 | CT59: 0.01247200129 | CU59: 0.01247200129 | CV59: 0.01247200129 | CW59: 0.01247200129
C60: IT infrastructure | E60: Sewerage | F60: Renewals | G60: Corporate | H60: Capital Programs / Allocation | I60: 0 | J60: Straight line | K60: Ongoing | L60: 40 | M60: 40 | O60: 0.1505775 | P60: 0.0934525 | Q60: 0.088837 | R60: 0.070041235 | S60: 0.067135 | T60: 0 | U60: 0 | V60: 0 | W60: 0 | X60: 0 | Z60: 0 | AA60: 0 | AB60: 0 | AC60: 0 | AD60: 0 | AE60: 0 | AF60: 0 | AG60: 0 | AH60: 0 | AI60: 0 | AK60: 0 | AL60: 0 | AM60: 0 | AN60: 0 | AO60: 0 | AP60: 0 | AQ60: 0 | AR60: 0 | AS60: 0 | AT60: 0 | AV60: 0.1505775 | AW60: 0.0934525 | AX60: 0.088837 | AY60: 0.070041235 | AZ60: 0.067135 | BA60: 0 | BB60: 0 | BC60: 0 | BD60: 0 | BE60: 0 | BG60: 0.00188221875 | BH60: 0.00493259375 | BI60: 0.0072112125 | BJ60: 0.009197190437 | BK60: 0.01091189337 | BL60: 0.01175108087 | BM60: 0.01175108087 | BN60: 0.01175108087 | BO60: 0.01175108087 | BP60: 0.01175108087 | BR60: =+IF($K60="Ongoing",AV60,IF(RIGHT($K60,2)=RIGHT(BR$39,2),SUM($AV60:AV60),0)+IF(RIGHT(BR$39,2)>RIGHT($K60,2),AV60,0)) -> 0.1505775 | BS60: =+IF($K60="Ongoing",AW60,IF(RIGHT($K60,2)=RIGHT(BS$39,2),SUM($AV60:AW60),0)+IF(RIGHT(BS$39,2)>RIGHT($K60,2),AW60,0)) -> 0.0934525 | BT60: =+IF($K60="Ongoing",AX60,IF(RIGHT($K60,2)=RIGHT(BT$39,2),SUM($AV60:AX60),0)+IF(RIGHT(BT$39,2)>RIGHT($K60,2),AX60,0)) -> 0.088837 | BU60: =+IF($K60="Ongoing",AY60,IF(RIGHT($K60,2)=RIGHT(BU$39,2),SUM($AV60:AY60),0)+IF(RIGHT(BU$39,2)>RIGHT($K60,2),AY60,0)) -> 0.070041235 | BV60: =+IF($K60="Ongoing",AZ60,IF(RIGHT($K60,2)=RIGHT(BV$39,2),SUM($AV60:AZ60),0)+IF(RIGHT(BV$39,2)>RIGHT($K60,2),AZ60,0)) -> 0.067135 | BW60: =+IF($K60="Ongoing",BA60,IF(RIGHT($K60,2)=RIGHT(BW$39,2),SUM($AV60:BA60),0)+IF(RIGHT(BW$39,2)>RIGHT($K60,2),BA60,0)) -> 0 | BX60: =+IF($K60="Ongoing",BB60,IF(RIGHT($K60,2)=RIGHT(BX$39,2),SUM($AV60:BB60),0)+IF(RIGHT(BX$39,2)>RIGHT($K60,2),BB60,0)) -> 0 | BY60: =+IF($K60="Ongoing",BC60,IF(RIGHT($K60,2)=RIGHT(BY$39,2),SUM($AV60:BC60),0)+IF(RIGHT(BY$39,2)>RIGHT($K60,2),BC60,0)) -> 0 | BZ60: =+IF($K60="Ongoing",BD60,IF(RIGHT($K60,2)=RIGHT(BZ$39,2),SUM($AV60:BD60),0)+IF(RIGHT(BZ$39,2)>RIGHT($K60,2),BD60,0)) -> 0 | CA60: =+IF($K60="Ongoing",BE60,IF(RIGHT($K60,2)=RIGHT(CA$39,2),SUM($AV60:BE60),0)+IF(RIGHT(CA$39,2)>RIGHT($K60,2),BE60,0)) -> 0 | CC60: =+O60*KeyAssumptionsPriceControl_FO!X$15 -> 0.1540407825 | CD60: =+P60*KeyAssumptionsPriceControl_FO!Y$15 -> 0.09780075137 | CE60: =+Q60*KeyAssumptionsPriceControl_FO!Z$15 -> 0.0951088182 | CF60: =+R60*KeyAssumptionsPriceControl_FO!AA$15 -> 0.07671076787 | CG60: =+S60*KeyAssumptionsPriceControl_FO!AB$15 -> 0.07521893183 | CH60: =+T60*KeyAssumptionsPriceControl_FO!AC$15 -> 0 | CI60: =+U60*KeyAssumptionsPriceControl_FO!AD$15 -> 0 | CJ60: =+V60*KeyAssumptionsPriceControl_FO!AE$15 -> 0 | CK60: =+W60*KeyAssumptionsPriceControl_FO!AF$15 -> 0 | CL60: =+X60*KeyAssumptionsPriceControl_FO!AG$15 -> 0 | CN60: 0.001925509781 | CO60: 0.005073528955 | CP60: 0.007484898574 | CQ60: 0.0096326434 | CR60: 0.01153176465 | CS60: 0.01247200129 | CT60: 0.01247200129 | CU60: 0.01247200129 | CV60: 0.01247200129 | CW60: 0.01247200129
C61: Meter Replacement Program | E61: Water | F61: Renewals | G61: Pipelines/network | H61: Capital Programs / Allocation | I61: 0 | J61: Straight line | K61: Ongoing | L61: 40 | M61: 40 | O61: 0.135 | P61: 0.22 | Q61: 0.15 | R61: 0.15 | S61: 0.15 | T61: 0 | U61: 0 | V61: 0 | W61: 0 | X61: 0 | Z61: 0 | AA61: 0 | AB61: 0 | AC61: 0 | AD61: 0 | AE61: 0 | AF61: 0 | AG61: 0 | AH61: 0 | AI61: 0 | AK61: 0 | AL61: 0 | AM61: 0 | AN61: 0 | AO61: 0 | AP61: 0 | AQ61: 0 | AR61: 0 | AS61: 0 | AT61: 0 | AV61: 0.135 | AW61: 0.22 | AX61: 0.15 | AY61: 0.15 | AZ61: 0.15 | BA61: 0 | BB61: 0 | BC61: 0 | BD61: 0 | BE61: 0 | BG61: 0.0016875 | BH61: 0.006125 | BI61: 0.01075 | BJ61: 0.0145 | BK61: 0.01825 | BL61: 0.020125 | BM61: 0.020125 | BN61: 0.020125 | BO61: 0.020125 | BP61: 0.020125 | BR61: =+IF($K61="Ongoing",AV61,IF(RIGHT($K61,2)=RIGHT(BR$39,2),SUM($AV61:AV61),0)+IF(RIGHT(BR$39,2)>RIGHT($K61,2),AV61,0)) -> 0.135 | BS61: =+IF($K61="Ongoing",AW61,IF(RIGHT($K61,2)=RIGHT(BS$39,2),SUM($AV61:AW61),0)+IF(RIGHT(BS$39,2)>RIGHT($K61,2),AW61,0)) -> 0.22 | BT61: =+IF($K61="Ongoing",AX61,IF(RIGHT($K61,2)=RIGHT(BT$39,2),SUM($AV61:AX61),0)+IF(RIGHT(BT$39,2)>RIGHT($K61,2),AX61,0)) -> 0.15 | BU61: =+IF($K61="Ongoing",AY61,IF(RIGHT($K61,2)=RIGHT(BU$39,2),SUM($AV61:AY61),0)+IF(RIGHT(BU$39,2)>RIGHT($K61,2),AY61,0)) -> 0.15 | BV61: =+IF($K61="Ongoing",AZ61,IF(RIGHT($K61,2)=RIGHT(BV$39,2),SUM($AV61:AZ61),0)+IF(RIGHT(BV$39,2)>RIGHT($K61,2),AZ61,0)) -> 0.15 | BW61: =+IF($K61="Ongoing",BA61,IF(RIGHT($K61,2)=RIGHT(BW$39,2),SUM($AV61:BA61),0)+IF(RIGHT(BW$39,2)>RIGHT($K61,2),BA61,0)) -> 0 | BX61: =+IF($K61="Ongoing",BB61,IF(RIGHT($K61,2)=RIGHT(BX$39,2),SUM($AV61:BB61),0)+IF(RIGHT(BX$39,2)>RIGHT($K61,2),BB61,0)) -> 0 | BY61: =+IF($K61="Ongoing",BC61,IF(RIGHT($K61,2)=RIGHT(BY$39,2),SUM($AV61:BC61),0)+IF(RIGHT(BY$39,2)>RIGHT($K61,2),BC61,0)) -> 0 | BZ61: =+IF($K61="Ongoing",BD61,IF(RIGHT($K61,2)=RIGHT(BZ$39,2),SUM($AV61:BD61),0)+IF(RIGHT(BZ$39,2)>RIGHT($K61,2),BD61,0)) -> 0 | CA61: =+IF($K61="Ongoing",BE61,IF(RIGHT($K61,2)=RIGHT(CA$39,2),SUM($AV61:BE61),0)+IF(RIGHT(CA$39,2)>RIGHT($K61,2),BE61,0)) -> 0 | CC61: =+O61*KeyAssumptionsPriceControl_FO!X$15 -> 0.138105 | CD61: =+P61*KeyAssumptionsPriceControl_FO!Y$15 -> 0.23023638 | CE61: =+Q61*KeyAssumptionsPriceControl_FO!Z$15 -> 0.160589875 | CF61: =+R61*KeyAssumptionsPriceControl_FO!AA$15 -> 0.1642834422 | CG61: =+S61*KeyAssumptionsPriceControl_FO!AB$15 -> 0.1680619613 | CH61: =+T61*KeyAssumptionsPriceControl_FO!AC$15 -> 0 | CI61: =+U61*KeyAssumptionsPriceControl_FO!AD$15 -> 0 | CJ61: =+V61*KeyAssumptionsPriceControl_FO!AE$15 -> 0 | CK61: =+W61*KeyAssumptionsPriceControl_FO!AF$15 -> 0 | CL61: =+X61*KeyAssumptionsPriceControl_FO!AG$15 -> 0 | CN61: 0.0017263125 | CO61: 0.00633057975 | CP61: 0.01121590794 | CQ61: 0.0152768244 | CR61: 0.01943114195 | CS61: 0.02153191646 | CT61: 0.02153191646 | CU61: 0.02153191646 | CV61: 0.02153191646 | CW61: 0.02153191646
C62: OH&S Renewals | E62: Water | F62: Renewals | G62: Treatment | H62: Capital Programs / Allocation | I62: 0 | J62: Straight line | K62: Ongoing | L62: 40 | M62: 40 | O62: 0.2552 | P62: 0.34 | Q62: 0.32 | R62: 0.272 | S62: 0.156 | T62: 0 | U62: 0 | V62: 0 | W62: 0 | X62: 0 | Z62: 0 | AA62: 0 | AB62: 0 | AC62: 0 | AD62: 0 | AE62: 0 | AF62: 0 | AG62: 0 | AH62: 0 | AI62: 0 | AK62: 0 | AL62: 0 | AM62: 0 | AN62: 0 | AO62: 0 | AP62: 0 | AQ62: 0 | AR62: 0 | AS62: 0 | AT62: 0 | AV62: 0.2552 | AW62: 0.34 | AX62: 0.32 | AY62: 0.272 | AZ62: 0.156 | BA62: 0 | BB62: 0 | BC62: 0 | BD62: 0 | BE62: 0 | BG62: 0.00319 | BH62: 0.01063 | BI62: 0.01888 | BJ62: 0.02628 | BK62: 0.03163 | BL62: 0.03358 | BM62: 0.03358 | BN62: 0.03358 | BO62: 0.03358 | BP62: 0.03358 | BR62: =+IF($K62="Ongoing",AV62,IF(RIGHT($K62,2)=RIGHT(BR$39,2),SUM($AV62:AV62),0)+IF(RIGHT(BR$39,2)>RIGHT($K62,2),AV62,0)) -> 0.2552 | BS62: =+IF($K62="Ongoing",AW62,IF(RIGHT($K62,2)=RIGHT(BS$39,2),SUM($AV62:AW62),0)+IF(RIGHT(BS$39,2)>RIGHT($K62,2),AW62,0)) -> 0.34 | BT62: =+IF($K62="Ongoing",AX62,IF(RIGHT($K62,2)=RIGHT(BT$39,2),SUM($AV62:AX62),0)+IF(RIGHT(BT$39,2)>RIGHT($K62,2),AX62,0)) -> 0.32 | BU62: =+IF($K62="Ongoing",AY62,IF(RIGHT($K62,2)=RIGHT(BU$39,2),SUM($AV62:AY62),0)+IF(RIGHT(BU$39,2)>RIGHT($K62,2),AY62,0)) -> 0.272 | BV62: =+IF($K62="Ongoing",AZ62,IF(RIGHT($K62,2)=RIGHT(BV$39,2),SUM($AV62:AZ62),0)+IF(RIGHT(BV$39,2)>RIGHT($K62,2),AZ62,0)) -> 0.156 | BW62: =+IF($K62="Ongoing",BA62,IF(RIGHT($K62,2)=RIGHT(BW$39,2),SUM($AV62:BA62),0)+IF(RIGHT(BW$39,2)>RIGHT($K62,2),BA62,0)) -> 0 | BX62: =+IF($K62="Ongoing",BB62,IF(RIGHT($K62,2)=RIGHT(BX$39,2),SUM($AV62:BB62),0)+IF(RIGHT(BX$39,2)>RIGHT($K62,2),BB62,0)) -> 0 | BY62: =+IF($K62="Ongoing",BC62,IF(RIGHT($K62,2)=RIGHT(BY$39,2),SUM($AV62:BC62),0)+IF(RIGHT(BY$39,2)>RIGHT($K62,2),BC62,0)) -> 0 | BZ62: =+IF($K62="Ongoing",BD62,IF(RIGHT($K62,2)=RIGHT(BZ$39,2),SUM($AV62:BD62),0)+IF(RIGHT(BZ$39,2)>RIGHT($K62,2),BD62,0)) -> 0 | CA62: =+IF($K62="Ongoing",BE62,IF(RIGHT($K62,2)=RIGHT(CA$39,2),SUM($AV62:BE62),0)+IF(RIGHT(CA$39,2)>RIGHT($K62,2),BE62,0)) -> 0 | CC62: =+O62*KeyAssumptionsPriceControl_FO!X$15 -> 0.2610696 | CD62: =+P62*KeyAssumptionsPriceControl_FO!Y$15 -> 0.35581986 | CE62: =+Q62*KeyAssumptionsPriceControl_FO!Z$15 -> 0.3425917334 | CF62: =+R62*KeyAssumptionsPriceControl_FO!AA$15 -> 0.2979006418 | CG62: =+S62*KeyAssumptionsPriceControl_FO!AB$15 -> 0.1747844398 | CH62: =+T62*KeyAssumptionsPriceControl_FO!AC$15 -> 0 | CI62: =+U62*KeyAssumptionsPriceControl_FO!AD$15 -> 0 | CJ62: =+V62*KeyAssumptionsPriceControl_FO!AE$15 -> 0 | CK62: =+W62*KeyAssumptionsPriceControl_FO!AF$15 -> 0 | CL62: =+X62*KeyAssumptionsPriceControl_FO!AG$15 -> 0 | CN62: 0.00326337 | CO62: 0.01097448825 | CP62: 0.01970463317 | CQ62: 0.02771078786 | CR62: 0.03361935138 | CS62: 0.03580415688 | CT62: 0.03580415688 | CU62: 0.03580415688 | CV62: 0.03580415688 | CW62: 0.03580415688
C63: OH&S Renewals | E63: Sewerage | F63: Renewals | G63: Treatment | H63: Capital Programs / Allocation | I63: 0 | J63: Straight line | K63: Ongoing | L63: 40 | M63: 40 | O63: 0.2552 | P63: 0.34 | Q63: 0.32 | R63: 0.272 | S63: 0.156 | T63: 0 | U63: 0 | V63: 0 | W63: 0 | X63: 0 | Z63: 0 | AA63: 0 | AB63: 0 | AC63: 0 | AD63: 0 | AE63: 0 | AF63: 0 | AG63: 0 | AH63: 0 | AI63: 0 | AK63: 0 | AL63: 0 | AM63: 0 | AN63: 0 | AO63: 0 | AP63: 0 | AQ63: 0 | AR63: 0 | AS63: 0 | AT63: 0 | AV63: 0.2552 | AW63: 0.34 | AX63: 0.32 | AY63: 0.272 | AZ63: 0.156 | BA63: 0 | BB63: 0 | BC63: 0 | BD63: 0 | BE63: 0 | BG63: 0.00319 | BH63: 0.01063 | BI63: 0.01888 | BJ63: 0.02628 | BK63: 0.03163 | BL63: 0.03358 | BM63: 0.03358 | BN63: 0.03358 | BO63: 0.03358 | BP63: 0.03358 | BR63: =+IF($K63="Ongoing",AV63,IF(RIGHT($K63,2)=RIGHT(BR$39,2),SUM($AV63:AV63),0)+IF(RIGHT(BR$39,2)>RIGHT($K63,2),AV63,0)) -> 0.2552 | BS63: =+IF($K63="Ongoing",AW63,IF(RIGHT($K63,2)=RIGHT(BS$39,2),SUM($AV63:AW63),0)+IF(RIGHT(BS$39,2)>RIGHT($K63,2),AW63,0)) -> 0.34 | BT63: =+IF($K63="Ongoing",AX63,IF(RIGHT($K63,2)=RIGHT(BT$39,2),SUM($AV63:AX63),0)+IF(RIGHT(BT$39,2)>RIGHT($K63,2),AX63,0)) -> 0.32 | BU63: =+IF($K63="Ongoing",AY63,IF(RIGHT($K63,2)=RIGHT(BU$39,2),SUM($AV63:AY63),0)+IF(RIGHT(BU$39,2)>RIGHT($K63,2),AY63,0)) -> 0.272 | BV63: =+IF($K63="Ongoing",AZ63,IF(RIGHT($K63,2)=RIGHT(BV$39,2),SUM($AV63:AZ63),0)+IF(RIGHT(BV$39,2)>RIGHT($K63,2),AZ63,0)) -> 0.156 | BW63: =+IF($K63="Ongoing",BA63,IF(RIGHT($K63,2)=RIGHT(BW$39,2),SUM($AV63:BA63),0)+IF(RIGHT(BW$39,2)>RIGHT($K63,2),BA63,0)) -> 0 | BX63: =+IF($K63="Ongoing",BB63,IF(RIGHT($K63,2)=RIGHT(BX$39,2),SUM($AV63:BB63),0)+IF(RIGHT(BX$39,2)>RIGHT($K63,2),BB63,0)) -> 0 | BY63: =+IF($K63="Ongoing",BC63,IF(RIGHT($K63,2)=RIGHT(BY$39,2),SUM($AV63:BC63),0)+IF(RIGHT(BY$39,2)>RIGHT($K63,2),BC63,0)) -> 0 | BZ63: =+IF($K63="Ongoing",BD63,IF(RIGHT($K63,2)=RIGHT(BZ$39,2),SUM($AV63:BD63),0)+IF(RIGHT(BZ$39,2)>RIGHT($K63,2),BD63,0)) -> 0 | CA63: =+IF($K63="Ongoing",BE63,IF(RIGHT($K63,2)=RIGHT(CA$39,2),SUM($AV63:BE63),0)+IF(RIGHT(CA$39,2)>RIGHT($K63,2),BE63,0)) -> 0 | CC63: =+O63*KeyAssumptionsPriceControl_FO!X$15 -> 0.2610696 | CD63: =+P63*KeyAssumptionsPriceControl_FO!Y$15 -> 0.35581986 | CE63: =+Q63*KeyAssumptionsPriceControl_FO!Z$15 -> 0.3425917334 | CF63: =+R63*KeyAssumptionsPriceControl_FO!AA$15 -> 0.2979006418 | CG63: =+S63*KeyAssumptionsPriceControl_FO!AB$15 -> 0.1747844398 | CH63: =+T63*KeyAssumptionsPriceControl_FO!AC$15 -> 0 | CI63: =+U63*KeyAssumptionsPriceControl_FO!AD$15 -> 0 | CJ63: =+V63*KeyAssumptionsPriceControl_FO!AE$15 -> 0 | CK63: =+W63*KeyAssumptionsPriceControl_FO!AF$15 -> 0 | CL63: =+X63*KeyAssumptionsPriceControl_FO!AG$15 -> 0 | CN63: 0.00326337 | CO63: 0.01097448825 | CP63: 0.01970463317 | CQ63: 0.02771078786 | CR63: 0.03361935138 | CS63: 0.03580415688 | CT63: 0.03580415688 | CU63: 0.03580415688 | CV63: 0.03580415688 | CW63: 0.03580415688
C64: Operational monitoring | E64: Water | F64: Renewals | G64: Pipelines/network | H64: Capital Programs / Allocation | I64: 0 | J64: Straight line | K64: Ongoing | L64: 40 | M64: 40 | O64: 0.21269808 | P64: 0.22350448 | Q64: 0.18949648 | R64: 0.1796688 | S64: 0.1834208 | T64: 0 | U64: 0 | V64: 0 | W64: 0 | X64: 0 | Z64: 0 | AA64: 0 | AB64: 0 | AC64: 0 | AD64: 0 | AE64: 0 | AF64: 0 | AG64: 0 | AH64: 0 | AI64: 0 | AK64: 0 | AL64: 0 | AM64: 0 | AN64: 0 | AO64: 0 | AP64: 0 | AQ64: 0 | AR64: 0 | AS64: 0 | AT64: 0 | AV64: 0.21269808 | AW64: 0.22350448 | AX64: 0.18949648 | AY64: 0.1796688 | AZ64: 0.1834208 | BA64: 0 | BB64: 0 | BC64: 0 | BD64: 0 | BE64: 0 | BG64: 0.002658726 | BH64: 0.008111258 | BI64: 0.01327377 | BJ64: 0.017888336 | BK64: 0.022426956 | BL64: 0.024719716 | BM64: 0.024719716 | BN64: 0.024719716 | BO64: 0.024719716 | BP64: 0.024719716 | BR64: =+IF($K64="Ongoing",AV64,IF(RIGHT($K64,2)=RIGHT(BR$39,2),SUM($AV64:AV64),0)+IF(RIGHT(BR$39,2)>RIGHT($K64,2),AV64,0)) -> 0.21269808 | BS64: =+IF($K64="Ongoing",AW64,IF(RIGHT($K64,2)=RIGHT(BS$39,2),SUM($AV64:AW64),0)+IF(RIGHT(BS$39,2)>RIGHT($K64,2),AW64,0)) -> 0.22350448 | BT64: =+IF($K64="Ongoing",AX64,IF(RIGHT($K64,2)=RIGHT(BT$39,2),SUM($AV64:AX64),0)+IF(RIGHT(BT$39,2)>RIGHT($K64,2),AX64,0)) -> 0.18949648 | BU64: =+IF($K64="Ongoing",AY64,IF(RIGHT($K64,2)=RIGHT(BU$39,2),SUM($AV64:AY64),0)+IF(RIGHT(BU$39,2)>RIGHT($K64,2),AY64,0)) -> 0.1796688 | BV64: =+IF($K64="Ongoing",AZ64,IF(RIGHT($K64,2)=RIGHT(BV$39,2),SUM($AV64:AZ64),0)+IF(RIGHT(BV$39,2)>RIGHT($K64,2),AZ64,0)) -> 0.1834208 | BW64: =+IF($K64="Ongoing",BA64,IF(RIGHT($K64,2)=RIGHT(BW$39,2),SUM($AV64:BA64),0)+IF(RIGHT(BW$39,2)>RIGHT($K64,2),BA64,0)) -> 0 | BX64: =+IF($K64="Ongoing",BB64,IF(RIGHT($K64,2)=RIGHT(BX$39,2),SUM($AV64:BB64),0)+IF(RIGHT(BX$39,2)>RIGHT($K64,2),BB64,0)) -> 0 | BY64: =+IF($K64="Ongoing",BC64,IF(RIGHT($K64,2)=RIGHT(BY$39,2),SUM($AV64:BC64),0)+IF(RIGHT(BY$39,2)>RIGHT($K64,2),BC64,0)) -> 0 | BZ64: =+IF($K64="Ongoing",BD64,IF(RIGHT($K64,2)=RIGHT(BZ$39,2),SUM($AV64:BD64),0)+IF(RIGHT(BZ$39,2)>RIGHT($K64,2),BD64,0)) -> 0 | CA64: =+IF($K64="Ongoing",BE64,IF(RIGHT($K64,2)=RIGHT(CA$39,2),SUM($AV64:BE64),0)+IF(RIGHT(CA$39,2)>RIGHT($K64,2),BE64,0)) -> 0 | CC64: =+O64*KeyAssumptionsPriceControl_FO!X$15 -> 0.2175901358 | CD64: =+P64*KeyAssumptionsPriceControl_FO!Y$15 -> 0.2339039199 | CE64: =+Q64*KeyAssumptionsPriceControl_FO!Z$15 -> 0.2028747736 | CF64: =+R64*KeyAssumptionsPriceControl_FO!AA$15 -> 0.1967773928 | CG64: =+S64*KeyAssumptionsPriceControl_FO!AB$15 -> 0.2055070627 | CH64: =+T64*KeyAssumptionsPriceControl_FO!AC$15 -> 0 | CI64: =+U64*KeyAssumptionsPriceControl_FO!AD$15 -> 0 | CJ64: =+V64*KeyAssumptionsPriceControl_FO!AE$15 -> 0 | CK64: =+W64*KeyAssumptionsPriceControl_FO!AF$15 -> 0 | CL64: =+X64*KeyAssumptionsPriceControl_FO!AG$15 -> 0 | CN64: 0.002719876698 | CO64: 0.008363552395 | CP64: 0.01382328607 | CQ64: 0.01881893815 | CR64: 0.02384749384 | CS64: 0.02641633212 | CT64: 0.02641633212 | CU64: 0.02641633212 | CV64: 0.02641633212 | CW64: 0.02641633212
C65: Operational monitoring | E65: Water | F65: Renewals | G65: Treatment | H65: Capital Programs / Allocation | I65: 0 | J65: Straight line | K65: Ongoing | L65: 40 | M65: 40 | O65: 0.21269808 | P65: 0.22350448 | Q65: 0.18949648 | R65: 0.1796688 | S65: 0.1834208 | T65: 0 | U65: 0 | V65: 0 | W65: 0 | X65: 0 | Z65: 0 | AA65: 0 | AB65: 0 | AC65: 0 | AD65: 0 | AE65: 0 | AF65: 0 | AG65: 0 | AH65: 0 | AI65: 0 | AK65: 0 | AL65: 0 | AM65: 0 | AN65: 0 | AO65: 0 | AP65: 0 | AQ65: 0 | AR65: 0 | AS65: 0 | AT65: 0 | AV65: 0.21269808 | AW65: 0.22350448 | AX65: 0.18949648 | AY65: 0.1796688 | AZ65: 0.1834208 | BA65: 0 | BB65: 0 | BC65: 0 | BD65: 0 | BE65: 0 | BG65: 0.002658726 | BH65: 0.008111258 | BI65: 0.01327377 | BJ65: 0.017888336 | BK65: 0.022426956 | BL65: 0.024719716 | BM65: 0.024719716 | BN65: 0.024719716 | BO65: 0.024719716 | BP65: 0.024719716 | BR65: =+IF($K65="Ongoing",AV65,IF(RIGHT($K65,2)=RIGHT(BR$39,2),SUM($AV65:AV65),0)+IF(RIGHT(BR$39,2)>RIGHT($K65,2),AV65,0)) -> 0.21269808 | BS65: =+IF($K65="Ongoing",AW65,IF(RIGHT($K65,2)=RIGHT(BS$39,2),SUM($AV65:AW65),0)+IF(RIGHT(BS$39,2)>RIGHT($K65,2),AW65,0)) -> 0.22350448 | BT65: =+IF($K65="Ongoing",AX65,IF(RIGHT($K65,2)=RIGHT(BT$39,2),SUM($AV65:AX65),0)+IF(RIGHT(BT$39,2)>RIGHT($K65,2),AX65,0)) -> 0.18949648 | BU65: =+IF($K65="Ongoing",AY65,IF(RIGHT($K65,2)=RIGHT(BU$39,2),SUM($AV65:AY65),0)+IF(RIGHT(BU$39,2)>RIGHT($K65,2),AY65,0)) -> 0.1796688 | BV65: =+IF($K65="Ongoing",AZ65,IF(RIGHT($K65,2)=RIGHT(BV$39,2),SUM($AV65:AZ65),0)+IF(RIGHT(BV$39,2)>RIGHT($K65,2),AZ65,0)) -> 0.1834208 | BW65: =+IF($K65="Ongoing",BA65,IF(RIGHT($K65,2)=RIGHT(BW$39,2),SUM($AV65:BA65),0)+IF(RIGHT(BW$39,2)>RIGHT($K65,2),BA65,0)) -> 0 | BX65: =+IF($K65="Ongoing",BB65,IF(RIGHT($K65,2)=RIGHT(BX$39,2),SUM($AV65:BB65),0)+IF(RIGHT(BX$39,2)>RIGHT($K65,2),BB65,0)) -> 0 | BY65: =+IF($K65="Ongoing",BC65,IF(RIGHT($K65,2)=RIGHT(BY$39,2),SUM($AV65:BC65),0)+IF(RIGHT(BY$39,2)>RIGHT($K65,2),BC65,0)) -> 0 | BZ65: =+IF($K65="Ongoing",BD65,IF(RIGHT($K65,2)=RIGHT(BZ$39,2),SUM($AV65:BD65),0)+IF(RIGHT(BZ$39,2)>RIGHT($K65,2),BD65,0)) -> 0 | CA65: =+IF($K65="Ongoing",BE65,IF(RIGHT($K65,2)=RIGHT(CA$39,2),SUM($AV65:BE65),0)+IF(RIGHT(CA$39,2)>RIGHT($K65,2),BE65,0)) -> 0 | CC65: =+O65*KeyAssumptionsPriceControl_FO!X$15 -> 0.2175901358 | CD65: =+P65*KeyAssumptionsPriceControl_FO!Y$15 -> 0.2339039199 | CE65: =+Q65*KeyAssumptionsPriceControl_FO!Z$15 -> 0.2028747736 | CF65: =+R65*KeyAssumptionsPriceControl_FO!AA$15 -> 0.1967773928 | CG65: =+S65*KeyAssumptionsPriceControl_FO!AB$15 -> 0.2055070627 | CH65: =+T65*KeyAssumptionsPriceControl_FO!AC$15 -> 0 | CI65: =+U65*KeyAssumptionsPriceControl_FO!AD$15 -> 0 | CJ65: =+V65*KeyAssumptionsPriceControl_FO!AE$15 -> 0 | CK65: =+W65*KeyAssumptionsPriceControl_FO!AF$15 -> 0 | CL65: =+X65*KeyAssumptionsPriceControl_FO!AG$15 -> 0 | CN65: 0.002719876698 | CO65: 0.008363552395 | CP65: 0.01382328607 | CQ65: 0.01881893815 | CR65: 0.02384749384 | CS65: 0.02641633212 | CT65: 0.02641633212 | CU65: 0.02641633212 | CV65: 0.02641633212 | CW65: 0.02641633212
C66: Operational monitoring | E66: Sewerage | F66: Renewals | G66: Pipelines/network | H66: Capital Programs / Allocation | I66: 0 | J66: Straight line | K66: Ongoing | L66: 40 | M66: 40 | O66: 0.21269808 | P66: 0.22350448 | Q66: 0.18949648 | R66: 0.1796688 | S66: 0.1834208 | T66: 0 | U66: 0 | V66: 0 | W66: 0 | X66: 0 | Z66: 0 | AA66: 0 | AB66: 0 | AC66: 0 | AD66: 0 | AE66: 0 | AF66: 0 | AG66: 0 | AH66: 0 | AI66: 0 | AK66: 0 | AL66: 0 | AM66: 0 | AN66: 0 | AO66: 0 | AP66: 0 | AQ66: 0 | AR66: 0 | AS66: 0 | AT66: 0 | AV66: 0.21269808 | AW66: 0.22350448 | AX66: 0.18949648 | AY66: 0.1796688 | AZ66: 0.1834208 | BA66: 0 | BB66: 0 | BC66: 0 | BD66: 0 | BE66: 0 | BG66: 0.002658726 | BH66: 0.008111258 | BI66: 0.01327377 | BJ66: 0.017888336 | BK66: 0.022426956 | BL66: 0.024719716 | BM66: 0.024719716 | BN66: 0.024719716 | BO66: 0.024719716 | BP66: 0.024719716 | BR66: =+IF($K66="Ongoing",AV66,IF(RIGHT($K66,2)=RIGHT(BR$39,2),SUM($AV66:AV66),0)+IF(RIGHT(BR$39,2)>RIGHT($K66,2),AV66,0)) -> 0.21269808 | BS66: =+IF($K66="Ongoing",AW66,IF(RIGHT($K66,2)=RIGHT(BS$39,2),SUM($AV66:AW66),0)+IF(RIGHT(BS$39,2)>RIGHT($K66,2),AW66,0)) -> 0.22350448 | BT66: =+IF($K66="Ongoing",AX66,IF(RIGHT($K66,2)=RIGHT(BT$39,2),SUM($AV66:AX66),0)+IF(RIGHT(BT$39,2)>RIGHT($K66,2),AX66,0)) -> 0.18949648 | BU66: =+IF($K66="Ongoing",AY66,IF(RIGHT($K66,2)=RIGHT(BU$39,2),SUM($AV66:AY66),0)+IF(RIGHT(BU$39,2)>RIGHT($K66,2),AY66,0)) -> 0.1796688 | BV66: =+IF($K66="Ongoing",AZ66,IF(RIGHT($K66,2)=RIGHT(BV$39,2),SUM($AV66:AZ66),0)+IF(RIGHT(BV$39,2)>RIGHT($K66,2),AZ66,0)) -> 0.1834208 | BW66: =+IF($K66="Ongoing",BA66,IF(RIGHT($K66,2)=RIGHT(BW$39,2),SUM($AV66:BA66),0)+IF(RIGHT(BW$39,2)>RIGHT($K66,2),BA66,0)) -> 0 | BX66: =+IF($K66="Ongoing",BB66,IF(RIGHT($K66,2)=RIGHT(BX$39,2),SUM($AV66:BB66),0)+IF(RIGHT(BX$39,2)>RIGHT($K66,2),BB66,0)) -> 0 | BY66: =+IF($K66="Ongoing",BC66,IF(RIGHT($K66,2)=RIGHT(BY$39,2),SUM($AV66:BC66),0)+IF(RIGHT(BY$39,2)>RIGHT($K66,2),BC66,0)) -> 0 | BZ66: =+IF($K66="Ongoing",BD66,IF(RIGHT($K66,2)=RIGHT(BZ$39,2),SUM($AV66:BD66),0)+IF(RIGHT(BZ$39,2)>RIGHT($K66,2),BD66,0)) -> 0 | CA66: =+IF($K66="Ongoing",BE66,IF(RIGHT($K66,2)=RIGHT(CA$39,2),SUM($AV66:BE66),0)+IF(RIGHT(CA$39,2)>RIGHT($K66,2),BE66,0)) -> 0 | CC66: =+O66*KeyAssumptionsPriceControl_FO!X$15 -> 0.2175901358 | CD66: =+P66*KeyAssumptionsPriceControl_FO!Y$15 -> 0.2339039199 | CE66: =+Q66*KeyAssumptionsPriceControl_FO!Z$15 -> 0.2028747736 | CF66: =+R66*KeyAssumptionsPriceControl_FO!AA$15 -> 0.1967773928 | CG66: =+S66*KeyAssumptionsPriceControl_FO!AB$15 -> 0.2055070627 | CH66: =+T66*KeyAssumptionsPriceControl_FO!AC$15 -> 0 | CI66: =+U66*KeyAssumptionsPriceControl_FO!AD$15 -> 0 | CJ66: =+V66*KeyAssumptionsPriceControl_FO!AE$15 -> 0 | CK66: =+W66*KeyAssumptionsPriceControl_FO!AF$15 -> 0 | CL66: =+X66*KeyAssumptionsPriceControl_FO!AG$15 -> 0 | CN66: 0.002719876698 | CO66: 0.008363552395 | CP66: 0.01382328607 | CQ66: 0.01881893815 | CR66: 0.02384749384 | CS66: 0.02641633212 | CT66: 0.02641633212 | CU66: 0.02641633212 | CV66: 0.02641633212 | CW66: 0.02641633212
C67: Operational monitoring | E67: Sewerage | F67: Renewals | G67: Treatment | H67: Capital Programs / Allocation | I67: 0 | J67: Straight line | K67: Ongoing | L67: 40 | M67: 40 | O67: 0.21269808 | P67: 0.22350448 | Q67: 0.18949648 | R67: 0.1796688 | S67: 0.1834208 | T67: 0 | U67: 0 | V67: 0 | W67: 0 | X67: 0 | Z67: 0 | AA67: 0 | AB67: 0 | AC67: 0 | AD67: 0 | AE67: 0 | AF67: 0 | AG67: 0 | AH67: 0 | AI67: 0 | AK67: 0 | AL67: 0 | AM67: 0 | AN67: 0 | AO67: 0 | AP67: 0 | AQ67: 0 | AR67: 0 | AS67: 0 | AT67: 0 | AV67: 0.21269808 | AW67: 0.22350448 | AX67: 0.18949648 | AY67: 0.1796688 | AZ67: 0.1834208 | BA67: 0 | BB67: 0 | BC67: 0 | BD67: 0 | BE67: 0 | BG67: 0.002658726 | BH67: 0.008111258 | BI67: 0.01327377 | BJ67: 0.017888336 | BK67: 0.022426956 | BL67: 0.024719716 | BM67: 0.024719716 | BN67: 0.024719716 | BO67: 0.024719716 | BP67: 0.024719716 | BR67: =+IF($K67="Ongoing",AV67,IF(RIGHT($K67,2)=RIGHT(BR$39,2),SUM($AV67:AV67),0)+IF(RIGHT(BR$39,2)>RIGHT($K67,2),AV67,0)) -> 0.21269808 | BS67: =+IF($K67="Ongoing",AW67,IF(RIGHT($K67,2)=RIGHT(BS$39,2),SUM($AV67:AW67),0)+IF(RIGHT(BS$39,2)>RIGHT($K67,2),AW67,0)) -> 0.22350448 | BT67: =+IF($K67="Ongoing",AX67,IF(RIGHT($K67,2)=RIGHT(BT$39,2),SUM($AV67:AX67),0)+IF(RIGHT(BT$39,2)>RIGHT($K67,2),AX67,0)) -> 0.18949648 | BU67: =+IF($K67="Ongoing",AY67,IF(RIGHT($K67,2)=RIGHT(BU$39,2),SUM($AV67:AY67),0)+IF(RIGHT(BU$39,2)>RIGHT($K67,2),AY67,0)) -> 0.1796688 | BV67: =+IF($K67="Ongoing",AZ67,IF(RIGHT($K67,2)=RIGHT(BV$39,2),SUM($AV67:AZ67),0)+IF(RIGHT(BV$39,2)>RIGHT($K67,2),AZ67,0)) -> 0.1834208 | BW67: =+IF($K67="Ongoing",BA67,IF(RIGHT($K67,2)=RIGHT(BW$39,2),SUM($AV67:BA67),0)+IF(RIGHT(BW$39,2)>RIGHT($K67,2),BA67,0)) -> 0 | BX67: =+IF($K67="Ongoing",BB67,IF(RIGHT($K67,2)=RIGHT(BX$39,2),SUM($AV67:BB67),0)+IF(RIGHT(BX$39,2)>RIGHT($K67,2),BB67,0)) -> 0 | BY67: =+IF($K67="Ongoing",BC67,IF(RIGHT($K67,2)=RIGHT(BY$39,2),SUM($AV67:BC67),0)+IF(RIGHT(BY$39,2)>RIGHT($K67,2),BC67,0)) -> 0 | BZ67: =+IF($K67="Ongoing",BD67,IF(RIGHT($K67,2)=RIGHT(BZ$39,2),SUM($AV67:BD67),0)+IF(RIGHT(BZ$39,2)>RIGHT($K67,2),BD67,0)) -> 0 | CA67: =+IF($K67="Ongoing",BE67,IF(RIGHT($K67,2)=RIGHT(CA$39,2),SUM($AV67:BE67),0)+IF(RIGHT(CA$39,2)>RIGHT($K67,2),BE67,0)) -> 0 | CC67: =+O67*KeyAssumptionsPriceControl_FO!X$15 -> 0.2175901358 | CD67: =+P67*KeyAssumptionsPriceControl_FO!Y$15 -> 0.2339039199 | CE67: =+Q67*KeyAssumptionsPriceControl_FO!Z$15 -> 0.2028747736 | CF67: =+R67*KeyAssumptionsPriceControl_FO!AA$15 -> 0.1967773928 | CG67: =+S67*KeyAssumptionsPriceControl_FO!AB$15 -> 0.2055070627 | CH67: =+T67*KeyAssumptionsPriceControl_FO!AC$15 -> 0 | CI67: =+U67*KeyAssumptionsPriceControl_FO!AD$15 -> 0 | CJ67: =+V67*KeyAssumptionsPriceControl_FO!AE$15 -> 0 | CK67: =+W67*KeyAssumptionsPriceControl_FO!AF$15 -> 0 | CL67: =+X67*KeyAssumptionsPriceControl_FO!AG$15 -> 0 | CN67: 0.002719876698 | CO67: 0.008363552395 | CP67: 0.01382328607 | CQ67: 0.01881893815 | CR67: 0.02384749384 | CS67: 0.02641633212 | CT67: 0.02641633212 | CU67: 0.02641633212 | CV67: 0.02641633212 | CW67: 0.02641633212
C68: Operational monitoring | E68: Recycled Water | F68: Renewals | G68: Pipelines/network | H68: Capital Programs / Allocation | I68: 0 | J68: Straight line | K68: Ongoing | L68: 40 | M68: 40 | O68: 0.21269808 | P68: 0.22350448 | Q68: 0.18949648 | R68: 0.1796688 | S68: 0.1834208 | T68: 0 | U68: 0 | V68: 0 | W68: 0 | X68: 0 | Z68: 0 | AA68: 0 | AB68: 0 | AC68: 0 | AD68: 0 | AE68: 0 | AF68: 0 | AG68: 0 | AH68: 0 | AI68: 0 | AK68: 0 | AL68: 0 | AM68: 0 | AN68: 0 | AO68: 0 | AP68: 0 | AQ68: 0 | AR68: 0 | AS68: 0 | AT68: 0 | AV68: 0.21269808 | AW68: 0.22350448 | AX68: 0.18949648 | AY68: 0.1796688 | AZ68: 0.1834208 | BA68: 0 | BB68: 0 | BC68: 0 | BD68: 0 | BE68: 0 | BG68: 0.002658726 | BH68: 0.008111258 | BI68: 0.01327377 | BJ68: 0.017888336 | BK68: 0.022426956 | BL68: 0.024719716 | BM68: 0.024719716 | BN68: 0.024719716 | BO68: 0.024719716 | BP68: 0.024719716 | BR68: =+IF($K68="Ongoing",AV68,IF(RIGHT($K68,2)=RIGHT(BR$39,2),SUM($AV68:AV68),0)+IF(RIGHT(BR$39,2)>RIGHT($K68,2),AV68,0)) -> 0.21269808 | BS68: =+IF($K68="Ongoing",AW68,IF(RIGHT($K68,2)=RIGHT(BS$39,2),SUM($AV68:AW68),0)+IF(RIGHT(BS$39,2)>RIGHT($K68,2),AW68,0)) -> 0.22350448 | BT68: =+IF($K68="Ongoing",AX68,IF(RIGHT($K68,2)=RIGHT(BT$39,2),SUM($AV68:AX68),0)+IF(RIGHT(BT$39,2)>RIGHT($K68,2),AX68,0)) -> 0.18949648 | BU68: =+IF($K68="Ongoing",AY68,IF(RIGHT($K68,2)=RIGHT(BU$39,2),SUM($AV68:AY68),0)+IF(RIGHT(BU$39,2)>RIGHT($K68,2),AY68,0)) -> 0.1796688 | BV68: =+IF($K68="Ongoing",AZ68,IF(RIGHT($K68,2)=RIGHT(BV$39,2),SUM($AV68:AZ68),0)+IF(RIGHT(BV$39,2)>RIGHT($K68,2),AZ68,0)) -> 0.1834208 | BW68: =+IF($K68="Ongoing",BA68,IF(RIGHT($K68,2)=RIGHT(BW$39,2),SUM($AV68:BA68),0)+IF(RIGHT(BW$39,2)>RIGHT($K68,2),BA68,0)) -> 0 | BX68: =+IF($K68="Ongoing",BB68,IF(RIGHT($K68,2)=RIGHT(BX$39,2),SUM($AV68:BB68),0)+IF(RIGHT(BX$39,2)>RIGHT($K68,2),BB68,0)) -> 0 | BY68: =+IF($K68="Ongoing",BC68,IF(RIGHT($K68,2)=RIGHT(BY$39,2),SUM($AV68:BC68),0)+IF(RIGHT(BY$39,2)>RIGHT($K68,2),BC68,0)) -> 0 | BZ68: =+IF($K68="Ongoing",BD68,IF(RIGHT($K68,2)=RIGHT(BZ$39,2),SUM($AV68:BD68),0)+IF(RIGHT(BZ$39,2)>RIGHT($K68,2),BD68,0)) -> 0 | CA68: =+IF($K68="Ongoing",BE68,IF(RIGHT($K68,2)=RIGHT(CA$39,2),SUM($AV68:BE68),0)+IF(RIGHT(CA$39,2)>RIGHT($K68,2),BE68,0)) -> 0 | CC68: =+O68*KeyAssumptionsPriceControl_FO!X$15 -> 0.2175901358 | CD68: =+P68*KeyAssumptionsPriceControl_FO!Y$15 -> 0.2339039199 | CE68: =+Q68*KeyAssumptionsPriceControl_FO!Z$15 -> 0.2028747736 | CF68: =+R68*KeyAssumptionsPriceControl_FO!AA$15 -> 0.1967773928 | CG68: =+S68*KeyAssumptionsPriceControl_FO!AB$15 -> 0.2055070627 | CH68: =+T68*KeyAssumptionsPriceControl_FO!AC$15 -> 0 | CI68: =+U68*KeyAssumptionsPriceControl_FO!AD$15 -> 0 | CJ68: =+V68*KeyAssumptionsPriceControl_FO!AE$15 -> 0 | CK68: =+W68*KeyAssumptionsPriceControl_FO!AF$15 -> 0 | CL68: =+X68*KeyAssumptionsPriceControl_FO!AG$15 -> 0 | CN68: 0.002719876698 | CO68: 0.008363552395 | CP68: 0.01382328607 | CQ68: 0.01881893815 | CR68: 0.02384749384 | CS68: 0.02641633212 | CT68: 0.02641633212 | CU68: 0.02641633212 | CV68: 0.02641633212 | CW68: 0.02641633212
C69: PCRM to Capital | E69: Water | F69: Renewals | G69: Pipelines/network | H69: Capital Programs / Allocation | I69: 0 | J69: Straight line | K69: Ongoing | L69: 40 | M69: 40 | O69: 0.28245425 | P69: 0.2772445 | Q69: 0.281255 | R69: 0.28828625 | S69: 0.2927255 | T69: 0 | U69: 0 | V69: 0 | W69: 0 | X69: 0 | Z69: 0 | AA69: 0 | AB69: 0 | AC69: 0 | AD69: 0 | AE69: 0 | AF69: 0 | AG69: 0 | AH69: 0 | AI69: 0 | AK69: 0 | AL69: 0 | AM69: 0 | AN69: 0 | AO69: 0 | AP69: 0 | AQ69: 0 | AR69: 0 | AS69: 0 | AT69: 0 | AV69: 0.28245425 | AW69: 0.2772445 | AX69: 0.281255 | AY69: 0.28828625 | AZ69: 0.2927255 | BA69: 0 | BB69: 0 | BC69: 0 | BD69: 0 | BE69: 0 | BG69: 0.003530678125 | BH69: 0.0105269125 | BI69: 0.01750815625 | BJ69: 0.02462742187 | BK69: 0.03189006875 | BL69: 0.0355491375 | BM69: 0.0355491375 | BN69: 0.0355491375 | BO69: 0.0355491375 | BP69: 0.0355491375 | BR69: =+IF($K69="Ongoing",AV69,IF(RIGHT($K69,2)=RIGHT(BR$39,2),SUM($AV69:AV69),0)+IF(RIGHT(BR$39,2)>RIGHT($K69,2),AV69,0)) -> 0.28245425 | BS69: =+IF($K69="Ongoing",AW69,IF(RIGHT($K69,2)=RIGHT(BS$39,2),SUM($AV69:AW69),0)+IF(RIGHT(BS$39,2)>RIGHT($K69,2),AW69,0)) -> 0.2772445 | BT69: =+IF($K69="Ongoing",AX69,IF(RIGHT($K69,2)=RIGHT(BT$39,2),SUM($AV69:AX69),0)+IF(RIGHT(BT$39,2)>RIGHT($K69,2),AX69,0)) -> 0.281255 | BU69: =+IF($K69="Ongoing",AY69,IF(RIGHT($K69,2)=RIGHT(BU$39,2),SUM($AV69:AY69),0)+IF(RIGHT(BU$39,2)>RIGHT($K69,2),AY69,0)) -> 0.28828625 | BV69: =+IF($K69="Ongoing",AZ69,IF(RIGHT($K69,2)=RIGHT(BV$39,2),SUM($AV69:AZ69),0)+IF(RIGHT(BV$39,2)>RIGHT($K69,2),AZ69,0)) -> 0.2927255 | BW69: =+IF($K69="Ongoing",BA69,IF(RIGHT($K69,2)=RIGHT(BW$39,2),SUM($AV69:BA69),0)+IF(RIGHT(BW$39,2)>RIGHT($K69,2),BA69,0)) -> 0 | BX69: =+IF($K69="Ongoing",BB69,IF(RIGHT($K69,2)=RIGHT(BX$39,2),SUM($AV69:BB69),0)+IF(RIGHT(BX$39,2)>RIGHT($K69,2),BB69,0)) -> 0 | BY69: =+IF($K69="Ongoing",BC69,IF(RIGHT($K69,2)=RIGHT(BY$39,2),SUM($AV69:BC69),0)+IF(RIGHT(BY$39,2)>RIGHT($K69,2),BC69,0)) -> 0 | BZ69: =+IF($K69="Ongoing",BD69,IF(RIGHT($K69,2)=RIGHT(BZ$39,2),SUM($AV69:BD69),0)+IF(RIGHT(BZ$39,2)>RIGHT($K69,2),BD69,0)) -> 0 | CA69: =+IF($K69="Ongoing",BE69,IF(RIGHT($K69,2)=RIGHT(CA$39,2),SUM($AV69:BE69),0)+IF(RIGHT(CA$39,2)>RIGHT($K69,2),BE69,0)) -> 0 | CC69: =+O69*KeyAssumptionsPriceControl_FO!X$15 -> 0.2889506977 | CD69: =+P69*KeyAssumptionsPriceControl_FO!Y$15 -> 0.2901444093 | CE69: =+Q69*KeyAssumptionsPriceControl_FO!Z$15 -> 0.3011113687 | CF69: =+R69*KeyAssumptionsPriceControl_FO!AA$15 -> 0.3157377165 | CG69: =+S69*KeyAssumptionsPriceControl_FO!AB$15 -> 0.3279734778 | CH69: =+T69*KeyAssumptionsPriceControl_FO!AC$15 -> 0 | CI69: =+U69*KeyAssumptionsPriceControl_FO!AD$15 -> 0 | CJ69: =+V69*KeyAssumptionsPriceControl_FO!AE$15 -> 0 | CK69: =+W69*KeyAssumptionsPriceControl_FO!AF$15 -> 0 | CL69: =+X69*KeyAssumptionsPriceControl_FO!AG$15 -> 0 | CN69: 0.003611883722 | CO69: 0.01085057256 | CP69: 0.01824126979 | CQ69: 0.02595188335 | CR69: 0.03399827328 | CS69: 0.03809794175 | CT69: 0.03809794175 | CU69: 0.03809794175 | CV69: 0.03809794175 | CW69: 0.03809794175
C70: PCRM to Capital | E70: Water | F70: Renewals | G70: Treatment | H70: Capital Programs / Allocation | I70: 0 | J70: Straight line | K70: Ongoing | L70: 40 | M70: 40 | O70: 0.28245425 | P70: 0.2772445 | Q70: 0.281255 | R70: 0.28828625 | S70: 0.2927255 | T70: 0 | U70: 0 | V70: 0 | W70: 0 | X70: 0 | Z70: 0 | AA70: 0 | AB70: 0 | AC70: 0 | AD70: 0 | AE70: 0 | AF70: 0 | AG70: 0 | AH70: 0 | AI70: 0 | AK70: 0 | AL70: 0 | AM70: 0 | AN70: 0 | AO70: 0 | AP70: 0 | AQ70: 0 | AR70: 0 | AS70: 0 | AT70: 0 | AV70: 0.28245425 | AW70: 0.2772445 | AX70: 0.281255 | AY70: 0.28828625 | AZ70: 0.2927255 | BA70: 0 | BB70: 0 | BC70: 0 | BD70: 0 | BE70: 0 | BG70: 0.003530678125 | BH70: 0.0105269125 | BI70: 0.01750815625 | BJ70: 0.02462742187 | BK70: 0.03189006875 | BL70: 0.0355491375 | BM70: 0.0355491375 | BN70: 0.0355491375 | BO70: 0.0355491375 | BP70: 0.0355491375 | BR70: =+IF($K70="Ongoing",AV70,IF(RIGHT($K70,2)=RIGHT(BR$39,2),SUM($AV70:AV70),0)+IF(RIGHT(BR$39,2)>RIGHT($K70,2),AV70,0)) -> 0.28245425 | BS70: =+IF($K70="Ongoing",AW70,IF(RIGHT($K70,2)=RIGHT(BS$39,2),SUM($AV70:AW70),0)+IF(RIGHT(BS$39,2)>RIGHT($K70,2),AW70,0)) -> 0.2772445 | BT70: =+IF($K70="Ongoing",AX70,IF(RIGHT($K70,2)=RIGHT(BT$39,2),SUM($AV70:AX70),0)+IF(RIGHT(BT$39,2)>RIGHT($K70,2),AX70,0)) -> 0.281255 | BU70: =+IF($K70="Ongoing",AY70,IF(RIGHT($K70,2)=RIGHT(BU$39,2),SUM($AV70:AY70),0)+IF(RIGHT(BU$39,2)>RIGHT($K70,2),AY70,0)) -> 0.28828625 | BV70: =+IF($K70="Ongoing",AZ70,IF(RIGHT($K70,2)=RIGHT(BV$39,2),SUM($AV70:AZ70),0)+IF(RIGHT(BV$39,2)>RIGHT($K70,2),AZ70,0)) -> 0.2927255 | BW70: =+IF($K70="Ongoing",BA70,IF(RIGHT($K70,2)=RIGHT(BW$39,2),SUM($AV70:BA70),0)+IF(RIGHT(BW$39,2)>RIGHT($K70,2),BA70,0)) -> 0 | BX70: =+IF($K70="Ongoing",BB70,IF(RIGHT($K70,2)=RIGHT(BX$39,2),SUM($AV70:BB70),0)+IF(RIGHT(BX$39,2)>RIGHT($K70,2),BB70,0)) -> 0 | BY70: =+IF($K70="Ongoing",BC70,IF(RIGHT($K70,2)=RIGHT(BY$39,2),SUM($AV70:BC70),0)+IF(RIGHT(BY$39,2)>RIGHT($K70,2),BC70,0)) -> 0 | BZ70: =+IF($K70="Ongoing",BD70,IF(RIGHT($K70,2)=RIGHT(BZ$39,2),SUM($AV70:BD70),0)+IF(RIGHT(BZ$39,2)>RIGHT($K70,2),BD70,0)) -> 0 | CA70: =+IF($K70="Ongoing",BE70,IF(RIGHT($K70,2)=RIGHT(CA$39,2),SUM($AV70:BE70),0)+IF(RIGHT(CA$39,2)>RIGHT($K70,2),BE70,0)) -> 0 | CC70: =+O70*KeyAssumptionsPriceControl_FO!X$15 -> 0.2889506977 | CD70: =+P70*KeyAssumptionsPriceControl_FO!Y$15 -> 0.2901444093 | CE70: =+Q70*KeyAssumptionsPriceControl_FO!Z$15 -> 0.3011113687 | CF70: =+R70*KeyAssumptionsPriceControl_FO!AA$15 -> 0.3157377165 | CG70: =+S70*KeyAssumptionsPriceControl_FO!AB$15 -> 0.3279734778 | CH70: =+T70*KeyAssumptionsPriceControl_FO!AC$15 -> 0 | CI70: =+U70*KeyAssumptionsPriceControl_FO!AD$15 -> 0 | CJ70: =+V70*KeyAssumptionsPriceControl_FO!AE$15 -> 0 | CK70: =+W70*KeyAssumptionsPriceControl_FO!AF$15 -> 0 | CL70: =+X70*KeyAssumptionsPriceControl_FO!AG$15 -> 0 | CN70: 0.003611883722 | CO70: 0.01085057256 | CP70: 0.01824126979 | CQ70: 0.02595188335 | CR70: 0.03399827328 | CS70: 0.03809794175 | CT70: 0.03809794175 | CU70: 0.03809794175 | CV70: 0.03809794175 | CW70: 0.03809794175
C71: PCRM to Capital | E71: Sewerage | F71: Renewals | G71: Pipelines/network | H71: Capital Programs / Allocation | I71: 0 | J71: Straight line | K71: Ongoing | L71: 40 | M71: 40 | O71: 0.28245425 | P71: 0.2772445 | Q71: 0.281255 | R71: 0.28828625 | S71: 0.2927255 | T71: 0 | U71: 0 | V71: 0 | W71: 0 | X71: 0 | Z71: 0 | AA71: 0 | AB71: 0 | AC71: 0 | AD71: 0 | AE71: 0 | AF71: 0 | AG71: 0 | AH71: 0 | AI71: 0 | AK71: 0 | AL71: 0 | AM71: 0 | AN71: 0 | AO71: 0 | AP71: 0 | AQ71: 0 | AR71: 0 | AS71: 0 | AT71: 0 | AV71: 0.28245425 | AW71: 0.2772445 | AX71: 0.281255 | AY71: 0.28828625 | AZ71: 0.2927255 | BA71: 0 | BB71: 0 | BC71: 0 | BD71: 0 | BE71: 0 | BG71: 0.003530678125 | BH71: 0.0105269125 | BI71: 0.01750815625 | BJ71: 0.02462742187 | BK71: 0.03189006875 | BL71: 0.0355491375 | BM71: 0.0355491375 | BN71: 0.0355491375 | BO71: 0.0355491375 | BP71: 0.0355491375 | BR71: =+IF($K71="Ongoing",AV71,IF(RIGHT($K71,2)=RIGHT(BR$39,2),SUM($AV71:AV71),0)+IF(RIGHT(BR$39,2)>RIGHT($K71,2),AV71,0)) -> 0.28245425 | BS71: =+IF($K71="Ongoing",AW71,IF(RIGHT($K71,2)=RIGHT(BS$39,2),SUM($AV71:AW71),0)+IF(RIGHT(BS$39,2)>RIGHT($K71,2),AW71,0)) -> 0.2772445 | BT71: =+IF($K71="Ongoing",AX71,IF(RIGHT($K71,2)=RIGHT(BT$39,2),SUM($AV71:AX71),0)+IF(RIGHT(BT$39,2)>RIGHT($K71,2),AX71,0)) -> 0.281255 | BU71: =+IF($K71="Ongoing",AY71,IF(RIGHT($K71,2)=RIGHT(BU$39,2),SUM($AV71:AY71),0)+IF(RIGHT(BU$39,2)>RIGHT($K71,2),AY71,0)) -> 0.28828625 | BV71: =+IF($K71="Ongoing",AZ71,IF(RIGHT($K71,2)=RIGHT(BV$39,2),SUM($AV71:AZ71),0)+IF(RIGHT(BV$39,2)>RIGHT($K71,2),AZ71,0)) -> 0.2927255 | BW71: =+IF($K71="Ongoing",BA71,IF(RIGHT($K71,2)=RIGHT(BW$39,2),SUM($AV71:BA71),0)+IF(RIGHT(BW$39,2)>RIGHT($K71,2),BA71,0)) -> 0 | BX71: =+IF($K71="Ongoing",BB71,IF(RIGHT($K71,2)=RIGHT(BX$39,2),SUM($AV71:BB71),0)+IF(RIGHT(BX$39,2)>RIGHT($K71,2),BB71,0)) -> 0 | BY71: =+IF($K71="Ongoing",BC71,IF(RIGHT($K71,2)=RIGHT(BY$39,2),SUM($AV71:BC71),0)+IF(RIGHT(BY$39,2)>RIGHT($K71,2),BC71,0)) -> 0 | BZ71: =+IF($K71="Ongoing",BD71,IF(RIGHT($K71,2)=RIGHT(BZ$39,2),SUM($AV71:BD71),0)+IF(RIGHT(BZ$39,2)>RIGHT($K71,2),BD71,0)) -> 0 | CA71: =+IF($K71="Ongoing",BE71,IF(RIGHT($K71,2)=RIGHT(CA$39,2),SUM($AV71:BE71),0)+IF(RIGHT(CA$39,2)>RIGHT($K71,2),BE71,0)) -> 0 | CC71: =+O71*KeyAssumptionsPriceControl_FO!X$15 -> 0.2889506977 | CD71: =+P71*KeyAssumptionsPriceControl_FO!Y$15 -> 0.2901444093 | CE71: =+Q71*KeyAssumptionsPriceControl_FO!Z$15 -> 0.3011113687 | CF71: =+R71*KeyAssumptionsPriceControl_FO!AA$15 -> 0.3157377165 | CG71: =+S71*KeyAssumptionsPriceControl_FO!AB$15 -> 0.3279734778 | CH71: =+T71*KeyAssumptionsPriceControl_FO!AC$15 -> 0 | CI71: =+U71*KeyAssumptionsPriceControl_FO!AD$15 -> 0 | CJ71: =+V71*KeyAssumptionsPriceControl_FO!AE$15 -> 0 | CK71: =+W71*KeyAssumptionsPriceControl_FO!AF$15 -> 0 | CL71: =+X71*KeyAssumptionsPriceControl_FO!AG$15 -> 0 | CN71: 0.003611883722 | CO71: 0.01085057256 | CP71: 0.01824126979 | CQ71: 0.02595188335 | CR71: 0.03399827328 | CS71: 0.03809794175 | CT71: 0.03809794175 | CU71: 0.03809794175 | CV71: 0.03809794175 | CW71: 0.03809794175
C72: PCRM to Capital | E72: Sewerage | F72: Renewals | G72: Treatment | H72: Capital Programs / Allocation | I72: 0 | J72: Straight line | K72: Ongoing | L72: 40 | M72: 40 | O72: 0.28245425 | P72: 0.2772445 | Q72: 0.281255 | R72: 0.28828625 | S72: 0.2927255 | T72: 0 | U72: 0 | V72: 0 | W72: 0 | X72: 0 | Z72: 0 | AA72: 0 | AB72: 0 | AC72: 0 | AD72: 0 | AE72: 0 | AF72: 0 | AG72: 0 | AH72: 0 | AI72: 0 | AK72: 0 | AL72: 0 | AM72: 0 | AN72: 0 | AO72: 0 | AP72: 0 | AQ72: 0 | AR72: 0 | AS72: 0 | AT72: 0 | AV72: 0.28245425 | AW72: 0.2772445 | AX72: 0.281255 | AY72: 0.28828625 | AZ72: 0.2927255 | BA72: 0 | BB72: 0 | BC72: 0 | BD72: 0 | BE72: 0 | BG72: 0.003530678125 | BH72: 0.0105269125 | BI72: 0.01750815625 | BJ72: 0.02462742187 | BK72: 0.03189006875 | BL72: 0.0355491375 | BM72: 0.0355491375 | BN72: 0.0355491375 | BO72: 0.0355491375 | BP72: 0.0355491375 | BR72: =+IF($K72="Ongoing",AV72,IF(RIGHT($K72,2)=RIGHT(BR$39,2),SUM($AV72:AV72),0)+IF(RIGHT(BR$39,2)>RIGHT($K72,2),AV72,0)) -> 0.28245425 | BS72: =+IF($K72="Ongoing",AW72,IF(RIGHT($K72,2)=RIGHT(BS$39,2),SUM($AV72:AW72),0)+IF(RIGHT(BS$39,2)>RIGHT($K72,2),AW72,0)) -> 0.2772445 | BT72: =+IF($K72="Ongoing",AX72,IF(RIGHT($K72,2)=RIGHT(BT$39,2),SUM($AV72:AX72),0)+IF(RIGHT(BT$39,2)>RIGHT($K72,2),AX72,0)) -> 0.281255 | BU72: =+IF($K72="Ongoing",AY72,IF(RIGHT($K72,2)=RIGHT(BU$39,2),SUM($AV72:AY72),0)+IF(RIGHT(BU$39,2)>RIGHT($K72,2),AY72,0)) -> 0.28828625 | BV72: =+IF($K72="Ongoing",AZ72,IF(RIGHT($K72,2)=RIGHT(BV$39,2),SUM($AV72:AZ72),0)+IF(RIGHT(BV$39,2)>RIGHT($K72,2),AZ72,0)) -> 0.2927255 | BW72: =+IF($K72="Ongoing",BA72,IF(RIGHT($K72,2)=RIGHT(BW$39,2),SUM($AV72:BA72),0)+IF(RIGHT(BW$39,2)>RIGHT($K72,2),BA72,0)) -> 0 | BX72: =+IF($K72="Ongoing",BB72,IF(RIGHT($K72,2)=RIGHT(BX$39,2),SUM($AV72:BB72),0)+IF(RIGHT(BX$39,2)>RIGHT($K72,2),BB72,0)) -> 0 | BY72: =+IF($K72="Ongoing",BC72,IF(RIGHT($K72,2)=RIGHT(BY$39,2),SUM($AV72:BC72),0)+IF(RIGHT(BY$39,2)>RIGHT($K72,2),BC72,0)) -> 0 | BZ72: =+IF($K72="Ongoing",BD72,IF(RIGHT($K72,2)=RIGHT(BZ$39,2),SUM($AV72:BD72),0)+IF(RIGHT(BZ$39,2)>RIGHT($K72,2),BD72,0)) -> 0 | CA72: =+IF($K72="Ongoing",BE72,IF(RIGHT($K72,2)=RIGHT(CA$39,2),SUM($AV72:BE72),0)+IF(RIGHT(CA$39,2)>RIGHT($K72,2),BE72,0)) -> 0 | CC72: =+O72*KeyAssumptionsPriceControl_FO!X$15 -> 0.2889506977 | CD72: =+P72*KeyAssumptionsPriceControl_FO!Y$15 -> 0.2901444093 | CE72: =+Q72*KeyAssumptionsPriceControl_FO!Z$15 -> 0.3011113687 | CF72: =+R72*KeyAssumptionsPriceControl_FO!AA$15 -> 0.3157377165 | CG72: =+S72*KeyAssumptionsPriceControl_FO!AB$15 -> 0.3279734778 | CH72: =+T72*KeyAssumptionsPriceControl_FO!AC$15 -> 0 | CI72: =+U72*KeyAssumptionsPriceControl_FO!AD$15 -> 0 | CJ72: =+V72*KeyAssumptionsPriceControl_FO!AE$15 -> 0 | CK72: =+W72*KeyAssumptionsPriceControl_FO!AF$15 -> 0 | CL72: =+X72*KeyAssumptionsPriceControl_FO!AG$15 -> 0 | CN72: 0.003611883722 | CO72: 0.01085057256 | CP72: 0.01824126979 | CQ72: 0.02595188335 | CR72: 0.03399827328 | CS72: 0.03809794175 | CT72: 0.03809794175 | CU72: 0.03809794175 | CV72: 0.03809794175 | CW72: 0.03809794175
C73: Rural channel efficiency | E73: Rural Water | F73: Improvements / Compliance | G73: Pipelines/network | H73: Capital Programs / Allocation | I73: 0 | J73: Straight line | K73: Ongoing | L73: 40 | M73: 40 | O73: 0.15 | P73: 0.15 | Q73: 0.2 | R73: 0.15 | S73: 0.15 | T73: 0 | U73: 0 | V73: 0 | W73: 0 | X73: 0 | Z73: 0 | AA73: 0 | AB73: 0 | AC73: 0 | AD73: 0 | AE73: 0 | AF73: 0 | AG73: 0 | AH73: 0 | AI73: 0 | AK73: 0 | AL73: 0 | AM73: 0 | AN73: 0 | AO73: 0 | AP73: 0 | AQ73: 0 | AR73: 0 | AS73: 0 | AT73: 0 | AV73: 0.15 | AW73: 0.15 | AX73: 0.2 | AY73: 0.15 | AZ73: 0.15 | BA73: 0 | BB73: 0 | BC73: 0 | BD73: 0 | BE73: 0 | BG73: 0.001875 | BH73: 0.005625 | BI73: 0.01 | BJ73: 0.014375 | BK73: 0.018125 | BL73: 0.02 | BM73: 0.02 | BN73: 0.02 | BO73: 0.02 | BP73: 0.02 | BR73: =+IF($K73="Ongoing",AV73,IF(RIGHT($K73,2)=RIGHT(BR$39,2),SUM($AV73:AV73),0)+IF(RIGHT(BR$39,2)>RIGHT($K73,2),AV73,0)) -> 0.15 | BS73: =+IF($K73="Ongoing",AW73,IF(RIGHT($K73,2)=RIGHT(BS$39,2),SUM($AV73:AW73),0)+IF(RIGHT(BS$39,2)>RIGHT($K73,2),AW73,0)) -> 0.15 | BT73: =+IF($K73="Ongoing",AX73,IF(RIGHT($K73,2)=RIGHT(BT$39,2),SUM($AV73:AX73),0)+IF(RIGHT(BT$39,2)>RIGHT($K73,2),AX73,0)) -> 0.2 | BU73: =+IF($K73="Ongoing",AY73,IF(RIGHT($K73,2)=RIGHT(BU$39,2),SUM($AV73:AY73),0)+IF(RIGHT(BU$39,2)>RIGHT($K73,2),AY73,0)) -> 0.15 | BV73: =+IF($K73="Ongoing",AZ73,IF(RIGHT($K73,2)=RIGHT(BV$39,2),SUM($AV73:AZ73),0)+IF(RIGHT(BV$39,2)>RIGHT($K73,2),AZ73,0)) -> 0.15 | BW73: =+IF($K73="Ongoing",BA73,IF(RIGHT($K73,2)=RIGHT(BW$39,2),SUM($AV73:BA73),0)+IF(RIGHT(BW$39,2)>RIGHT($K73,2),BA73,0)) -> 0 | BX73: =+IF($K73="Ongoing",BB73,IF(RIGHT($K73,2)=RIGHT(BX$39,2),SUM($AV73:BB73),0)+IF(RIGHT(BX$39,2)>RIGHT($K73,2),BB73,0)) -> 0 | BY73: =+IF($K73="Ongoing",BC73,IF(RIGHT($K73,2)=RIGHT(BY$39,2),SUM($AV73:BC73),0)+IF(RIGHT(BY$39,2)>RIGHT($K73,2),BC73,0)) -> 0 | BZ73: =+IF($K73="Ongoing",BD73,IF(RIGHT($K73,2)=RIGHT(BZ$39,2),SUM($AV73:BD73),0)+IF(RIGHT(BZ$39,2)>RIGHT($K73,2),BD73,0)) -> 0 | CA73: =+IF($K73="Ongoing",BE73,IF(RIGHT($K73,2)=RIGHT(CA$39,2),SUM($AV73:BE73),0)+IF(RIGHT(CA$39,2)>RIGHT($K73,2),BE73,0)) -> 0 | CC73: =+O73*KeyAssumptionsPriceControl_FO!X$15 -> 0.15345 | CD73: =+P73*KeyAssumptionsPriceControl_FO!Y$15 -> 0.15697935 | CE73: =+Q73*KeyAssumptionsPriceControl_FO!Z$15 -> 0.2141198334 | CF73: =+R73*KeyAssumptionsPriceControl_FO!AA$15 -> 0.1642834422 | CG73: =+S73*KeyAssumptionsPriceControl_FO!AB$15 -> 0.1680619613 | CH73: =+T73*KeyAssumptionsPriceControl_FO!AC$15 -> 0 | CI73: =+U73*KeyAssumptionsPriceControl_FO!AD$15 -> 0 | CJ73: =+V73*KeyAssumptionsPriceControl_FO!AE$15 -> 0 | CK73: =+W73*KeyAssumptionsPriceControl_FO!AF$15 -> 0 | CL73: =+X73*KeyAssumptionsPriceControl_FO!AG$15 -> 0 | CN73: 0.001918125 | CO73: 0.005798491875 | CP73: 0.01043723167 | CQ73: 0.01516727261 | CR73: 0.01932159016 | CS73: 0.02142236467 | CT73: 0.02142236467 | CU73: 0.02142236467 | CV73: 0.02142236467 | CW73: 0.02142236467
C74: Rural channels renewals | E74: Rural Water | F74: Renewals | G74: Pipelines/network | H74: Capital Programs / Allocation | I74: 0 | J74: Straight line | K74: Ongoing | L74: 40 | M74: 40 | O74: 0.5101373347 | P74: 1.606373347 | Q74: 1.606373347 | R74: 1.133392675 | S74: 0.255 | T74: 0 | U74: 0 | V74: 0 | W74: 0 | X74: 0 | Z74: 0 | AA74: 0 | AB74: 0 | AC74: 0 | AD74: 0 | AE74: 0 | AF74: 0 | AG74: 0 | AH74: 0 | AI74: 0 | AK74: 0 | AL74: 0 | AM74: 0 | AN74: 0 | AO74: 0 | AP74: 0 | AQ74: 0 | AR74: 0 | AS74: 0 | AT74: 0 | AV74: 0.5101373347 | AW74: 1.606373347 | AX74: 1.606373347 | AY74: 1.133392675 | AZ74: 0.255 | BA74: 0 | BB74: 0 | BC74: 0 | BD74: 0 | BE74: 0 | BG74: 0.006376716684 | BH74: 0.0328331002 | BI74: 0.07299243388 | BJ74: 0.1072395092 | BK74: 0.1245944176 | BL74: 0.1277819176 | BM74: 0.1277819176 | BN74: 0.1277819176 | BO74: 0.1277819176 | BP74: 0.1277819176 | BR74: =+IF($K74="Ongoing",AV74,IF(RIGHT($K74,2)=RIGHT(BR$39,2),SUM($AV74:AV74),0)+IF(RIGHT(BR$39,2)>RIGHT($K74,2),AV74,0)) -> 0.5101373347 | BS74: =+IF($K74="Ongoing",AW74,IF(RIGHT($K74,2)=RIGHT(BS$39,2),SUM($AV74:AW74),0)+IF(RIGHT(BS$39,2)>RIGHT($K74,2),AW74,0)) -> 1.606373347 | BT74: =+IF($K74="Ongoing",AX74,IF(RIGHT($K74,2)=RIGHT(BT$39,2),SUM($AV74:AX74),0)+IF(RIGHT(BT$39,2)>RIGHT($K74,2),AX74,0)) -> 1.606373347 | BU74: =+IF($K74="Ongoing",AY74,IF(RIGHT($K74,2)=RIGHT(BU$39,2),SUM($AV74:AY74),0)+IF(RIGHT(BU$39,2)>RIGHT($K74,2),AY74,0)) -> 1.133392675 | BV74: =+IF($K74="Ongoing",AZ74,IF(RIGHT($K74,2)=RIGHT(BV$39,2),SUM($AV74:AZ74),0)+IF(RIGHT(BV$39,2)>RIGHT($K74,2),AZ74,0)) -> 0.255 | BW74: =+IF($K74="Ongoing",BA74,IF(RIGHT($K74,2)=RIGHT(BW$39,2),SUM($AV74:BA74),0)+IF(RIGHT(BW$39,2)>RIGHT($K74,2),BA74,0)) -> 0 | BX74: =+IF($K74="Ongoing",BB74,IF(RIGHT($K74,2)=RIGHT(BX$39,2),SUM($AV74:BB74),0)+IF(RIGHT(BX$39,2)>RIGHT($K74,2),BB74,0)) -> 0 | BY74: =+IF($K74="Ongoing",BC74,IF(RIGHT($K74,2)=RIGHT(BY$39,2),SUM($AV74:BC74),0)+IF(RIGHT(BY$39,2)>RIGHT($K74,2),BC74,0)) -> 0 | BZ74: =+IF($K74="Ongoing",BD74,IF(RIGHT($K74,2)=RIGHT(BZ$39,2),SUM($AV74:BD74),0)+IF(RIGHT(BZ$39,2)>RIGHT($K74,2),BD74,0)) -> 0 | CA74: =+IF($K74="Ongoing",BE74,IF(RIGHT($K74,2)=RIGHT(CA$39,2),SUM($AV74:BE74),0)+IF(RIGHT(CA$39,2)>RIGHT($K74,2),BE74,0)) -> 0 | CC74: =+O74*KeyAssumptionsPriceControl_FO!X$15 -> 0.5218704934 | CD74: =+P74*KeyAssumptionsPriceControl_FO!Y$15 -> 1.681116292 | CE74: =+Q74*KeyAssumptionsPriceControl_FO!Z$15 -> 1.719781967 | CF74: =+R74*KeyAssumptionsPriceControl_FO!AA$15 -> 1.241317667 | CG74: =+S74*KeyAssumptionsPriceControl_FO!AB$15 -> 0.2857053343 | CH74: =+T74*KeyAssumptionsPriceControl_FO!AC$15 -> 0 | CI74: =+U74*KeyAssumptionsPriceControl_FO!AD$15 -> 0 | CJ74: =+V74*KeyAssumptionsPriceControl_FO!AE$15 -> 0 | CK74: =+W74*KeyAssumptionsPriceControl_FO!AF$15 -> 0 | CL74: =+X74*KeyAssumptionsPriceControl_FO!AG$15 -> 0 | CN74: 0.006523381167 | CO74: 0.03406071599 | CP74: 0.07657194423 | CQ74: 0.1135856897 | CR74: 0.1326734772 | CS74: 0.1362447939 | CT74: 0.1362447939 | CU74: 0.1362447939 | CV74: 0.1362447939 | CW74: 0.1362447939
C75: Sewer Network Growth | E75: Sewerage | F75: Growth | G75: Pipelines/network | H75: Capital Programs / Allocation | I75: 0 | J75: Straight line | K75: Ongoing | L75: 40 | M75: 40 | O75: 3.361113 | P75: 0.797121 | Q75: 1.148638 | R75: 2.138791 | S75: 1.114222 | T75: 0 | U75: 0 | V75: 0 | W75: 0 | X75: 0 | Z75: 0 | AA75: 0 | AB75: 0 | AC75: 0 | AD75: 0 | AE75: 0 | AF75: 0 | AG75: 0 | AH75: 0 | AI75: 0 | AK75: 0 | AL75: 0 | AM75: 0 | AN75: 0 | AO75: 0 | AP75: 0 | AQ75: 0 | AR75: 0 | AS75: 0 | AT75: 0 | AV75: 3.361113 | AW75: 0.797121 | AX75: 1.148638 | AY75: 2.138791 | AZ75: 1.114222 | BA75: 0 | BB75: 0 | BC75: 0 | BD75: 0 | BE75: 0 | BG75: 0.0420139125 | BH75: 0.0939918375 | BI75: 0.118313825 | BJ75: 0.1594066875 | BK75: 0.20006935 | BL75: 0.213997125 | BM75: 0.213997125 | BN75: 0.213997125 | BO75: 0.213997125 | BP75: 0.213997125 | BR75: =+IF($K75="Ongoing",AV75,IF(RIGHT($K75,2)=RIGHT(BR$39,2),SUM($AV75:AV75),0)+IF(RIGHT(BR$39,2)>RIGHT($K75,2),AV75,0)) -> 3.361113 | BS75: =+IF($K75="Ongoing",AW75,IF(RIGHT($K75,2)=RIGHT(BS$39,2),SUM($AV75:AW75),0)+IF(RIGHT(BS$39,2)>RIGHT($K75,2),AW75,0)) -> 0.797121 | BT75: =+IF($K75="Ongoing",AX75,IF(RIGHT($K75,2)=RIGHT(BT$39,2),SUM($AV75:AX75),0)+IF(RIGHT(BT$39,2)>RIGHT($K75,2),AX75,0)) -> 1.148638 | BU75: =+IF($K75="Ongoing",AY75,IF(RIGHT($K75,2)=RIGHT(BU$39,2),SUM($AV75:AY75),0)+IF(RIGHT(BU$39,2)>RIGHT($K75,2),AY75,0)) -> 2.138791 | BV75: =+IF($K75="Ongoing",AZ75,IF(RIGHT($K75,2)=RIGHT(BV$39,2),SUM($AV75:AZ75),0)+IF(RIGHT(BV$39,2)>RIGHT($K75,2),AZ75,0)) -> 1.114222 | BW75: =+IF($K75="Ongoing",BA75,IF(RIGHT($K75,2)=RIGHT(BW$39,2),SUM($AV75:BA75),0)+IF(RIGHT(BW$39,2)>RIGHT($K75,2),BA75,0)) -> 0 | BX75: =+IF($K75="Ongoing",BB75,IF(RIGHT($K75,2)=RIGHT(BX$39,2),SUM($AV75:BB75),0)+IF(RIGHT(BX$39,2)>RIGHT($K75,2),BB75,0)) -> 0 | BY75: =+IF($K75="Ongoing",BC75,IF(RIGHT($K75,2)=RIGHT(BY$39,2),SUM($AV75:BC75),0)+IF(RIGHT(BY$39,2)>RIGHT($K75,2),BC75,0)) -> 0 | BZ75: =+IF($K75="Ongoing",BD75,IF(RIGHT($K75,2)=RIGHT(BZ$39,2),SUM($AV75:BD75),0)+IF(RIGHT(BZ$39,2)>RIGHT($K75,2),BD75,0)) -> 0 | CA75: =+IF($K75="Ongoing",BE75,IF(RIGHT($K75,2)=RIGHT(CA$39,2),SUM($AV75:BE75),0)+IF(RIGHT(CA$39,2)>RIGHT($K75,2),BE75,0)) -> 0 | CC75: =+O75*KeyAssumptionsPriceControl_FO!X$15 -> 3.438418599 | CD75: =+P75*KeyAssumptionsPriceControl_FO!Y$15 -> 0.834210243 | CE75: =+Q75*KeyAssumptionsPriceControl_FO!Z$15 -> 1.229730886 | CF75: =+R75*KeyAssumptionsPriceControl_FO!AA$15 -> 2.342452984 | CG75: =+S75*KeyAssumptionsPriceControl_FO!AB$15 -> 1.248388898 | CH75: =+T75*KeyAssumptionsPriceControl_FO!AC$15 -> 0 | CI75: =+U75*KeyAssumptionsPriceControl_FO!AD$15 -> 0 | CJ75: =+V75*KeyAssumptionsPriceControl_FO!AE$15 -> 0 | CK75: =+W75*KeyAssumptionsPriceControl_FO!AF$15 -> 0 | CL75: =+X75*KeyAssumptionsPriceControl_FO!AG$15 -> 0 | CN75: 0.04298023249 | CO75: 0.09638809301 | CP75: 0.1221873571 | CQ75: 0.1668396555 | CR75: 0.211725179 | CS75: 0.2273300402 | CT75: 0.2273300402 | CU75: 0.2273300402 | CV75: 0.2273300402 | CW75: 0.2273300402
C76: Sewer Network Renewals | E76: Sewerage | F76: Renewals | G76: Pipelines/network | H76: Capital Programs / Allocation | I76: 0 | J76: Straight line | K76: Ongoing | L76: 40 | M76: 40 | O76: 1.717 | P76: 0.892 | Q76: 1.156 | R76: 1.0688 | S76: 1.1584 | T76: 0 | U76: 0 | V76: 0 | W76: 0 | X76: 0 | Z76: 0 | AA76: 0 | AB76: 0 | AC76: 0 | AD76: 0 | AE76: 0 | AF76: 0 | AG76: 0 | AH76: 0 | AI76: 0 | AK76: 0 | AL76: 0 | AM76: 0 | AN76: 0 | AO76: 0 | AP76: 0 | AQ76: 0 | AR76: 0 | AS76: 0 | AT76: 0 | AV76: 1.717 | AW76: 0.892 | AX76: 1.156 | AY76: 1.0688 | AZ76: 1.1584 | BA76: 0 | BB76: 0 | BC76: 0 | BD76: 0 | BE76: 0 | BG76: 0.0214625 | BH76: 0.054075 | BI76: 0.079675 | BJ76: 0.107485 | BK76: 0.135325 | BL76: 0.149805 | BM76: 0.149805 | BN76: 0.149805 | BO76: 0.149805 | BP76: 0.149805 | BR76: =+IF($K76="Ongoing",AV76,IF(RIGHT($K76,2)=RIGHT(BR$39,2),SUM($AV76:AV76),0)+IF(RIGHT(BR$39,2)>RIGHT($K76,2),AV76,0)) -> 1.717 | BS76: =+IF($K76="Ongoing",AW76,IF(RIGHT($K76,2)=RIGHT(BS$39,2),SUM($AV76:AW76),0)+IF(RIGHT(BS$39,2)>RIGHT($K76,2),AW76,0)) -> 0.892 | BT76: =+IF($K76="Ongoing",AX76,IF(RIGHT($K76,2)=RIGHT(BT$39,2),SUM($AV76:AX76),0)+IF(RIGHT(BT$39,2)>RIGHT($K76,2),AX76,0)) -> 1.156 | BU76: =+IF($K76="Ongoing",AY76,IF(RIGHT($K76,2)=RIGHT(BU$39,2),SUM($AV76:AY76),0)+IF(RIGHT(BU$39,2)>RIGHT($K76,2),AY76,0)) -> 1.0688 | BV76: =+IF($K76="Ongoing",AZ76,IF(RIGHT($K76,2)=RIGHT(BV$39,2),SUM($AV76:AZ76),0)+IF(RIGHT(BV$39,2)>RIGHT($K76,2),AZ76,0)) -> 1.1584 | BW76: =+IF($K76="Ongoing",BA76,IF(RIGHT($K76,2)=RIGHT(BW$39,2),SUM($AV76:BA76),0)+IF(RIGHT(BW$39,2)>RIGHT($K76,2),BA76,0)) -> 0 | BX76: =+IF($K76="Ongoing",BB76,IF(RIGHT($K76,2)=RIGHT(BX$39,2),SUM($AV76:BB76),0)+IF(RIGHT(BX$39,2)>RIGHT($K76,2),BB76,0)) -> 0 | BY76: =+IF($K76="Ongoing",BC76,IF(RIGHT($K76,2)=RIGHT(BY$39,2),SUM($AV76:BC76),0)+IF(RIGHT(BY$39,2)>RIGHT($K76,2),BC76,0)) -> 0 | BZ76: =+IF($K76="Ongoing",BD76,IF(RIGHT($K76,2)=RIGHT(BZ$39,2),SUM($AV76:BD76),0)+IF(RIGHT(BZ$39,2)>RIGHT($K76,2),BD76,0)) -> 0 | CA76: =+IF($K76="Ongoing",BE76,IF(RIGHT($K76,2)=RIGHT(CA$39,2),SUM($AV76:BE76),0)+IF(RIGHT(CA$39,2)>RIGHT($K76,2),BE76,0)) -> 0 | CC76: =+O76*KeyAssumptionsPriceControl_FO!X$15 -> 1.756491 | CD76: =+P76*KeyAssumptionsPriceControl_FO!Y$15 -> 0.933503868 | CE76: =+Q76*KeyAssumptionsPriceControl_FO!Z$15 -> 1.237612637 | CF76: =+R76*KeyAssumptionsPriceControl_FO!AA$15 -> 1.170574287 | CG76: =+S76*KeyAssumptionsPriceControl_FO!AB$15 -> 1.297886507 | CH76: =+T76*KeyAssumptionsPriceControl_FO!AC$15 -> 0 | CI76: =+U76*KeyAssumptionsPriceControl_FO!AD$15 -> 0 | CJ76: =+V76*KeyAssumptionsPriceControl_FO!AE$15 -> 0 | CK76: =+W76*KeyAssumptionsPriceControl_FO!AF$15 -> 0 | CL76: =+X76*KeyAssumptionsPriceControl_FO!AG$15 -> 0 | CN76: 0.0219561375 | CO76: 0.05558107335 | CP76: 0.08272002966 | CQ76: 0.1128223662 | CR76: 0.1436781261 | CS76: 0.1599017075 | CT76: 0.1599017075 | CU76: 0.1599017075 | CV76: 0.1599017075 | CW76: 0.1599017075
C77: Vehicle Replacements | E77: Water | F77: Improvements / Compliance | G77: Corporate | H77: Capital Programs / Allocation | I77: 0 | J77: Straight line | K77: Ongoing | L77: 40 | M77: 40 | O77: 0.110878 | P77: 0.0968345 | Q77: 0.116491 | R77: 0.0773685 | S77: 0.1049045 | T77: 0 | U77: 0 | V77: 0 | W77: 0 | X77: 0 | Z77: 0 | AA77: 0 | AB77: 0 | AC77: 0 | AD77: 0 | AE77: 0 | AF77: 0 | AG77: 0 | AH77: 0 | AI77: 0 | AK77: 0 | AL77: 0 | AM77: 0 | AN77: 0 | AO77: 0 | AP77: 0 | AQ77: 0 | AR77: 0 | AS77: 0 | AT77: 0 | AV77: 0.110878 | AW77: 0.0968345 | AX77: 0.116491 | AY77: 0.0773685 | AZ77: 0.1049045 | BA77: 0 | BB77: 0 | BC77: 0 | BD77: 0 | BE77: 0 | BG77: 0.001385975 | BH77: 0.00398238125 | BI77: 0.00664895 | BJ77: 0.00907219375 | BK77: 0.01135060625 | BL77: 0.0126619125 | BM77: 0.0126619125 | BN77: 0.0126619125 | BO77: 0.0126619125 | BP77: 0.0126619125 | BR77: =+IF($K77="Ongoing",AV77,IF(RIGHT($K77,2)=RIGHT(BR$39,2),SUM($AV77:AV77),0)+IF(RIGHT(BR$39,2)>RIGHT($K77,2),AV77,0)) -> 0.110878 | BS77: =+IF($K77="Ongoing",AW77,IF(RIGHT($K77,2)=RIGHT(BS$39,2),SUM($AV77:AW77),0)+IF(RIGHT(BS$39,2)>RIGHT($K77,2),AW77,0)) -> 0.0968345 | BT77: =+IF($K77="Ongoing",AX77,IF(RIGHT($K77,2)=RIGHT(BT$39,2),SUM($AV77:AX77),0)+IF(RIGHT(BT$39,2)>RIGHT($K77,2),AX77,0)) -> 0.116491 | BU77: =+IF($K77="Ongoing",AY77,IF(RIGHT($K77,2)=RIGHT(BU$39,2),SUM($AV77:AY77),0)+IF(RIGHT(BU$39,2)>RIGHT($K77,2),AY77,0)) -> 0.0773685 | BV77: =+IF($K77="Ongoing",AZ77,IF(RIGHT($K77,2)=RIGHT(BV$39,2),SUM($AV77:AZ77),0)+IF(RIGHT(BV$39,2)>RIGHT($K77,2),AZ77,0)) -> 0.1049045 | BW77: =+IF($K77="Ongoing",BA77,IF(RIGHT($K77,2)=RIGHT(BW$39,2),SUM($AV77:BA77),0)+IF(RIGHT(BW$39,2)>RIGHT($K77,2),BA77,0)) -> 0 | BX77: =+IF($K77="Ongoing",BB77,IF(RIGHT($K77,2)=RIGHT(BX$39,2),SUM($AV77:BB77),0)+IF(RIGHT(BX$39,2)>RIGHT($K77,2),BB77,0)) -> 0 | BY77: =+IF($K77="Ongoing",BC77,IF(RIGHT($K77,2)=RIGHT(BY$39,2),SUM($AV77:BC77),0)+IF(RIGHT(BY$39,2)>RIGHT($K77,2),BC77,0)) -> 0 | BZ77: =+IF($K77="Ongoing",BD77,IF(RIGHT($K77,2)=RIGHT(BZ$39,2),SUM($AV77:BD77),0)+IF(RIGHT(BZ$39,2)>RIGHT($K77,2),BD77,0)) -> 0 | CA77: =+IF($K77="Ongoing",BE77,IF(RIGHT($K77,2)=RIGHT(CA$39,2),SUM($AV77:BE77),0)+IF(RIGHT(CA$39,2)>RIGHT($K77,2),BE77,0)) -> 0 | CC77: =+O77*KeyAssumptionsPriceControl_FO!X$15 -> 0.113428194 | CD77: =+P77*KeyAssumptionsPriceControl_FO!Y$15 -> 0.1013401125 | CE77: =+Q77*KeyAssumptionsPriceControl_FO!Z$15 -> 0.1247151676 | CF77: =+R77*KeyAssumptionsPriceControl_FO!AA$15 -> 0.08473575664 | CG77: =+S77*KeyAssumptionsPriceControl_FO!AB$15 -> 0.1175363735 | CH77: =+T77*KeyAssumptionsPriceControl_FO!AC$15 -> 0 | CI77: =+U77*KeyAssumptionsPriceControl_FO!AD$15 -> 0 | CJ77: =+V77*KeyAssumptionsPriceControl_FO!AE$15 -> 0 | CK77: =+W77*KeyAssumptionsPriceControl_FO!AF$15 -> 0 | CL77: =+X77*KeyAssumptionsPriceControl_FO!AG$15 -> 0 | CN77: 0.001417852425 | CO77: 0.004102456256 | CP77: 0.006928147256 | CQ77: 0.009546283808 | CR77: 0.01207468544 | CS77: 0.0135438901 | CT77: 0.0135438901 | CU77: 0.0135438901 | CV77: 0.0135438901 | CW77: 0.0135438901
C78: Vehicle Replacements | E78: Sewerage | F78: Improvements / Compliance | G78: Corporate | H78: Capital Programs / Allocation | I78: 0 | J78: Straight line | K78: Ongoing | L78: 40 | M78: 40 | O78: 0.110878 | P78: 0.0968345 | Q78: 0.116491 | R78: 0.0773685 | S78: 0.1049045 | T78: 0 | U78: 0 | V78: 0 | W78: 0 | X78: 0 | Z78: 0 | AA78: 0 | AB78: 0 | AC78: 0 | AD78: 0 | AE78: 0 | AF78: 0 | AG78: 0 | AH78: 0 | AI78: 0 | AK78: 0 | AL78: 0 | AM78: 0 | AN78: 0 | AO78: 0 | AP78: 0 | AQ78: 0 | AR78: 0 | AS78: 0 | AT78: 0 | AV78: 0.110878 | AW78: 0.0968345 | AX78: 0.116491 | AY78: 0.0773685 | AZ78: 0.1049045 | BA78: 0 | BB78: 0 | BC78: 0 | BD78: 0 | BE78: 0 | BG78: 0.001385975 | BH78: 0.00398238125 | BI78: 0.00664895 | BJ78: 0.00907219375 | BK78: 0.01135060625 | BL78: 0.0126619125 | BM78: 0.0126619125 | BN78: 0.0126619125 | BO78: 0.0126619125 | BP78: 0.0126619125 | BR78: =+IF($K78="Ongoing",AV78,IF(RIGHT($K78,2)=RIGHT(BR$39,2),SUM($AV78:AV78),0)+IF(RIGHT(BR$39,2)>RIGHT($K78,2),AV78,0)) -> 0.110878 | BS78: =+IF($K78="Ongoing",AW78,IF(RIGHT($K78,2)=RIGHT(BS$39,2),SUM($AV78:AW78),0)+IF(RIGHT(BS$39,2)>RIGHT($K78,2),AW78,0)) -> 0.0968345 | BT78: =+IF($K78="Ongoing",AX78,IF(RIGHT($K78,2)=RIGHT(BT$39,2),SUM($AV78:AX78),0)+IF(RIGHT(BT$39,2)>RIGHT($K78,2),AX78,0)) -> 0.116491 | BU78: =+IF($K78="Ongoing",AY78,IF(RIGHT($K78,2)=RIGHT(BU$39,2),SUM($AV78:AY78),0)+IF(RIGHT(BU$39,2)>RIGHT($K78,2),AY78,0)) -> 0.0773685 | BV78: =+IF($K78="Ongoing",AZ78,IF(RIGHT($K78,2)=RIGHT(BV$39,2),SUM($AV78:AZ78),0)+IF(RIGHT(BV$39,2)>RIGHT($K78,2),AZ78,0)) -> 0.1049045 | BW78: =+IF($K78="Ongoing",BA78,IF(RIGHT($K78,2)=RIGHT(BW$39,2),SUM($AV78:BA78),0)+IF(RIGHT(BW$39,2)>RIGHT($K78,2),BA78,0)) -> 0 | BX78: =+IF($K78="Ongoing",BB78,IF(RIGHT($K78,2)=RIGHT(BX$39,2),SUM($AV78:BB78),0)+IF(RIGHT(BX$39,2)>RIGHT($K78,2),BB78,0)) -> 0 | BY78: =+IF($K78="Ongoing",BC78,IF(RIGHT($K78,2)=RIGHT(BY$39,2),SUM($AV78:BC78),0)+IF(RIGHT(BY$39,2)>RIGHT($K78,2),BC78,0)) -> 0 | BZ78: =+IF($K78="Ongoing",BD78,IF(RIGHT($K78,2)=RIGHT(BZ$39,2),SUM($AV78:BD78),0)+IF(RIGHT(BZ$39,2)>RIGHT($K78,2),BD78,0)) -> 0 | CA78: =+IF($K78="Ongoing",BE78,IF(RIGHT($K78,2)=RIGHT(CA$39,2),SUM($AV78:BE78),0)+IF(RIGHT(CA$39,2)>RIGHT($K78,2),BE78,0)) -> 0 | CC78: =+O78*KeyAssumptionsPriceControl_FO!X$15 -> 0.113428194 | CD78: =+P78*KeyAssumptionsPriceControl_FO!Y$15 -> 0.1013401125 | CE78: =+Q78*KeyAssumptionsPriceControl_FO!Z$15 -> 0.1247151676 | CF78: =+R78*KeyAssumptionsPriceControl_FO!AA$15 -> 0.08473575664 | CG78: =+S78*KeyAssumptionsPriceControl_FO!AB$15 -> 0.1175363735 | CH78: =+T78*KeyAssumptionsPriceControl_FO!AC$15 -> 0 | CI78: =+U78*KeyAssumptionsPriceControl_FO!AD$15 -> 0 | CJ78: =+V78*KeyAssumptionsPriceControl_FO!AE$15 -> 0 | CK78: =+W78*KeyAssumptionsPriceControl_FO!AF$15 -> 0 | CL78: =+X78*KeyAssumptionsPriceControl_FO!AG$15 -> 0 | CN78: 0.001417852425 | CO78: 0.004102456256 | CP78: 0.006928147256 | CQ78: 0.009546283808 | CR78: 0.01207468544 | CS78: 0.0135438901 | CT78: 0.0135438901 | CU78: 0.0135438901 | CV78: 0.0135438901 | CW78: 0.0135438901
C79: Water Network Growth | E79: Water | F79: Growth | G79: Pipelines/network | H79: Capital Programs / Allocation | I79: 0 | J79: Straight line | K79: Ongoing | L79: 40 | M79: 40 | O79: 0.9448176 | P79: 0.9783326 | Q79: 1.7648136 | R79: 4.272999578 | S79: 6.42421851 | T79: 0 | U79: 0 | V79: 0 | W79: 0 | X79: 0 | Z79: 0 | AA79: 0 | AB79: 0 | AC79: 0 | AD79: 0 | AE79: 0 | AF79: 0 | AG79: 0 | AH79: 0 | AI79: 0 | AK79: 0 | AL79: 0 | AM79: 0 | AN79: 0 | AO79: 0 | AP79: 0 | AQ79: 0 | AR79: 0 | AS79: 0 | AT79: 0 | AV79: 0.9448176 | AW79: 0.9783326 | AX79: 1.7648136 | AY79: 4.272999578 | AZ79: 6.42421851 | BA79: 0 | BB79: 0 | BC79: 0 | BD79: 0 | BE79: 0 | BG79: 0.01181022 | BH79: 0.0358495975 | BI79: 0.070138925 | BJ79: 0.1456115897 | BK79: 0.2793268158 | BL79: 0.3596295472 | BM79: 0.3596295472 | BN79: 0.3596295472 | BO79: 0.3596295472 | BP79: 0.3596295472 | BR79: =+IF($K79="Ongoing",AV79,IF(RIGHT($K79,2)=RIGHT(BR$39,2),SUM($AV79:AV79),0)+IF(RIGHT(BR$39,2)>RIGHT($K79,2),AV79,0)) -> 0.9448176 | BS79: =+IF($K79="Ongoing",AW79,IF(RIGHT($K79,2)=RIGHT(BS$39,2),SUM($AV79:AW79),0)+IF(RIGHT(BS$39,2)>RIGHT($K79,2),AW79,0)) -> 0.9783326 | BT79: =+IF($K79="Ongoing",AX79,IF(RIGHT($K79,2)=RIGHT(BT$39,2),SUM($AV79:AX79),0)+IF(RIGHT(BT$39,2)>RIGHT($K79,2),AX79,0)) -> 1.7648136 | BU79: =+IF($K79="Ongoing",AY79,IF(RIGHT($K79,2)=RIGHT(BU$39,2),SUM($AV79:AY79),0)+IF(RIGHT(BU$39,2)>RIGHT($K79,2),AY79,0)) -> 4.272999578 | BV79: =+IF($K79="Ongoing",AZ79,IF(RIGHT($K79,2)=RIGHT(BV$39,2),SUM($AV79:AZ79),0)+IF(RIGHT(BV$39,2)>RIGHT($K79,2),AZ79,0)) -> 6.42421851 | BW79: =+IF($K79="Ongoing",BA79,IF(RIGHT($K79,2)=RIGHT(BW$39,2),SUM($AV79:BA79),0)+IF(RIGHT(BW$39,2)>RIGHT($K79,2),BA79,0)) -> 0 | BX79: =+IF($K79="Ongoing",BB79,IF(RIGHT($K79,2)=RIGHT(BX$39,2),SUM($AV79:BB79),0)+IF(RIGHT(BX$39,2)>RIGHT($K79,2),BB79,0)) -> 0 | BY79: =+IF($K79="Ongoing",BC79,IF(RIGHT($K79,2)=RIGHT(BY$39,2),SUM($AV79:BC79),0)+IF(RIGHT(BY$39,2)>RIGHT($K79,2),BC79,0)) -> 0 | BZ79: =+IF($K79="Ongoing",BD79,IF(RIGHT($K79,2)=RIGHT(BZ$39,2),SUM($AV79:BD79),0)+IF(RIGHT(BZ$39,2)>RIGHT($K79,2),BD79,0)) -> 0 | CA79: =+IF($K79="Ongoing",BE79,IF(RIGHT($K79,2)=RIGHT(CA$39,2),SUM($AV79:BE79),0)+IF(RIGHT(CA$39,2)>RIGHT($K79,2),BE79,0)) -> 0 | CC79: =+O79*KeyAssumptionsPriceControl_FO!X$15 -> 0.9665484048 | CD79: =+P79*KeyAssumptionsPriceControl_FO!Y$15 -> 1.023853438 | CE79: =+Q79*KeyAssumptionsPriceControl_FO!Z$15 -> 1.88940797 | CF79: =+R79*KeyAssumptionsPriceControl_FO!AA$15 -> 4.679887193 | CG79: =+S79*KeyAssumptionsPriceControl_FO!AB$15 -> 7.19777842 | CH79: =+T79*KeyAssumptionsPriceControl_FO!AC$15 -> 0 | CI79: =+U79*KeyAssumptionsPriceControl_FO!AD$15 -> 0 | CJ79: =+V79*KeyAssumptionsPriceControl_FO!AE$15 -> 0 | CK79: =+W79*KeyAssumptionsPriceControl_FO!AF$15 -> 0 | CL79: =+X79*KeyAssumptionsPriceControl_FO!AG$15 -> 0 | CN79: 0.01208185506 | CO79: 0.03696187809 | CP79: 0.07337764568 | CQ79: 0.1554938352 | CR79: 0.3039646554 | CS79: 0.3939368856 | CT79: 0.3939368856 | CU79: 0.3939368856 | CV79: 0.3939368856 | CW79: 0.3939368856
C80: Water Network Renewals | E80: Water | F80: Renewals | G80: Pipelines/network | H80: Capital Programs / Allocation | I80: 0 | J80: Straight line | K80: Ongoing | L80: 40 | M80: 40 | O80: 1.238 | P80: 1.334 | Q80: 1.238 | R80: 1.475122 | S80: 2.438487 | T80: 0 | U80: 0 | V80: 0 | W80: 0 | X80: 0 | Z80: 0 | AA80: 0 | AB80: 0 | AC80: 0 | AD80: 0 | AE80: 0 | AF80: 0 | AG80: 0 | AH80: 0 | AI80: 0 | AK80: 0 | AL80: 0 | AM80: 0 | AN80: 0 | AO80: 0 | AP80: 0 | AQ80: 0 | AR80: 0 | AS80: 0 | AT80: 0 | AV80: 1.238 | AW80: 1.334 | AX80: 1.238 | AY80: 1.475122 | AZ80: 2.438487 | BA80: 0 | BB80: 0 | BC80: 0 | BD80: 0 | BE80: 0 | BG80: 0.015475 | BH80: 0.047625 | BI80: 0.079775 | BJ80: 0.113689025 | BK80: 0.1626091375 | BL80: 0.193090225 | BM80: 0.193090225 | BN80: 0.193090225 | BO80: 0.193090225 | BP80: 0.193090225 | BR80: =+IF($K80="Ongoing",AV80,IF(RIGHT($K80,2)=RIGHT(BR$39,2),SUM($AV80:AV80),0)+IF(RIGHT(BR$39,2)>RIGHT($K80,2),AV80,0)) -> 1.238 | BS80: =+IF($K80="Ongoing",AW80,IF(RIGHT($K80,2)=RIGHT(BS$39,2),SUM($AV80:AW80),0)+IF(RIGHT(BS$39,2)>RIGHT($K80,2),AW80,0)) -> 1.334 | BT80: =+IF($K80="Ongoing",AX80,IF(RIGHT($K80,2)=RIGHT(BT$39,2),SUM($AV80:AX80),0)+IF(RIGHT(BT$39,2)>RIGHT($K80,2),AX80,0)) -> 1.238 | BU80: =+IF($K80="Ongoing",AY80,IF(RIGHT($K80,2)=RIGHT(BU$39,2),SUM($AV80:AY80),0)+IF(RIGHT(BU$39,2)>RIGHT($K80,2),AY80,0)) -> 1.475122 | BV80: =+IF($K80="Ongoing",AZ80,IF(RIGHT($K80,2)=RIGHT(BV$39,2),SUM($AV80:AZ80),0)+IF(RIGHT(BV$39,2)>RIGHT($K80,2),AZ80,0)) -> 2.438487 | BW80: =+IF($K80="Ongoing",BA80,IF(RIGHT($K80,2)=RIGHT(BW$39,2),SUM($AV80:BA80),0)+IF(RIGHT(BW$39,2)>RIGHT($K80,2),BA80,0)) -> 0 | BX80: =+IF($K80="Ongoing",BB80,IF(RIGHT($K80,2)=RIGHT(BX$39,2),SUM($AV80:BB80),0)+IF(RIGHT(BX$39,2)>RIGHT($K80,2),BB80,0)) -> 0 | BY80: =+IF($K80="Ongoing",BC80,IF(RIGHT($K80,2)=RIGHT(BY$39,2),SUM($AV80:BC80),0)+IF(RIGHT(BY$39,2)>RIGHT($K80,2),BC80,0)) -> 0 | BZ80: =+IF($K80="Ongoing",BD80,IF(RIGHT($K80,2)=RIGHT(BZ$39,2),SUM($AV80:BD80),0)+IF(RIGHT(BZ$39,2)>RIGHT($K80,2),BD80,0)) -> 0 | CA80: =+IF($K80="Ongoing",BE80,IF(RIGHT($K80,2)=RIGHT(CA$39,2),SUM($AV80:BE80),0)+IF(RIGHT(CA$39,2)>RIGHT($K80,2),BE80,0)) -> 0 | CC80: =+O80*KeyAssumptionsPriceControl_FO!X$15 -> 1.266474 | CD80: =+P80*KeyAssumptionsPriceControl_FO!Y$15 -> 1.396069686 | CE80: =+Q80*KeyAssumptionsPriceControl_FO!Z$15 -> 1.325401769 | CF80: =+R80*KeyAssumptionsPriceControl_FO!AA$15 -> 1.615587465 | CG80: =+S80*KeyAssumptionsPriceControl_FO!AB$15 -> 2.73211272 | CH80: =+T80*KeyAssumptionsPriceControl_FO!AC$15 -> 0 | CI80: =+U80*KeyAssumptionsPriceControl_FO!AD$15 -> 0 | CJ80: =+V80*KeyAssumptionsPriceControl_FO!AE$15 -> 0 | CK80: =+W80*KeyAssumptionsPriceControl_FO!AF$15 -> 0 | CL80: =+X80*KeyAssumptionsPriceControl_FO!AG$15 -> 0 | CN80: 0.015830925 | CO80: 0.04911272108 | CP80: 0.08313111426 | CQ80: 0.1198934797 | CR80: 0.174239732 | CS80: 0.208391141 | CT80: 0.208391141 | CU80: 0.208391141 | CV80: 0.208391141 | CW80: 0.208391141
C81: Water Pump Replacement Program | E81: Water | F81: Improvements / Compliance | G81: Pipelines/network | H81: Capital Programs / Allocation | I81: 0 | J81: Straight line | K81: Ongoing | L81: 40 | M81: 40 | O81: 0.2519541901 | P81: 0.2290492638 | Q81: 0.1489965461 | R81: 0 | S81: 0 | T81: 0 | U81: 0 | V81: 0 | W81: 0 | X81: 0 | Z81: 0 | AA81: 0 | AB81: 0 | AC81: 0 | AD81: 0 | AE81: 0 | AF81: 0 | AG81: 0 | AH81: 0 | AI81: 0 | AK81: 0 | AL81: 0 | AM81: 0 | AN81: 0 | AO81: 0 | AP81: 0 | AQ81: 0 | AR81: 0 | AS81: 0 | AT81: 0 | AV81: 0.2519541901 | AW81: 0.2290492638 | AX81: 0.1489965461 | AY81: 0 | AZ81: 0 | BA81: 0 | BB81: 0 | BC81: 0 | BD81: 0 | BE81: 0 | BG81: 0.003149427377 | BH81: 0.009161970551 | BI81: 0.01388754317 | BJ81: 0.01575 | BK81: 0.01575 | BL81: 0.01575 | BM81: 0.01575 | BN81: 0.01575 | BO81: 0.01575 | BP81: 0.01575 | BR81: =+IF($K81="Ongoing",AV81,IF(RIGHT($K81,2)=RIGHT(BR$39,2),SUM($AV81:AV81),0)+IF(RIGHT(BR$39,2)>RIGHT($K81,2),AV81,0)) -> 0.2519541901 | BS81: =+IF($K81="Ongoing",AW81,IF(RIGHT($K81,2)=RIGHT(BS$39,2),SUM($AV81:AW81),0)+IF(RIGHT(BS$39,2)>RIGHT($K81,2),AW81,0)) -> 0.2290492638 | BT81: =+IF($K81="Ongoing",AX81,IF(RIGHT($K81,2)=RIGHT(BT$39,2),SUM($AV81:AX81),0)+IF(RIGHT(BT$39,2)>RIGHT($K81,2),AX81,0)) -> 0.1489965461 | BU81: =+IF($K81="Ongoing",AY81,IF(RIGHT($K81,2)=RIGHT(BU$39,2),SUM($AV81:AY81),0)+IF(RIGHT(BU$39,2)>RIGHT($K81,2),AY81,0)) -> 0 | BV81: =+IF($K81="Ongoing",AZ81,IF(RIGHT($K81,2)=RIGHT(BV$39,2),SUM($AV81:AZ81),0)+IF(RIGHT(BV$39,2)>RIGHT($K81,2),AZ81,0)) -> 0 | BW81: =+IF($K81="Ongoing",BA81,IF(RIGHT($K81,2)=RIGHT(BW$39,2),SUM($AV81:BA81),0)+IF(RIGHT(BW$39,2)>RIGHT($K81,2),BA81,0)) -> 0 | BX81: =+IF($K81="Ongoing",BB81,IF(RIGHT($K81,2)=RIGHT(BX$39,2),SUM($AV81:BB81),0)+IF(RIGHT(BX$39,2)>RIGHT($K81,2),BB81,0)) -> 0 | BY81: =+IF($K81="Ongoing",BC81,IF(RIGHT($K81,2)=RIGHT(BY$39,2),SUM($AV81:BC81),0)+IF(RIGHT(BY$39,2)>RIGHT($K81,2),BC81,0)) -> 0 | BZ81: =+IF($K81="Ongoing",BD81,IF(RIGHT($K81,2)=RIGHT(BZ$39,2),SUM($AV81:BD81),0)+IF(RIGHT(BZ$39,2)>RIGHT($K81,2),BD81,0)) -> 0 | CA81: =+IF($K81="Ongoing",BE81,IF(RIGHT($K81,2)=RIGHT(CA$39,2),SUM($AV81:BE81),0)+IF(RIGHT(CA$39,2)>RIGHT($K81,2),BE81,0)) -> 0 | CC81: =+O81*KeyAssumptionsPriceControl_FO!X$15 -> 0.2577491365 | CD81: =+P81*KeyAssumptionsPriceControl_FO!Y$15 -> 0.239706697 | CE81: =+Q81*KeyAssumptionsPriceControl_FO!Z$15 -> 0.1595155781 | CF81: =+R81*KeyAssumptionsPriceControl_FO!AA$15 -> 0 | CG81: =+S81*KeyAssumptionsPriceControl_FO!AB$15 -> 0 | CH81: =+T81*KeyAssumptionsPriceControl_FO!AC$15 -> 0 | CI81: =+U81*KeyAssumptionsPriceControl_FO!AD$15 -> 0 | CJ81: =+V81*KeyAssumptionsPriceControl_FO!AE$15 -> 0 | CK81: =+W81*KeyAssumptionsPriceControl_FO!AF$15 -> 0 | CL81: =+X81*KeyAssumptionsPriceControl_FO!AG$15 -> 0 | CN81: 0.003221864207 | CO81: 0.009440062125 | CP81: 0.01443034056 | CQ81: 0.01642428529 | CR81: 0.01642428529 | CS81: 0.01642428529 | CT81: 0.01642428529 | CU81: 0.01642428529 | CV81: 0.01642428529 | CW81: 0.01642428529
C82: WRP growth | E82: Sewerage | F82: Improvements / Compliance | G82: Treatment | H82: Capital Programs / Allocation | I82: 0 | J82: Straight line | K82: Ongoing | L82: 40 | M82: 40 | O82: 0.197256 | P82: 0.24252 | Q82: 0.128892 | R82: 0 | S82: 0.167256 | T82: 0 | U82: 0 | V82: 0 | W82: 0 | X82: 0 | Z82: 0 | AA82: 0 | AB82: 0 | AC82: 0 | AD82: 0 | AE82: 0 | AF82: 0 | AG82: 0 | AH82: 0 | AI82: 0 | AK82: 0 | AL82: 0 | AM82: 0 | AN82: 0 | AO82: 0 | AP82: 0 | AQ82: 0 | AR82: 0 | AS82: 0 | AT82: 0 | AV82: 0.197256 | AW82: =+P82-AA82-AL82 -> 0.24252 | AX82: 0.128892 | AY82: 0 | AZ82: 0.167256 | BA82: 0 | BB82: 0 | BC82: 0 | BD82: 0 | BE82: 0 | BG82: 0.0024657 | BH82: 0.0079629 | BI82: 0.01260555 | BJ82: 0.0142167 | BK82: 0.0163074 | BL82: 0.0183981 | BM82: 0.0183981 | BN82: 0.0183981 | BO82: 0.0183981 | BP82: 0.0183981 | BR82: =+IF($K82="Ongoing",AV82,IF(RIGHT($K82,2)=RIGHT(BR$39,2),SUM($AV82:AV82),0)+IF(RIGHT(BR$39,2)>RIGHT($K82,2),AV82,0)) -> 0.197256 | BS82: =+IF($K82="Ongoing",AW82,IF(RIGHT($K82,2)=RIGHT(BS$39,2),SUM($AV82:AW82),0)+IF(RIGHT(BS$39,2)>RIGHT($K82,2),AW82,0)) -> 0.24252 | BT82: =+IF($K82="Ongoing",AX82,IF(RIGHT($K82,2)=RIGHT(BT$39,2),SUM($AV82:AX82),0)+IF(RIGHT(BT$39,2)>RIGHT($K82,2),AX82,0)) -> 0.128892 | BU82: =+IF($K82="Ongoing",AY82,IF(RIGHT($K82,2)=RIGHT(BU$39,2),SUM($AV82:AY82),0)+IF(RIGHT(BU$39,2)>RIGHT($K82,2),AY82,0)) -> 0 | BV82: =+IF($K82="Ongoing",AZ82,IF(RIGHT($K82,2)=RIGHT(BV$39,2),SUM($AV82:AZ82),0)+IF(RIGHT(BV$39,2)>RIGHT($K82,2),AZ82,0)) -> 0.167256 | BW82: =+IF($K82="Ongoing",BA82,IF(RIGHT($K82,2)=RIGHT(BW$39,2),SUM($AV82:BA82),0)+IF(RIGHT(BW$39,2)>RIGHT($K82,2),BA82,0)) -> 0 | BX82: =+IF($K82="Ongoing",BB82,IF(RIGHT($K82,2)=RIGHT(BX$39,2),SUM($AV82:BB82),0)+IF(RIGHT(BX$39,2)>RIGHT($K82,2),BB82,0)) -> 0 | BY82: =+IF($K82="Ongoing",BC82,IF(RIGHT($K82,2)=RIGHT(BY$39,2),SUM($AV82:BC82),0)+IF(RIGHT(BY$39,2)>RIGHT($K82,2),BC82,0)) -> 0 | BZ82: =+IF($K82="Ongoing",BD82,IF(RIGHT($K82,2)=RIGHT(BZ$39,2),SUM($AV82:BD82),0)+IF(RIGHT(BZ$39,2)>RIGHT($K82,2),BD82,0)) -> 0 | CA82: =+IF($K82="Ongoing",BE82,IF(RIGHT($K82,2)=RIGHT(CA$39,2),SUM($AV82:BE82),0)+IF(RIGHT(CA$39,2)>RIGHT($K82,2),BE82,0)) -> 0 | CC82: =+O82*KeyAssumptionsPriceControl_FO!X$15 -> 0.201792888 | CD82: =+P82*KeyAssumptionsPriceControl_FO!Y$15 -> 0.2538042131 | CE82: =+Q82*KeyAssumptionsPriceControl_FO!Z$15 -> 0.1379916678 | CF82: =+R82*KeyAssumptionsPriceControl_FO!AA$15 -> 0 | CG82: =+S82*KeyAssumptionsPriceControl_FO!AB$15 -> 0.1873958094 | CH82: =+T82*KeyAssumptionsPriceControl_FO!AC$15 -> 0 | CI82: =+U82*KeyAssumptionsPriceControl_FO!AD$15 -> 0 | CJ82: =+V82*KeyAssumptionsPriceControl_FO!AE$15 -> 0 | CK82: =+W82*KeyAssumptionsPriceControl_FO!AF$15 -> 0 | CL82: =+X82*KeyAssumptionsPriceControl_FO!AG$15 -> 0 | CN82: 0.0025224111 | CO82: 0.008217374863 | CP82: 0.01311482337 | CQ82: 0.01483971922 | CR82: 0.01718216684 | CS82: 0.01952461446 | CT82: 0.01952461446 | CU82: 0.01952461446 | CV82: 0.01952461446 | CW82: 0.01952461446
C83: WRP improvements | E83: Sewerage | F83: Improvements / Compliance | G83: Treatment | H83: Capital Programs / Allocation | I83: 0 | J83: Straight line | K83: Ongoing | L83: 40 | M83: 40 | O83: 0.366 | P83: 0.444 | Q83: 0.336 | R83: 0.168 | S83: 0.108 | T83: 0 | U83: 0 | V83: 0 | W83: 0 | X83: 0 | Z83: 0 | AA83: 0 | AB83: 0 | AC83: 0 | AD83: 0 | AE83: 0 | AF83: 0 | AG83: 0 | AH83: 0 | AI83: 0 | AK83: 0 | AL83: 0 | AM83: 0 | AN83: 0 | AO83: 0 | AP83: 0 | AQ83: 0 | AR83: 0 | AS83: 0 | AT83: 0 | AV83: =+O83-Z83-AK83 -> 0.366 | AW83: 0.444 | AX83: 0.336 | AY83: 0.168 | AZ83: 0.108 | BA83: 0 | BB83: 0 | BC83: 0 | BD83: 0 | BE83: 0 | BG83: 0.004575 | BH83: 0.0147 | BI83: 0.02445 | BJ83: 0.03075 | BK83: 0.0342 | BL83: 0.03555 | BM83: 0.03555 | BN83: 0.03555 | BO83: 0.03555 | BP83: 0.03555 | BR83: =+IF($K83="Ongoing",AV83,IF(RIGHT($K83,2)=RIGHT(BR$39,2),SUM($AV83:AV83),0)+IF(RIGHT(BR$39,2)>RIGHT($K83,2),AV83,0)) -> 0.366 | BS83: =+IF($K83="Ongoing",AW83,IF(RIGHT($K83,2)=RIGHT(BS$39,2),SUM($AV83:AW83),0)+IF(RIGHT(BS$39,2)>RIGHT($K83,2),AW83,0)) -> 0.444 | BT83: =+IF($K83="Ongoing",AX83,IF(RIGHT($K83,2)=RIGHT(BT$39,2),SUM($AV83:AX83),0)+IF(RIGHT(BT$39,2)>RIGHT($K83,2),AX83,0)) -> 0.336 | BU83: =+IF($K83="Ongoing",AY83,IF(RIGHT($K83,2)=RIGHT(BU$39,2),SUM($AV83:AY83),0)+IF(RIGHT(BU$39,2)>RIGHT($K83,2),AY83,0)) -> 0.168 | BV83: =+IF($K83="Ongoing",AZ83,IF(RIGHT($K83,2)=RIGHT(BV$39,2),SUM($AV83:AZ83),0)+IF(RIGHT(BV$39,2)>RIGHT($K83,2),AZ83,0)) -> 0.108 | BW83: =+IF($K83="Ongoing",BA83,IF(RIGHT($K83,2)=RIGHT(BW$39,2),SUM($AV83:BA83),0)+IF(RIGHT(BW$39,2)>RIGHT($K83,2),BA83,0)) -> 0 | BX83: =+IF($K83="Ongoing",BB83,IF(RIGHT($K83,2)=RIGHT(BX$39,2),SUM($AV83:BB83),0)+IF(RIGHT(BX$39,2)>RIGHT($K83,2),BB83,0)) -> 0 | BY83: =+IF($K83="Ongoing",BC83,IF(RIGHT($K83,2)=RIGHT(BY$39,2),SUM($AV83:BC83),0)+IF(RIGHT(BY$39,2)>RIGHT($K83,2),BC83,0)) -> 0 | BZ83: =+IF($K83="Ongoing",BD83,IF(RIGHT($K83,2)=RIGHT(BZ$39,2),SUM($AV83:BD83),0)+IF(RIGHT(BZ$39,2)>RIGHT($K83,2),BD83,0)) -> 0 | CA83: =+IF($K83="Ongoing",BE83,IF(RIGHT($K83,2)=RIGHT(CA$39,2),SUM($AV83:BE83),0)+IF(RIGHT(CA$39,2)>RIGHT($K83,2),BE83,0)) -> 0 | CC83: =+O83*KeyAssumptionsPriceControl_FO!X$15 -> 0.374418 | CD83: =+P83*KeyAssumptionsPriceControl_FO!Y$15 -> 0.464658876 | CE83: =+Q83*KeyAssumptionsPriceControl_FO!Z$15 -> 0.3597213201 | CF83: =+R83*KeyAssumptionsPriceControl_FO!AA$15 -> 0.1839974552 | CG83: =+S83*KeyAssumptionsPriceControl_FO!AB$15 -> 0.1210046122 | CH83: =+T83*KeyAssumptionsPriceControl_FO!AC$15 -> 0 | CI83: =+U83*KeyAssumptionsPriceControl_FO!AD$15 -> 0 | CJ83: =+V83*KeyAssumptionsPriceControl_FO!AE$15 -> 0 | CK83: =+W83*KeyAssumptionsPriceControl_FO!AF$15 -> 0 | CL83: =+X83*KeyAssumptionsPriceControl_FO!AG$15 -> 0 | CN83: 0.004680225 | CO83: 0.01516868595 | CP83: 0.0254734384 | CQ83: 0.03226992309 | CR83: 0.03608244894 | CS83: 0.03759500659 | CT83: 0.03759500659 | CU83: 0.03759500659 | CV83: 0.03759500659 | CW83: 0.03759500659
C84: WRP renewals | E84: Sewerage | F84: Renewals | G84: Treatment | H84: Capital Programs / Allocation | I84: 0 | J84: Straight line | K84: Ongoing | L84: 40 | M84: 40 | O84: 0.72 | P84: 0.351 | Q84: 0.378 | R84: 0.363 | S84: 0.663 | T84: 0 | U84: 0 | V84: 0 | W84: 0 | X84: 0 | Z84: 0 | AA84: 0 | AB84: 0 | AC84: 0 | AD84: 0 | AE84: 0 | AF84: 0 | AG84: 0 | AH84: 0 | AI84: 0 | AK84: 0 | AL84: 0 | AM84: 0 | AN84: 0 | AO84: 0 | AP84: 0 | AQ84: 0 | AR84: 0 | AS84: 0 | AT84: 0 | AV84: 0.72 | AW84: 0.351 | AX84: 0.378 | AY84: 0.363 | AZ84: 0.663 | BA84: 0 | BB84: 0 | BC84: 0 | BD84: 0 | BE84: 0 | BG84: 0.009 | BH84: 0.0223875 | BI84: 0.0315 | BJ84: 0.0407625 | BK84: 0.0535875 | BL84: 0.061875 | BM84: 0.061875 | BN84: 0.061875 | BO84: =IF($L84=0,0, IF($L84<=0.5,BZ84, IF(AND($J84="straight line",$L84<1.51),(BY84-((BY84/$L84)*0.5))+BZ84/$L84*0.5, IF($J84="straight line", IF((LEFT(BO$39,4)*1)-INT($L84)<LEFT($BG$39,4)*1,0,((OFFSET(BZ84,0,-INT($L84+0.5),1,1))/$L84)*(IF($L84-INT($L84)>0.5,$L84-0.5-INT($L84),IF($L84-INT($L84)<=0.5,$L84-0.5-INT($L84)+1,0)))) +BZ84/$L84*0.5 +SUM(OFFSET(BZ84,0,MAX(-INT($L84+(0.5-(10^-12))),-BO$40)+1,1,MIN(INT($L84+(0.5-(10^-12))),BO$40)-1))*1/$L84, IF($J84="Declining Balance",-$BG$38,0))))) -> 0.061875 | BP84: 0.061875 | BR84: =+IF($K84="Ongoing",AV84,IF(RIGHT($K84,2)=RIGHT(BR$39,2),SUM($AV84:AV84),0)+IF(RIGHT(BR$39,2)>RIGHT($K84,2),AV84,0)) -> 0.72 | BS84: =+IF($K84="Ongoing",AW84,IF(RIGHT($K84,2)=RIGHT(BS$39,2),SUM($AV84:AW84),0)+IF(RIGHT(BS$39,2)>RIGHT($K84,2),AW84,0)) -> 0.351 | BT84: =+IF($K84="Ongoing",AX84,IF(RIGHT($K84,2)=RIGHT(BT$39,2),SUM($AV84:AX84),0)+IF(RIGHT(BT$39,2)>RIGHT($K84,2),AX84,0)) -> 0.378 | BU84: =+IF($K84="Ongoing",AY84,IF(RIGHT($K84,2)=RIGHT(BU$39,2),SUM($AV84:AY84),0)+IF(RIGHT(BU$39,2)>RIGHT($K84,2),AY84,0)) -> 0.363 | BV84: =+IF($K84="Ongoing",AZ84,IF(RIGHT($K84,2)=RIGHT(BV$39,2),SUM($AV84:AZ84),0)+IF(RIGHT(BV$39,2)>RIGHT($K84,2),AZ84,0)) -> 0.663 | BW84: =+IF($K84="Ongoing",BA84,IF(RIGHT($K84,2)=RIGHT(BW$39,2),SUM($AV84:BA84),0)+IF(RIGHT(BW$39,2)>RIGHT($K84,2),BA84,0)) -> 0 | BX84: =+IF($K84="Ongoing",BB84,IF(RIGHT($K84,2)=RIGHT(BX$39,2),SUM($AV84:BB84),0)+IF(RIGHT(BX$39,2)>RIGHT($K84,2),BB84,0)) -> 0 | BY84: =+IF($K84="Ongoing",BC84,IF(RIGHT($K84,2)=RIGHT(BY$39,2),SUM($AV84:BC84),0)+IF(RIGHT(BY$39,2)>RIGHT($K84,2),BC84,0)) -> 0 | BZ84: =+IF($K84="Ongoing",BD84,IF(RIGHT($K84,2)=RIGHT(BZ$39,2),SUM($AV84:BD84),0)+IF(RIGHT(BZ$39,2)>RIGHT($K84,2),BD84,0)) -> 0 | CA84: =+IF($K84="Ongoing",BE84,IF(RIGHT($K84,2)=RIGHT(CA$39,2),SUM($AV84:BE84),0)+IF(RIGHT(CA$39,2)>RIGHT($K84,2),BE84,0)) -> 0 | CC84: =+O84*KeyAssumptionsPriceControl_FO!X$15 -> 0.73656 | CD84: =+P84*KeyAssumptionsPriceControl_FO!Y$15 -> 0.367331679 | CE84: =+Q84*KeyAssumptionsPriceControl_FO!Z$15 -> 0.4046864851 | CF84: =+R84*KeyAssumptionsPriceControl_FO!AA$15 -> 0.3975659301 | CG84: =+S84*KeyAssumptionsPriceControl_FO!AB$15 -> 0.7428338692 | CH84: =+T84*KeyAssumptionsPriceControl_FO!AC$15 -> 0 | CI84: =+U84*KeyAssumptionsPriceControl_FO!AD$15 -> 0 | CJ84: =+V84*KeyAssumptionsPriceControl_FO!AE$15 -> 0 | CK84: =+W84*KeyAssumptionsPriceControl_FO!AF$15 -> 0 | CL84: =+X84*KeyAssumptionsPriceControl_FO!AG$15 -> 0 | CN84: 0.009207 | CO84: 0.02300564599 | CP84: 0.03265587304 | CQ84: 0.04268402823 | CR84: 0.05693902572 | CS84: 0.06622444908 | CT84: 0.06622444908 | CU84: 0.06622444908 | CV84: =IF($M84=0,0, IF($M84<=0.5,CK84, IF(AND($J84="straight line",$M84<1.51),(CJ84-((CJ84/$M84)*0.5))+CK84/$M84*0.5, IF($J84="straight line", IF((LEFT(CV$39,4)*1)-INT($M84)<LEFT($CN$39,4)*1,0,((OFFSET(CK84,0,-INT($M84+0.5),1,1))/$M84)*(IF($M84-INT($M84)>0.5,$M84-0.5-INT($M84),IF($M84-INT($M84)<=0.5,$M84-0.5-INT($M84)+1,0)))) +CK84/$M84*0.5 +SUM(OFFSET(CK84,0,MAX(-INT($M84+(0.5-(10^-12))),-CV$40)+1,1,MIN(INT($M84+(0.5-(10^-12))),CV$40)-1))*1/$M84, IF($J84="Declining Balance",-$CN$38,0))))) -> 0.06622444908 | CW84: 0.06622444908
C85: WTP Growth | E85: Water | F85: Growth | G85: Treatment | H85: Capital Programs / Allocation | I85: 0 | J85: Straight line | K85: Ongoing | L85: 40 | M85: 40 | O85: 0.266334 | P85: 0.22182 | Q85: 0.167256 | R85: 0 | S85: 0.153456 | T85: 0 | U85: 0 | V85: 0 | W85: 0 | X85: 0 | Z85: 0 | AA85: 0 | AB85: 0 | AC85: 0 | AD85: 0 | AE85: 0 | AF85: 0 | AG85: 0 | AH85: 0 | AI85: 0 | AK85: 0 | AL85: 0 | AM85: 0 | AN85: 0 | AO85: 0 | AP85: 0 | AQ85: 0 | AR85: 0 | AS85: 0 | AT85: 0 | AV85: 0.266334 | AW85: 0.22182 | AX85: 0.167256 | AY85: 0 | AZ85: 0.153456 | BA85: 0 | BB85: 0 | BC85: 0 | BD85: 0 | BE85: 0 | BG85: 0.003329175 | BH85: =IF($L85=0,0, IF($L85<=0.5,BS85, IF(AND($J85="straight line",$L85<1.51),(BR85-((BR85/$L85)*0.5))+BS85/$L85*0.5, IF($J85="straight line", IF((LEFT(BH$39,4)*1)-INT($L85)<LEFT($BG$39,4)*1,0,((OFFSET(BS85,0,-INT($L85+0.5),1,1))/$L85)*(IF($L85-INT($L85)>0.5,$L85-0.5-INT($L85),IF($L85-INT($L85)<=0.5,$L85-0.5-INT($L85)+1,0)))) +BS85/$L85*0.5 +SUM(OFFSET(BS85,0,MAX(-INT($L85+(0.5-(10^-12))),-BH$40)+1,1,MIN(INT($L85+(0.5-(10^-12))),BH$40)-1))*1/$L85, IF($J85="Declining Balance",-$BG$38,0))))) -> 0.0094311 | BI85: 0.01429455 | BJ85: 0.01638525 | BK85: 0.01830345 | BL85: 0.02022165 | BM85: 0.02022165 | BN85: 0.02022165 | BO85: 0.02022165 | BP85: 0.02022165 | BR85: =+IF($K85="Ongoing",AV85,IF(RIGHT($K85,2)=RIGHT(BR$39,2),SUM($AV85:AV85),0)+IF(RIGHT(BR$39,2)>RIGHT($K85,2),AV85,0)) -> 0.266334 | BS85: =+IF($K85="Ongoing",AW85,IF(RIGHT($K85,2)=RIGHT(BS$39,2),SUM($AV85:AW85),0)+IF(RIGHT(BS$39,2)>RIGHT($K85,2),AW85,0)) -> 0.22182 | BT85: =+IF($K85="Ongoing",AX85,IF(RIGHT($K85,2)=RIGHT(BT$39,2),SUM($AV85:AX85),0)+IF(RIGHT(BT$39,2)>RIGHT($K85,2),AX85,0)) -> 0.167256 | BU85: =+IF($K85="Ongoing",AY85,IF(RIGHT($K85,2)=RIGHT(BU$39,2),SUM($AV85:AY85),0)+IF(RIGHT(BU$39,2)>RIGHT($K85,2),AY85,0)) -> 0 | BV85: =+IF($K85="Ongoing",AZ85,IF(RIGHT($K85,2)=RIGHT(BV$39,2),SUM($AV85:AZ85),0)+IF(RIGHT(BV$39,2)>RIGHT($K85,2),AZ85,0)) -> 0.153456 | BW85: =+IF($K85="Ongoing",BA85,IF(RIGHT($K85,2)=RIGHT(BW$39,2),SUM($AV85:BA85),0)+IF(RIGHT(BW$39,2)>RIGHT($K85,2),BA85,0)) -> 0 | BX85: =+IF($K85="Ongoing",BB85,IF(RIGHT($K85,2)=RIGHT(BX$39,2),SUM($AV85:BB85),0)+IF(RIGHT(BX$39,2)>RIGHT($K85,2),BB85,0)) -> 0 | BY85: =+IF($K85="Ongoing",BC85,IF(RIGHT($K85,2)=RIGHT(BY$39,2),SUM($AV85:BC85),0)+IF(RIGHT(BY$39,2)>RIGHT($K85,2),BC85,0)) -> 0 | BZ85: =+IF($K85="Ongoing",BD85,IF(RIGHT($K85,2)=RIGHT(BZ$39,2),SUM($AV85:BD85),0)+IF(RIGHT(BZ$39,2)>RIGHT($K85,2),BD85,0)) -> 0 | CA85: =+IF($K85="Ongoing",BE85,IF(RIGHT($K85,2)=RIGHT(CA$39,2),SUM($AV85:BE85),0)+IF(RIGHT(CA$39,2)>RIGHT($K85,2),BE85,0)) -> 0 | CC85: =+O85*KeyAssumptionsPriceControl_FO!X$15 -> 0.272459682 | CD85: =+P85*KeyAssumptionsPriceControl_FO!Y$15 -> 0.2321410628 | CE85: =+Q85*KeyAssumptionsPriceControl_FO!Z$15 -> 0.1790641343 | CF85: =+R85*KeyAssumptionsPriceControl_FO!AA$15 -> 0 | CG85: =+S85*KeyAssumptionsPriceControl_FO!AB$15 -> 0.1719341089 | CH85: =+T85*KeyAssumptionsPriceControl_FO!AC$15 -> 0 | CI85: =+U85*KeyAssumptionsPriceControl_FO!AD$15 -> 0 | CJ85: =+V85*KeyAssumptionsPriceControl_FO!AE$15 -> 0 | CK85: =+W85*KeyAssumptionsPriceControl_FO!AF$15 -> 0 | CL85: =+X85*KeyAssumptionsPriceControl_FO!AG$15 -> 0 | CN85: 0.003405746025 | CO85: =IF($M85=0,0, IF($M85<=0.5,CD85, IF(AND($J85="straight line",$M85<1.51),(CC85-((CC85/$M85)*0.5))+CD85/$M85*0.5, IF($J85="straight line", IF((LEFT(CO$39,4)*1)-INT($M85)<LEFT($CN$39,4)*1,0,((OFFSET(CD85,0,-INT($M85+0.5),1,1))/$M85)*(IF($M85-INT($M85)>0.5,$M85-0.5-INT($M85),IF($M85-INT($M85)<=0.5,$M85-0.5-INT($M85)+1,0)))) +CD85/$M85*0.5 +SUM(OFFSET(CD85,0,MAX(-INT($M85+(0.5-(10^-12))),-CO$40)+1,1,MIN(INT($M85+(0.5-(10^-12))),CO$40)-1))*1/$M85, IF($J85="Declining Balance",-$CN$38,0))))) -> 0.009713255335 | CP85: 0.0148533203 | CQ85: 0.01709162198 | CR85: 0.01924079834 | CS85: 0.0213899747 | CT85: 0.0213899747 | CU85: 0.0213899747 | CV85: 0.0213899747 | CW85: 0.0213899747
C86: WTP renewals | E86: Water | F86: Renewals | G86: Treatment | H86: Capital Programs / Allocation | I86: 0 | J86: Straight line | K86: Ongoing | L86: 40 | M86: 40 | O86: 1.0296 | P86: 1.5984 | Q86: 0.84 | R86: 0.84 | S86: 0.84 | T86: 0 | U86: 0 | V86: 0 | W86: 0 | X86: 0 | Z86: 0 | AA86: 0 | AB86: 0 | AC86: 0 | AD86: 0 | AE86: 0 | AF86: 0 | AG86: 0 | AH86: 0 | AI86: 0 | AK86: 0 | AL86: 0 | AM86: 0 | AN86: 0 | AO86: 0 | AP86: 0 | AQ86: 0 | AR86: 0 | AS86: 0 | AT86: 0 | AV86: 1.0296 | AW86: 1.5984 | AX86: 0.84 | AY86: 0.84 | AZ86: 0.84 | BA86: 0 | BB86: 0 | BC86: 0 | BD86: 0 | BE86: 0 | BG86: 0.01287 | BH86: 0.04572 | BI86: 0.0762 | BJ86: 0.0972 | BK86: 0.1182 | BL86: 0.1287 | BM86: 0.1287 | BN86: 0.1287 | BO86: 0.1287 | BP86: 0.1287 | BR86: =+IF($K86="Ongoing",AV86,IF(RIGHT($K86,2)=RIGHT(BR$39,2),SUM($AV86:AV86),0)+IF(RIGHT(BR$39,2)>RIGHT($K86,2),AV86,0)) -> 1.0296 | BS86: =+IF($K86="Ongoing",AW86,IF(RIGHT($K86,2)=RIGHT(BS$39,2),SUM($AV86:AW86),0)+IF(RIGHT(BS$39,2)>RIGHT($K86,2),AW86,0)) -> 1.5984 | BT86: =+IF($K86="Ongoing",AX86,IF(RIGHT($K86,2)=RIGHT(BT$39,2),SUM($AV86:AX86),0)+IF(RIGHT(BT$39,2)>RIGHT($K86,2),AX86,0)) -> 0.84 | BU86: =+IF($K86="Ongoing",AY86,IF(RIGHT($K86,2)=RIGHT(BU$39,2),SUM($AV86:AY86),0)+IF(RIGHT(BU$39,2)>RIGHT($K86,2),AY86,0)) -> 0.84 | BV86: =+IF($K86="Ongoing",AZ86,IF(RIGHT($K86,2)=RIGHT(BV$39,2),SUM($AV86:AZ86),0)+IF(RIGHT(BV$39,2)>RIGHT($K86,2),AZ86,0)) -> 0.84 | BW86: =+IF($K86="Ongoing",BA86,IF(RIGHT($K86,2)=RIGHT(BW$39,2),SUM($AV86:BA86),0)+IF(RIGHT(BW$39,2)>RIGHT($K86,2),BA86,0)) -> 0 | BX86: =+IF($K86="Ongoing",BB86,IF(RIGHT($K86,2)=RIGHT(BX$39,2),SUM($AV86:BB86),0)+IF(RIGHT(BX$39,2)>RIGHT($K86,2),BB86,0)) -> 0 | BY86: =+IF($K86="Ongoing",BC86,IF(RIGHT($K86,2)=RIGHT(BY$39,2),SUM($AV86:BC86),0)+IF(RIGHT(BY$39,2)>RIGHT($K86,2),BC86,0)) -> 0 | BZ86: =+IF($K86="Ongoing",BD86,IF(RIGHT($K86,2)=RIGHT(BZ$39,2),SUM($AV86:BD86),0)+IF(RIGHT(BZ$39,2)>RIGHT($K86,2),BD86,0)) -> 0 | CA86: =+IF($K86="Ongoing",BE86,IF(RIGHT($K86,2)=RIGHT(CA$39,2),SUM($AV86:BE86),0)+IF(RIGHT(CA$39,2)>RIGHT($K86,2),BE86,0)) -> 0 | CC86: =+O86*KeyAssumptionsPriceControl_FO!X$15 -> 1.0532808 | CD86: =+P86*KeyAssumptionsPriceControl_FO!Y$15 -> 1.672771954 | CE86: =+Q86*KeyAssumptionsPriceControl_FO!Z$15 -> 0.8993033003 | CF86: =+R86*KeyAssumptionsPriceControl_FO!AA$15 -> 0.9199872762 | CG86: =+S86*KeyAssumptionsPriceControl_FO!AB$15 -> 0.9411469835 | CH86: =+T86*KeyAssumptionsPriceControl_FO!AC$15 -> 0 | CI86: =+U86*KeyAssumptionsPriceControl_FO!AD$15 -> 0 | CJ86: =+V86*KeyAssumptionsPriceControl_FO!AE$15 -> 0 | CK86: =+W86*KeyAssumptionsPriceControl_FO!AF$15 -> 0 | CL86: =+X86*KeyAssumptionsPriceControl_FO!AG$15 -> 0 | CN86: 0.01316601 | CO86: 0.04724166942 | CP86: 0.07939261009 | CQ86: 0.1021337423 | CR86: 0.1253979205 | CS86: 0.1371622578 | CT86: 0.1371622578 | CU86: 0.1371622578 | CV86: 0.1371622578 | CW86: 0.1371622578
C87: WTP Compliance | E87: Water | F87: Improvements / Compliance | G87: Treatment | H87: Capital Programs / Allocation | I87: 0 | J87: Straight line | K87: Ongoing | L87: 40 | M87: 40 | O87: 1.49 | P87: 0 | Q87: 0.02 | R87: 2.01 | S87: 0 | T87: 0 | U87: 0 | V87: 0 | W87: 0 | X87: 0 | Z87: 0 | AA87: 0 | AB87: 0 | AC87: 0 | AD87: 0 | AE87: 0 | AF87: 0 | AG87: 0 | AH87: 0 | AI87: 0 | AK87: 0 | AL87: 0 | AM87: 0 | AN87: 0 | AO87: 0 | AP87: 0 | AQ87: 0 | AR87: 0 | AS87: 0 | AT87: 0 | AV87: 1.49 | AW87: 0 | AX87: 0.02 | AY87: 2.01 | AZ87: 0 | BA87: 0 | BB87: 0 | BC87: 0 | BD87: 0 | BE87: 0 | BG87: 0.018625 | BH87: 0.03725 | BI87: 0.0375 | BJ87: 0.062875 | BK87: 0.088 | BL87: 0.088 | BM87: 0.088 | BN87: 0.088 | BO87: 0.088 | BP87: 0.088 | BR87: =+IF($K87="Ongoing",AV87,IF(RIGHT($K87,2)=RIGHT(BR$39,2),SUM($AV87:AV87),0)+IF(RIGHT(BR$39,2)>RIGHT($K87,2),AV87,0)) -> 1.49 | BS87: =+IF($K87="Ongoing",AW87,IF(RIGHT($K87,2)=RIGHT(BS$39,2),SUM($AV87:AW87),0)+IF(RIGHT(BS$39,2)>RIGHT($K87,2),AW87,0)) -> 0 | BT87: =+IF($K87="Ongoing",AX87,IF(RIGHT($K87,2)=RIGHT(BT$39,2),SUM($AV87:AX87),0)+IF(RIGHT(BT$39,2)>RIGHT($K87,2),AX87,0)) -> 0.02 | BU87: =+IF($K87="Ongoing",AY87,IF(RIGHT($K87,2)=RIGHT(BU$39,2),SUM($AV87:AY87),0)+IF(RIGHT(BU$39,2)>RIGHT($K87,2),AY87,0)) -> 2.01 | BV87: =+IF($K87="Ongoing",AZ87,IF(RIGHT($K87,2)=RIGHT(BV$39,2),SUM($AV87:AZ87),0)+IF(RIGHT(BV$39,2)>RIGHT($K87,2),AZ87,0)) -> 0 | BW87: =+IF($K87="Ongoing",BA87,IF(RIGHT($K87,2)=RIGHT(BW$39,2),SUM($AV87:BA87),0)+IF(RIGHT(BW$39,2)>RIGHT($K87,2),BA87,0)) -> 0 | BX87: =+IF($K87="Ongoing",BB87,IF(RIGHT($K87,2)=RIGHT(BX$39,2),SUM($AV87:BB87),0)+IF(RIGHT(BX$39,2)>RIGHT($K87,2),BB87,0)) -> 0 | BY87: =+IF($K87="Ongoing",BC87,IF(RIGHT($K87,2)=RIGHT(BY$39,2),SUM($AV87:BC87),0)+IF(RIGHT(BY$39,2)>RIGHT($K87,2),BC87,0)) -> 0 | BZ87: =+IF($K87="Ongoing",BD87,IF(RIGHT($K87,2)=RIGHT(BZ$39,2),SUM($AV87:BD87),0)+IF(RIGHT(BZ$39,2)>RIGHT($K87,2),BD87,0)) -> 0 | CA87: =+IF($K87="Ongoing",BE87,IF(RIGHT($K87,2)=RIGHT(CA$39,2),SUM($AV87:BE87),0)+IF(RIGHT(CA$39,2)>RIGHT($K87,2),BE87,0)) -> 0 | CC87: =+O87*KeyAssumptionsPriceControl_FO!X$15 -> 1.52427 | CD87: =+P87*KeyAssumptionsPriceControl_FO!Y$15 -> 0 | CE87: =+Q87*KeyAssumptionsPriceControl_FO!Z$15 -> 0.02141198334 | CF87: =+R87*KeyAssumptionsPriceControl_FO!AA$15 -> 2.201398125 | CG87: =+S87*KeyAssumptionsPriceControl_FO!AB$15 -> 0 | CH87: =+T87*KeyAssumptionsPriceControl_FO!AC$15 -> 0 | CI87: =+U87*KeyAssumptionsPriceControl_FO!AD$15 -> 0 | CJ87: =+V87*KeyAssumptionsPriceControl_FO!AE$15 -> 0 | CK87: =+W87*KeyAssumptionsPriceControl_FO!AF$15 -> 0 | CL87: =+X87*KeyAssumptionsPriceControl_FO!AG$15 -> 0 | CN87: 0.019053375 | CO87: 0.03810675 | CP87: 0.03837439979 | CQ87: 0.06615952615 | CR87: 0.09367700271 | CS87: 0.09367700271 | CT87: 0.09367700271 | CU87: 0.09367700271 | CV87: 0.09367700271 | CW87: 0.09367700271
O88: 0 | P88: 0 | Q88: 0 | R88: 0 | S88: 0 | T88: 0 | U88: 0 | V88: 0 | W88: 0 | X88: 0 | Z88: 0 | AA88: 0 | AB88: 0 | AC88: 0 | AD88: 0 | AE88: 0 | AF88: 0 | AG88: 0 | AH88: 0 | AI88: 0 | AK88: 0 | AL88: 0 | AM88: 0 | AN88: 0 | AO88: 0 | AP88: 0 | AQ88: 0 | AR88: 0 | AS88: 0 | AT88: 0 | AV88: 0 | AW88: 0 | AX88: 0 | AY88: 0 | AZ88: 0 | BA88: 0 | BB88: 0 | BC88: 0 | BD88: 0 | BE88: 0 | BG88: 0 | BH88: 0 | BI88: 0 | BJ88: 0 | BK88: 0 | BL88: 0 | BM88: 0 | BN88: 0 | BO88: 0 | BP88: 0 | BR88: =+IF($K88="Ongoing",AV88,IF(RIGHT($K88,2)=RIGHT(BR$39,2),SUM($AV88:AV88),0)+IF(RIGHT(BR$39,2)>RIGHT($K88,2),AV88,0)) -> 0 | BS88: =+IF($K88="Ongoing",AW88,IF(RIGHT($K88,2)=RIGHT(BS$39,2),SUM($AV88:AW88),0)+IF(RIGHT(BS$39,2)>RIGHT($K88,2),AW88,0)) -> 0 | BT88: =+IF($K88="Ongoing",AX88,IF(RIGHT($K88,2)=RIGHT(BT$39,2),SUM($AV88:AX88),0)+IF(RIGHT(BT$39,2)>RIGHT($K88,2),AX88,0)) -> 0 | BU88: =+IF($K88="Ongoing",AY88,IF(RIGHT($K88,2)=RIGHT(BU$39,2),SUM($AV88:AY88),0)+IF(RIGHT(BU$39,2)>RIGHT($K88,2),AY88,0)) -> 0 | BV88: =+IF($K88="Ongoing",AZ88,IF(RIGHT($K88,2)=RIGHT(BV$39,2),SUM($AV88:AZ88),0)+IF(RIGHT(BV$39,2)>RIGHT($K88,2),AZ88,0)) -> 0 | BW88: =+IF($K88="Ongoing",BA88,IF(RIGHT($K88,2)=RIGHT(BW$39,2),SUM($AV88:BA88),0)+IF(RIGHT(BW$39,2)>RIGHT($K88,2),BA88,0)) -> 0 | BX88: =+IF($K88="Ongoing",BB88,IF(RIGHT($K88,2)=RIGHT(BX$39,2),SUM($AV88:BB88),0)+IF(RIGHT(BX$39,2)>RIGHT($K88,2),BB88,0)) -> 0 | BY88: =+IF($K88="Ongoing",BC88,IF(RIGHT($K88,2)=RIGHT(BY$39,2),SUM($AV88:BC88),0)+IF(RIGHT(BY$39,2)>RIGHT($K88,2),BC88,0)) -> 0 | BZ88: =+IF($K88="Ongoing",BD88,IF(RIGHT($K88,2)=RIGHT(BZ$39,2),SUM($AV88:BD88),0)+IF(RIGHT(BZ$39,2)>RIGHT($K88,2),BD88,0)) -> 0 | CA88: =+IF($K88="Ongoing",BE88,IF(RIGHT($K88,2)=RIGHT(CA$39,2),SUM($AV88:BE88),0)+IF(RIGHT(CA$39,2)>RIGHT($K88,2),BE88,0)) -> 0 | CC88: =+O88*KeyAssumptionsPriceControl_FO!X$15 -> 0 | CD88: =+P88*KeyAssumptionsPriceControl_FO!Y$15 -> 0 | CE88: =+Q88*KeyAssumptionsPriceControl_FO!Z$15 -> 0 | CF88: =+R88*KeyAssumptionsPriceControl_FO!AA$15 -> 0 | CG88: =+S88*KeyAssumptionsPriceControl_FO!AB$15 -> 0 | CH88: =+T88*KeyAssumptionsPriceControl_FO!AC$15 -> 0 | CI88: =+U88*KeyAssumptionsPriceControl_FO!AD$15 -> 0 | CJ88: =+V88*KeyAssumptionsPriceControl_FO!AE$15 -> 0 | CK88: =+W88*KeyAssumptionsPriceControl_FO!AF$15 -> 0 | CL88: =+X88*KeyAssumptionsPriceControl_FO!AG$15 -> 0 | CN88: 0 | CO88: 0 | CP88: 0 | CQ88: 0 | CR88: 0 | CS88: 0 | CT88: 0 | CU88: 0 | CV88: 0 | CW88: 0
C89: BOOTs | E89: Water | F89: Renewals | G89: Treatment | H89: Significant projects | I89: 0 | J89: Straight line | K89: Ongoing | L89: 25 | M89: 40 | O89: 6.434604106 | P89: 6.289935587 | Q89: 6.148519635 | R89: 6.010283124 | S89: 5.875154569 | T89: 5.743064094 | U89: 5.613943396 | V89: 5.487725705 | W89: 5.364345753 | X89: 5.243739739 | Z89: 0 | AA89: 0 | AB89: 0 | AC89: 0 | AD89: 0 | AE89: 0 | AF89: 0 | AG89: 0 | AH89: 0 | AI89: 0 | AK89: 0 | AL89: 0 | AM89: 0 | AN89: 0 | AO89: 0 | AP89: 0 | AQ89: 0 | AR89: 0 | AS89: 0 | AT89: 0 | AV89: 6.434604106 | AW89: 6.289935587 | AX89: 6.148519635 | AY89: 6.010283124 | AZ89: 5.875154569 | BA89: 5.743064094 | BB89: 5.613943396 | BC89: 5.487725705 | BD89: 5.364345753 | BE89: 5.243739739 | BG89: 0.1286920821 | BH89: 0.383182876 | BI89: 0.6319519804 | BJ89: 0.8751280356 | BK89: 1.112836789 | BL89: 1.345201163 | BM89: 1.572341313 | BN89: 1.794374695 | BO89: 2.011416124 | BP89: 2.223577834 | BR89: =+IF($K89="Ongoing",AV89,IF(RIGHT($K89,2)=RIGHT(BR$39,2),SUM($AV89:AV89),0)+IF(RIGHT(BR$39,2)>RIGHT($K89,2),AV89,0)) -> 6.434604106 | BS89: =+IF($K89="Ongoing",AW89,IF(RIGHT($K89,2)=RIGHT(BS$39,2),SUM($AV89:AW89),0)+IF(RIGHT(BS$39,2)>RIGHT($K89,2),AW89,0)) -> 6.289935587 | BT89: =+IF($K89="Ongoing",AX89,IF(RIGHT($K89,2)=RIGHT(BT$39,2),SUM($AV89:AX89),0)+IF(RIGHT(BT$39,2)>RIGHT($K89,2),AX89,0)) -> 6.148519635 | BU89: =+IF($K89="Ongoing",AY89,IF(RIGHT($K89,2)=RIGHT(BU$39,2),SUM($AV89:AY89),0)+IF(RIGHT(BU$39,2)>RIGHT($K89,2),AY89,0)) -> 6.010283124 | BV89: =+IF($K89="Ongoing",AZ89,IF(RIGHT($K89,2)=RIGHT(BV$39,2),SUM($AV89:AZ89),0)+IF(RIGHT(BV$39,2)>RIGHT($K89,2),AZ89,0)) -> 5.875154569 | BW89: =+IF($K89="Ongoing",BA89,IF(RIGHT($K89,2)=RIGHT(BW$39,2),SUM($AV89:BA89),0)+IF(RIGHT(BW$39,2)>RIGHT($K89,2),BA89,0)) -> 5.743064094 | BX89: =+IF($K89="Ongoing",BB89,IF(RIGHT($K89,2)=RIGHT(BX$39,2),SUM($AV89:BB89),0)+IF(RIGHT(BX$39,2)>RIGHT($K89,2),BB89,0)) -> 5.613943396 | BY89: =+IF($K89="Ongoing",BC89,IF(RIGHT($K89,2)=RIGHT(BY$39,2),SUM($AV89:BC89),0)+IF(RIGHT(BY$39,2)>RIGHT($K89,2),BC89,0)) -> 5.487725705 | BZ89: =+IF($K89="Ongoing",BD89,IF(RIGHT($K89,2)=RIGHT(BZ$39,2),SUM($AV89:BD89),0)+IF(RIGHT(BZ$39,2)>RIGHT($K89,2),BD89,0)) -> 5.364345753 | CA89: =+IF($K89="Ongoing",BE89,IF(RIGHT($K89,2)=RIGHT(CA$39,2),SUM($AV89:BE89),0)+IF(RIGHT(CA$39,2)>RIGHT($K89,2),BE89,0)) -> 5.243739739 | CC89: =+O89*KeyAssumptionsPriceControl_FO!X$15 -> 6.5826 | CD89: =+P89*KeyAssumptionsPriceControl_FO!Y$15 -> 6.5826 | CE89: =+Q89*KeyAssumptionsPriceControl_FO!Z$15 -> 6.5826 | CF89: =+R89*KeyAssumptionsPriceControl_FO!AA$15 -> 6.5826 | CG89: =+S89*KeyAssumptionsPriceControl_FO!AB$15 -> 6.5826 | CH89: =+T89*KeyAssumptionsPriceControl_FO!AC$15 -> 6.5826 | CI89: =+U89*KeyAssumptionsPriceControl_FO!AD$15 -> 6.5826 | CJ89: =+V89*KeyAssumptionsPriceControl_FO!AE$15 -> 6.5826 | CK89: =+W89*KeyAssumptionsPriceControl_FO!AF$15 -> 6.5826 | CL89: =+X89*KeyAssumptionsPriceControl_FO!AG$15 -> 6.5826 | CN89: 0.0822825 | CO89: 0.2468475 | CP89: 0.4114125 | CQ89: 0.5759775 | CR89: 0.7405425 | CS89: 0.9051075 | CT89: 1.0696725 | CU89: 1.2342375 | CV89: 1.3988025 | CW89: 1.5633675
C90: BOOTs | E90: Sewerage | F90: Renewals | G90: Treatment | H90: Significant projects | I90: 0 | J90: Straight line | K90: Ongoing | L90: 25 | M90: 40 | O90: 4.28973607 | P90: 4.193290391 | Q90: 4.09901309 | R90: 4.006855416 | S90: 3.916769712 | T90: 3.828709396 | U90: 3.742628931 | V90: 3.658483803 | W90: 3.576230502 | X90: 3.495826492 | Z90: 0 | AA90: 0 | AB90: 0 | AC90: 0 | AD90: 0 | AE90: 0 | AF90: 0 | AG90: 0 | AH90: 0 | AI90: 0 | AK90: 0 | AL90: 0 | AM90: 0 | AN90: 0 | AO90: 0 | AP90: 0 | AQ90: 0 | AR90: 0 | AS90: 0 | AT90: 0 | AV90: 4.28973607 | AW90: 4.193290391 | AX90: 4.09901309 | AY90: 4.006855416 | AZ90: 3.916769712 | BA90: 3.828709396 | BB90: 3.742628931 | BC90: 3.658483803 | BD90: 3.576230502 | BE90: 3.495826492 | BG90: 0.08579472141 | BH90: 0.2554552506 | BI90: 0.4213013203 | BJ90: 0.5834186904 | BK90: 0.741891193 | BL90: 0.8968007751 | BM90: 1.048227542 | BN90: 1.196249796 | BO90: 1.340944082 | BP90: 1.482385222 | BR90: =+IF($K90="Ongoing",AV90,IF(RIGHT($K90,2)=RIGHT(BR$39,2),SUM($AV90:AV90),0)+IF(RIGHT(BR$39,2)>RIGHT($K90,2),AV90,0)) -> 4.28973607 | BS90: =+IF($K90="Ongoing",AW90,IF(RIGHT($K90,2)=RIGHT(BS$39,2),SUM($AV90:AW90),0)+IF(RIGHT(BS$39,2)>RIGHT($K90,2),AW90,0)) -> 4.193290391 | BT90: =+IF($K90="Ongoing",AX90,IF(RIGHT($K90,2)=RIGHT(BT$39,2),SUM($AV90:AX90),0)+IF(RIGHT(BT$39,2)>RIGHT($K90,2),AX90,0)) -> 4.09901309 | BU90: =+IF($K90="Ongoing",AY90,IF(RIGHT($K90,2)=RIGHT(BU$39,2),SUM($AV90:AY90),0)+IF(RIGHT(BU$39,2)>RIGHT($K90,2),AY90,0)) -> 4.006855416 | BV90: =+IF($K90="Ongoing",AZ90,IF(RIGHT($K90,2)=RIGHT(BV$39,2),SUM($AV90:AZ90),0)+IF(RIGHT(BV$39,2)>RIGHT($K90,2),AZ90,0)) -> 3.916769712 | BW90: =+IF($K90="Ongoing",BA90,IF(RIGHT($K90,2)=RIGHT(BW$39,2),SUM($AV90:BA90),0)+IF(RIGHT(BW$39,2)>RIGHT($K90,2),BA90,0)) -> 3.828709396 | BX90: =+IF($K90="Ongoing",BB90,IF(RIGHT($K90,2)=RIGHT(BX$39,2),SUM($AV90:BB90),0)+IF(RIGHT(BX$39,2)>RIGHT($K90,2),BB90,0)) -> 3.742628931 | BY90: =+IF($K90="Ongoing",BC90,IF(RIGHT($K90,2)=RIGHT(BY$39,2),SUM($AV90:BC90),0)+IF(RIGHT(BY$39,2)>RIGHT($K90,2),BC90,0)) -> 3.658483803 | BZ90: =+IF($K90="Ongoing",BD90,IF(RIGHT($K90,2)=RIGHT(BZ$39,2),SUM($AV90:BD90),0)+IF(RIGHT(BZ$39,2)>RIGHT($K90,2),BD90,0)) -> 3.576230502 | CA90: =+IF($K90="Ongoing",BE90,IF(RIGHT($K90,2)=RIGHT(CA$39,2),SUM($AV90:BE90),0)+IF(RIGHT(CA$39,2)>RIGHT($K90,2),BE90,0)) -> 3.495826492 | CC90: =+O90*KeyAssumptionsPriceControl_FO!X$15 -> 4.3884 | CD90: =+P90*KeyAssumptionsPriceControl_FO!Y$15 -> 4.3884 | CE90: =+Q90*KeyAssumptionsPriceControl_FO!Z$15 -> 4.3884 | CF90: =+R90*KeyAssumptionsPriceControl_FO!AA$15 -> 4.3884 | CG90: =+S90*KeyAssumptionsPriceControl_FO!AB$15 -> 4.3884 | CH90: =+T90*KeyAssumptionsPriceControl_FO!AC$15 -> 4.3884 | CI90: =+U90*KeyAssumptionsPriceControl_FO!AD$15 -> 4.3884 | CJ90: =+V90*KeyAssumptionsPriceControl_FO!AE$15 -> 4.3884 | CK90: =+W90*KeyAssumptionsPriceControl_FO!AF$15 -> 4.3884 | CL90: =+X90*KeyAssumptionsPriceControl_FO!AG$15 -> 4.3884 | CN90: 0.054855 | CO90: 0.164565 | CP90: 0.274275 | CQ90: 0.383985 | CR90: 0.493695 | CS90: 0.603405 | CT90: 0.713115 | CU90: 0.822825 | CV90: 0.932535 | CW90: 1.042245
C91: Biosolids | E91: Sewerage | F91: Improvements / Compliance | G91: Treatment | H91: Other Capital expenditure | I91: 0 | J91: Straight line | K91: Ongoing | L91: 10 | M91: 40 | O91: 0.6862170088 | P91: 1.143781013 | Q91: 0.7771349219 | R91: 0.3396568714 | S91: 0.937154361 | T91: 0.3690511518 | U91: 0.2191813953 | V91: 0.8753550254 | W91: 0.3610131511 | X91: 0.2596936096 | Z91: 0 | AA91: 0 | AB91: 0 | AC91: 0 | AD91: 0 | AE91: 0 | AF91: 0 | AG91: 0 | AH91: 0 | AI91: 0 | AK91: 0 | AL91: 0 | AM91: 0 | AN91: 0 | AO91: 0 | AP91: 0 | AQ91: 0 | AR91: 0 | AS91: 0 | AT91: 0 | AV91: 0.6862170088 | AW91: 1.143781013 | AX91: 0.7771349219 | AY91: 0.3396568714 | AZ91: 0.937154361 | BA91: 0.3690511518 | BB91: 0.2191813953 | BC91: 0.8753550254 | BD91: 0.3610131511 | BE91: 0.2596936096 | BG91: 0.03431085044 | BH91: 0.1258107515 | BI91: 0.2218565483 | BJ91: 0.277696138 | BK91: 0.3415366996 | BL91: 0.4068469752 | BM91: 0.4362586026 | BN91: 0.4909854236 | BO91: 0.5528038324 | BP91: 0.5838391705 | BR91: =+IF($K91="Ongoing",AV91,IF(RIGHT($K91,2)=RIGHT(BR$39,2),SUM($AV91:AV91),0)+IF(RIGHT(BR$39,2)>RIGHT($K91,2),AV91,0)) -> 0.6862170088 | BS91: =+IF($K91="Ongoing",AW91,IF(RIGHT($K91,2)=RIGHT(BS$39,2),SUM($AV91:AW91),0)+IF(RIGHT(BS$39,2)>RIGHT($K91,2),AW91,0)) -> 1.143781013 | BT91: =+IF($K91="Ongoing",AX91,IF(RIGHT($K91,2)=RIGHT(BT$39,2),SUM($AV91:AX91),0)+IF(RIGHT(BT$39,2)>RIGHT($K91,2),AX91,0)) -> 0.7771349219 | BU91: =+IF($K91="Ongoing",AY91,IF(RIGHT($K91,2)=RIGHT(BU$39,2),SUM($AV91:AY91),0)+IF(RIGHT(BU$39,2)>RIGHT($K91,2),AY91,0)) -> 0.3396568714 | BV91: =+IF($K91="Ongoing",AZ91,IF(RIGHT($K91,2)=RIGHT(BV$39,2),SUM($AV91:AZ91),0)+IF(RIGHT(BV$39,2)>RIGHT($K91,2),AZ91,0)) -> 0.937154361 | BW91: =+IF($K91="Ongoing",BA91,IF(RIGHT($K91,2)=RIGHT(BW$39,2),SUM($AV91:BA91),0)+IF(RIGHT(BW$39,2)>RIGHT($K91,2),BA91,0)) -> 0.3690511518 | BX91: =+IF($K91="Ongoing",BB91,IF(RIGHT($K91,2)=RIGHT(BX$39,2),SUM($AV91:BB91),0)+IF(RIGHT(BX$39,2)>RIGHT($K91,2),BB91,0)) -> 0.2191813953 | BY91: =+IF($K91="Ongoing",BC91,IF(RIGHT($K91,2)=RIGHT(BY$39,2),SUM($AV91:BC91),0)+IF(RIGHT(BY$39,2)>RIGHT($K91,2),BC91,0)) -> 0.8753550254 | BZ91: =+IF($K91="Ongoing",BD91,IF(RIGHT($K91,2)=RIGHT(BZ$39,2),SUM($AV91:BD91),0)+IF(RIGHT(BZ$39,2)>RIGHT($K91,2),BD91,0)) -> 0.3610131511 | CA91: =+IF($K91="Ongoing",BE91,IF(RIGHT($K91,2)=RIGHT(CA$39,2),SUM($AV91:BE91),0)+IF(RIGHT(CA$39,2)>RIGHT($K91,2),BE91,0)) -> 0.2596936096 | CC91: =+O91*KeyAssumptionsPriceControl_FO!X$15 -> 0.702 | CD91: =+P91*KeyAssumptionsPriceControl_FO!Y$15 -> 1.197 | CE91: =+Q91*KeyAssumptionsPriceControl_FO!Z$15 -> 0.832 | CF91: =+R91*KeyAssumptionsPriceControl_FO!AA$15 -> 0.372 | CG91: =+S91*KeyAssumptionsPriceControl_FO!AB$15 -> 1.05 | CH91: =+T91*KeyAssumptionsPriceControl_FO!AC$15 -> 0.423 | CI91: =+U91*KeyAssumptionsPriceControl_FO!AD$15 -> 0.257 | CJ91: =+V91*KeyAssumptionsPriceControl_FO!AE$15 -> 1.05 | CK91: =+W91*KeyAssumptionsPriceControl_FO!AF$15 -> 0.443 | CL91: =+X91*KeyAssumptionsPriceControl_FO!AG$15 -> 0.326 | CN91: 0.008775 | CO91: 0.0325125 | CP91: 0.057875 | CQ91: 0.072925 | CR91: 0.0907 | CS91: 0.1091125 | CT91: 0.1176125 | CU91: 0.13395 | CV91: 0.1526125 | CW91: 0.162225
C92: NCCs | E92: Water | F92: Renewals | G92: Pipelines/network | H92: Other Capital expenditure | I92: 0 | J92: Straight line | K92: Ongoing | L92: 0 | M92: 0 | O92: 0 | P92: 0 | Q92: 0 | R92: 0 | S92: 0 | T92: 0 | U92: 0 | V92: 0 | W92: 0 | X92: 0 | Z92: 0 | AA92: 0 | AB92: 0 | AC92: 0 | AD92: 0 | AE92: 0 | AF92: 0 | AG92: 0 | AH92: 0 | AI92: 0 | AK92: 2.00318681 | AL92: 2.037236606 | AM92: 2.071859831 | AN92: 2.107078146 | AO92: 2.142892991 | AP92: 2.179321425 | AQ92: 2.21636303 | AR92: 2.254036464 | AS92: 2.292350235 | AT92: 2.331312487 | AV92: -2.00318681 | AW92: -2.037236606 | AX92: -2.071859831 | AY92: -2.107078146 | AZ92: -2.142892991 | BA92: -2.179321425 | BB92: -2.21636303 | BC92: -2.254036464 | BD92: -2.292350235 | BE92: -2.331312487 | BG92: 0 | BH92: 0 | BI92: 0 | BJ92: 0 | BK92: 0 | BL92: 0 | BM92: 0 | BN92: 0 | BO92: 0 | BP92: 0 | BR92: =+IF($K92="Ongoing",AV92,IF(RIGHT($K92,2)=RIGHT(BR$39,2),SUM($AV92:AV92),0)+IF(RIGHT(BR$39,2)>RIGHT($K92,2),AV92,0)) -> -2.00318681 | BS92: =+IF($K92="Ongoing",AW92,IF(RIGHT($K92,2)=RIGHT(BS$39,2),SUM($AV92:AW92),0)+IF(RIGHT(BS$39,2)>RIGHT($K92,2),AW92,0)) -> -2.037236606 | BT92: =+IF($K92="Ongoing",AX92,IF(RIGHT($K92,2)=RIGHT(BT$39,2),SUM($AV92:AX92),0)+IF(RIGHT(BT$39,2)>RIGHT($K92,2),AX92,0)) -> -2.071859831 | BU92: =+IF($K92="Ongoing",AY92,IF(RIGHT($K92,2)=RIGHT(BU$39,2),SUM($AV92:AY92),0)+IF(RIGHT(BU$39,2)>RIGHT($K92,2),AY92,0)) -> -2.107078146 | BV92: =+IF($K92="Ongoing",AZ92,IF(RIGHT($K92,2)=RIGHT(BV$39,2),SUM($AV92:AZ92),0)+IF(RIGHT(BV$39,2)>RIGHT($K92,2),AZ92,0)) -> -2.142892991 | BW92: =+IF($K92="Ongoing",BA92,IF(RIGHT($K92,2)=RIGHT(BW$39,2),SUM($AV92:BA92),0)+IF(RIGHT(BW$39,2)>RIGHT($K92,2),BA92,0)) -> -2.179321425 | BX92: =+IF($K92="Ongoing",BB92,IF(RIGHT($K92,2)=RIGHT(BX$39,2),SUM($AV92:BB92),0)+IF(RIGHT(BX$39,2)>RIGHT($K92,2),BB92,0)) -> -2.21636303 | BY92: =+IF($K92="Ongoing",BC92,IF(RIGHT($K92,2)=RIGHT(BY$39,2),SUM($AV92:BC92),0)+IF(RIGHT(BY$39,2)>RIGHT($K92,2),BC92,0)) -> -2.254036464 | BZ92: =+IF($K92="Ongoing",BD92,IF(RIGHT($K92,2)=RIGHT(BZ$39,2),SUM($AV92:BD92),0)+IF(RIGHT(BZ$39,2)>RIGHT($K92,2),BD92,0)) -> -2.292350235 | CA92: =+IF($K92="Ongoing",BE92,IF(RIGHT($K92,2)=RIGHT(CA$39,2),SUM($AV92:BE92),0)+IF(RIGHT(CA$39,2)>RIGHT($K92,2),BE92,0)) -> -2.331312487 | CC92: =+O92*KeyAssumptionsPriceControl_FO!X$15 -> 0 | CD92: =+P92*KeyAssumptionsPriceControl_FO!Y$15 -> 0 | CE92: =+Q92*KeyAssumptionsPriceControl_FO!Z$15 -> 0 | CF92: =+R92*KeyAssumptionsPriceControl_FO!AA$15 -> 0 | CG92: =+S92*KeyAssumptionsPriceControl_FO!AB$15 -> 0 | CH92: =+T92*KeyAssumptionsPriceControl_FO!AC$15 -> 0 | CI92: =+U92*KeyAssumptionsPriceControl_FO!AD$15 -> 0 | CJ92: =+V92*KeyAssumptionsPriceControl_FO!AE$15 -> 0 | CK92: =+W92*KeyAssumptionsPriceControl_FO!AF$15 -> 0 | CL92: =+X92*KeyAssumptionsPriceControl_FO!AG$15 -> 0 | CN92: 0 | CO92: 0 | CP92: 0 | CQ92: 0 | CR92: 0 | CS92: 0 | CT92: 0 | CU92: 0 | CV92: 0 | CW92: 0
C93: NCCs | E93: Sewerage | F93: Renewals | G93: Pipelines/network | H93: Other Capital expenditure | I93: 0 | J93: Straight line | K93: Ongoing | L93: 0 | M93: 0 | O93: 0 | P93: 0 | Q93: 0 | R93: 0 | S93: 0 | T93: 0 | U93: 0 | V93: 0 | W93: 0 | X93: 0 | Z93: 0 | AA93: 0 | AB93: 0 | AC93: 0 | AD93: 0 | AE93: 0 | AF93: 0 | AG93: 0 | AH93: 0 | AI93: 0 | AK93: 1.539713606 | AL93: 1.7639884 | AM93: 1.595878639 | AN93: 1.623002524 | AO93: 1.650587706 | AP93: 1.678647183 | AQ93: 1.70717929 | AR93: 1.736193167 | AS93: 1.765709524 | AT93: 1.795717255 | AV93: -1.539713606 | AW93: -1.7639884 | AX93: -1.595878639 | AY93: -1.623002524 | AZ93: -1.650587706 | BA93: -1.678647183 | BB93: -1.70717929 | BC93: -1.736193167 | BD93: -1.765709524 | BE93: -1.795717255 | BG93: 0 | BH93: 0 | BI93: 0 | BJ93: 0 | BK93: 0 | BL93: 0 | BM93: 0 | BN93: 0 | BO93: 0 | BP93: 0 | BR93: =+IF($K93="Ongoing",AV93,IF(RIGHT($K93,2)=RIGHT(BR$39,2),SUM($AV93:AV93),0)+IF(RIGHT(BR$39,2)>RIGHT($K93,2),AV93,0)) -> -1.539713606 | BS93: =+IF($K93="Ongoing",AW93,IF(RIGHT($K93,2)=RIGHT(BS$39,2),SUM($AV93:AW93),0)+IF(RIGHT(BS$39,2)>RIGHT($K93,2),AW93,0)) -> -1.7639884 | BT93: =+IF($K93="Ongoing",AX93,IF(RIGHT($K93,2)=RIGHT(BT$39,2),SUM($AV93:AX93),0)+IF(RIGHT(BT$39,2)>RIGHT($K93,2),AX93,0)) -> -1.595878639 | BU93: =+IF($K93="Ongoing",AY93,IF(RIGHT($K93,2)=RIGHT(BU$39,2),SUM($AV93:AY93),0)+IF(RIGHT(BU$39,2)>RIGHT($K93,2),AY93,0)) -> -1.623002524 | BV93: =+IF($K93="Ongoing",AZ93,IF(RIGHT($K93,2)=RIGHT(BV$39,2),SUM($AV93:AZ93),0)+IF(RIGHT(BV$39,2)>RIGHT($K93,2),AZ93,0)) -> -1.650587706 | BW93: =+IF($K93="Ongoing",BA93,IF(RIGHT($K93,2)=RIGHT(BW$39,2),SUM($AV93:BA93),0)+IF(RIGHT(BW$39,2)>RIGHT($K93,2),BA93,0)) -> -1.678647183 | BX93: =+IF($K93="Ongoing",BB93,IF(RIGHT($K93,2)=RIGHT(BX$39,2),SUM($AV93:BB93),0)+IF(RIGHT(BX$39,2)>RIGHT($K93,2),BB93,0)) -> -1.70717929 | BY93: =+IF($K93="Ongoing",BC93,IF(RIGHT($K93,2)=RIGHT(BY$39,2),SUM($AV93:BC93),0)+IF(RIGHT(BY$39,2)>RIGHT($K93,2),BC93,0)) -> -1.736193167 | BZ93: =+IF($K93="Ongoing",BD93,IF(RIGHT($K93,2)=RIGHT(BZ$39,2),SUM($AV93:BD93),0)+IF(RIGHT(BZ$39,2)>RIGHT($K93,2),BD93,0)) -> -1.765709524 | CA93: =+IF($K93="Ongoing",BE93,IF(RIGHT($K93,2)=RIGHT(CA$39,2),SUM($AV93:BE93),0)+IF(RIGHT(CA$39,2)>RIGHT($K93,2),BE93,0)) -> -1.795717255 | CC93: =+O93*KeyAssumptionsPriceControl_FO!X$15 -> 0 | CD93: =+P93*KeyAssumptionsPriceControl_FO!Y$15 -> 0 | CE93: =+Q93*KeyAssumptionsPriceControl_FO!Z$15 -> 0 | CF93: =+R93*KeyAssumptionsPriceControl_FO!AA$15 -> 0 | CG93: =+S93*KeyAssumptionsPriceControl_FO!AB$15 -> 0 | CH93: =+T93*KeyAssumptionsPriceControl_FO!AC$15 -> 0 | CI93: =+U93*KeyAssumptionsPriceControl_FO!AD$15 -> 0 | CJ93: =+V93*KeyAssumptionsPriceControl_FO!AE$15 -> 0 | CK93: =+W93*KeyAssumptionsPriceControl_FO!AF$15 -> 0 | CL93: =+X93*KeyAssumptionsPriceControl_FO!AG$15 -> 0 | CN93: 0 | CO93: 0 | CP93: 0 | CQ93: 0 | CR93: 0 | CS93: 0 | CT93: 0 | CU93: 0 | CV93: 0 | CW93: 0
C94: NCCs | E94: Recycled Water | F94: Renewals | G94: Pipelines/network | H94: Other Capital expenditure | I94: 0 | J94: Straight line | K94: Ongoing | L94: 0 | M94: 0 | O94: 0 | P94: 0 | Q94: 0 | R94: 0 | S94: 0 | T94: 0 | U94: 0 | V94: 0 | W94: 0 | X94: 0 | Z94: 0 | AA94: 0 | AB94: 0 | AC94: 0 | AD94: 0 | AE94: 0 | AF94: 0 | AG94: 0 | AH94: 0 | AI94: 0 | AK94: 0.04583447785 | AL94: 0.05026732853 | AM94: 0.05512930964 | AN94: 0.06046334317 | AO94: 0.06631453046 | AP94: 0.07273378093 | AQ94: 0.07977450903 | AR94: 0.08749861342 | AS94: 0.09597233594 | AT94: 0.1052672508 | AV94: -0.04583447785 | AW94: -0.05026732853 | AX94: -0.05512930964 | AY94: -0.06046334317 | AZ94: -0.06631453046 | BA94: -0.07273378093 | BB94: -0.07977450903 | BC94: -0.08749861342 | BD94: -0.09597233594 | BE94: -0.1052672508 | BG94: 0 | BH94: 0 | BI94: 0 | BJ94: 0 | BK94: 0 | BL94: 0 | BM94: 0 | BN94: 0 | BO94: 0 | BP94: 0 | BR94: =+IF($K94="Ongoing",AV94,IF(RIGHT($K94,2)=RIGHT(BR$39,2),SUM($AV94:AV94),0)+IF(RIGHT(BR$39,2)>RIGHT($K94,2),AV94,0)) -> -0.04583447785 | BS94: =+IF($K94="Ongoing",AW94,IF(RIGHT($K94,2)=RIGHT(BS$39,2),SUM($AV94:AW94),0)+IF(RIGHT(BS$39,2)>RIGHT($K94,2),AW94,0)) -> -0.05026732853 | BT94: =+IF($K94="Ongoing",AX94,IF(RIGHT($K94,2)=RIGHT(BT$39,2),SUM($AV94:AX94),0)+IF(RIGHT(BT$39,2)>RIGHT($K94,2),AX94,0)) -> -0.05512930964 | BU94: =+IF($K94="Ongoing",AY94,IF(RIGHT($K94,2)=RIGHT(BU$39,2),SUM($AV94:AY94),0)+IF(RIGHT(BU$39,2)>RIGHT($K94,2),AY94,0)) -> -0.06046334317 | BV94: =+IF($K94="Ongoing",AZ94,IF(RIGHT($K94,2)=RIGHT(BV$39,2),SUM($AV94:AZ94),0)+IF(RIGHT(BV$39,2)>RIGHT($K94,2),AZ94,0)) -> -0.06631453046 | BW94: =+IF($K94="Ongoing",BA94,IF(RIGHT($K94,2)=RIGHT(BW$39,2),SUM($AV94:BA94),0)+IF(RIGHT(BW$39,2)>RIGHT($K94,2),BA94,0)) -> -0.07273378093 | BX94: =+IF($K94="Ongoing",BB94,IF(RIGHT($K94,2)=RIGHT(BX$39,2),SUM($AV94:BB94),0)+IF(RIGHT(BX$39,2)>RIGHT($K94,2),BB94,0)) -> -0.07977450903 | BY94: =+IF($K94="Ongoing",BC94,IF(RIGHT($K94,2)=RIGHT(BY$39,2),SUM($AV94:BC94),0)+IF(RIGHT(BY$39,2)>RIGHT($K94,2),BC94,0)) -> -0.08749861342 | BZ94: =+IF($K94="Ongoing",BD94,IF(RIGHT($K94,2)=RIGHT(BZ$39,2),SUM($AV94:BD94),0)+IF(RIGHT(BZ$39,2)>RIGHT($K94,2),BD94,0)) -> -0.09597233594 | CA94: =+IF($K94="Ongoing",BE94,IF(RIGHT($K94,2)=RIGHT(CA$39,2),SUM($AV94:BE94),0)+IF(RIGHT(CA$39,2)>RIGHT($K94,2),BE94,0)) -> -0.1052672508 | CC94: =+O94*KeyAssumptionsPriceControl_FO!X$15 -> 0 | CD94: =+P94*KeyAssumptionsPriceControl_FO!Y$15 -> 0 | CE94: =+Q94*KeyAssumptionsPriceControl_FO!Z$15 -> 0 | CF94: =+R94*KeyAssumptionsPriceControl_FO!AA$15 -> 0 | CG94: =+S94*KeyAssumptionsPriceControl_FO!AB$15 -> 0 | CH94: =+T94*KeyAssumptionsPriceControl_FO!AC$15 -> 0 | CI94: =+U94*KeyAssumptionsPriceControl_FO!AD$15 -> 0 | CJ94: =+V94*KeyAssumptionsPriceControl_FO!AE$15 -> 0 | CK94: =+W94*KeyAssumptionsPriceControl_FO!AF$15 -> 0 | CL94: =+X94*KeyAssumptionsPriceControl_FO!AG$15 -> 0 | CN94: 0 | CO94: 0 | CP94: 0 | CQ94: 0 | CR94: 0 | CS94: 0 | CT94: 0 | CU94: 0 | CV94: 0 | CW94: 0
C95: Capex risk adjustment | E95: Water | F95: Renewals | G95: Pipelines/network | H95: Other Capital expenditure | I95: 0 | J95: Straight line | K95: Ongoing | L95: 0 | M95: 0 | O95: -2.536663947 | P95: -2.552316548 | Q95: -2.750000769 | R95: -3.215871844 | S95: -3.138577552 | T95: 0 | U95: 0 | V95: 0 | W95: 0 | X95: 0 | Z95: 0 | AA95: 0 | AB95: 0 | AC95: 0 | AD95: 0 | AE95: 0 | AF95: 0 | AG95: 0 | AH95: 0 | AI95: 0 | AK95: 0 | AL95: 0 | AM95: 0 | AN95: 0 | AO95: 0 | AP95: 0 | AQ95: 0 | AR95: 0 | AS95: 0 | AT95: 0 | AV95: -2.536663947 | AW95: -2.552316548 | AX95: -2.750000769 | AY95: -3.215871844 | AZ95: -3.138577552 | BA95: 0 | BB95: 0 | BC95: 0 | BD95: 0 | BE95: 0 | BG95: 0 | BH95: 0 | BI95: 0 | BJ95: 0 | BK95: 0 | BL95: 0 | BM95: 0 | BN95: 0 | BO95: 0 | BP95: 0 | BR95: =+IF($K95="Ongoing",AV95,IF(RIGHT($K95,2)=RIGHT(BR$39,2),SUM($AV95:AV95),0)+IF(RIGHT(BR$39,2)>RIGHT($K95,2),AV95,0)) -> -2.536663947 | BS95: =+IF($K95="Ongoing",AW95,IF(RIGHT($K95,2)=RIGHT(BS$39,2),SUM($AV95:AW95),0)+IF(RIGHT(BS$39,2)>RIGHT($K95,2),AW95,0)) -> -2.552316548 | BT95: =+IF($K95="Ongoing",AX95,IF(RIGHT($K95,2)=RIGHT(BT$39,2),SUM($AV95:AX95),0)+IF(RIGHT(BT$39,2)>RIGHT($K95,2),AX95,0)) -> -2.750000769 | BU95: =+IF($K95="Ongoing",AY95,IF(RIGHT($K95,2)=RIGHT(BU$39,2),SUM($AV95:AY95),0)+IF(RIGHT(BU$39,2)>RIGHT($K95,2),AY95,0)) -> -3.215871844 | BV95: =+IF($K95="Ongoing",AZ95,IF(RIGHT($K95,2)=RIGHT(BV$39,2),SUM($AV95:AZ95),0)+IF(RIGHT(BV$39,2)>RIGHT($K95,2),AZ95,0)) -> -3.138577552 | BW95: =+IF($K95="Ongoing",BA95,IF(RIGHT($K95,2)=RIGHT(BW$39,2),SUM($AV95:BA95),0)+IF(RIGHT(BW$39,2)>RIGHT($K95,2),BA95,0)) -> 0 | BX95: =+IF($K95="Ongoing",BB95,IF(RIGHT($K95,2)=RIGHT(BX$39,2),SUM($AV95:BB95),0)+IF(RIGHT(BX$39,2)>RIGHT($K95,2),BB95,0)) -> 0 | BY95: =+IF($K95="Ongoing",BC95,IF(RIGHT($K95,2)=RIGHT(BY$39,2),SUM($AV95:BC95),0)+IF(RIGHT(BY$39,2)>RIGHT($K95,2),BC95,0)) -> 0 | BZ95: =+IF($K95="Ongoing",BD95,IF(RIGHT($K95,2)=RIGHT(BZ$39,2),SUM($AV95:BD95),0)+IF(RIGHT(BZ$39,2)>RIGHT($K95,2),BD95,0)) -> 0 | CA95: =+IF($K95="Ongoing",BE95,IF(RIGHT($K95,2)=RIGHT(CA$39,2),SUM($AV95:BE95),0)+IF(RIGHT(CA$39,2)>RIGHT($K95,2),BE95,0)) -> 0 | CC95: =+O95*KeyAssumptionsPriceControl_FO!X$15 -> -2.595007218 | CD95: =+P95*KeyAssumptionsPriceControl_FO!Y$15 -> -2.671073284 | CE95: =+Q95*KeyAssumptionsPriceControl_FO!Z$15 -> -2.944148532 | CF95: =+R95*KeyAssumptionsPriceControl_FO!AA$15 -> -3.522096641 | CG95: =+S95*KeyAssumptionsPriceControl_FO!AB$15 -> -3.516503328 | CH95: =+T95*KeyAssumptionsPriceControl_FO!AC$15 -> 0 | CI95: =+U95*KeyAssumptionsPriceControl_FO!AD$15 -> 0 | CJ95: =+V95*KeyAssumptionsPriceControl_FO!AE$15 -> 0 | CK95: =+W95*KeyAssumptionsPriceControl_FO!AF$15 -> 0 | CL95: =+X95*KeyAssumptionsPriceControl_FO!AG$15 -> 0 | CN95: 0 | CO95: 0 | CP95: 0 | CQ95: 0 | CR95: 0 | CS95: 0 | CT95: 0 | CU95: 0 | CV95: 0 | CW95: 0
C96: Indirect capital allocation | E96: Water | F96: Improvements / Compliance | G96: Pipelines/network | H96: Significant projects | I96: 0 | J96: Straight line | K96: Ongoing | L96: 40 | M96: 40 | O96: 1.969636 | P96: 1.969636 | Q96: 1.969636 | R96: 1.969636 | S96: 1.969636 | T96: 0 | U96: 0 | V96: 0 | W96: 0 | X96: 0 | Z96: 0 | AA96: 0 | AB96: 0 | AC96: 0 | AD96: 0 | AE96: 0 | AF96: 0 | AG96: 0 | AH96: 0 | AI96: 0 | AK96: 0 | AL96: 0 | AM96: 0 | AN96: 0 | AO96: 0 | AP96: 0 | AQ96: 0 | AR96: 0 | AS96: 0 | AT96: 0 | AV96: 1.969636 | AW96: 1.969636 | AX96: 1.969636 | AY96: 1.969636 | AZ96: 1.969636 | BA96: 0 | BB96: 0 | BC96: 0 | BD96: 0 | BE96: 0 | BG96: 0.02462045 | BH96: 0.07386135 | BI96: 0.12310225 | BJ96: 0.17234315 | BK96: 0.22158405 | BL96: 0.2462045 | BM96: 0.2462045 | BN96: 0.2462045 | BO96: 0.2462045 | BP96: 0.2462045 | BR96: =+IF($K96="Ongoing",AV96,IF(RIGHT($K96,2)=RIGHT(BR$39,2),SUM($AV96:AV96),0)+IF(RIGHT(BR$39,2)>RIGHT($K96,2),AV96,0)) -> 1.969636 | BS96: =+IF($K96="Ongoing",AW96,IF(RIGHT($K96,2)=RIGHT(BS$39,2),SUM($AV96:AW96),0)+IF(RIGHT(BS$39,2)>RIGHT($K96,2),AW96,0)) -> 1.969636 | BT96: =+IF($K96="Ongoing",AX96,IF(RIGHT($K96,2)=RIGHT(BT$39,2),SUM($AV96:AX96),0)+IF(RIGHT(BT$39,2)>RIGHT($K96,2),AX96,0)) -> 1.969636 | BU96: =+IF($K96="Ongoing",AY96,IF(RIGHT($K96,2)=RIGHT(BU$39,2),SUM($AV96:AY96),0)+IF(RIGHT(BU$39,2)>RIGHT($K96,2),AY96,0)) -> 1.969636 | BV96: =+IF($K96="Ongoing",AZ96,IF(RIGHT($K96,2)=RIGHT(BV$39,2),SUM($AV96:AZ96),0)+IF(RIGHT(BV$39,2)>RIGHT($K96,2),AZ96,0)) -> 1.969636 | BW96: =+IF($K96="Ongoing",BA96,IF(RIGHT($K96,2)=RIGHT(BW$39,2),SUM($AV96:BA96),0)+IF(RIGHT(BW$39,2)>RIGHT($K96,2),BA96,0)) -> 0 | BX96: =+IF($K96="Ongoing",BB96,IF(RIGHT($K96,2)=RIGHT(BX$39,2),SUM($AV96:BB96),0)+IF(RIGHT(BX$39,2)>RIGHT($K96,2),BB96,0)) -> 0 | BY96: =+IF($K96="Ongoing",BC96,IF(RIGHT($K96,2)=RIGHT(BY$39,2),SUM($AV96:BC96),0)+IF(RIGHT(BY$39,2)>RIGHT($K96,2),BC96,0)) -> 0 | BZ96: =+IF($K96="Ongoing",BD96,IF(RIGHT($K96,2)=RIGHT(BZ$39,2),SUM($AV96:BD96),0)+IF(RIGHT(BZ$39,2)>RIGHT($K96,2),BD96,0)) -> 0 | CA96: =+IF($K96="Ongoing",BE96,IF(RIGHT($K96,2)=RIGHT(CA$39,2),SUM($AV96:BE96),0)+IF(RIGHT(CA$39,2)>RIGHT($K96,2),BE96,0)) -> 0 | CC96: =+O96*KeyAssumptionsPriceControl_FO!X$15 -> 2.014937628 | CD96: =+P96*KeyAssumptionsPriceControl_FO!Y$15 -> 2.061281193 | CE96: =+Q96*KeyAssumptionsPriceControl_FO!Z$15 -> 2.108690661 | CF96: =+R96*KeyAssumptionsPriceControl_FO!AA$15 -> 2.157190546 | CG96: =+S96*KeyAssumptionsPriceControl_FO!AB$15 -> 2.206805929 | CH96: =+T96*KeyAssumptionsPriceControl_FO!AC$15 -> 0 | CI96: =+U96*KeyAssumptionsPriceControl_FO!AD$15 -> 0 | CJ96: =+V96*KeyAssumptionsPriceControl_FO!AE$15 -> 0 | CK96: =+W96*KeyAssumptionsPriceControl_FO!AF$15 -> 0 | CL96: =+X96*KeyAssumptionsPriceControl_FO!AG$15 -> 0 | CN96: 0.02518672035 | CO96: 0.07613945562 | CP96: 0.1282641038 | CQ96: 0.1815876189 | CR96: 0.2361375748 | CS96: 0.2637226489 | CT96: 0.2637226489 | CU96: 0.2637226489 | CV96: 0.2637226489 | CW96: 0.2637226489
O97: 0 | P97: 0 | Q97: 0 | R97: 0 | S97: 0 | T97: 0 | U97: 0 | V97: 0 | W97: 0 | X97: 0 | Z97: 0 | AA97: 0 | AB97: 0 | AC97: 0 | AD97: 0 | AE97: 0 | AF97: 0 | AG97: 0 | AH97: 0 | AI97: 0 | AK97: 0 | AL97: 0 | AM97: 0 | AN97: 0 | AO97: 0 | AP97: 0 | AQ97: 0 | AR97: 0 | AS97: 0 | AT97: 0 | AV97: 0 | AW97: 0 | AX97: 0 | AY97: 0 | AZ97: 0 | BA97: 0 | BB97: 0 | BC97: 0 | BD97: 0 | BE97: 0 | BG97: 0 | BH97: 0 | BI97: 0 | BJ97: 0 | BK97: 0 | BL97: 0 | BM97: 0 | BN97: 0 | BO97: 0 | BP97: 0 | BR97: =+IF($K97="Ongoing",AV97,IF(RIGHT($K97,2)=RIGHT(BR$39,2),SUM($AV97:AV97),0)+IF(RIGHT(BR$39,2)>RIGHT($K97,2),AV97,0)) -> 0 | BS97: =+IF($K97="Ongoing",AW97,IF(RIGHT($K97,2)=RIGHT(BS$39,2),SUM($AV97:AW97),0)+IF(RIGHT(BS$39,2)>RIGHT($K97,2),AW97,0)) -> 0 | BT97: =+IF($K97="Ongoing",AX97,IF(RIGHT($K97,2)=RIGHT(BT$39,2),SUM($AV97:AX97),0)+IF(RIGHT(BT$39,2)>RIGHT($K97,2),AX97,0)) -> 0 | BU97: =+IF($K97="Ongoing",AY97,IF(RIGHT($K97,2)=RIGHT(BU$39,2),SUM($AV97:AY97),0)+IF(RIGHT(BU$39,2)>RIGHT($K97,2),AY97,0)) -> 0 | BV97: =+IF($K97="Ongoing",AZ97,IF(RIGHT($K97,2)=RIGHT(BV$39,2),SUM($AV97:AZ97),0)+IF(RIGHT(BV$39,2)>RIGHT($K97,2),AZ97,0)) -> 0 | BW97: =+IF($K97="Ongoing",BA97,IF(RIGHT($K97,2)=RIGHT(BW$39,2),SUM($AV97:BA97),0)+IF(RIGHT(BW$39,2)>RIGHT($K97,2),BA97,0)) -> 0 | BX97: =+IF($K97="Ongoing",BB97,IF(RIGHT($K97,2)=RIGHT(BX$39,2),SUM($AV97:BB97),0)+IF(RIGHT(BX$39,2)>RIGHT($K97,2),BB97,0)) -> 0 | BY97: =+IF($K97="Ongoing",BC97,IF(RIGHT($K97,2)=RIGHT(BY$39,2),SUM($AV97:BC97),0)+IF(RIGHT(BY$39,2)>RIGHT($K97,2),BC97,0)) -> 0 | BZ97: =+IF($K97="Ongoing",BD97,IF(RIGHT($K97,2)=RIGHT(BZ$39,2),SUM($AV97:BD97),0)+IF(RIGHT(BZ$39,2)>RIGHT($K97,2),BD97,0)) -> 0 | CA97: =+IF($K97="Ongoing",BE97,IF(RIGHT($K97,2)=RIGHT(CA$39,2),SUM($AV97:BE97),0)+IF(RIGHT(CA$39,2)>RIGHT($K97,2),BE97,0)) -> 0 | CC97: =+O97*KeyAssumptionsPriceControl_FO!X$15 -> 0 | CD97: =+P97*KeyAssumptionsPriceControl_FO!Y$15 -> 0 | CE97: =+Q97*KeyAssumptionsPriceControl_FO!Z$15 -> 0 | CF97: =+R97*KeyAssumptionsPriceControl_FO!AA$15 -> 0 | CG97: =+S97*KeyAssumptionsPriceControl_FO!AB$15 -> 0 | CH97: =+T97*KeyAssumptionsPriceControl_FO!AC$15 -> 0 | CI97: =+U97*KeyAssumptionsPriceControl_FO!AD$15 -> 0 | CJ97: =+V97*KeyAssumptionsPriceControl_FO!AE$15 -> 0 | CK97: =+W97*KeyAssumptionsPriceControl_FO!AF$15 -> 0 | CL97: =+X97*KeyAssumptionsPriceControl_FO!AG$15 -> 0 | CN97: 0 | CO97: 0 | CP97: 0 | CQ97: 0 | CR97: 0 | CS97: 0 | CT97: 0 | CU97: 0 | CV97: 0 | CW97: 0
O98: 0 | P98: 0 | Q98: 0 | R98: 0 | S98: 0 | T98: 0 | U98: 0 | V98: 0 | W98: 0 | X98: 0 | Z98: 0 | AA98: 0 | AB98: 0 | AC98: 0 | AD98: 0 | AE98: 0 | AF98: 0 | AG98: 0 | AH98: 0 | AI98: 0 | AK98: 0 | AL98: 0 | AM98: 0 | AN98: 0 | AO98: 0 | AP98: 0 | AQ98: 0 | AR98: 0 | AS98: 0 | AT98: 0 | AV98: 0 | AW98: 0 | AX98: 0 | AY98: 0 | AZ98: 0 | BA98: 0 | BB98: 0 | BC98: 0 | BD98: 0 | BE98: 0 | BG98: 0 | BH98: 0 | BI98: 0 | BJ98: 0 | BK98: 0 | BL98: 0 | BM98: 0 | BN98: 0 | BO98: 0 | BP98: 0 | BR98: =+IF($K98="Ongoing",AV98,IF(RIGHT($K98,2)=RIGHT(BR$39,2),SUM($AV98:AV98),0)+IF(RIGHT(BR$39,2)>RIGHT($K98,2),AV98,0)) -> 0 | BS98: =+IF($K98="Ongoing",AW98,IF(RIGHT($K98,2)=RIGHT(BS$39,2),SUM($AV98:AW98),0)+IF(RIGHT(BS$39,2)>RIGHT($K98,2),AW98,0)) -> 0 | BT98: =+IF($K98="Ongoing",AX98,IF(RIGHT($K98,2)=RIGHT(BT$39,2),SUM($AV98:AX98),0)+IF(RIGHT(BT$39,2)>RIGHT($K98,2),AX98,0)) -> 0 | BU98: =+IF($K98="Ongoing",AY98,IF(RIGHT($K98,2)=RIGHT(BU$39,2),SUM($AV98:AY98),0)+IF(RIGHT(BU$39,2)>RIGHT($K98,2),AY98,0)) -> 0 | BV98: =+IF($K98="Ongoing",AZ98,IF(RIGHT($K98,2)=RIGHT(BV$39,2),SUM($AV98:AZ98),0)+IF(RIGHT(BV$39,2)>RIGHT($K98,2),AZ98,0)) -> 0 | BW98: =+IF($K98="Ongoing",BA98,IF(RIGHT($K98,2)=RIGHT(BW$39,2),SUM($AV98:BA98),0)+IF(RIGHT(BW$39,2)>RIGHT($K98,2),BA98,0)) -> 0 | BX98: =+IF($K98="Ongoing",BB98,IF(RIGHT($K98,2)=RIGHT(BX$39,2),SUM($AV98:BB98),0)+IF(RIGHT(BX$39,2)>RIGHT($K98,2),BB98,0)) -> 0 | BY98: =+IF($K98="Ongoing",BC98,IF(RIGHT($K98,2)=RIGHT(BY$39,2),SUM($AV98:BC98),0)+IF(RIGHT(BY$39,2)>RIGHT($K98,2),BC98,0)) -> 0 | BZ98: =+IF($K98="Ongoing",BD98,IF(RIGHT($K98,2)=RIGHT(BZ$39,2),SUM($AV98:BD98),0)+IF(RIGHT(BZ$39,2)>RIGHT($K98,2),BD98,0)) -> 0 | CA98: =+IF($K98="Ongoing",BE98,IF(RIGHT($K98,2)=RIGHT(CA$39,2),SUM($AV98:BE98),0)+IF(RIGHT(CA$39,2)>RIGHT($K98,2),BE98,0)) -> 0 | CC98: =+O98*KeyAssumptionsPriceControl_FO!X$15 -> 0 | CD98: =+P98*KeyAssumptionsPriceControl_FO!Y$15 -> 0 | CE98: =+Q98*KeyAssumptionsPriceControl_FO!Z$15 -> 0 | CF98: =+R98*KeyAssumptionsPriceControl_FO!AA$15 -> 0 | CG98: =+S98*KeyAssumptionsPriceControl_FO!AB$15 -> 0 | CH98: =+T98*KeyAssumptionsPriceControl_FO!AC$15 -> 0 | CI98: =+U98*KeyAssumptionsPriceControl_FO!AD$15 -> 0 | CJ98: =+V98*KeyAssumptionsPriceControl_FO!AE$15 -> 0 | CK98: =+W98*KeyAssumptionsPriceControl_FO!AF$15 -> 0 | CL98: =+X98*KeyAssumptionsPriceControl_FO!AG$15 -> 0 | CN98: 0 | CO98: 0 | CP98: 0 | CQ98: 0 | CR98: 0 | CS98: 0 | CT98: 0 | CU98: 0 | CV98: 0 | CW98: 0
O99: 0 | P99: 0 | Q99: 0 | R99: 0 | S99: 0 | T99: 0 | U99: 0 | V99: 0 | W99: 0 | X99: 0 | Z99: 0 | AA99: 0 | AB99: 0 | AC99: 0 | AD99: 0 | AE99: 0 | AF99: 0 | AG99: 0 | AH99: 0 | AI99: 0 | AK99: 0 | AL99: 0 | AM99: 0 | AN99: 0 | AO99: 0 | AP99: 0 | AQ99: 0 | AR99: 0 | AS99: 0 | AT99: 0 | AV99: 0 | AW99: 0 | AX99: 0 | AY99: 0 | AZ99: 0 | BA99: 0 | BB99: 0 | BC99: 0 | BD99: 0 | BE99: 0 | BG99: 0 | BH99: 0 | BI99: 0 | BJ99: 0 | BK99: 0 | BL99: 0 | BM99: 0 | BN99: 0 | BO99: 0 | BP99: 0 | BR99: =+IF($K99="Ongoing",AV99,IF(RIGHT($K99,2)=RIGHT(BR$39,2),SUM($AV99:AV99),0)+IF(RIGHT(BR$39,2)>RIGHT($K99,2),AV99,0)) -> 0 | BS99: =+IF($K99="Ongoing",AW99,IF(RIGHT($K99,2)=RIGHT(BS$39,2),SUM($AV99:AW99),0)+IF(RIGHT(BS$39,2)>RIGHT($K99,2),AW99,0)) -> 0 | BT99: =+IF($K99="Ongoing",AX99,IF(RIGHT($K99,2)=RIGHT(BT$39,2),SUM($AV99:AX99),0)+IF(RIGHT(BT$39,2)>RIGHT($K99,2),AX99,0)) -> 0 | BU99: =+IF($K99="Ongoing",AY99,IF(RIGHT($K99,2)=RIGHT(BU$39,2),SUM($AV99:AY99),0)+IF(RIGHT(BU$39,2)>RIGHT($K99,2),AY99,0)) -> 0 | BV99: =+IF($K99="Ongoing",AZ99,IF(RIGHT($K99,2)=RIGHT(BV$39,2),SUM($AV99:AZ99),0)+IF(RIGHT(BV$39,2)>RIGHT($K99,2),AZ99,0)) -> 0 | BW99: =+IF($K99="Ongoing",BA99,IF(RIGHT($K99,2)=RIGHT(BW$39,2),SUM($AV99:BA99),0)+IF(RIGHT(BW$39,2)>RIGHT($K99,2),BA99,0)) -> 0 | BX99: =+IF($K99="Ongoing",BB99,IF(RIGHT($K99,2)=RIGHT(BX$39,2),SUM($AV99:BB99),0)+IF(RIGHT(BX$39,2)>RIGHT($K99,2),BB99,0)) -> 0 | BY99: =+IF($K99="Ongoing",BC99,IF(RIGHT($K99,2)=RIGHT(BY$39,2),SUM($AV99:BC99),0)+IF(RIGHT(BY$39,2)>RIGHT($K99,2),BC99,0)) -> 0 | BZ99: =+IF($K99="Ongoing",BD99,IF(RIGHT($K99,2)=RIGHT(BZ$39,2),SUM($AV99:BD99),0)+IF(RIGHT(BZ$39,2)>RIGHT($K99,2),BD99,0)) -> 0 | CA99: =+IF($K99="Ongoing",BE99,IF(RIGHT($K99,2)=RIGHT(CA$39,2),SUM($AV99:BE99),0)+IF(RIGHT(CA$39,2)>RIGHT($K99,2),BE99,0)) -> 0 | CC99: =+O99*KeyAssumptionsPriceControl_FO!X$15 -> 0 | CD99: =+P99*KeyAssumptionsPriceControl_FO!Y$15 -> 0 | CE99: =+Q99*KeyAssumptionsPriceControl_FO!Z$15 -> 0 | CF99: =+R99*KeyAssumptionsPriceControl_FO!AA$15 -> 0 | CG99: =+S99*KeyAssumptionsPriceControl_FO!AB$15 -> 0 | CH99: =+T99*KeyAssumptionsPriceControl_FO!AC$15 -> 0 | CI99: =+U99*KeyAssumptionsPriceControl_FO!AD$15 -> 0 | CJ99: =+V99*KeyAssumptionsPriceControl_FO!AE$15 -> 0 | CK99: =+W99*KeyAssumptionsPriceControl_FO!AF$15 -> 0 | CL99: =+X99*KeyAssumptionsPriceControl_FO!AG$15 -> 0 | CN99: 0 | CO99: 0 | CP99: 0 | CQ99: 0 | CR99: 0 | CS99: 0 | CT99: 0 | CU99: 0 | CV99: 0 | CW99: 0
O100: 0 | P100: 0 | Q100: 0 | R100: 0 | S100: 0 | T100: 0 | U100: 0 | V100: 0 | W100: 0 | X100: 0 | Z100: 0 | AA100: 0 | AB100: 0 | AC100: 0 | AD100: 0 | AE100: 0 | AF100: 0 | AG100: 0 | AH100: 0 | AI100: 0 | AK100: 0 | AL100: 0 | AM100: 0 | AN100: 0 | AO100: 0 | AP100: 0 | AQ100: 0 | AR100: 0 | AS100: 0 | AT100: 0 | AV100: 0 | AW100: 0 | AX100: 0 | AY100: 0 | AZ100: 0 | BA100: 0 | BB100: 0 | BC100: 0 | BD100: 0 | BE100: 0 | BG100: 0 | BH100: 0 | BI100: 0 | BJ100: 0 | BK100: 0 | BL100: 0 | BM100: 0 | BN100: 0 | BO100: 0 | BP100: 0 | BR100: =+IF($K100="Ongoing",AV100,IF(RIGHT($K100,2)=RIGHT(BR$39,2),SUM($AV100:AV100),0)+IF(RIGHT(BR$39,2)>RIGHT($K100,2),AV100,0)) -> 0 | BS100: =+IF($K100="Ongoing",AW100,IF(RIGHT($K100,2)=RIGHT(BS$39,2),SUM($AV100:AW100),0)+IF(RIGHT(BS$39,2)>RIGHT($K100,2),AW100,0)) -> 0 | BT100: =+IF($K100="Ongoing",AX100,IF(RIGHT($K100,2)=RIGHT(BT$39,2),SUM($AV100:AX100),0)+IF(RIGHT(BT$39,2)>RIGHT($K100,2),AX100,0)) -> 0 | BU100: =+IF($K100="Ongoing",AY100,IF(RIGHT($K100,2)=RIGHT(BU$39,2),SUM($AV100:AY100),0)+IF(RIGHT(BU$39,2)>RIGHT($K100,2),AY100,0)) -> 0 | BV100: =+IF($K100="Ongoing",AZ100,IF(RIGHT($K100,2)=RIGHT(BV$39,2),SUM($AV100:AZ100),0)+IF(RIGHT(BV$39,2)>RIGHT($K100,2),AZ100,0)) -> 0 | BW100: =+IF($K100="Ongoing",BA100,IF(RIGHT($K100,2)=RIGHT(BW$39,2),SUM($AV100:BA100),0)+IF(RIGHT(BW$39,2)>RIGHT($K100,2),BA100,0)) -> 0 | BX100: =+IF($K100="Ongoing",BB100,IF(RIGHT($K100,2)=RIGHT(BX$39,2),SUM($AV100:BB100),0)+IF(RIGHT(BX$39,2)>RIGHT($K100,2),BB100,0)) -> 0 | BY100: =+IF($K100="Ongoing",BC100,IF(RIGHT($K100,2)=RIGHT(BY$39,2),SUM($AV100:BC100),0)+IF(RIGHT(BY$39,2)>RIGHT($K100,2),BC100,0)) -> 0 | BZ100: =+IF($K100="Ongoing",BD100,IF(RIGHT($K100,2)=RIGHT(BZ$39,2),SUM($AV100:BD100),0)+IF(RIGHT(BZ$39,2)>RIGHT($K100,2),BD100,0)) -> 0 | CA100: =+IF($K100="Ongoing",BE100,IF(RIGHT($K100,2)=RIGHT(CA$39,2),SUM($AV100:BE100),0)+IF(RIGHT(CA$39,2)>RIGHT($K100,2),BE100,0)) -> 0 | CC100: =+O100*KeyAssumptionsPriceControl_FO!X$15 -> 0 | CD100: =+P100*KeyAssumptionsPriceControl_FO!Y$15 -> 0 | CE100: =+Q100*KeyAssumptionsPriceControl_FO!Z$15 -> 0 | CF100: =+R100*KeyAssumptionsPriceControl_FO!AA$15 -> 0 | CG100: =+S100*KeyAssumptionsPriceControl_FO!AB$15 -> 0 | CH100: =+T100*KeyAssumptionsPriceControl_FO!AC$15 -> 0 | CI100: =+U100*KeyAssumptionsPriceControl_FO!AD$15 -> 0 | CJ100: =+V100*KeyAssumptionsPriceControl_FO!AE$15 -> 0 | CK100: =+W100*KeyAssumptionsPriceControl_FO!AF$15 -> 0 | CL100: =+X100*KeyAssumptionsPriceControl_FO!AG$15 -> 0 | CN100: 0 | CO100: 0 | CP100: 0 | CQ100: 0 | CR100: 0 | CS100: 0 | CT100: 0 | CU100: 0 | CV100: 0 | CW100: 0
C101: Fifth Regulatory Capex Allocation 1 | E101: Water | F101: Growth | G101: Pipelines/network | H101: Capital Programs / Allocation | I101: 0 | J101: Straight line | K101: Ongoing | L101: 40 | M101: 40 | O101: 0 | P101: 0 | Q101: 0 | R101: 0 | S101: 0 | T101: 6.503564178 | U101: 14.5162891 | V101: 12.6907748 | W101: 6.57623994 | X101: 7.715296349 | Z101: 0 | AA101: 0 | AB101: 0 | AC101: 0 | AD101: 0 | AE101: 0 | AF101: 0 | AG101: 0 | AH101: 0 | AI101: 0 | AK101: 0 | AL101: 0 | AM101: 0 | AN101: 0 | AO101: 0 | AP101: 0 | AQ101: 0 | AR101: 0 | AS101: 0 | AT101: 0 | AV101: 0 | AW101: 0 | AX101: 0 | AY101: 0 | AZ101: 0 | BA101: 6.503564178 | BB101: 14.5162891 | BC101: 12.6907748 | BD101: 6.57623994 | BE101: 7.715296349 | BG101: 0 | BH101: 0 | BI101: 0 | BJ101: 0 | BK101: 0 | BL101: 0.08129455223 | BM101: 0.3440427182 | BN101: 0.6841310169 | BO101: 0.9249687011 | BP101: 1.103612905 | BR101: =+IF($K101="Ongoing",AV101,IF(RIGHT($K101,2)=RIGHT(BR$39,2),SUM($AV101:AV101),0)+IF(RIGHT(BR$39,2)>RIGHT($K101,2),AV101,0)) -> 0 | BS101: =+IF($K101="Ongoing",AW101,IF(RIGHT($K101,2)=RIGHT(BS$39,2),SUM($AV101:AW101),0)+IF(RIGHT(BS$39,2)>RIGHT($K101,2),AW101,0)) -> 0 | BT101: =+IF($K101="Ongoing",AX101,IF(RIGHT($K101,2)=RIGHT(BT$39,2),SUM($AV101:AX101),0)+IF(RIGHT(BT$39,2)>RIGHT($K101,2),AX101,0)) -> 0 | BU101: =+IF($K101="Ongoing",AY101,IF(RIGHT($K101,2)=RIGHT(BU$39,2),SUM($AV101:AY101),0)+IF(RIGHT(BU$39,2)>RIGHT($K101,2),AY101,0)) -> 0 | BV101: =+IF($K101="Ongoing",AZ101,IF(RIGHT($K101,2)=RIGHT(BV$39,2),SUM($AV101:AZ101),0)+IF(RIGHT(BV$39,2)>RIGHT($K101,2),AZ101,0)) -> 0 | BW101: =+IF($K101="Ongoing",BA101,IF(RIGHT($K101,2)=RIGHT(BW$39,2),SUM($AV101:BA101),0)+IF(RIGHT(BW$39,2)>RIGHT($K101,2),BA101,0)) -> 6.503564178 | BX101: =+IF($K101="Ongoing",BB101,IF(RIGHT($K101,2)=RIGHT(BX$39,2),SUM($AV101:BB101),0)+IF(RIGHT(BX$39,2)>RIGHT($K101,2),BB101,0)) -> 14.5162891 | BY101: =+IF($K101="Ongoing",BC101,IF(RIGHT($K101,2)=RIGHT(BY$39,2),SUM($AV101:BC101),0)+IF(RIGHT(BY$39,2)>RIGHT($K101,2),BC101,0)) -> 12.6907748 | BZ101: =+IF($K101="Ongoing",BD101,IF(RIGHT($K101,2)=RIGHT(BZ$39,2),SUM($AV101:BD101),0)+IF(RIGHT(BZ$39,2)>RIGHT($K101,2),BD101,0)) -> 6.57623994 | CA101: =+IF($K101="Ongoing",BE101,IF(RIGHT($K101,2)=RIGHT(CA$39,2),SUM($AV101:BE101),0)+IF(RIGHT(CA$39,2)>RIGHT($K101,2),BE101,0)) -> 7.715296349 | CC101: =+O101*KeyAssumptionsPriceControl_FO!X$15 -> 0 | CD101: =+P101*KeyAssumptionsPriceControl_FO!Y$15 -> 0 | CE101: =+Q101*KeyAssumptionsPriceControl_FO!Z$15 -> 0 | CF101: =+R101*KeyAssumptionsPriceControl_FO!AA$15 -> 0 | CG101: =+S101*KeyAssumptionsPriceControl_FO!AB$15 -> 0 | CH101: =+T101*KeyAssumptionsPriceControl_FO!AC$15 -> 7.454271946 | CI101: =+U101*KeyAssumptionsPriceControl_FO!AD$15 -> 17.02099894 | CJ101: =+V101*KeyAssumptionsPriceControl_FO!AE$15 -> 15.22275323 | CK101: =+W101*KeyAssumptionsPriceControl_FO!AF$15 -> 8.069717916 | CL101: =+X101*KeyAssumptionsPriceControl_FO!AG$15 -> 9.685207939 | CN101: 0 | CO101: 0 | CP101: 0 | CQ101: 0 | CR101: 0 | CS101: 0.09317839932 | CT101: 0.3991192854 | CU101: 0.8021661875 | CV101: 1.093322077 | CW101: 1.31525865
C102: Fifth Regulatory Capex Allocation 2 | E102: Sewerage | F102: Improvements / Compliance | G102: Treatment | H102: Capital Programs / Allocation | I102: 0 | J102: Straight line | K102: Ongoing | L102: 40 | M102: 40 | O102: 0 | P102: 0 | Q102: 0 | R102: 0 | S102: 0 | T102: 3.203070416 | U102: 0.9929867482 | V102: 5.03882953 | W102: 9.392699432 | X102: 10.32763943 | Z102: 0 | AA102: 0 | AB102: 0 | AC102: 0 | AD102: 0 | AE102: 0 | AF102: 0 | AG102: 0 | AH102: 0 | AI102: 0 | AK102: 0 | AL102: 0 | AM102: 0 | AN102: 0 | AO102: 0 | AP102: 0 | AQ102: 0 | AR102: 0 | AS102: 0 | AT102: 0 | AV102: 0 | AW102: 0 | AX102: 0 | AY102: 0 | AZ102: 0 | BA102: 3.203070416 | BB102: 0.9929867482 | BC102: 5.03882953 | BD102: 9.392699432 | BE102: 10.32763943 | BG102: 0 | BH102: 0 | BI102: 0 | BJ102: 0 | BK102: 0 | BL102: 0.0400383802 | BM102: 0.09248909474 | BN102: 0.1678867982 | BO102: 0.3482809102 | BP102: 0.5947851461 | BR102: =+IF($K102="Ongoing",AV102,IF(RIGHT($K102,2)=RIGHT(BR$39,2),SUM($AV102:AV102),0)+IF(RIGHT(BR$39,2)>RIGHT($K102,2),AV102,0)) -> 0 | BS102: =+IF($K102="Ongoing",AW102,IF(RIGHT($K102,2)=RIGHT(BS$39,2),SUM($AV102:AW102),0)+IF(RIGHT(BS$39,2)>RIGHT($K102,2),AW102,0)) -> 0 | BT102: =+IF($K102="Ongoing",AX102,IF(RIGHT($K102,2)=RIGHT(BT$39,2),SUM($AV102:AX102),0)+IF(RIGHT(BT$39,2)>RIGHT($K102,2),AX102,0)) -> 0 | BU102: =+IF($K102="Ongoing",AY102,IF(RIGHT($K102,2)=RIGHT(BU$39,2),SUM($AV102:AY102),0)+IF(RIGHT(BU$39,2)>RIGHT($K102,2),AY102,0)) -> 0 | BV102: =+IF($K102="Ongoing",AZ102,IF(RIGHT($K102,2)=RIGHT(BV$39,2),SUM($AV102:AZ102),0)+IF(RIGHT(BV$39,2)>RIGHT($K102,2),AZ102,0)) -> 0 | BW102: =+IF($K102="Ongoing",BA102,IF(RIGHT($K102,2)=RIGHT(BW$39,2),SUM($AV102:BA102),0)+IF(RIGHT(BW$39,2)>RIGHT($K102,2),BA102,0)) -> 3.203070416 | BX102: =+IF($K102="Ongoing",BB102,IF(RIGHT($K102,2)=RIGHT(BX$39,2),SUM($AV102:BB102),0)+IF(RIGHT(BX$39,2)>RIGHT($K102,2),BB102,0)) -> 0.9929867482 | BY102: =+IF($K102="Ongoing",BC102,IF(RIGHT($K102,2)=RIGHT(BY$39,2),SUM($AV102:BC102),0)+IF(RIGHT(BY$39,2)>RIGHT($K102,2),BC102,0)) -> 5.03882953 | BZ102: =+IF($K102="Ongoing",BD102,IF(RIGHT($K102,2)=RIGHT(BZ$39,2),SUM($AV102:BD102),0)+IF(RIGHT(BZ$39,2)>RIGHT($K102,2),BD102,0)) -> 9.392699432 | CA102: =+IF($K102="Ongoing",BE102,IF(RIGHT($K102,2)=RIGHT(CA$39,2),SUM($AV102:BE102),0)+IF(RIGHT(CA$39,2)>RIGHT($K102,2),BE102,0)) -> 10.32763943 | CC102: =+O102*KeyAssumptionsPriceControl_FO!X$15 -> 0 | CD102: =+P102*KeyAssumptionsPriceControl_FO!Y$15 -> 0 | CE102: =+Q102*KeyAssumptionsPriceControl_FO!Z$15 -> 0 | CF102: =+R102*KeyAssumptionsPriceControl_FO!AA$15 -> 0 | CG102: =+S102*KeyAssumptionsPriceControl_FO!AB$15 -> 0 | CH102: =+T102*KeyAssumptionsPriceControl_FO!AC$15 -> 3.671303501 | CI102: =+U102*KeyAssumptionsPriceControl_FO!AD$15 -> 1.164321424 | CJ102: =+V102*KeyAssumptionsPriceControl_FO!AE$15 -> 6.044143065 | CK102: =+W102*KeyAssumptionsPriceControl_FO!AF$15 -> 11.52580131 | CL102: =+X102*KeyAssumptionsPriceControl_FO!AG$15 -> 12.96454872 | CN102: 0 | CO102: 0 | CP102: 0 | CQ102: 0 | CR102: 0 | CS102: 0.04589129377 | CT102: 0.1063366053 | CU102: 0.1964424114 | CV102: 0.4160667161 | CW102: 0.7221960914
C103: Fifth Regulatory Capex Allocation 3 | E103: Water | F103: Improvements / Compliance | G103: Pipelines/network | H103: Capital Programs / Allocation | I103: 0 | J103: Straight line | K103: Ongoing | L103: 40 | M103: 40 | O103: 0 | P103: 0 | Q103: 0 | R103: 0 | S103: 0 | T103: 3.814519229 | U103: 2.649307789 | V103: 1.623123061 | W103: 3.224775418 | X103: 1.408122972 | Z103: 0 | AA103: 0 | AB103: 0 | AC103: 0 | AD103: 0 | AE103: 0 | AF103: 0 | AG103: 0 | AH103: 0 | AI103: 0 | AK103: 0 | AL103: 0 | AM103: 0 | AN103: 0 | AO103: 0 | AP103: 0 | AQ103: 0 | AR103: 0 | AS103: 0 | AT103: 0 | AV103: 0 | AW103: 0 | AX103: 0 | AY103: 0 | AZ103: 0 | BA103: 3.814519229 | BB103: 2.649307789 | BC103: 1.623123061 | BD103: 3.224775418 | BE103: 1.408122972 | BG103: 0 | BH103: 0 | BI103: 0 | BJ103: 0 | BK103: 0 | BL103: 0.04768149036 | BM103: 0.1284793281 | BN103: 0.1818847137 | BO103: 0.2424834447 | BP103: 0.3003946746 | BR103: =+IF($K103="Ongoing",AV103,IF(RIGHT($K103,2)=RIGHT(BR$39,2),SUM($AV103:AV103),0)+IF(RIGHT(BR$39,2)>RIGHT($K103,2),AV103,0)) -> 0 | BS103: =+IF($K103="Ongoing",AW103,IF(RIGHT($K103,2)=RIGHT(BS$39,2),SUM($AV103:AW103),0)+IF(RIGHT(BS$39,2)>RIGHT($K103,2),AW103,0)) -> 0 | BT103: =+IF($K103="Ongoing",AX103,IF(RIGHT($K103,2)=RIGHT(BT$39,2),SUM($AV103:AX103),0)+IF(RIGHT(BT$39,2)>RIGHT($K103,2),AX103,0)) -> 0 | BU103: =+IF($K103="Ongoing",AY103,IF(RIGHT($K103,2)=RIGHT(BU$39,2),SUM($AV103:AY103),0)+IF(RIGHT(BU$39,2)>RIGHT($K103,2),AY103,0)) -> 0 | BV103: =+IF($K103="Ongoing",AZ103,IF(RIGHT($K103,2)=RIGHT(BV$39,2),SUM($AV103:AZ103),0)+IF(RIGHT(BV$39,2)>RIGHT($K103,2),AZ103,0)) -> 0 | BW103: =+IF($K103="Ongoing",BA103,IF(RIGHT($K103,2)=RIGHT(BW$39,2),SUM($AV103:BA103),0)+IF(RIGHT(BW$39,2)>RIGHT($K103,2),BA103,0)) -> 3.814519229 | BX103: =+IF($K103="Ongoing",BB103,IF(RIGHT($K103,2)=RIGHT(BX$39,2),SUM($AV103:BB103),0)+IF(RIGHT(BX$39,2)>RIGHT($K103,2),BB103,0)) -> 2.649307789 | BY103: =+IF($K103="Ongoing",BC103,IF(RIGHT($K103,2)=RIGHT(BY$39,2),SUM($AV103:BC103),0)+IF(RIGHT(BY$39,2)>RIGHT($K103,2),BC103,0)) -> 1.623123061 | BZ103: =+IF($K103="Ongoing",BD103,IF(RIGHT($K103,2)=RIGHT(BZ$39,2),SUM($AV103:BD103),0)+IF(RIGHT(BZ$39,2)>RIGHT($K103,2),BD103,0)) -> 3.224775418 | CA103: =+IF($K103="Ongoing",BE103,IF(RIGHT($K103,2)=RIGHT(CA$39,2),SUM($AV103:BE103),0)+IF(RIGHT(CA$39,2)>RIGHT($K103,2),BE103,0)) -> 1.408122972 | CC103: =+O103*KeyAssumptionsPriceControl_FO!X$15 -> 0 | CD103: =+P103*KeyAssumptionsPriceControl_FO!Y$15 -> 0 | CE103: =+Q103*KeyAssumptionsPriceControl_FO!Z$15 -> 0 | CF103: =+R103*KeyAssumptionsPriceControl_FO!AA$15 -> 0 | CG103: =+S103*KeyAssumptionsPriceControl_FO!AB$15 -> 0 | CH103: =+T103*KeyAssumptionsPriceControl_FO!AC$15 -> 4.372135477 | CI103: =+U103*KeyAssumptionsPriceControl_FO!AD$15 -> 3.106432007 | CJ103: =+V103*KeyAssumptionsPriceControl_FO!AE$15 -> 1.946957708 | CK103: =+W103*KeyAssumptionsPriceControl_FO!AF$15 -> 3.957128724 | CL103: =+X103*KeyAssumptionsPriceControl_FO!AG$15 -> 1.767652617 | CN103: 0 | CO103: 0 | CP103: 0 | CQ103: 0 | CR103: 0 | CS103: 0.05465169347 | CT103: 0.148133787 | CU103: 0.2113011585 | CV103: 0.2851022389 | CW103: 0.3566620056
C104: Fifth Regulatory Capex Allocation 4 | E104: Sewerage | F104: Growth | G104: Pipelines/network | H104: Capital Programs / Allocation | I104: 0 | J104: Straight line | K104: Ongoing | L104: 40 | M104: 40 | O104: 0 | P104: 0 | Q104: 0 | R104: 0 | S104: 0 | T104: 4.200080528 | U104: 1.006370581 | V104: 1.908020668 | W104: 3.24926289 | X104: 4.138023716 | Z104: 0 | AA104: 0 | AB104: 0 | AC104: 0 | AD104: 0 | AE104: 0 | AF104: 0 | AG104: 0 | AH104: 0 | AI104: 0 | AK104: 0 | AL104: 0 | AM104: 0 | AN104: 0 | AO104: 0 | AP104: 0 | AQ104: 0 | AR104: 0 | AS104: 0 | AT104: 0 | AV104: 0 | AW104: 0 | AX104: 0 | AY104: 0 | AZ104: 0 | BA104: 4.200080528 | BB104: 1.006370581 | BC104: 1.908020668 | BD104: 3.24926289 | BE104: 4.138023716 | BG104: 0 | BH104: 0 | BI104: 0 | BJ104: 0 | BK104: 0 | BL104: 0.0525010066 | BM104: 0.1175816455 | BN104: 0.1540115361 | BO104: 0.2184775806 | BP104: 0.3108186631 | BR104: =+IF($K104="Ongoing",AV104,IF(RIGHT($K104,2)=RIGHT(BR$39,2),SUM($AV104:AV104),0)+IF(RIGHT(BR$39,2)>RIGHT($K104,2),AV104,0)) -> 0 | BS104: =+IF($K104="Ongoing",AW104,IF(RIGHT($K104,2)=RIGHT(BS$39,2),SUM($AV104:AW104),0)+IF(RIGHT(BS$39,2)>RIGHT($K104,2),AW104,0)) -> 0 | BT104: =+IF($K104="Ongoing",AX104,IF(RIGHT($K104,2)=RIGHT(BT$39,2),SUM($AV104:AX104),0)+IF(RIGHT(BT$39,2)>RIGHT($K104,2),AX104,0)) -> 0 | BU104: =+IF($K104="Ongoing",AY104,IF(RIGHT($K104,2)=RIGHT(BU$39,2),SUM($AV104:AY104),0)+IF(RIGHT(BU$39,2)>RIGHT($K104,2),AY104,0)) -> 0 | BV104: =+IF($K104="Ongoing",AZ104,IF(RIGHT($K104,2)=RIGHT(BV$39,2),SUM($AV104:AZ104),0)+IF(RIGHT(BV$39,2)>RIGHT($K104,2),AZ104,0)) -> 0 | BW104: =+IF($K104="Ongoing",BA104,IF(RIGHT($K104,2)=RIGHT(BW$39,2),SUM($AV104:BA104),0)+IF(RIGHT(BW$39,2)>RIGHT($K104,2),BA104,0)) -> 4.200080528 | BX104: =+IF($K104="Ongoing",BB104,IF(RIGHT($K104,2)=RIGHT(BX$39,2),SUM($AV104:BB104),0)+IF(RIGHT(BX$39,2)>RIGHT($K104,2),BB104,0)) -> 1.006370581 | BY104: =+IF($K104="Ongoing",BC104,IF(RIGHT($K104,2)=RIGHT(BY$39,2),SUM($AV104:BC104),0)+IF(RIGHT(BY$39,2)>RIGHT($K104,2),BC104,0)) -> 1.908020668 | BZ104: =+IF($K104="Ongoing",BD104,IF(RIGHT($K104,2)=RIGHT(BZ$39,2),SUM($AV104:BD104),0)+IF(RIGHT(BZ$39,2)>RIGHT($K104,2),BD104,0)) -> 3.24926289 | CA104: =+IF($K104="Ongoing",BE104,IF(RIGHT($K104,2)=RIGHT(CA$39,2),SUM($AV104:BE104),0)+IF(RIGHT(CA$39,2)>RIGHT($K104,2),BE104,0)) -> 4.138023716 | CC104: =+O104*KeyAssumptionsPriceControl_FO!X$15 -> 0 | CD104: =+P104*KeyAssumptionsPriceControl_FO!Y$15 -> 0 | CE104: =+Q104*KeyAssumptionsPriceControl_FO!Z$15 -> 0 | CF104: =+R104*KeyAssumptionsPriceControl_FO!AA$15 -> 0 | CG104: =+S104*KeyAssumptionsPriceControl_FO!AB$15 -> 0 | CH104: =+T104*KeyAssumptionsPriceControl_FO!AC$15 -> 4.814059121 | CI104: =+U104*KeyAssumptionsPriceControl_FO!AD$15 -> 1.180014568 | CJ104: =+V104*KeyAssumptionsPriceControl_FO!AE$15 -> 2.288696178 | CK104: =+W104*KeyAssumptionsPriceControl_FO!AF$15 -> 3.987177353 | CL104: =+X104*KeyAssumptionsPriceControl_FO!AG$15 -> 5.194566525 | CN104: 0 | CO104: 0 | CP104: 0 | CQ104: 0 | CR104: 0 | CS104: 0.06017573901 | CT104: 0.1351016601 | CU104: 0.1784605444 | CV104: 0.2569089636 | CW104: 0.3716807621
C105: Fifth Regulatory Capex Allocation 5 | E105: Sewerage | F105: Improvements / Compliance | G105: Pipelines/network | H105: Capital Programs / Allocation | I105: 0 | J105: Straight line | K105: Ongoing | L105: 40 | M105: 40 | O105: 0 | P105: 0 | Q105: 0 | R105: 0 | S105: 0 | T105: 0.2786730343 | U105: 0.2885875628 | V105: 0.2768153757 | W105: 0.2513884351 | X105: 0.2802838816 | Z105: 0 | AA105: 0 | AB105: 0 | AC105: 0 | AD105: 0 | AE105: 0 | AF105: 0 | AG105: 0 | AH105: 0 | AI105: 0 | AK105: 0 | AL105: 0 | AM105: 0 | AN105: 0 | AO105: 0 | AP105: 0 | AQ105: 0 | AR105: 0 | AS105: 0 | AT105: 0 | AV105: 0 | AW105: 0 | AX105: 0 | AY105: 0 | AZ105: 0 | BA105: 0.2786730343 | BB105: 0.2885875628 | BC105: 0.2768153757 | BD105: 0.2513884351 | BE105: 0.2802838816 | BG105: 0 | BH105: 0 | BI105: 0 | BJ105: 0 | BK105: 0 | BL105: 0.003483412929 | BM105: 0.01057417039 | BN105: 0.01764170712 | BO105: 0.02424425476 | BP105: 0.03089015872 | BR105: =+IF($K105="Ongoing",AV105,IF(RIGHT($K105,2)=RIGHT(BR$39,2),SUM($AV105:AV105),0)+IF(RIGHT(BR$39,2)>RIGHT($K105,2),AV105,0)) -> 0 | BS105: =+IF($K105="Ongoing",AW105,IF(RIGHT($K105,2)=RIGHT(BS$39,2),SUM($AV105:AW105),0)+IF(RIGHT(BS$39,2)>RIGHT($K105,2),AW105,0)) -> 0 | BT105: =+IF($K105="Ongoing",AX105,IF(RIGHT($K105,2)=RIGHT(BT$39,2),SUM($AV105:AX105),0)+IF(RIGHT(BT$39,2)>RIGHT($K105,2),AX105,0)) -> 0 | BU105: =+IF($K105="Ongoing",AY105,IF(RIGHT($K105,2)=RIGHT(BU$39,2),SUM($AV105:AY105),0)+IF(RIGHT(BU$39,2)>RIGHT($K105,2),AY105,0)) -> 0 | BV105: =+IF($K105="Ongoing",AZ105,IF(RIGHT($K105,2)=RIGHT(BV$39,2),SUM($AV105:AZ105),0)+IF(RIGHT(BV$39,2)>RIGHT($K105,2),AZ105,0)) -> 0 | BW105: =+IF($K105="Ongoing",BA105,IF(RIGHT($K105,2)=RIGHT(BW$39,2),SUM($AV105:BA105),0)+IF(RIGHT(BW$39,2)>RIGHT($K105,2),BA105,0)) -> 0.2786730343 | BX105: =+IF($K105="Ongoing",BB105,IF(RIGHT($K105,2)=RIGHT(BX$39,2),SUM($AV105:BB105),0)+IF(RIGHT(BX$39,2)>RIGHT($K105,2),BB105,0)) -> 0.2885875628 | BY105: =+IF($K105="Ongoing",BC105,IF(RIGHT($K105,2)=RIGHT(BY$39,2),SUM($AV105:BC105),0)+IF(RIGHT(BY$39,2)>RIGHT($K105,2),BC105,0)) -> 0.2768153757 | BZ105: =+IF($K105="Ongoing",BD105,IF(RIGHT($K105,2)=RIGHT(BZ$39,2),SUM($AV105:BD105),0)+IF(RIGHT(BZ$39,2)>RIGHT($K105,2),BD105,0)) -> 0.2513884351 | CA105: =+IF($K105="Ongoing",BE105,IF(RIGHT($K105,2)=RIGHT(CA$39,2),SUM($AV105:BE105),0)+IF(RIGHT(CA$39,2)>RIGHT($K105,2),BE105,0)) -> 0.2802838816 | CC105: =+O105*KeyAssumptionsPriceControl_FO!X$15 -> 0 | CD105: =+P105*KeyAssumptionsPriceControl_FO!Y$15 -> 0 | CE105: =+Q105*KeyAssumptionsPriceControl_FO!Z$15 -> 0 | CF105: =+R105*KeyAssumptionsPriceControl_FO!AA$15 -> 0 | CG105: =+S105*KeyAssumptionsPriceControl_FO!AB$15 -> 0 | CH105: =+T105*KeyAssumptionsPriceControl_FO!AC$15 -> 0.3194101764 | CI105: =+U105*KeyAssumptionsPriceControl_FO!AD$15 -> 0.338381839 | CJ105: =+V105*KeyAssumptionsPriceControl_FO!AE$15 -> 0.3320437263 | CK105: =+W105*KeyAssumptionsPriceControl_FO!AF$15 -> 0.3084792796 | CL105: =+X105*KeyAssumptionsPriceControl_FO!AG$15 -> 0.3518474927 | CN105: 0 | CO105: 0 | CP105: 0 | CQ105: 0 | CR105: 0 | CS105: 0.003992627206 | CT105: 0.0122150274 | CU105: 0.02059534697 | CV105: 0.02860188454 | CW105: 0.03685596919
C106: Fifth Regulatory Capex Allocation 6 | E106: Water | F106: Renewals | G106: Headworks | H106: Capital Programs / Allocation | I106: 0 | J106: Straight line | K106: Ongoing | L106: 40 | M106: 40 | O106: 0 | P106: 0 | Q106: 0 | R106: 0 | S106: 0 | T106: 0.2144330817 | U106: 0.3059369294 | V106: 0.3606747281 | W106: 0.3170237562 | X106: 0.2720202953 | Z106: 0 | AA106: 0 | AB106: 0 | AC106: 0 | AD106: 0 | AE106: 0 | AF106: 0 | AG106: 0 | AH106: 0 | AI106: 0 | AK106: 0 | AL106: 0 | AM106: 0 | AN106: 0 | AO106: 0 | AP106: 0 | AQ106: 0 | AR106: 0 | AS106: 0 | AT106: 0 | AV106: 0 | AW106: 0 | AX106: 0 | AY106: 0 | AZ106: 0 | BA106: 0.2144330817 | BB106: 0.3059369294 | BC106: 0.3606747281 | BD106: 0.3170237562 | BE106: 0.2720202953 | BG106: 0 | BH106: 0 | BI106: 0 | BJ106: 0 | BK106: 0 | BL106: 0.002680413522 | BM106: 0.009185038661 | BN106: 0.01751768438 | BO106: 0.02598891543 | BP106: 0.03335196608 | BR106: =+IF($K106="Ongoing",AV106,IF(RIGHT($K106,2)=RIGHT(BR$39,2),SUM($AV106:AV106),0)+IF(RIGHT(BR$39,2)>RIGHT($K106,2),AV106,0)) -> 0 | BS106: =+IF($K106="Ongoing",AW106,IF(RIGHT($K106,2)=RIGHT(BS$39,2),SUM($AV106:AW106),0)+IF(RIGHT(BS$39,2)>RIGHT($K106,2),AW106,0)) -> 0 | BT106: =+IF($K106="Ongoing",AX106,IF(RIGHT($K106,2)=RIGHT(BT$39,2),SUM($AV106:AX106),0)+IF(RIGHT(BT$39,2)>RIGHT($K106,2),AX106,0)) -> 0 | BU106: =+IF($K106="Ongoing",AY106,IF(RIGHT($K106,2)=RIGHT(BU$39,2),SUM($AV106:AY106),0)+IF(RIGHT(BU$39,2)>RIGHT($K106,2),AY106,0)) -> 0 | BV106: =+IF($K106="Ongoing",AZ106,IF(RIGHT($K106,2)=RIGHT(BV$39,2),SUM($AV106:AZ106),0)+IF(RIGHT(BV$39,2)>RIGHT($K106,2),AZ106,0)) -> 0 | BW106: =+IF($K106="Ongoing",BA106,IF(RIGHT($K106,2)=RIGHT(BW$39,2),SUM($AV106:BA106),0)+IF(RIGHT(BW$39,2)>RIGHT($K106,2),BA106,0)) -> 0.2144330817 | BX106: =+IF($K106="Ongoing",BB106,IF(RIGHT($K106,2)=RIGHT(BX$39,2),SUM($AV106:BB106),0)+IF(RIGHT(BX$39,2)>RIGHT($K106,2),BB106,0)) -> 0.3059369294 | BY106: =+IF($K106="Ongoing",BC106,IF(RIGHT($K106,2)=RIGHT(BY$39,2),SUM($AV106:BC106),0)+IF(RIGHT(BY$39,2)>RIGHT($K106,2),BC106,0)) -> 0.3606747281 | BZ106: =+IF($K106="Ongoing",BD106,IF(RIGHT($K106,2)=RIGHT(BZ$39,2),SUM($AV106:BD106),0)+IF(RIGHT(BZ$39,2)>RIGHT($K106,2),BD106,0)) -> 0.3170237562 | CA106: =+IF($K106="Ongoing",BE106,IF(RIGHT($K106,2)=RIGHT(CA$39,2),SUM($AV106:BE106),0)+IF(RIGHT(CA$39,2)>RIGHT($K106,2),BE106,0)) -> 0.2720202953 | CC106: =+O106*KeyAssumptionsPriceControl_FO!X$15 -> 0 | CD106: =+P106*KeyAssumptionsPriceControl_FO!Y$15 -> 0 | CE106: =+Q106*KeyAssumptionsPriceControl_FO!Z$15 -> 0 | CF106: =+R106*KeyAssumptionsPriceControl_FO!AA$15 -> 0 | CG106: =+S106*KeyAssumptionsPriceControl_FO!AB$15 -> 0 | CH106: =+T106*KeyAssumptionsPriceControl_FO!AC$15 -> 0.2457794621 | CI106: =+U106*KeyAssumptionsPriceControl_FO!AD$15 -> 0.3587247483 | CJ106: =+V106*KeyAssumptionsPriceControl_FO!AE$15 -> 0.4326341353 | CK106: =+W106*KeyAssumptionsPriceControl_FO!AF$15 -> 0.3890205206 | CL106: =+X106*KeyAssumptionsPriceControl_FO!AG$15 -> 0.3414740024 | CN106: 0 | CO106: 0 | CP106: 0 | CQ106: 0 | CR106: 0 | CS106: 0.003072243276 | CT106: 0.01062854591 | CU106: 0.02052053195 | CV106: 0.03079121515 | CW106: 0.03992239669
C107: Fifth Regulatory Capex Allocation 7 | E107: Water | F107: Improvements / Compliance | G107: Corporate | H107: Capital Programs / Allocation | I107: 0 | J107: Straight line | K107: Ongoing | L107: 40 | M107: 40 | O107: 0 | P107: 0 | Q107: 0 | R107: 0 | S107: 0 | T107: 0.7537468931 | U107: 0.6928101025 | V107: 0.671562524 | W107: 0.5540484446 | X107: 0.6340189782 | Z107: 0 | AA107: 0 | AB107: 0 | AC107: 0 | AD107: 0 | AE107: 0 | AF107: 0 | AG107: 0 | AH107: 0 | AI107: 0 | AK107: 0 | AL107: 0 | AM107: 0 | AN107: 0 | AO107: 0 | AP107: 0 | AQ107: 0 | AR107: 0 | AS107: 0 | AT107: 0 | AV107: 0 | AW107: 0 | AX107: 0 | AY107: 0 | AZ107: 0 | BA107: 0.7537468931 | BB107: 0.6928101025 | BC107: 0.671562524 | BD107: 0.5540484446 | BE107: 0.6340189782 | BG107: =IF($L107=0,0, IF($L107<=0.5,BR107, IF($J107="straight line", IF((LEFT(BG$39,4)*1)-INT($L107)<LEFT($BG$39,4)*1,0,((OFFSET(BR107,0,-INT($L107+0.5),1,1))/$L107)*(IF($L107-INT($L107)>0.5,$L107-0.5-INT($L107),IF($L107-INT($L107)<=0.5,$L107-0.5-INT($L107)+1,0)))) +BR107/$L107*0.5, IF($J107="Declining Balance",-$BG$38,0)))) -> 0 | BH107: 0 | BI107: 0 | BJ107: 0 | BK107: 0 | BL107: 0.009421836164 | BM107: 0.02750379861 | BN107: 0.04455845644 | BO107: 0.05987859355 | BP107: 0.07472943633 | BR107: =+IF($K107="Ongoing",AV107,IF(RIGHT($K107,2)=RIGHT(BR$39,2),SUM($AV107:AV107),0)+IF(RIGHT(BR$39,2)>RIGHT($K107,2),AV107,0)) -> 0 | BS107: =+IF($K107="Ongoing",AW107,IF(RIGHT($K107,2)=RIGHT(BS$39,2),SUM($AV107:AW107),0)+IF(RIGHT(BS$39,2)>RIGHT($K107,2),AW107,0)) -> 0 | BT107: =+IF($K107="Ongoing",AX107,IF(RIGHT($K107,2)=RIGHT(BT$39,2),SUM($AV107:AX107),0)+IF(RIGHT(BT$39,2)>RIGHT($K107,2),AX107,0)) -> 0 | BU107: =+IF($K107="Ongoing",AY107,IF(RIGHT($K107,2)=RIGHT(BU$39,2),SUM($AV107:AY107),0)+IF(RIGHT(BU$39,2)>RIGHT($K107,2),AY107,0)) -> 0 | BV107: =+IF($K107="Ongoing",AZ107,IF(RIGHT($K107,2)=RIGHT(BV$39,2),SUM($AV107:AZ107),0)+IF(RIGHT(BV$39,2)>RIGHT($K107,2),AZ107,0)) -> 0 | BW107: =+IF($K107="Ongoing",BA107,IF(RIGHT($K107,2)=RIGHT(BW$39,2),SUM($AV107:BA107),0)+IF(RIGHT(BW$39,2)>RIGHT($K107,2),BA107,0)) -> 0.7537468931 | BX107: =+IF($K107="Ongoing",BB107,IF(RIGHT($K107,2)=RIGHT(BX$39,2),SUM($AV107:BB107),0)+IF(RIGHT(BX$39,2)>RIGHT($K107,2),BB107,0)) -> 0.6928101025 | BY107: =+IF($K107="Ongoing",BC107,IF(RIGHT($K107,2)=RIGHT(BY$39,2),SUM($AV107:BC107),0)+IF(RIGHT(BY$39,2)>RIGHT($K107,2),BC107,0)) -> 0.671562524 | BZ107: =+IF($K107="Ongoing",BD107,IF(RIGHT($K107,2)=RIGHT(BZ$39,2),SUM($AV107:BD107),0)+IF(RIGHT(BZ$39,2)>RIGHT($K107,2),BD107,0)) -> 0.5540484446 | CA107: =+IF($K107="Ongoing",BE107,IF(RIGHT($K107,2)=RIGHT(CA$39,2),SUM($AV107:BE107),0)+IF(RIGHT(CA$39,2)>RIGHT($K107,2),BE107,0)) -> 0.6340189782 | CC107: =+O107*KeyAssumptionsPriceControl_FO!X$15 -> 0 | CD107: =+P107*KeyAssumptionsPriceControl_FO!Y$15 -> 0 | CE107: =+Q107*KeyAssumptionsPriceControl_FO!Z$15 -> 0 | CF107: =+R107*KeyAssumptionsPriceControl_FO!AA$15 -> 0 | CG107: =+S107*KeyAssumptionsPriceControl_FO!AB$15 -> 0 | CH107: =+T107*KeyAssumptionsPriceControl_FO!AC$15 -> 0.8639315559 | CI107: =+U107*KeyAssumptionsPriceControl_FO!AD$15 -> 0.8123508662 | CJ107: =+V107*KeyAssumptionsPriceControl_FO!AE$15 -> 0.805548183 | CK107: =+W107*KeyAssumptionsPriceControl_FO!AF$15 -> 0.6798740163 | CL107: =+X107*KeyAssumptionsPriceControl_FO!AG$15 -> 0.7959001655 | CN107: =IF($M107=0,0, IF($M107<=0.5,CC107, IF($J107="straight line", IF((LEFT(CN$39,4)*1)-INT($M107)<LEFT($CN$39,4)*1,0,((OFFSET(CC107,0,-INT($M107+0.5),1,1))/$M107)*(IF($M107-INT($M107)>0.5,$M107-0.5-INT($M107),IF($M107-INT($M107)<=0.5,$M107-0.5-INT($M107)+1,0)))) +CC107/$M107*0.5, IF($J107="Declining Balance",-$CN$38,0)))) -> 0 | CO107: 0 | CP107: 0 | CQ107: 0 | CR107: 0 | CS107: 0.01079914445 | CT107: 0.03175267472 | CU107: 0.05197641284 | CV107: 0.07054419033 | CW107: 0.0889913676
C108: Fifth Regulatory Capex Allocation 8 | E108: Sewerage | F108: Improvements / Compliance | G108: Corporate | H108: Capital Programs / Allocation | I108: 0 | J108: Straight line | K108: Ongoing | L108: 40 | M108: 40 | O108: 0 | P108: 0 | Q108: 0 | R108: 0 | S108: 0 | T108: 0.7537468931 | U108: 0.6928101025 | V108: 0.671562524 | W108: 0.5540484446 | X108: 0.6340189782 | Z108: 0 | AA108: 0 | AB108: 0 | AC108: 0 | AD108: 0 | AE108: 0 | AF108: 0 | AG108: 0 | AH108: 0 | AI108: 0 | AK108: 0 | AL108: 0 | AM108: 0 | AN108: 0 | AO108: 0 | AP108: 0 | AQ108: 0 | AR108: 0 | AS108: 0 | AT108: 0 | AV108: 0 | AW108: 0 | AX108: 0 | AY108: 0 | AZ108: 0 | BA108: 0.7537468931 | BB108: 0.6928101025 | BC108: 0.671562524 | BD108: 0.5540484446 | BE108: 0.6340189782 | BG108: 0 | BH108: 0 | BI108: 0 | BJ108: 0 | BK108: 0 | BL108: 0.009421836164 | BM108: 0.02750379861 | BN108: 0.04455845644 | BO108: 0.05987859355 | BP108: 0.07472943633 | BR108: =+IF($K108="Ongoing",AV108,IF(RIGHT($K108,2)=RIGHT(BR$39,2),SUM($AV108:AV108),0)+IF(RIGHT(BR$39,2)>RIGHT($K108,2),AV108,0)) -> 0 | BS108: =+IF($K108="Ongoing",AW108,IF(RIGHT($K108,2)=RIGHT(BS$39,2),SUM($AV108:AW108),0)+IF(RIGHT(BS$39,2)>RIGHT($K108,2),AW108,0)) -> 0 | BT108: =+IF($K108="Ongoing",AX108,IF(RIGHT($K108,2)=RIGHT(BT$39,2),SUM($AV108:AX108),0)+IF(RIGHT(BT$39,2)>RIGHT($K108,2),AX108,0)) -> 0 | BU108: =+IF($K108="Ongoing",AY108,IF(RIGHT($K108,2)=RIGHT(BU$39,2),SUM($AV108:AY108),0)+IF(RIGHT(BU$39,2)>RIGHT($K108,2),AY108,0)) -> 0 | BV108: =+IF($K108="Ongoing",AZ108,IF(RIGHT($K108,2)=RIGHT(BV$39,2),SUM($AV108:AZ108),0)+IF(RIGHT(BV$39,2)>RIGHT($K108,2),AZ108,0)) -> 0 | BW108: =+IF($K108="Ongoing",BA108,IF(RIGHT($K108,2)=RIGHT(BW$39,2),SUM($AV108:BA108),0)+IF(RIGHT(BW$39,2)>RIGHT($K108,2),BA108,0)) -> 0.7537468931 | BX108: =+IF($K108="Ongoing",BB108,IF(RIGHT($K108,2)=RIGHT(BX$39,2),SUM($AV108:BB108),0)+IF(RIGHT(BX$39,2)>RIGHT($K108,2),BB108,0)) -> 0.6928101025 | BY108: =+IF($K108="Ongoing",BC108,IF(RIGHT($K108,2)=RIGHT(BY$39,2),SUM($AV108:BC108),0)+IF(RIGHT(BY$39,2)>RIGHT($K108,2),BC108,0)) -> 0.671562524 | BZ108: =+IF($K108="Ongoing",BD108,IF(RIGHT($K108,2)=RIGHT(BZ$39,2),SUM($AV108:BD108),0)+IF(RIGHT(BZ$39,2)>RIGHT($K108,2),BD108,0)) -> 0.5540484446 | CA108: =+IF($K108="Ongoing",BE108,IF(RIGHT($K108,2)=RIGHT(CA$39,2),SUM($AV108:BE108),0)+IF(RIGHT(CA$39,2)>RIGHT($K108,2),BE108,0)) -> 0.6340189782 | CC108: =+O108*KeyAssumptionsPriceControl_FO!X$15 -> 0 | CD108: =+P108*KeyAssumptionsPriceControl_FO!Y$15 -> 0 | CE108: =+Q108*KeyAssumptionsPriceControl_FO!Z$15 -> 0 | CF108: =+R108*KeyAssumptionsPriceControl_FO!AA$15 -> 0 | CG108: =+S108*KeyAssumptionsPriceControl_FO!AB$15 -> 0 | CH108: =+T108*KeyAssumptionsPriceControl_FO!AC$15 -> 0.8639315559 | CI108: =+U108*KeyAssumptionsPriceControl_FO!AD$15 -> 0.8123508662 | CJ108: =+V108*KeyAssumptionsPriceControl_FO!AE$15 -> 0.805548183 | CK108: =+W108*KeyAssumptionsPriceControl_FO!AF$15 -> 0.6798740163 | CL108: =+X108*KeyAssumptionsPriceControl_FO!AG$15 -> 0.7959001655 | CN108: 0 | CO108: 0 | CP108: 0 | CQ108: 0 | CR108: 0 | CS108: 0.01079914445 | CT108: 0.03175267472 | CU108: 0.05197641284 | CV108: 0.07054419033 | CW108: 0.0889913676
C109: Fifth Regulatory Capex Allocation 9 | E109: Water | F109: Renewals | G109: Corporate | H109: Capital Programs / Allocation | I109: 0 | J109: Straight line | K109: Ongoing | L109: 40 | M109: 40 | O109: 0 | P109: 0 | Q109: 0 | R109: 0 | S109: 0 | T109: 0.1881631548 | U109: 0.1179844048 | V109: 0.1049579917 | W109: 0.07331731508 | X109: 0.07644173145 | Z109: 0 | AA109: 0 | AB109: 0 | AC109: 0 | AD109: 0 | AE109: 0 | AF109: 0 | AG109: 0 | AH109: 0 | AI109: 0 | AK109: 0 | AL109: 0 | AM109: 0 | AN109: 0 | AO109: 0 | AP109: 0 | AQ109: 0 | AR109: 0 | AS109: 0 | AT109: 0 | AV109: 0 | AW109: 0 | AX109: 0 | AY109: 0 | AZ109: 0 | BA109: 0.1881631548 | BB109: 0.1179844048 | BC109: 0.1049579917 | BD109: 0.07331731508 | BE109: 0.07644173145 | BG109: 0 | BH109: 0 | BI109: 0 | BJ109: 0 | BK109: 0 | BL109: 0.002352039435 | BM109: 0.00617888393 | BN109: 0.008965663886 | BO109: 0.01119410522 | BP109: 0.0130660933 | BR109: =+IF($K109="Ongoing",AV109,IF(RIGHT($K109,2)=RIGHT(BR$39,2),SUM($AV109:AV109),0)+IF(RIGHT(BR$39,2)>RIGHT($K109,2),AV109,0)) -> 0 | BS109: =+IF($K109="Ongoing",AW109,IF(RIGHT($K109,2)=RIGHT(BS$39,2),SUM($AV109:AW109),0)+IF(RIGHT(BS$39,2)>RIGHT($K109,2),AW109,0)) -> 0 | BT109: =+IF($K109="Ongoing",AX109,IF(RIGHT($K109,2)=RIGHT(BT$39,2),SUM($AV109:AX109),0)+IF(RIGHT(BT$39,2)>RIGHT($K109,2),AX109,0)) -> 0 | BU109: =+IF($K109="Ongoing",AY109,IF(RIGHT($K109,2)=RIGHT(BU$39,2),SUM($AV109:AY109),0)+IF(RIGHT(BU$39,2)>RIGHT($K109,2),AY109,0)) -> 0 | BV109: =+IF($K109="Ongoing",AZ109,IF(RIGHT($K109,2)=RIGHT(BV$39,2),SUM($AV109:AZ109),0)+IF(RIGHT(BV$39,2)>RIGHT($K109,2),AZ109,0)) -> 0 | BW109: =+IF($K109="Ongoing",BA109,IF(RIGHT($K109,2)=RIGHT(BW$39,2),SUM($AV109:BA109),0)+IF(RIGHT(BW$39,2)>RIGHT($K109,2),BA109,0)) -> 0.1881631548 | BX109: =+IF($K109="Ongoing",BB109,IF(RIGHT($K109,2)=RIGHT(BX$39,2),SUM($AV109:BB109),0)+IF(RIGHT(BX$39,2)>RIGHT($K109,2),BB109,0)) -> 0.1179844048 | BY109: =+IF($K109="Ongoing",BC109,IF(RIGHT($K109,2)=RIGHT(BY$39,2),SUM($AV109:BC109),0)+IF(RIGHT(BY$39,2)>RIGHT($K109,2),BC109,0)) -> 0.1049579917 | BZ109: =+IF($K109="Ongoing",BD109,IF(RIGHT($K109,2)=RIGHT(BZ$39,2),SUM($AV109:BD109),0)+IF(RIGHT(BZ$39,2)>RIGHT($K109,2),BD109,0)) -> 0.07331731508 | CA109: =+IF($K109="Ongoing",BE109,IF(RIGHT($K109,2)=RIGHT(CA$39,2),SUM($AV109:BE109),0)+IF(RIGHT(CA$39,2)>RIGHT($K109,2),BE109,0)) -> 0.07644173145 | CC109: =+O109*KeyAssumptionsPriceControl_FO!X$15 -> 0 | CD109: =+P109*KeyAssumptionsPriceControl_FO!Y$15 -> 0 | CE109: =+Q109*KeyAssumptionsPriceControl_FO!Z$15 -> 0 | CF109: =+R109*KeyAssumptionsPriceControl_FO!AA$15 -> 0 | CG109: =+S109*KeyAssumptionsPriceControl_FO!AB$15 -> 0 | CH109: =+T109*KeyAssumptionsPriceControl_FO!AC$15 -> 0.2156693295 | CI109: =+U109*KeyAssumptionsPriceControl_FO!AD$15 -> 0.1383419975 | CJ109: =+V109*KeyAssumptionsPriceControl_FO!AE$15 -> 0.1258985075 | CK109: =+W109*KeyAssumptionsPriceControl_FO!AF$15 -> 0.08996783214 | CL109: =+X109*KeyAssumptionsPriceControl_FO!AG$15 -> 0.0959592517 | CN109: 0 | CO109: 0 | CP109: 0 | CQ109: 0 | CR109: 0 | CS109: 0.002695866619 | CT109: 0.007121008207 | CU109: 0.01042401452 | CV109: 0.01312234377 | CW109: 0.01544643231
C110: Fifth Regulatory Capex Allocation 10 | E110: Sewerage | F110: Renewals | G110: Corporate | H110: Capital Programs / Allocation | I110: 0 | J110: Straight line | K110: Ongoing | L110: 40 | M110: 40 | O110: 0 | P110: 0 | Q110: 0 | R110: 0 | S110: 0 | T110: 0.1881631548 | U110: 0.1179844048 | V110: 0.1049579917 | W110: 0.07331731508 | X110: 0.07644173145 | Z110: 0 | AA110: 0 | AB110: 0 | AC110: 0 | AD110: 0 | AE110: 0 | AF110: 0 | AG110: 0 | AH110: 0 | AI110: 0 | AK110: 0 | AL110: 0 | AM110: 0 | AN110: 0 | AO110: 0 | AP110: 0 | AQ110: 0 | AR110: 0 | AS110: 0 | AT110: 0 | AV110: 0 | AW110: 0 | AX110: 0 | AY110: 0 | AZ110: =+S110-AD110-AO110 -> 0 | BA110: 0.1881631548 | BB110: 0.1179844048 | BC110: 0.1049579917 | BD110: 0.07331731508 | BE110: 0.07644173145 | BG110: 0 | BH110: 0 | BI110: 0 | BJ110: 0 | BK110: 0 | BL110: 0.002352039435 | BM110: 0.00617888393 | BN110: 0.008965663886 | BO110: 0.01119410522 | BP110: 0.0130660933 | BR110: =+IF($K110="Ongoing",AV110,IF(RIGHT($K110,2)=RIGHT(BR$39,2),SUM($AV110:AV110),0)+IF(RIGHT(BR$39,2)>RIGHT($K110,2),AV110,0)) -> 0 | BS110: =+IF($K110="Ongoing",AW110,IF(RIGHT($K110,2)=RIGHT(BS$39,2),SUM($AV110:AW110),0)+IF(RIGHT(BS$39,2)>RIGHT($K110,2),AW110,0)) -> 0 | BT110: =+IF($K110="Ongoing",AX110,IF(RIGHT($K110,2)=RIGHT(BT$39,2),SUM($AV110:AX110),0)+IF(RIGHT(BT$39,2)>RIGHT($K110,2),AX110,0)) -> 0 | BU110: =+IF($K110="Ongoing",AY110,IF(RIGHT($K110,2)=RIGHT(BU$39,2),SUM($AV110:AY110),0)+IF(RIGHT(BU$39,2)>RIGHT($K110,2),AY110,0)) -> 0 | BV110: =+IF($K110="Ongoing",AZ110,IF(RIGHT($K110,2)=RIGHT(BV$39,2),SUM($AV110:AZ110),0)+IF(RIGHT(BV$39,2)>RIGHT($K110,2),AZ110,0)) -> 0 | BW110: =+IF($K110="Ongoing",BA110,IF(RIGHT($K110,2)=RIGHT(BW$39,2),SUM($AV110:BA110),0)+IF(RIGHT(BW$39,2)>RIGHT($K110,2),BA110,0)) -> 0.1881631548 | BX110: =+IF($K110="Ongoing",BB110,IF(RIGHT($K110,2)=RIGHT(BX$39,2),SUM($AV110:BB110),0)+IF(RIGHT(BX$39,2)>RIGHT($K110,2),BB110,0)) -> 0.1179844048 | BY110: =+IF($K110="Ongoing",BC110,IF(RIGHT($K110,2)=RIGHT(BY$39,2),SUM($AV110:BC110),0)+IF(RIGHT(BY$39,2)>RIGHT($K110,2),BC110,0)) -> 0.1049579917 | BZ110: =+IF($K110="Ongoing",BD110,IF(RIGHT($K110,2)=RIGHT(BZ$39,2),SUM($AV110:BD110),0)+IF(RIGHT(BZ$39,2)>RIGHT($K110,2),BD110,0)) -> 0.07331731508 | CA110: =+IF($K110="Ongoing",BE110,IF(RIGHT($K110,2)=RIGHT(CA$39,2),SUM($AV110:BE110),0)+IF(RIGHT(CA$39,2)>RIGHT($K110,2),BE110,0)) -> 0.07644173145 | CC110: =+O110*KeyAssumptionsPriceControl_FO!X$15 -> 0 | CD110: =+P110*KeyAssumptionsPriceControl_FO!Y$15 -> 0 | CE110: =+Q110*KeyAssumptionsPriceControl_FO!Z$15 -> 0 | CF110: =+R110*KeyAssumptionsPriceControl_FO!AA$15 -> 0 | CG110: =+S110*KeyAssumptionsPriceControl_FO!AB$15 -> 0 | CH110: =+T110*KeyAssumptionsPriceControl_FO!AC$15 -> 0.2156693295 | CI110: =+U110*KeyAssumptionsPriceControl_FO!AD$15 -> 0.1383419975 | CJ110: =+V110*KeyAssumptionsPriceControl_FO!AE$15 -> 0.1258985075 | CK110: =+W110*KeyAssumptionsPriceControl_FO!AF$15 -> 0.08996783214 | CL110: =+X110*KeyAssumptionsPriceControl_FO!AG$15 -> 0.0959592517 | CN110: 0 | CO110: 0 | CP110: 0 | CQ110: 0 | CR110: 0 | CS110: 0.002695866619 | CT110: 0.007121008207 | CU110: 0.01042401452 | CV110: 0.01312234377 | CW110: 0.01544643231
